Workbook

Sheet Y1表紙
A1: Y1 ～ゲームソフト売上予想リーグ～
A2: このブックに登録されているデータは、第 | B2: =SUM(各期データ!$C$3:$C$26) -> 548 | C2: 回開催分までです。
A4: ここまでの総参加者数（のべ数） | B4: =SUM(各期データ!$E$3:$E$26) -> 15953 | C4: 名
A5: これまでの総積算ポイント | B5: =SUM(各期データ!$J$3:$J$26) -> 1745373 | C5: pts
A6: このうち、総盗塁ポイントは | B6: =SUM(各期データ!$AH$3:$AH$26) -> 42595 | C6: pts
B7: =CONCATENATE("(",TEXT(B6/B5,"##.#%"),")") -> (2.4%)
A8: これまでのY1純参加者数は | B8: =COUNTA(登録名変遷!$B$3:$B$999) -> 119 | C8: 名

Sheet 各期データ
C1: 実施回 | D1: 参加者数 | J1: ポイント | S1: タイトルホルダー | AE1: 盗塁関連データ | AL1: 順位予想・本数予想関連データ
D2: 実数 | E2: のべ数 | F2: 平均 | G2: 最多 | H2: 最少 | I2: 平均参加率 | J2: のべ得点 | K2: 平均得点 | L2: 週最高平均 | M2: 週最低平均 | N2: 期間最高点 | O2: 期間最低点 | P2: 最高平均 | Q2: 最低平均 | S2: 得点王 | T2: 最多勝 | U2: 最多敗 | V2: 最多ヒット | W2: 最多三振 | X2: 最優秀ERA | Y2: 盗塁王 | Z2: 最多PB | AA2: 最多当て | AB2: 最多入賞 | AC2: 最多圏外 | AE2: 盗塁総敢行数 | AF2: 盗塁総成功数 | AG2: 盗塁成功率 | AH2: 盗塁総Pts | AI2: 平均盗塁Pts | AJ2: 単位敢行数 | AL2: 総ヒット数 | AM2: 単位ヒット数 | AN2: 総三振数 | AO2: 単位三振数 | AP2: 総順当数 | AQ2: 単位順当数 | AR2: 総PB数 | AS2: 単位PB数
A3: 第1期 | B3: 1 | C3: 26 | D3: =COUNT(第1期個人成績!$C$3:$C17) -> 15 | E3: =第1期個人成績!$C$19 -> 284 | F3: =E3/C3 -> 10.92307692 | G3: =MAX(第1期個人成績!$BB$21:$CA$21) -> 12 | H3: =MIN(第1期個人成績!$BB$21:$CA$21) -> 9 | I3: =E3/(D3*C3) -> 0.7282051282 | J3: =第1期個人成績!$D$19 -> 27556 | K3: =第1期個人成績!$E$20 -> 97.02171093 | L3: =MAX(第1期個人成績!$AA$20:$BA$20) -> 166.0833333 | M3: =MIN(第1期個人成績!$AA$20:$BA$20) -> 56 | N3: =第1期個人成績!$V$21 -> 280 | O3: =第1期個人成績!$W$22 -> 24 | P3: =第1期個人成績!E21 -> 108.3333333 | Q3: =第1期個人成績!E22 -> 83.07142857 | S3: =第1期個人成績!$D$21 -> 2789 | T3: =第1期個人成績!$G$21 -> 5 | U3: =第1期個人成績!$H$21 -> 7 | V3: =第1期個人成績!$J$21 -> 10 | W3: =第1期個人成績!$K$21 -> 4 | X3: =第1期個人成績!$L$21 -> 4.230769231 | Y3: =第1期個人成績!$F$21 -> 150 | Z3: =第1期個人成績!$O$21 -> 11 | AA3: =第1期個人成績!$P$21 -> 48 | AB3: =第1期個人成績!$Q$21 -> 10 | AC3: =第1期個人成績!$S$21 -> 0 | AE3: =第1期個人成績!$X$19 -> 94 | AF3: =COUNTIF(盗塁記録!$B$2:$B$665,B3) -> 17 | AG3: =AF3/AE3 -> 0.1808510638 | AH3: =SUMIF(盗塁記録!$B$2:$B$665,B3,盗塁記録!G2:G665) -> 740 | AI3: =AH3/AF3 -> 43.52941176 | AJ3: =AE3/D3 -> 6.266666667 | AL3: =VLOOKUP(AL$30,第1期個人成績!$A$2:$AB$99,AL$31,FALSE) -> 64 | AM3: =AL3/$E3 -> 0.2253521127 | AN3: =VLOOKUP(AN$30,第1期個人成績!$A$2:$AB$99,AN$31,FALSE) -> 30 | AO3: =AN3/$E3 -> 0.1056338028 | AP3: =VLOOKUP(AP$30,第1期個人成績!$A$2:$AB$99,AP$31,FALSE) -> 425 | AQ3: =AP3/$E3 -> 1.496478873 | AR3: =VLOOKUP(AR$30,第1期個人成績!$A$2:$AB$99,AR$31,FALSE) -> 91 | AS3: =AR3/$E3 -> 0.3204225352
A4: 第2期 | B4: 2 | C4: 26 | D4: =COUNT(第2期個人成績!$C$3:$C17) -> 15 | E4: =第2期個人成績!$C$19 -> 307 | F4: 11.80769231 | G4: =MAX(第2期個人成績!$BB$21:$CA$21) -> 14 | H4: =MIN(第2期個人成績!$BB$21:$CA$21) -> 9 | I4: 0.7871794872 | J4: =第2期個人成績!$D$19 -> 28640 | K4: =第2期個人成績!$E$20 -> 92.59170437 | L4: =MAX(第2期個人成績!$AA$20:$BA$20) -> 156.0909091 | M4: =MIN(第2期個人成績!$AA$20:$BA$20) -> 28.25 | N4: =第2期個人成績!$V$21 -> 219 | O4: =第2期個人成績!$W$22 -> 20 | P4: =第2期個人成績!E21 -> 107.1923077 | Q4: =第2期個人成績!E22 -> 81.30769231 | S4: =第2期個人成績!$D$21 -> 2787 | T4: =第2期個人成績!$G$21 -> 6 | U4: =第2期個人成績!$H$21 -> 5 | V4: =第2期個人成績!$J$21 -> 6 | W4: =第2期個人成績!$K$21 -> 8 | X4: =第2期個人成績!$L$21 -> 4.807692308 | Y4: =第2期個人成績!$F$21 -> 270 | Z4: =第2期個人成績!$O$21 -> 9 | AA4: =第2期個人成績!$P$21 -> 38 | AB4: =第2期個人成績!$Q$21 -> 13 | AC4: =第2期個人成績!$S$21 -> 0 | AE4: =第2期個人成績!$X$19 -> 110 | AF4: =COUNTIF(盗塁記録!$B$2:$B$665,B4) -> 24 | AG4: =AF4/AE4 -> 0.2181818182 | AH4: =SUMIF(盗塁記録!$B$2:$B$665,B4,盗塁記録!G2:G665) -> 1311 | AI4: 54.625 | AJ4: =AE4/D4 -> 7.333333333 | AL4: =VLOOKUP(AL$30,第2期個人成績!$A$2:$AB$99,AL$31,FALSE) -> 44 | AM4: =AL4/$E4 -> 0.1433224756 | AN4: =VLOOKUP(AN$30,第2期個人成績!$A$2:$AB$99,AN$31,FALSE) -> 67 | AO4: 0.2182410423 | AP4: =VLOOKUP(AP$30,第2期個人成績!$A$2:$AB$99,AP$31,FALSE) -> 403 | AQ4: 1.312703583 | AR4: =VLOOKUP(AR$30,第2期個人成績!$A$2:$AB$99,AR$31,FALSE) -> 64 | AS4: 0.2084690554
A5: 第3期 | B5: 3 | C5: 26 | D5: =COUNT(第3期個人成績!$C$3:$C19) -> 17 | E5: =第3期個人成績!$C$21 -> 355 | F5: 13.65384615 | G5: =MAX(第3期個人成績!$BB$23:$CA$23) -> 15 | H5: =MIN(第3期個人成績!$BB$23:$CA$23) -> 12 | I5: 0.8031674208 | J5: =第3期個人成績!$D$21 -> 34638 | K5: =第3期個人成績!$E$22 -> 97.53079573 | L5: =MAX(第3期個人成績!$AA$22:$BA$22) -> 132.7692308 | M5: =MIN(第3期個人成績!$AA$22:$BA$22) -> 63.21428571 | N5: =第3期個人成績!$V$23 -> 265 | O5: =第3期個人成績!$W$24 -> 26 | P5: =第3期個人成績!E23 -> 113.3043478 | Q5: =第3期個人成績!E24 -> 85.54545455 | S5: =第3期個人成績!$D$23 -> 2756 | T5: =第3期個人成績!$G$23 -> 6 | U5: =第3期個人成績!$H$23 -> 5 | V5: =第3期個人成績!$J$23 -> 5 | W5: =第3期個人成績!$K$23 -> 7 | X5: =第3期個人成績!$L$23 -> 6.115384615 | Y5: =第3期個人成績!$F$23 -> 381 | Z5: =第3期個人成績!$O$23 -> 13 | AA5: =第3期個人成績!$P$23 -> 40 | AB5: =第3期個人成績!$Q$23 -> 9 | AC5: =第3期個人成績!$S$23 -> 0 | AE5: =第3期個人成績!$X$21 -> 131 | AF5: =COUNTIF(盗塁記録!$B$2:$B$665,B5) -> 26 | AG5: 0.1984732824 | AH5: =SUMIF(盗塁記録!$B$2:$B$665,B5,盗塁記録!G2:G665) -> 1420 | AI5: 54.61538462 | AJ5: 7.705882353 | AL5: =VLOOKUP(AL$30,第3期個人成績!$A$2:$AB$99,AL$31,FALSE) -> 43 | AM5: 0.1211267606 | AN5: =VLOOKUP(AN$30,第3期個人成績!$A$2:$AB$99,AN$31,FALSE) -> 66 | AO5: 0.185915493 | AP5: =VLOOKUP(AP$30,第3期個人成績!$A$2:$AB$99,AP$31,FALSE) -> 469 | AQ5: 1.321126761 | AR5: =VLOOKUP(AR$30,第3期個人成績!$A$2:$AB$99,AR$31,FALSE) -> 107 | AS5: 0.3014084507
A6: 第4期 | B6: 4 | C6: 26 | D6: =COUNT(第4期個人成績!$C$3:$C22) -> 20 | E6: =第4期個人成績!$C$24 -> 367 | F6: 14.11538462 | G6: =MAX(第4期個人成績!$BB$26:$CA$26) -> 17 | H6: =MIN(第4期個人成績!$BB$26:$CA$26) -> 11 | I6: 0.7057692308 | J6: =第4期個人成績!$D$24 -> 36519 | K6: =第4期個人成績!$E$25 -> 98.66155173 | L6: =MAX(第4期個人成績!$AA$25:$BA$25) -> 151.6153846 | M6: =MIN(第4期個人成績!$AA$25:$BA$25) -> 47.09090909 | N6: =第4期個人成績!$V$26 -> 248 | O6: =第4期個人成績!$W$27 -> 30 | P6: =第4期個人成績!E26 -> 116.4230769 | Q6: =第4期個人成績!E27 -> 85.25 | S6: =第4期個人成績!$D$26 -> 3027 | T6: =第4期個人成績!$G$26 -> 4 | U6: =第4期個人成績!$H$26 -> 5 | V6: =第4期個人成績!$J$26 -> 9 | W6: =第4期個人成績!$K$26 -> 9 | X6: =第4期個人成績!$L$26 -> 6 | Y6: =第4期個人成績!$F$26 -> 429 | Z6: =第4期個人成績!$O$26 -> 12 | AA6: =第4期個人成績!$P$26 -> 45 | AB6: =第4期個人成績!$Q$26 -> 9 | AC6: =第4期個人成績!$S$26 -> 0 | AE6: =第4期個人成績!$X$24 -> 117 | AF6: =COUNTIF(盗塁記録!$B$2:$B$665,B6) -> 29 | AG6: 0.2478632479 | AH6: =SUMIF(盗塁記録!$B$2:$B$665,B6,盗塁記録!G2:G665) -> 1410 | AI6: 48.62068966 | AJ6: 5.85 | AL6: =VLOOKUP(AL$30,第4期個人成績!$A$2:$AB$99,AL$31,FALSE) -> 101 | AM6: 0.2752043597 | AN6: =VLOOKUP(AN$30,第4期個人成績!$A$2:$AB$99,AN$31,FALSE) -> 94 | AO6: 0.2561307902 | AP6: =VLOOKUP(AP$30,第4期個人成績!$A$2:$AB$99,AP$31,FALSE) -> 543 | AQ6: 1.479564033 | AR6: =VLOOKUP(AR$30,第4期個人成績!$A$2:$AB$99,AR$31,FALSE) -> 112 | AS6: 0.3051771117
A7: 第5期 | B7: 5 | C7: 26 | D7: =COUNT(第5期個人成績!$C$3:$C33) -> 31 | E7: =第5期個人成績!$C$35 -> 524 | F7: 20.15384615 | G7: =MAX(第5期個人成績!$BB$37:$CA$37) -> 25 | H7: =MIN(第5期個人成績!$BB$37:$CA$37) -> 16 | I7: 0.6501240695 | J7: =第5期個人成績!$D$35 -> 55339 | K7: =第5期個人成績!$E$36 -> 106.3470711 | L7: =MAX(第5期個人成績!$AA$36:$BA$36) -> 149.9473684 | M7: =MIN(第5期個人成績!$AA$36:$BA$36) -> 57 | N7: =第5期個人成績!$V$37 -> 310 | O7: =第5期個人成績!$W$38 -> 26 | P7: =第5期個人成績!E37 -> 118.1923077 | Q7: =第5期個人成績!E38 -> 91.84210526 | S7: =第5期個人成績!$D$37 -> 3073 | T7: =第5期個人成績!$G$37 -> 4 | U7: =第5期個人成績!$H$37 -> 3 | V7: =第5期個人成績!$J$37 -> 10 | W7: =第5期個人成績!$K$37 -> 6 | X7: =第5期個人成績!$L$37 -> 7.346153846 | Y7: =第5期個人成績!$F$37 -> 199 | Z7: =第5期個人成績!$O$37 -> 12 | AA7: =第5期個人成績!$P$37 -> 44 | AB7: =第5期個人成績!$Q$37 -> 8 | AC7: =第5期個人成績!$S$37 -> 0 | AE7: =第5期個人成績!$X$35 -> 124 | AF7: =COUNTIF(盗塁記録!$B$2:$B$665,B7) -> 25 | AG7: 0.2016129032 | AH7: =SUMIF(盗塁記録!$B$2:$B$665,B7,盗塁記録!G2:G665) -> 1434 | AI7: 57.36 | AJ7: 4 | AL7: =VLOOKUP(AL$30,第5期個人成績!$A$2:$AB$99,AL$31,FALSE) -> 106 | AM7: 0.2022900763 | AN7: =VLOOKUP(AN$30,第5期個人成績!$A$2:$AB$99,AN$31,FALSE) -> 79 | AO7: 0.1507633588 | AP7: =VLOOKUP(AP$30,第5期個人成績!$A$2:$AB$99,AP$31,FALSE) -> 772 | AQ7: 1.473282443 | AR7: =VLOOKUP(AR$30,第5期個人成績!$A$2:$AB$99,AR$31,FALSE) -> 161 | AS7: 0.3072519084
A8: 第6期 | B8: 6 | C8: 26 | D8: =COUNT(第6期個人成績!$D$3:$D44) -> 42 | E8: =第6期個人成績!$D$46 -> 759 | F8: 29.19230769 | G8: =MAX(第6期個人成績!$BC$48:$CC$48) -> 35 | H8: =MIN(第6期個人成績!$BC$48:$CC$48) -> 24 | I8: 0.6950549451 | J8: =第6期個人成績!$E$46 -> 80681 | K8: =第6期個人成績!$F$47 -> 106.8434458 | L8: =MAX(第6期個人成績!$AB$47:$BB$47) -> 169.2647059 | M8: =MIN(第6期個人成績!$AB$47:$BB$47) -> 56.19230769 | N8: =第6期個人成績!$W$48 -> 408 | O8: =第6期個人成績!$X$49 -> 20 | P8: =第6期個人成績!F48 -> 119.9615385 | Q8: =第6期個人成績!F49 -> 86.65384615 | S8: =第6期個人成績!$E$48 -> 3119 | T8: =第6期個人成績!$H$48 -> 3 | U8: =第6期個人成績!$I$48 -> 3 | V8: =第6期個人成績!$K$48 -> 8 | W8: =第6期個人成績!$L$48 -> 6 | X8: =第6期個人成績!$M$48 -> 11.82608696 | Y8: =第6期個人成績!$G$48 -> 384 | Z8: =第6期個人成績!$P$48 -> 14 | AA8: =第6期個人成績!$Q$48 -> 46 | AB8: =第6期個人成績!$R$48 -> 10 | AC8: =第6期個人成績!$T$48 -> 3 | AE8: =第6期個人成績!$Y$46 -> 246 | AF8: =COUNTIF(盗塁記録!$B$2:$B$665,B8) -> 68 | AG8: 0.2764227642 | AH8: =SUMIF(盗塁記録!$B$2:$B$665,B8,盗塁記録!G2:G665) -> 3301 | AI8: 48.54411765 | AJ8: 5.857142857 | AL8: =VLOOKUP(AL$30,第6期個人成績!$A$2:$AB$99,AL$32,FALSE) -> 166 | AM8: 0.2187088274 | AN8: =VLOOKUP(AN$30,第6期個人成績!$A$2:$AB$99,AN$32,FALSE) -> 98 | AO8: 0.1291172596 | AP8: =VLOOKUP(AP$30,第6期個人成績!$A$2:$AB$99,AP$32,FALSE) -> 1162 | AQ8: 1.530961792 | AR8: =VLOOKUP(AR$30,第6期個人成績!$A$2:$AB$99,AR$32,FALSE) -> 226 | AS8: 0.2977602108
A9: 第7期 | B9: 7 | C9: 26 | D9: =COUNT(第7期個人成績!$D$3:$D57) -> 55 | E9: =第7期個人成績!$D$59 -> 1000 | F9: 38.46153846 | G9: =MAX(第7期個人成績!$BC$61:$CC$61) -> 45 | H9: =MIN(第7期個人成績!$BC$61:$CC$61) -> 35 | I9: 0.6993006993 | J9: =第7期個人成績!$E$59 -> 112968 | K9: =第7期個人成績!$F$60 -> 113.7267281 | L9: =MAX(第7期個人成績!$AB$60:$BB$60) -> 162.5777778 | M9: =MIN(第7期個人成績!$AB$60:$BB$60) -> 50.02702703 | N9: =第7期個人成績!$W$61 -> 310 | O9: =第7期個人成績!$X$62 -> 20 | P9: =第7期個人成績!F61 -> 128.2307692 | Q9: =第7期個人成績!F62 -> 83.46153846 | S9: =第7期個人成績!$E$61 -> 3334 | T9: =第7期個人成績!$H$61 -> 3 | U9: =第7期個人成績!$I$61 -> 5 | V9: =第7期個人成績!$K$61 -> 13 | W9: =第7期個人成績!$L$61 -> 6 | X9: =第7期個人成績!$M$61 -> 12.34782609 | Y9: =第7期個人成績!$G$61 -> 253 | Z9: =第7期個人成績!$P$61 -> 17 | AA9: =第7期個人成績!$Q$61 -> 54 | AB9: =第7期個人成績!$R$61 -> 10 | AC9: =第7期個人成績!$T$61 -> 15 | AE9: =第7期個人成績!$Y$59 -> 309 | AF9: =COUNTIF(盗塁記録!$B$2:$B$665,B9) -> 31 | AG9: 0.1003236246 | AH9: =SUMIF(盗塁記録!$B$2:$B$665,B9,盗塁記録!G2:G665) -> 1715 | AI9: 55.32258065 | AJ9: 5.618181818 | AL9: =VLOOKUP(AL$30,第7期個人成績!$A$2:$AB$99,AL$32,FALSE) -> 293 | AM9: 0.293 | AN9: =VLOOKUP(AN$30,第7期個人成績!$A$2:$AB$99,AN$32,FALSE) -> 120 | AO9: 0.12 | AP9: =VLOOKUP(AP$30,第7期個人成績!$A$2:$AB$99,AP$32,FALSE) -> 1672 | AQ9: 1.672 | AR9: =VLOOKUP(AR$30,第7期個人成績!$A$2:$AB$99,AR$32,FALSE) -> 415 | AS9: 0.415
A10: 第8期 | B10: 8 | C10: 26 | D10: =COUNT(第8期個人成績!$D$3:$D47) -> 44 | E10: =第8期個人成績!$D$48 -> 887 | F10: =E10/C10 -> 34.11538462 | G10: =MAX(第8期個人成績!$BC$50:$CC$50) -> 38 | H10: =MIN(第8期個人成績!$BC$50:$CC$50) -> 31 | I10: =E10/(D10*C10) -> 0.7753496503 | J10: =第8期個人成績!$E$48 -> 96474 | K10: =第8期個人成績!$F$49 -> 108.9942281 | L10: =MAX(第8期個人成績!$AB$49:$BB$49) -> 165.1428571 | M10: =MIN(第8期個人成績!$AB$49:$BB$49) -> 53.87096774 | N10: =第8期個人成績!$W$50 -> 478 | O10: =第8期個人成績!$X$51 -> 20 | P10: =第8期個人成績!F50 -> 129.4615385 | Q10: =第8期個人成績!F51 -> 70.57894737 | S10: =第8期個人成績!$E$50 -> 3366 | T10: =第8期個人成績!$H$50 -> 3 | U10: =第8期個人成績!$I$50 -> 7 | V10: =第8期個人成績!$K$50 -> 11 | W10: =第8期個人成績!$L$50 -> 5 | X10: =第8期個人成績!$M$50 -> 12.19230769 | Y10: =第8期個人成績!$G$50 -> 424 | Z10: =第8期個人成績!$P$50 -> 15 | AA10: =第8期個人成績!$Q$50 -> 52 | AB10: =第8期個人成績!$R$50 -> 10 | AC10: =第8期個人成績!$T$50 -> 11 | AE10: =第8期個人成績!$Y$48 -> 132 | AF10: =COUNTIF(盗塁記録!$B$2:$B$665,B10) -> 12 | AG10: 0.09090909091 | AH10: =SUMIF(盗塁記録!$B$2:$B$665,B10,盗塁記録!G2:G665) -> 1360 | AI10: 113.3333333 | AJ10: 3 | AL10: =VLOOKUP(AL$30,第8期個人成績!$A$2:$AB$99,AL$32,FALSE) -> 269 | AM10: 0.3032694476 | AN10: =VLOOKUP(AN$30,第8期個人成績!$A$2:$AB$99,AN$32,FALSE) -> 101 | AO10: 0.1138669673 | AP10: =VLOOKUP(AP$30,第8期個人成績!$A$2:$AB$99,AP$32,FALSE) -> 1530 | AQ10: 1.724915445 | AR10: =VLOOKUP(AR$30,第8期個人成績!$A$2:$AB$99,AR$32,FALSE) -> 277 | AS10: 0.3122886133
A11: 第9期 | B11: 9 | C11: 26 | D11: =COUNT(第9期個人成績!$D$3:$D49) -> 46 | E11: =第9期個人成績!$D$50 -> 872 | F11: 33.53846154 | G11: =MAX(第9期個人成績!$BC$52:$CC$52) -> 36 | H11: =MIN(第9期個人成績!$BC$52:$CC$52) -> 28 | I11: 0.72909699 | J11: =第9期個人成績!$E$50 -> 87017 | K11: =第9期個人成績!$F$51 -> 99.75017288 | L11: =MAX(第9期個人成績!$AB$51:$BB$51) -> 144.2352941 | M11: =MIN(第9期個人成績!$AB$51:$BB$51) -> 57.06060606 | N11: =第9期個人成績!$W$52 -> 428 | O11: =第9期個人成績!$X$53 -> 22 | P11: =第9期個人成績!F52 -> 119.75 | Q11: =第9期個人成績!F53 -> 81.69230769 | S11: =第9期個人成績!$E$52 -> 2874 | T11: =第9期個人成績!$H$52 -> 4 | U11: =第9期個人成績!$I$52 -> 2 | V11: =第9期個人成績!$K$52 -> 8 | W11: =第9期個人成績!$L$52 -> 9 | X11: =第9期個人成績!$M$52 -> 12.29166667 | Y11: =第9期個人成績!$G$52 -> 428 | Z11: =第9期個人成績!$P$52 -> 13 | AA11: =第9期個人成績!$Q$52 -> 44 | AB11: =第9期個人成績!$R$52 -> 12 | AC11: =第9期個人成績!$T$52 -> 6 | AE11: =第9期個人成績!$Y$50 -> 217 | AF11: =COUNTIF(盗塁記録!$B$2:$B$665,B11) -> 31 | AG11: 0.1428571429 | AH11: =SUMIF(盗塁記録!$B$2:$B$665,B11,盗塁記録!G2:G665) -> 2675 | AI11: 86.29032258 | AJ11: 4.717391304 | AL11: =VLOOKUP(AL$30,第9期個人成績!$A$2:$AB$99,AL$32,FALSE) -> 201 | AM11: 0.2305045872 | AN11: =VLOOKUP(AN$30,第9期個人成績!$A$2:$AB$99,AN$32,FALSE) -> 210 | AO11: 0.2408256881 | AP11: =VLOOKUP(AP$30,第9期個人成績!$A$2:$AB$99,AP$32,FALSE) -> 1274 | AQ11: 1.461009174 | AR11: =VLOOKUP(AR$30,第9期個人成績!$A$2:$AB$99,AR$32,FALSE) -> 234 | AS11: 0.2683486239
A12: 第10期 | B12: 10 | C12: 27 | D12: =第10期個人成績!$B$1 -> 41 | E12: =第10期個人成績!$D$45 -> 926 | F12: 34.2962963 | G12: =MAX(第10期個人成績!$BC$47:$CC$47) -> 38 | H12: =MIN(第10期個人成績!$BC$47:$CC$47) -> 31 | I12: 0.8364950316 | J12: =第10期個人成績!$E$45 -> 104517 | K12: =第10期個人成績!$F$46 -> 113.6843043 | L12: =MAX(第10期個人成績!$AB$46:$BB$46) -> 185.6486486 | M12: =MIN(第10期個人成績!$AB$46:$BB$46) -> 70.91428571 | N12: =第10期個人成績!$W$47 -> 483 | O12: =第10期個人成績!$X$48 -> 20 | P12: =第10期個人成績!F47 -> 137.4074074 | Q12: =第10期個人成績!F48 -> 97.2173913 | S12: =第10期個人成績!$E$47 -> 3710 | T12: =第10期個人成績!$H$47 -> 5 | U12: =第10期個人成績!$I$47 -> 3 | V12: =第10期個人成績!$K$47 -> 10 | W12: =第10期個人成績!$L$47 -> 6 | X12: =第10期個人成績!$M$47 -> 11.62962963 | Y12: =第10期個人成績!$G$47 -> 385 | Z12: =第10期個人成績!$P$47 -> 19 | AA12: =第10期個人成績!$Q$47 -> 54 | AB12: =第10期個人成績!$R$47 -> 9 | AC12: =第10期個人成績!$T$47 -> 9 | AE12: =第10期個人成績!$Y$45 -> 249 | AF12: =COUNTIF(盗塁記録!$B$2:$B$665,B12) -> 45 | AG12: =AF12/AE12 -> 0.1807228916 | AH12: =SUMIF(盗塁記録!$B$2:$B$665,B12,盗塁記録!$G$2:$G$665) -> 3459 | AI12: 76.86666667 | AJ12: 6.073170732 | AL12: =VLOOKUP(AL$30,第10期個人成績!$A$2:$AB$99,AL$32,FALSE) -> 227 | AM12: 0.2451403888 | AN12: =VLOOKUP(AN$30,第10期個人成績!$A$2:$AB$99,AN$32,FALSE) -> 116 | AO12: 0.1252699784 | AP12: =VLOOKUP(AP$30,第10期個人成績!$A$2:$AB$99,AP$32,FALSE) -> 1480 | AQ12: 1.598272138 | AR12: =VLOOKUP(AR$30,第10期個人成績!$A$2:$AB$99,AR$32,FALSE) -> 358 | AS12: 0.3866090713
A13: 第11期 | B13: 11 | C13: 26 | D13: =第11期個人成績!$B$1 -> 35 | E13: =VLOOKUP(E$30,第11期個人成績!$A$2:$AB$44,E$33,FALSE) -> 775 | F13: 29.80769231 | G13: =MAX(第11期個人成績!$BD$41:$CD$41) -> 33 | H13: =MIN(第11期個人成績!$BD$41:$CD$41) -> 25 | I13: 0.8516483516 | J13: =VLOOKUP(J$30,第11期個人成績!$A$2:$AB$44,J$33,FALSE) -> 84086 | K13: =VLOOKUP(K$30,第11期個人成績!$A$2:$AB$44,K$33,FALSE) -> 108.5655063 | L13: =MAX(第11期個人成績!$AC$40:$BB$40) -> 160.7096774 | M13: =MIN(第11期個人成績!$AC$40:$BB$40) -> 60.43333333 | N13: =VLOOKUP(N$30,第11期個人成績!$A$2:$AB$44,N$33,FALSE) -> 339 | O13: =VLOOKUP(O$30,第11期個人成績!$A$2:$AB$44,O$33,FALSE) -> 20 | P13: =VLOOKUP(P$30,第11期個人成績!$A$2:$AB$44,P$33,FALSE) -> 128.2692308 | Q13: =VLOOKUP(Q$30,第11期個人成績!$A$2:$AB$44,Q$33,FALSE) -> 84.84 | S13: =VLOOKUP($S$30,第11期個人成績!$A$2:$AB$44,$S$33,FALSE) -> 3335 | T13: =VLOOKUP($T$30,第11期個人成績!$A$2:$AB$44,$T$33,FALSE) -> 4 | U13: =VLOOKUP($U$30,第11期個人成績!$A$2:$AB$44,$U$33,FALSE) -> 5 | V13: =VLOOKUP($V$30,第11期個人成績!$A$2:$AB$44,$V$33,FALSE) -> 13 | W13: =VLOOKUP($W$30,第11期個人成績!$A$2:$AB$44,$W$33,FALSE) -> 6 | X13: =VLOOKUP($X$30,第11期個人成績!$A$2:$AB$44,$X$33,FALSE) -> 10.19230769 | Y13: =VLOOKUP($Y$30,第11期個人成績!$A$2:$AB$44,$Y$33,FALSE) -> 378 | Z13: =VLOOKUP($Z$30,第11期個人成績!$A$2:$AB$44,$Z$33,FALSE) -> 20 | AA13: =VLOOKUP($AA$30,第11期個人成績!$A$2:$AB$44,$AA$33,FALSE) -> 50 | AB13: =VLOOKUP($AB$30,第11期個人成績!$A$2:$AB$44,$AB$33,FALSE) -> 11 | AC13: =VLOOKUP($AC$30,第11期個人成績!$A$2:$AB$44,$AC$33,FALSE) -> 3 | AE13: =VLOOKUP($AE$30,第11期個人成績!$A$2:$AB$44,$AE$33,FALSE) -> 156 | AF13: =VLOOKUP($AF$30,第11期個人成績!$A$2:$AB$44,$AF$33,FALSE) -> 14 | AG13: =AF13/AE13 -> 0.08974358974 | AH13: =SUMIF(盗塁記録!$B$2:$B$665,B13,盗塁記録!$G$2:$G$665) -> 1396 | AI13: =AH13/AF13 -> 99.71428571 | AJ13: =AE13/D13 -> 4.457142857 | AL13: =VLOOKUP(AL$30,第11期個人成績!$A$2:$AB$99,AL$34,FALSE) -> 185 | AM13: 0.2387096774 | AN13: =VLOOKUP(AN$30,第11期個人成績!$A$2:$AB$99,AN$34,FALSE) -> 101 | AO13: 0.1303225806 | AP13: =VLOOKUP(AP$30,第11期個人成績!$A$2:$AB$99,AP$34,FALSE) -> 1233 | AQ13: 1.590967742 | AR13: =VLOOKUP(AR$30,第11期個人成績!$A$2:$AB$99,AR$34,FALSE) -> 282 | AS13: 0.3638709677
A14: 第12期 | B14: 12 | C14: =第12期個人成績!A1 -> 26 | D14: =第12期個人成績!$B$1 -> 36 | E14: =第12期個人成績!$D$40 -> 795 | F14: 30.57692308 | G14: =MAX(第12期個人成績!$BD$42:$CD$42) -> 33 | H14: =MIN(第12期個人成績!$BD$42:$CD$42) -> 28 | I14: 0.8493589744 | J14: =第12期個人成績!$E$40 -> 91247 | K14: =第12期個人成績!$F$41 -> 114.7655246 | L14: =MAX(第12期個人成績!$AC$41:$BB$41) -> 153.5517241 | M14: =MIN(第12期個人成績!$AC$41:$BB$41) -> 82.3 | N14: =第12期個人成績!$X$42 -> 464 | O14: =第12期個人成績!$Y$43 -> 27 | P14: =第12期個人成績!F42 -> 133.1538462 | Q14: =第12期個人成績!F43 -> 99.76923077 | S14: =VLOOKUP(S30,第12期個人成績!$A$2:$AB$43,S33,FALSE) -> 3462 | T14: =VLOOKUP(T30,第12期個人成績!$A$2:$AB$43,T33,FALSE) -> 3 | U14: =VLOOKUP(U30,第12期個人成績!$A$2:$AB$43,U33,FALSE) -> 5 | V14: =VLOOKUP(V30,第12期個人成績!$A$2:$AB$43,V33,FALSE) -> 9 | W14: =VLOOKUP(W30,第12期個人成績!$A$2:$AB$43,W33,FALSE) -> 5 | X14: =VLOOKUP(X30,第12期個人成績!$A$2:$AB$43,X33,FALSE) -> 9.730769231 | Y14: =VLOOKUP(Y30,第12期個人成績!$A$2:$AB$43,Y33,FALSE) -> 358 | Z14: =VLOOKUP(Z30,第12期個人成績!$A$2:$AB$43,Z33,FALSE) -> 18 | AA14: =VLOOKUP(AA30,第12期個人成績!$A$2:$AB$43,AA33,FALSE) -> 54 | AB14: =VLOOKUP(AB30,第12期個人成績!$A$2:$AB$43,AB33,FALSE) -> 11 | AC14: =VLOOKUP(AC30,第12期個人成績!$A$2:$AB$43,AC33,FALSE) -> 5 | AE14: =第12期個人成績!$Z$40 -> 187 | AF14: =VLOOKUP($AF$30,第12期個人成績!$A$2:$AB$50,$AF$33,FALSE) -> 52 | AG14: =AF14/AE14 -> 0.2780748663 | AH14: =SUMIF(盗塁記録!$B$2:$B$665,B14,盗塁記録!$G$2:$G$665) -> 3128 | AI14: =AH14/AF14 -> 60.15384615 | AJ14: 5.194444444 | AL14: =VLOOKUP(AL$30,第12期個人成績!$A$2:$AB$99,AL$34,FALSE) -> 174 | AM14: 0.2188679245 | AN14: =VLOOKUP(AN$30,第12期個人成績!$A$2:$AB$99,AN$34,FALSE) -> 85 | AO14: 0.106918239 | AP14: =VLOOKUP(AP$30,第12期個人成績!$A$2:$AB$99,AP$34,FALSE) -> 1326 | AQ14: 1.667924528 | AR14: =VLOOKUP(AR$30,第12期個人成績!$A$2:$AB$99,AR$34,FALSE) -> 343 | AS14: 0.4314465409
A15: 第13期 | B15: 13 | C15: =第13期個人成績!A1 -> 26 | D15: =第13期個人成績!$B$1 -> 37 | E15: =VLOOKUP(E$30,第13期個人成績!$A$2:$AB$44,E$33,FALSE) -> 849 | F15: 32.65384615 | G15: =MAX(第13期個人成績!$BD$43:$CD$43) -> 35 | H15: =MIN(第13期個人成績!$BD$43:$CD$43) -> 29 | I15: 0.8825363825 | J15: =VLOOKUP(J$30,第13期個人成績!$A$2:$AB$44,J$33,FALSE) -> 96089 | K15: =VLOOKUP(K$30,第13期個人成績!$A$2:$AB$44,K$33,FALSE) -> 112.8995924 | L15: =MAX(第13期個人成績!$AC$42:$BB$42) -> 148.2352941 | M15: =MIN(第13期個人成績!$AC$42:$BB$42) -> 63.57575758 | N15: =VLOOKUP(N$30,第13期個人成績!$A$2:$AB$44,N$33,FALSE) -> 520 | O15: =VLOOKUP(O$30,第13期個人成績!$A$2:$AB$44,O$33,FALSE) -> 22 | P15: =VLOOKUP(P$30,第13期個人成績!$A$2:$AB$44,P$33,FALSE) -> 129.25 | Q15: =VLOOKUP(Q$30,第13期個人成績!$A$2:$AB$44,Q$33,FALSE) -> 85.88461538 | S15: =VLOOKUP($S$30,第13期個人成績!$A$2:$AB$44,$S$33,FALSE) -> 3349 | T15: =VLOOKUP($T$30,第13期個人成績!$A$2:$AB$44,$T$33,FALSE) -> 3 | U15: =VLOOKUP($U$30,第13期個人成績!$A$2:$AB$44,$U$33,FALSE) -> 5 | V15: =VLOOKUP($V$30,第13期個人成績!$A$2:$AB$44,$V$33,FALSE) -> 11 | W15: =VLOOKUP($W$30,第13期個人成績!$A$2:$AB$44,$W$33,FALSE) -> 7 | X15: =VLOOKUP($X$30,第13期個人成績!$A$2:$AB$44,$X$33,FALSE) -> 10.19230769 | Y15: =VLOOKUP($Y$30,第13期個人成績!$A$2:$AB$44,$Y$33,FALSE) -> 350 | Z15: =VLOOKUP($Z$30,第13期個人成績!$A$2:$AB$44,$Z$33,FALSE) -> 19 | AA15: =VLOOKUP($AA$30,第13期個人成績!$A$2:$AB$44,$AA$33,FALSE) -> 54 | AB15: =VLOOKUP($AB$30,第13期個人成績!$A$2:$AB$44,$AB$33,FALSE) -> 10 | AC15: =VLOOKUP($AC$30,第13期個人成績!$A$2:$AB$44,$AC$33,FALSE) -> 9 | AE15: =VLOOKUP($AE$30,第13期個人成績!$A$2:$AB$44,$AE$33,FALSE) -> 163 | AF15: =VLOOKUP($AF$30,第13期個人成績!$A$2:$AB$44,$AF$33,FALSE) -> 22 | AG15: =IF(AF15=0,0,AF15/AE15) -> 0.1349693252 | AH15: =SUMIF(盗塁記録!$B$2:$B$665,B15,盗塁記録!$G$2:$G$665) -> 1495 | AI15: =IF(AF15=0,0,AH15/AF15) -> 67.95454545 | AJ15: =AE15/D15 -> 4.405405405 | AL15: =VLOOKUP(AL$30,第13期個人成績!$A$2:$AB$99,AL$34,FALSE) -> 254 | AM15: 0.2991755006 | AN15: =VLOOKUP(AN$30,第13期個人成績!$A$2:$AB$99,AN$34,FALSE) -> 149 | AO15: 0.1755005889 | AP15: =VLOOKUP(AP$30,第13期個人成績!$A$2:$AB$99,AP$34,FALSE) -> 1429 | AQ15: 1.683156655 | AR15: =VLOOKUP(AR$30,第13期個人成績!$A$2:$AB$99,AR$34,FALSE) -> 368 | AS15: 0.433451119
A16: 第14期 | B16: 14 | C16: =第14期個人成績!$A$1 -> 26 | D16: =第14期個人成績!$B$1 -> 40 | E16: =VLOOKUP(E$30,第14期個人成績!$A$2:$AB$97,E$33,FALSE) -> 857 | F16: =E16/C16 -> 32.96153846 | G16: =MAX(第14期個人成績!$BD$46:$CD$46) -> 35 | H16: =MIN(第14期個人成績!$BD$46:$CD$46) -> 30 | I16: =E16/(D16*C16) -> 0.8240384615 | J16: =VLOOKUP(J$30,第14期個人成績!$A$2:$AB$97,J$33,FALSE) -> 94056 | K16: =VLOOKUP(K$30,第14期個人成績!$A$2:$AB$97,K$33,FALSE) -> 109.7200685 | L16: =MAX(第14期個人成績!$AC$45:$BB$45) -> 160.4571429 | M16: =MIN(第14期個人成績!$AC$45:$BB$45) -> 70.5483871 | N16: =VLOOKUP(N$30,第14期個人成績!$A$2:$AB$97,N$33,FALSE) -> 320 | O16: =VLOOKUP(O$30,第14期個人成績!$A$2:$AB$97,O$33,FALSE) -> 21 | P16: =VLOOKUP(P$30,第14期個人成績!$A$2:$AB$97,P$33,FALSE) -> 131.1153846 | Q16: =VLOOKUP(Q$30,第14期個人成績!$A$2:$AB$97,Q$33,FALSE) -> 90.04 | S16: =VLOOKUP($S$30,第14期個人成績!$A$2:$AB$97,$S$33,FALSE) -> 3409 | T16: =VLOOKUP($T$30,第14期個人成績!$A$2:$AB$97,$T$33,FALSE) -> 3 | U16: =VLOOKUP($U$30,第14期個人成績!$A$2:$AB$97,$U$33,FALSE) -> 6 | V16: =VLOOKUP($V$30,第14期個人成績!$A$2:$AB$97,$V$33,FALSE) -> 13 | W16: =VLOOKUP($W$30,第14期個人成績!$A$2:$AB$97,$W$33,FALSE) -> 6 | X16: =VLOOKUP($X$30,第14期個人成績!$A$2:$AB$97,$X$33,FALSE) -> 11.15384615 | Y16: =VLOOKUP($Y$30,第14期個人成績!$A$2:$AB$97,$Y$33,FALSE) -> 342 | Z16: =VLOOKUP($Z$30,第14期個人成績!$A$2:$AB$97,$Z$33,FALSE) -> 18 | AA16: =VLOOKUP($AA$30,第14期個人成績!$A$2:$AB$97,$AA$33,FALSE) -> 50 | AB16: =VLOOKUP($AB$30,第14期個人成績!$A$2:$AB$97,$AB$33,FALSE) -> 10 | AC16: =VLOOKUP($AC$30,第14期個人成績!$A$2:$AB$97,$AC$33,FALSE) -> 9 | AE16: =VLOOKUP($AE$30,第14期個人成績!$A$2:$AB$97,$AE$33,FALSE) -> 174 | AF16: =VLOOKUP($AF$30,第14期個人成績!$A$2:$AB$97,$AF$33,FALSE) -> 35 | AG16: 0.2011494253 | AH16: =SUMIF(盗塁記録!$B$2:$B$665,B16,盗塁記録!$G$2:$G$665) -> 2166 | AI16: 61.88571429 | AJ16: 4.35 | AL16: =VLOOKUP(AL$30,第14期個人成績!$A$2:$AB$99,AL$34,FALSE) -> 245 | AM16: 0.2858809802 | AN16: =VLOOKUP(AN$30,第14期個人成績!$A$2:$AB$99,AN$34,FALSE) -> 110 | AO16: 0.1283547258 | AP16: =VLOOKUP(AP$30,第14期個人成績!$A$2:$AB$99,AP$34,FALSE) -> 1393 | AQ16: 1.625437573 | AR16: =VLOOKUP(AR$30,第14期個人成績!$A$2:$AB$99,AR$34,FALSE) -> 373 | AS16: 0.4352392065
A17: 第15期 | B17: 15 | C17: =第15期個人成績!$A$1 -> 26 | D17: =第15期個人成績!$B$1 -> 38 | E17: =VLOOKUP(E$30,第15期個人成績!$A$2:$AB$92,E$33,FALSE) -> 884 | F17: 34 | G17: =VLOOKUP(G$30,第15期個人成績!$A$2:$AB$92,G$33,FALSE) -> 37 | H17: =VLOOKUP(H$30,第15期個人成績!$A$2:$AB$92,H$33,FALSE) -> 31 | I17: 0.8947368421 | J17: =VLOOKUP(J$30,第15期個人成績!$A$2:$AB$92,J$33,FALSE) -> 92962 | K17: =VLOOKUP(K$30,第15期個人成績!$A$2:$AB$92,K$33,FALSE) -> 105.5189333 | L17: =VLOOKUP(L$30,第15期個人成績!$A$2:$FF$92,L$33,FALSE) -> 156.6666667 | M17: =VLOOKUP(M$30,第15期個人成績!$A$2:$FF$92,M$33,FALSE) -> 41.05882353 | N17: =VLOOKUP(N$30,第15期個人成績!$A$2:$AB$92,N$33,FALSE) -> 440 | O17: =VLOOKUP(O$30,第15期個人成績!$A$2:$AB$92,O$33,FALSE) -> 20 | P17: =VLOOKUP(P$30,第15期個人成績!$A$2:$AB$92,P$33,FALSE) -> 129.7307692 | Q17: =VLOOKUP(Q$30,第15期個人成績!$A$2:$AB$92,Q$33,FALSE) -> 86.34782609 | S17: =VLOOKUP($S$30,第15期個人成績!$A$2:$AB$92,$S$33,FALSE) -> 3373 | T17: =VLOOKUP($T$30,第15期個人成績!$A$2:$AB$92,$T$33,FALSE) -> 3 | U17: =VLOOKUP($U$30,第15期個人成績!$A$2:$AB$92,$U$33,FALSE) -> 5 | V17: =VLOOKUP($V$30,第15期個人成績!$A$2:$AB$92,$V$33,FALSE) -> 13 | W17: =VLOOKUP($W$30,第15期個人成績!$A$2:$AB$92,$W$33,FALSE) -> 9 | X17: =VLOOKUP($X$30,第15期個人成績!$A$2:$AB$92,$X$33,FALSE) -> 9.96 | Y17: =VLOOKUP($Y$30,第15期個人成績!$A$2:$AB$92,$Y$33,FALSE) -> 389 | Z17: =VLOOKUP($Z$30,第15期個人成績!$A$2:$AB$92,$Z$33,FALSE) -> 18 | AA17: =VLOOKUP($AA$30,第15期個人成績!$A$2:$AB$92,$AA$33,FALSE) -> 48 | AB17: =VLOOKUP($AB$30,第15期個人成績!$A$2:$AB$92,$AB$33,FALSE) -> 13 | AC17: =VLOOKUP($AC$30,第15期個人成績!$A$2:$AB$92,$AC$33,FALSE) -> 10 | AE17: =VLOOKUP($AE$30,第15期個人成績!$A$2:$AB$92,$AE$33,FALSE) -> 240 | AF17: =VLOOKUP($AF$30,第15期個人成績!$A$2:$AB$92,$AF$33,FALSE) -> 18 | AG17: 0.075 | AH17: =SUMIF(盗塁記録!$B$2:$B$665,B17,盗塁記録!$G$2:$G$665) -> 1983 | AI17: 110.1666667 | AJ17: 6.315789474 | AL17: =VLOOKUP(AL$30,第15期個人成績!$A$2:$AB$99,AL$34,FALSE) -> 171 | AM17: 0.193438914 | AN17: =VLOOKUP(AN$30,第15期個人成績!$A$2:$AB$99,AN$34,FALSE) -> 215 | AO17: 0.2432126697 | AP17: =VLOOKUP(AP$30,第15期個人成績!$A$2:$AB$99,AP$34,FALSE) -> 1218 | AQ17: 1.377828054 | AR17: =VLOOKUP(AR$30,第15期個人成績!$A$2:$AB$99,AR$34,FALSE) -> 350 | AS17: 0.3959276018
A18: 第16期 | B18: 16 | C18: =第16期個人成績!$A$1 -> 26 | D18: =第16期個人成績!$B$1 -> 40 | E18: =VLOOKUP(E$30,第16期個人成績!$A$2:$AB$92,E$33,FALSE) -> 986 | F18: 37.92307692 | G18: =VLOOKUP(G$30,第16期個人成績!$A$2:$AB$92,G$33,FALSE) -> 40 | H18: =VLOOKUP(H$30,第16期個人成績!$A$2:$AB$92,H$33,FALSE) -> 35 | I18: 0.9480769231 | J18: =VLOOKUP(J$30,第16期個人成績!$A$2:$AB$92,J$33,FALSE) -> 109097 | K18: =VLOOKUP(K$30,第16期個人成績!$A$2:$AB$92,K$33,FALSE) -> 110.3608953 | L18: =VLOOKUP(L$30,第16期個人成績!$A$2:$FF$92,L$34,FALSE) -> 156.7368421 | M18: =VLOOKUP(M$30,第16期個人成績!$A$2:$FF$92,M$34,FALSE) -> 74.51428571 | N18: =VLOOKUP(N$30,第16期個人成績!$A$2:$AB$92,N$33,FALSE) -> 330 | O18: =VLOOKUP(O$30,第16期個人成績!$A$2:$AB$92,O$33,FALSE) -> 20 | P18: =VLOOKUP(P$30,第16期個人成績!$A$2:$AB$92,P$33,FALSE) -> 142.0769231 | Q18: =VLOOKUP(Q$30,第16期個人成績!$A$2:$AB$92,Q$33,FALSE) -> 89.61904762 | S18: =VLOOKUP($S$30,第16期個人成績!$A$2:$AB$92,$S$33,FALSE) -> 3694 | T18: =VLOOKUP($T$30,第16期個人成績!$A$2:$AB$92,$T$33,FALSE) -> 3 | U18: =VLOOKUP($U$30,第16期個人成績!$A$2:$AB$92,$U$33,FALSE) -> 4 | V18: =VLOOKUP($V$30,第16期個人成績!$A$2:$AB$92,$V$33,FALSE) -> 14 | W18: =VLOOKUP($W$30,第16期個人成績!$A$2:$AB$92,$W$33,FALSE) -> 7 | X18: =VLOOKUP($X$30,第16期個人成績!$A$2:$AB$92,$X$33,FALSE) -> 10.80769231 | Y18: =VLOOKUP($Y$30,第16期個人成績!$A$2:$AB$92,$Y$33,FALSE) -> 360 | Z18: =VLOOKUP($Z$30,第16期個人成績!$A$2:$AB$92,$Z$33,FALSE) -> 21 | AA18: =VLOOKUP($AA$30,第16期個人成績!$A$2:$AB$92,$AA$33,FALSE) -> 59 | AB18: =VLOOKUP($AB$30,第16期個人成績!$A$2:$AB$92,$AB$33,FALSE) -> 12 | AC18: =VLOOKUP($AC$30,第16期個人成績!$A$2:$AB$92,$AC$33,FALSE) -> 13 | AE18: =VLOOKUP($AE$30,第16期個人成績!$A$2:$AB$92,$AE$33,FALSE) -> 231 | AF18: =VLOOKUP($AF$30,第16期個人成績!$A$2:$AB$92,$AF$33,FALSE) -> 21 | AG18: 0.09090909091 | AH18: =SUMIF(盗塁記録!$B$2:$B$665,B18,盗塁記録!$G$2:$G$665) -> 1773 | AI18: 84.42857143 | AJ18: 5.775 | AL18: =VLOOKUP(AL$30,第16期個人成績!$A$2:$AB$99,AL$34,FALSE) -> 240 | AM18: 0.2434077079 | AN18: =VLOOKUP(AN$30,第16期個人成績!$A$2:$AB$99,AN$34,FALSE) -> 107 | AO18: 0.1085192698 | AP18: =VLOOKUP(AP$30,第16期個人成績!$A$2:$AB$99,AP$34,FALSE) -> 1672 | AQ18: 1.695740365 | AR18: =VLOOKUP(AR$30,第16期個人成績!$A$2:$AB$99,AR$34,FALSE) -> 376 | AS18: 0.3813387424
A19: 第17期 | B19: 17 | C19: =第17期個人成績!$A$1 -> 26 | D19: =第17期個人成績!$B$1 -> 42 | E19: =VLOOKUP(E$30,第17期個人成績!$A$2:$AB$86,E$33,FALSE) -> 966 | F19: 37.15384615 | G19: =VLOOKUP(G$30,第17期個人成績!$A$2:$AB$86,G$33,FALSE) -> 39 | H19: =VLOOKUP(H$30,第17期個人成績!$A$2:$AB$86,H$33,FALSE) -> 35 | I19: 0.8846153846 | J19: =VLOOKUP(J$30,第17期個人成績!$A$2:$AB$86,J$33,FALSE) -> 108160 | K19: =VLOOKUP(K$30,第17期個人成績!$A$2:$AB$86,K$33,FALSE) -> 112.169445 | L19: =VLOOKUP(L$30,第17期個人成績!$A$2:$FL$86,L$34,FALSE) -> 162.6486486 | M19: =VLOOKUP(M$30,第17期個人成績!$A$2:$FL$86,M$34,FALSE) -> 70.74358974 | N19: =VLOOKUP(N$30,第17期個人成績!$A$2:$AB$86,N$33,FALSE) -> 509 | O19: =VLOOKUP(O$30,第17期個人成績!$A$2:$AB$86,O$33,FALSE) -> 20 | P19: =VLOOKUP(P$30,第17期個人成績!$A$2:$AB$86,P$33,FALSE) -> 135.6153846 | Q19: =VLOOKUP(Q$30,第17期個人成績!$A$2:$AB$86,Q$33,FALSE) -> 94.45454545 | S19: =VLOOKUP($S$30,第17期個人成績!$A$2:$AB$86,$S$33,FALSE) -> 3526 | T19: =VLOOKUP($T$30,第17期個人成績!$A$2:$AB$86,$T$33,FALSE) -> 3 | U19: =VLOOKUP($U$30,第17期個人成績!$A$2:$AB$86,$U$33,FALSE) -> 3 | V19: =VLOOKUP($V$30,第17期個人成績!$A$2:$AB$86,$V$33,FALSE) -> 10 | W19: =VLOOKUP($W$30,第17期個人成績!$A$2:$AB$86,$W$33,FALSE) -> 7 | X19: =VLOOKUP($X$30,第17期個人成績!$A$2:$AB$86,$X$33,FALSE) -> 13.30769231 | Y19: =VLOOKUP($Y$30,第17期個人成績!$A$2:$AB$86,$Y$33,FALSE) -> 380 | Z19: =VLOOKUP($Z$30,第17期個人成績!$A$2:$AB$86,$Z$33,FALSE) -> 16 | AA19: =VLOOKUP($AA$30,第17期個人成績!$A$2:$AB$86,$AA$33,FALSE) -> 50 | AB19: =VLOOKUP($AB$30,第17期個人成績!$A$2:$AB$86,$AB$33,FALSE) -> 11 | AC19: =VLOOKUP($AC$30,第17期個人成績!$A$2:$AB$86,$AC$33,FALSE) -> 12 | AE19: =VLOOKUP($AE$30,第17期個人成績!$A$2:$AB$86,$AE$33,FALSE) -> 170 | AF19: =VLOOKUP($AF$30,第17期個人成績!$A$2:$AB$86,$AF$33,FALSE) -> 14 | AG19: 0.08235294118 | AH19: =SUMIF(盗塁記録!$B$2:$B$665,B19,盗塁記録!$G$2:$G$665) -> 2077 | AI19: 148.3571429 | AJ19: 4.047619048 | AL19: =VLOOKUP(AL$30,第17期個人成績!$A$2:$AB$99,AL$34,FALSE) -> 307 | AM19: 0.317805383 | AN19: =VLOOKUP(AN$30,第17期個人成績!$A$2:$AB$99,AN$34,FALSE) -> 136 | AO19: 0.1407867495 | AP19: =VLOOKUP(AP$30,第17期個人成績!$A$2:$AB$99,AP$34,FALSE) -> 1629 | AQ19: 1.686335404 | AR19: =VLOOKUP(AR$30,第17期個人成績!$A$2:$AB$99,AR$34,FALSE) -> 383 | AS19: 0.3964803313
A20: 第18期 | B20: 18 | C20: =第18期個人成績!$A$1 -> 26 | D20: =第18期個人成績!$B$1 -> 43 | E20: =VLOOKUP(E$30,第18期個人成績!$A$2:$AB$93,E$33,FALSE) -> 927 | F20: 35.65384615 | G20: =VLOOKUP(G$30,第18期個人成績!$A$2:$AB$93,G$33,FALSE) -> 37 | H20: =VLOOKUP(H$30,第18期個人成績!$A$2:$AB$93,H$33,FALSE) -> 34 | I20: 0.8291592129 | J20: =VLOOKUP(J$30,第18期個人成績!$A$2:$AB$93,J$33,FALSE) -> 103776 | K20: =VLOOKUP(K$30,第18期個人成績!$A$2:$AB$93,K$33,FALSE) -> 111.9903789 | L20: =VLOOKUP(L$30,第18期個人成績!$A$2:$GG$93,L$34,FALSE) -> 172.6111111 | M20: =VLOOKUP(M$30,第18期個人成績!$A$2:$GG$93,M$34,FALSE) -> 67.47222222 | N20: =VLOOKUP(N$30,第18期個人成績!$A$2:$AB$93,N$33,FALSE) -> 469 | O20: =VLOOKUP(O$30,第18期個人成績!$A$2:$AB$93,O$33,FALSE) -> 20 | P20: =VLOOKUP(P$30,第18期個人成績!$A$2:$AB$93,P$33,FALSE) -> 135.4615385 | Q20: =VLOOKUP(Q$30,第18期個人成績!$A$2:$AB$93,Q$33,FALSE) -> 87.32 | S20: =VLOOKUP($S$30,第18期個人成績!$A$2:$AB$93,$S$33,FALSE) -> 3522 | T20: =VLOOKUP($T$30,第18期個人成績!$A$2:$AB$93,$T$33,FALSE) -> 3 | U20: =VLOOKUP($U$30,第18期個人成績!$A$2:$AB$93,$U$33,FALSE) -> 6 | V20: =VLOOKUP($V$30,第18期個人成績!$A$2:$AB$93,$V$33,FALSE) -> 10 | W20: =VLOOKUP($W$30,第18期個人成績!$A$2:$AB$93,$W$33,FALSE) -> 6 | X20: =VLOOKUP($X$30,第18期個人成績!$A$2:$AB$93,$X$33,FALSE) -> 11.80769231 | Y20: =VLOOKUP($Y$30,第18期個人成績!$A$2:$AB$93,$Y$33,FALSE) -> 420 | Z20: =VLOOKUP($Z$30,第18期個人成績!$A$2:$AB$93,$Z$33,FALSE) -> 16 | AA20: =VLOOKUP($AA$30,第18期個人成績!$A$2:$AB$93,$AA$33,FALSE) -> 53 | AB20: =VLOOKUP($AB$30,第18期個人成績!$A$2:$AB$93,$AB$33,FALSE) -> 9 | AC20: =VLOOKUP($AC$30,第18期個人成績!$A$2:$AB$93,$AC$33,FALSE) -> 11 | AE20: =VLOOKUP($AE$30,第18期個人成績!$A$2:$AB$93,$AE$33,FALSE) -> 214 | AF20: =VLOOKUP($AF$30,第18期個人成績!$A$2:$AB$93,$AF$33,FALSE) -> 38 | AG20: 0.1775700935 | AH20: =SUMIF(盗塁記録!$B$2:$B$665,B20,盗塁記録!$G$2:$G$665) -> 2287 | AI20: 60.18421053 | AJ20: 4.976744186 | AL20: =VLOOKUP(AL$30,第18期個人成績!$A$2:$AB$100,AL$34,FALSE) -> 243 | AM20: =AL20/$E20 -> 0.2621359223 | AN20: =VLOOKUP(AN$30,第18期個人成績!$A$2:$AB$100,AN$34,FALSE) -> 89 | AO20: =AN20/$E20 -> 0.09600862999 | AP20: =VLOOKUP(AP$30,第18期個人成績!$A$2:$AB$100,AP$34,FALSE) -> 1565 | AQ20: =AP20/$E20 -> 1.68824164 | AR20: =VLOOKUP(AR$30,第18期個人成績!$A$2:$AB$100,AR$34,FALSE) -> 316 | AS20: =AR20/$E20 -> 0.3408845739
A21: 第19期 | B21: 19 | C21: =第19期個人成績!$A$1 -> 26 | D21: =第19期個人成績!$B$1 -> 38 | E21: =VLOOKUP(E$30,第19期個人成績!$A$2:$AB$93,E$33,FALSE) -> 899 | F21: 34.57692308 | G21: =VLOOKUP(G$30,第19期個人成績!$A$2:$AB$93,G$33,FALSE) -> 35 | H21: =VLOOKUP(H$30,第19期個人成績!$A$2:$AB$93,H$33,FALSE) -> 33 | I21: 0.9099190283 | J21: =VLOOKUP(J$30,第19期個人成績!$A$2:$AB$93,J$33,FALSE) -> 93220 | K21: =VLOOKUP(K$30,第19期個人成績!$A$2:$AB$93,K$33,FALSE) -> 103.5794101 | L21: =VLOOKUP(L$30,第19期個人成績!$A$2:$GG$93,L$34,FALSE) -> 157.4 | M21: =VLOOKUP(M$30,第19期個人成績!$A$2:$GG$93,M$34,FALSE) -> 55.58823529 | N21: =VLOOKUP(N$30,第19期個人成績!$A$2:$AB$93,N$33,FALSE) -> 525 | O21: =VLOOKUP(O$30,第19期個人成績!$A$2:$AB$93,O$33,FALSE) -> 20 | P21: =VLOOKUP(P$30,第19期個人成績!$A$2:$AB$93,P$33,FALSE) -> 116.8846154 | Q21: =VLOOKUP(Q$30,第19期個人成績!$A$2:$AB$93,Q$33,FALSE) -> 88.72 | S21: =VLOOKUP($S$30,第19期個人成績!$A$2:$AB$93,$S$33,FALSE) -> 3039 | T21: =VLOOKUP($T$30,第19期個人成績!$A$2:$AB$93,$T$33,FALSE) -> 2 | U21: =VLOOKUP($U$30,第19期個人成績!$A$2:$AB$93,$U$33,FALSE) -> 4 | V21: =VLOOKUP($V$30,第19期個人成績!$A$2:$AB$93,$V$33,FALSE) -> 7 | W21: =VLOOKUP($W$30,第19期個人成績!$A$2:$AB$93,$W$33,FALSE) -> 10 | X21: =VLOOKUP($X$30,第19期個人成績!$A$2:$AB$93,$X$33,FALSE) -> 13.03846154 | Y21: =VLOOKUP($Y$30,第19期個人成績!$A$2:$AB$93,$Y$33,FALSE) -> 482 | Z21: =VLOOKUP($Z$30,第19期個人成績!$A$2:$AB$93,$Z$33,FALSE) -> 23 | AA21: =VLOOKUP($AA$30,第19期個人成績!$A$2:$AB$93,$AA$33,FALSE) -> 42 | AB21: =VLOOKUP($AB$30,第19期個人成績!$A$2:$AB$93,$AB$33,FALSE) -> 8 | AC21: =VLOOKUP($AC$30,第19期個人成績!$A$2:$AB$93,$AC$33,FALSE) -> 11 | AE21: =VLOOKUP($AE$30,第19期個人成績!$A$2:$AB$93,$AE$33,FALSE) -> 225 | AF21: =VLOOKUP($AF$30,第19期個人成績!$A$2:$AB$93,$AF$33,FALSE) -> 41 | AG21: =IF(AF21=0,0,AF21/AE21) -> 0.1822222222 | AH21: =SUMIF(盗塁記録!$B$2:$B$665,B21,盗塁記録!$G$2:$G$665) -> 3466 | AI21: =IF(AF21=0,0,AH21/AF21) -> 84.53658537 | AJ21: =AE21/D21 -> 5.921052632 | AL21: =VLOOKUP(AL$30,第19期個人成績!$A$2:$AB$100,AL$34,FALSE) -> 150 | AM21: =AL21/$E21 -> 0.1668520578 | AN21: =VLOOKUP(AN$30,第19期個人成績!$A$2:$AB$100,AN$34,FALSE) -> 239 | AO21: =AN21/$E21 -> 0.2658509455 | AP21: =VLOOKUP(AP$30,第19期個人成績!$A$2:$AB$100,AP$34,FALSE) -> 1192 | AQ21: =AP21/$E21 -> 1.325917686 | AR21: =VLOOKUP(AR$30,第19期個人成績!$A$2:$AB$100,AR$34,FALSE) -> 344 | AS21: =AR21/$E21 -> 0.382647386
A22: 第20期 | B22: 20 | C22: =第20期個人成績!$A$1 -> 27 | D22: =第20期個人成績!$B$1 -> 38 | E22: =VLOOKUP(E$30,第20期個人成績!$A$2:$AB$93,E$33,FALSE) -> 923 | F22: =E22/C22 -> 34.18518519 | G22: =VLOOKUP(G$30,第20期個人成績!$A$2:$AB$93,G$33,FALSE) -> 35 | H22: =VLOOKUP(H$30,第20期個人成績!$A$2:$AB$93,H$33,FALSE) -> 32 | I22: =E22/(D22*C22) -> 0.8996101365 | J22: =VLOOKUP(J$30,第20期個人成績!$A$2:$AB$93,J$33,FALSE) -> 111890 | K22: =VLOOKUP(K$30,第20期個人成績!$A$2:$AB$93,K$33,FALSE) -> 121.1758898 | L22: =VLOOKUP(L$30,第20期個人成績!$A$2:$GG$93,L$34,FALSE) -> 163.3428571 | M22: =VLOOKUP(M$30,第20期個人成績!$A$2:$GG$93,M$34,FALSE) -> 70.27272727 | N22: =VLOOKUP(N$30,第20期個人成績!$A$2:$AB$93,N$33,FALSE) -> 490 | O22: =VLOOKUP(O$30,第20期個人成績!$A$2:$AB$93,O$33,FALSE) -> 28 | P22: =VLOOKUP(P$30,第20期個人成績!$A$2:$AB$93,P$33,FALSE) -> 142.7307692 | Q22: =VLOOKUP(Q$30,第20期個人成績!$A$2:$AB$93,Q$33,FALSE) -> 92.11538462 | S22: =VLOOKUP($S$30,第20期個人成績!$A$2:$AB$93,$S$33,FALSE) -> 3711 | T22: =VLOOKUP($T$30,第20期個人成績!$A$2:$AB$93,$T$33,FALSE) -> 4 | U22: =VLOOKUP($U$30,第20期個人成績!$A$2:$AB$93,$U$33,FALSE) -> 9 | V22: =VLOOKUP($V$30,第20期個人成績!$A$2:$AB$93,$V$33,FALSE) -> 14 | W22: =VLOOKUP($W$30,第20期個人成績!$A$2:$AB$93,$W$33,FALSE) -> 4 | X22: =VLOOKUP($X$30,第20期個人成績!$A$2:$AB$93,$X$33,FALSE) -> 12.96296296 | Y22: =VLOOKUP($Y$30,第20期個人成績!$A$2:$AB$93,$Y$33,FALSE) -> 375 | Z22: =VLOOKUP($Z$30,第20期個人成績!$A$2:$AB$93,$Z$33,FALSE) -> 20 | AA22: =VLOOKUP($AA$30,第20期個人成績!$A$2:$AB$93,$AA$33,FALSE) -> 57 | AB22: =VLOOKUP($AB$30,第20期個人成績!$A$2:$AB$93,$AB$33,FALSE) -> 10 | AC22: =VLOOKUP($AC$30,第20期個人成績!$A$2:$AB$93,$AC$33,FALSE) -> 13 | AE22: =VLOOKUP($AE$30,第20期個人成績!$A$2:$AB$93,$AE$33,FALSE) -> 166 | AF22: =VLOOKUP($AF$30,第20期個人成績!$A$2:$AB$93,$AF$33,FALSE) -> 34 | AG22: =IF(AF22=0,0,AF22/AE22) -> 0.2048192771 | AH22: =SUMIF(盗塁記録!$B$2:$B$665,B22,盗塁記録!$G$2:$G$665) -> 2246 | AI22: =IF(AF22=0,0,AH22/AF22) -> 66.05882353 | AJ22: =AE22/D22 -> 4.368421053 | AL22: =VLOOKUP(AL$30,第20期個人成績!$A$2:$AB$100,AL$34,FALSE) -> 310 | AM22: =AL22/$E22 -> 0.3358613218 | AN22: =VLOOKUP(AN$30,第20期個人成績!$A$2:$AB$100,AN$34,FALSE) -> 90 | AO22: =AN22/$E22 -> 0.09750812568 | AP22: =VLOOKUP(AP$30,第20期個人成績!$A$2:$AB$100,AP$34,FALSE) -> 1767 | AQ22: =AP22/$E22 -> 1.914409534 | AR22: =VLOOKUP(AR$30,第20期個人成績!$A$2:$AB$100,AR$34,FALSE) -> 414 | AS22: =AR22/$E22 -> 0.4485373781
A23: 第21期 | B23: 21 | C23: =第21期個人成績!$A$1 -> 26 | D23: =第21期個人成績!$B$1 -> 38 | E23: =VLOOKUP(E$30,第21期個人成績!$A$2:$AB$93,E$33,FALSE) -> 811 | F23: =E23/C23 -> 31.19230769 | G23: =VLOOKUP(G$30,第21期個人成績!$A$2:$AB$93,G$33,FALSE) -> 34 | H23: =VLOOKUP(H$30,第21期個人成績!$A$2:$AB$93,H$33,FALSE) -> 28 | I23: =E23/(D23*C23) -> 0.8208502024 | J23: =VLOOKUP(J$30,第21期個人成績!$A$2:$AB$93,J$33,FALSE) -> 96441 | K23: =VLOOKUP(K$30,第21期個人成績!$A$2:$AB$93,K$33,FALSE) -> 119.2924601 | L23: =VLOOKUP(L$30,第21期個人成績!$A$2:$GG$93,L$34,FALSE) -> 177.5294118 | M23: =VLOOKUP(M$30,第21期個人成績!$A$2:$GG$93,M$34,FALSE) -> 65.4516129 | N23: =VLOOKUP(N$30,第21期個人成績!$A$2:$AB$93,N$33,FALSE) -> 480 | O23: =VLOOKUP(O$30,第21期個人成績!$A$2:$AB$93,O$33,FALSE) -> 20 | P23: =VLOOKUP(P$30,第21期個人成績!$A$2:$AB$93,P$33,FALSE) -> 137.4230769 | Q23: =VLOOKUP(Q$30,第21期個人成績!$A$2:$AB$93,Q$33,FALSE) -> 104.5384615 | S23: =VLOOKUP($S$30,第21期個人成績!$A$2:$AB$93,$S$33,FALSE) -> 3573 | T23: =VLOOKUP($T$30,第21期個人成績!$A$2:$AB$93,$T$33,FALSE) -> 4 | U23: =VLOOKUP($U$30,第21期個人成績!$A$2:$AB$93,$U$33,FALSE) -> 4 | V23: =VLOOKUP($V$30,第21期個人成績!$A$2:$AB$93,$V$33,FALSE) -> 11 | W23: =VLOOKUP($W$30,第21期個人成績!$A$2:$AB$93,$W$33,FALSE) -> 5 | X23: =VLOOKUP($X$30,第21期個人成績!$A$2:$AB$93,$X$33,FALSE) -> 10.96153846 | Y23: =VLOOKUP($Y$30,第21期個人成績!$A$2:$AB$93,$Y$33,FALSE) -> 490 | Z23: =VLOOKUP($Z$30,第21期個人成績!$A$2:$AB$93,$Z$33,FALSE) -> 15 | AA23: =VLOOKUP($AA$30,第21期個人成績!$A$2:$AB$93,$AA$33,FALSE) -> 56 | AB23: =VLOOKUP($AB$30,第21期個人成績!$A$2:$AB$93,$AB$33,FALSE) -> 10 | AC23: =VLOOKUP($AC$30,第21期個人成績!$A$2:$AB$93,$AC$33,FALSE) -> 7 | AE23: =VLOOKUP($AE$30,第21期個人成績!$A$2:$AB$93,$AE$33,FALSE) -> 172 | AF23: =VLOOKUP($AF$30,第21期個人成績!$A$2:$AB$93,$AF$33,FALSE) -> 20 | AG23: =IF(AF23=0,0,AF23/AE23) -> 0.1162790698 | AH23: =SUMIF(盗塁記録!$B$2:$B$665,B23,盗塁記録!$G$2:$G$665) -> 1753 | AI23: =IF(AF23=0,0,AH23/AF23) -> 87.65 | AJ23: =AE23/D23 -> 4.526315789 | AL23: =VLOOKUP(AL$30,第21期個人成績!$A$2:$AB$100,AL$34,FALSE) -> 256 | AM23: =AL23/$E23 -> 0.3156596794 | AN23: =VLOOKUP(AN$30,第21期個人成績!$A$2:$AB$100,AN$34,FALSE) -> 83 | AO23: =AN23/$E23 -> 0.1023427867 | AP23: =VLOOKUP(AP$30,第21期個人成績!$A$2:$AB$100,AP$34,FALSE) -> 1498 | AQ23: =AP23/$E23 -> 1.847102343 | AR23: =VLOOKUP(AR$30,第21期個人成績!$A$2:$AB$100,AR$34,FALSE) -> 319 | AS23: =AR23/$E23 -> 0.3933415536
A27: 最高値 | C27: =MAX(C$3:C25) -> 27 | D27: =MAX(D$3:D25) -> 55 | E27: =MAX(E$3:E25) -> 1000 | F27: =MAX(F$3:F25) -> 38.46153846 | G27: =MAX(G$3:G25) -> 45 | H27: =MAX(H$3:H25) -> 35 | I27: =MAX(I$3:I25) -> 0.9480769231 | J27: =MAX(J$3:J25) -> 112968 | K27: =MAX(K$3:K25) -> 121.1758898 | L27: =MAX(L$3:L25) -> 185.6486486 | M27: =MAX(M$3:M25) -> 82.3 | N27: =MAX(N$3:N25) -> 525 | O27: =MAX(O$3:O25) -> 30 | P27: =MAX(P$3:P25) -> 142.7307692 | Q27: =MAX(Q$3:Q25) -> 104.5384615 | S27: =MAX(S$3:S25) -> 3711 | T27: =MAX(T$3:T25) -> 6 | U27: =MAX(U$3:U25) -> 9 | V27: =MAX(V$3:V25) -> 14 | W27: =MAX(W$3:W25) -> 10 | X27: =MAX(X$3:X25) -> 13.30769231 | Y27: =MAX(Y$3:Y25) -> 490 | Z27: =MAX(Z$3:Z25) -> 23 | AA27: =MAX(AA$3:AA25) -> 59 | AB27: =MAX(AB$3:AB25) -> 13 | AC27: =MAX(AC$3:AC25) -> 15 | AE27: =MAX(AE$3:AE25) -> 309 | AF27: =MAX(AF$3:AF25) -> 68 | AG27: =MAX(AG$3:AG25) -> 0.2780748663 | AH27: =MAX(AH$3:AH25) -> 3466 | AI27: =MAX(AI$3:AI25) -> 148.3571429 | AJ27: =MAX(AJ$3:AJ25) -> 7.705882353 | AL27: =MAX(AL$3:AL25) -> 310 | AM27: =MAX(AM$3:AM25) -> 0.3358613218 | AN27: =MAX(AN$3:AN25) -> 239 | AO27: =MAX(AO$3:AO25) -> 0.2658509455 | AP27: =MAX(AP$3:AP25) -> 1767 | AQ27: =MAX(AQ$3:AQ25) -> 1.914409534 | AR27: =MAX(AR$3:AR25) -> 415 | AS27: =MAX(AS$3:AS25) -> 0.4485373781
A28: 最低値 | C28: =MIN(C$3:C25) -> 26 | D28: =MIN(D$3:D25) -> 15 | E28: =MIN(E$3:E25) -> 284 | F28: =MIN(F$3:F25) -> 10.92307692 | G28: =MIN(G$3:G25) -> 12 | H28: =MIN(H$3:H25) -> 9 | I28: =MIN(I$3:I25) -> 0.6501240695 | J28: =MIN(J$3:J25) -> 27556 | K28: =MIN(K$3:K25) -> 92.59170437 | L28: =MIN(L$3:L25) -> 132.7692308 | M28: =MIN(M$3:M25) -> 28.25 | N28: =MIN(N$3:N25) -> 219 | O28: =MIN(O$3:O25) -> 20 | P28: =MIN(P$3:P25) -> 107.1923077 | Q28: =MIN(Q$3:Q25) -> 70.57894737 | S28: =MIN(S$3:S25) -> 2756 | T28: =MIN(T$3:T25) -> 2 | U28: =MIN(U$3:U25) -> 2 | V28: =MIN(V$3:V25) -> 5 | W28: =MIN(W$3:W25) -> 4 | X28: =MIN(X$3:X25) -> 4.230769231 | Y28: =MIN(Y$3:Y25) -> 150 | Z28: =MIN(Z$3:Z25) -> 9 | AA28: =MIN(AA$3:AA25) -> 38 | AB28: =MIN(AB$3:AB25) -> 8 | AC28: =MIN(AC$3:AC25) -> 0 | AE28: =MIN(AE$3:AE25) -> 94 | AF28: =MIN(AF$3:AF25) -> 12 | AG28: =MIN(AG$3:AG25) -> 0.075 | AH28: =MIN(AH$3:AH25) -> 740 | AI28: =MIN(AI$3:AI25) -> 43.52941176 | AJ28: =MIN(AJ$3:AJ25) -> 3 | AL28: =MIN(AL$3:AL25) -> 43 | AM28: =MIN(AM$3:AM25) -> 0.1211267606 | AN28: =MIN(AN$3:AN25) -> 30 | AO28: =MIN(AO$3:AO25) -> 0.09600862999 | AP28: =MIN(AP$3:AP25) -> 403 | AQ28: =MIN(AQ$3:AQ25) -> 1.312703583 | AR28: =MIN(AR$3:AR25) -> 64 | AS28: =MIN(AS$3:AS25) -> 0.2084690554
A30: 変更不可 | E30: TO | G30: MA | H30: MI | J30: TO | K30: AV | L30: MA | M30: MI | N30: MA | O30: MI | P30: MA | Q30: MI | S30: MA | T30: MA | U30: MA | V30: MA | W30: MA | X30: MA | Y30: MA | Z30: MA | AA30: MA | AB30: MA | AC30: MA | AE30: TO | AF30: TO | AL30: TO | AN30: TO | AP30: TO | AR30: TO
A31: 変更不可 | AL31: 10 | AN31: 11 | AP31: 16 | AR31: 15
A32: 変更不可 | AL32: 11 | AN32: 12 | AP32: 17 | AR32: 16
A33: 変更不可 | E33: 4 | G33: 7 | H33: 7 | J33: 5 | K33: 6 | L33: 29 | M33: 29 | N33: 24 | O33: 25 | P33: 6 | Q33: 6 | S33: 5 | T33: 9 | U33: 10 | V33: 12 | W33: 13 | X33: 14 | Y33: 8 | Z33: 17 | AA33: 18 | AB33: 19 | AC33: 21 | AE33: 26 | AF33: 27 | AL33: 12 | AN33: 13 | AP33: 18 | AR33: 17
A34: 変更不可 | L34: 35 | M34: 35 | AL34: 12 | AN34: 13 | AP34: 18 | AR34: 17
D38: 得点王 | E38: 最高AVE | F38: 最多勝 | G38: 最多ヒット | H38: 最優秀防御率 | I38: 盗塁王 | J38: ハイスコア
C39: 第1期 | D39: 2789 | E39: 108.3333333 | F39: 5 | G39: 10 | H39: 4.230769231 | I39: 150 | J39: 280
C40: 第2期 | D40: 2787 | E40: 107.1923077 | F40: 6 | G40: 6 | H40: 4.807692308 | I40: 270 | J40: 219
C41: 第3期 | D41: 2756 | E41: 113.3043478 | F41: 6 | G41: 5 | H41: 6.115384615 | I41: 381 | J41: 265
C42: 第4期 | D42: 3027 | E42: 116.4230769 | F42: 4 | G42: 9 | H42: 6 | I42: 429 | J42: 248
C43: 第5期 | D43: 3073 | E43: 118.1923077 | F43: 4 | G43: 10 | H43: 7.346153846 | I43: 199 | J43: 310
C44: 第6期 | D44: 3119 | E44: 119.9615385 | F44: 3 | G44: 8 | H44: 11.82608696 | I44: 384 | J44: 408
C45: 第7期 | D45: 3334 | E45: 128.2307692 | F45: 3 | G45: 13 | H45: 12.34782609 | I45: 253 | J45: 310
C46: 第8期 | D46: 3366 | E46: 129.4615385 | F46: 3 | G46: 11 | H46: 12.19230769 | I46: 424 | J46: 478
C47: 第9期 | D47: 2874 | E47: 119.75 | F47: 4 | G47: 8 | H47: 12.29166667 | I47: 428 | J47: 428
C48: 第10期 | D48: 3710 | E48: 137.4074074 | F48: 5 | G48: 10 | H48: 11.62962963 | I48: 385 | J48: 483
C49: 第11期 | D49: － | E49: － | F49: － | G49: － | H49: － | I49: － | J49: －
C50: 第12期 | D50: 3462 | E50: 133.1538462 | F50: 3 | G50: 9 | H50: 9.730769231 | I50: 358 | J50: 464

Sheet タイトル備忘録
A1: ※このページは「タイトル受賞者一覧」へ移行予定
A2: 個人記録 | B2: 第1期 | D2: 第2期 | F2: 第3期 | H2: 第4期 | J2: 第5期 | L2: 第6期 | N2: 第7期 | P2: 第8期 | R2: 第9期 | T2: 第10期 | V2: 第11期 | X2: 第12期
A3: 最多勝 | B3: 刑事ポン氏 | C3: 5 | D3: てりー氏 | E3: 6 | F3: 予想王スタッフ | G3: 6 | H3: NOV氏、ROT氏 | I3: 4 | J3: ROT氏 | K3: 4 | L3: GEKO氏、う～たん氏、SG氏 | M3: 3 | N3: ゆーの氏、vanblaes氏 | O3: 3 | P3: ロトー氏、uniuni氏 | Q3: 3 | R3: YSO-M.C. | S3: 4 | T3: 系譜氏 | U3: 5 | V3: タナリン氏、いでっく氏 | W3: 4 | X3: まい氏 | Y3: 3
A4: 最多敗 | B4: SSUZUKI氏 | C4: 7 | D4: ヤンダル氏、psyche氏、てりー氏 | E4: 5 | F4: ROT氏 | G4: 5 | H4: う～たん氏 | I4: 5 | J4: NOV氏、田楽氏、SG氏 | K4: 3 | L4: 魔神ガーゼット氏 | M4: 3 | N4: aru氏 | O4: 5 | P4: AKU氏 | Q4: 7 | R4: ゆーの氏、系譜氏、vanblaes氏、ボチョコ氏、ブッフバルト氏、ケロロ氏、nalk氏、じい氏 | S4: 2 | T4: 三村風味氏 | U4: 3 | V4: aru氏 | W4: 5 | X4: aru氏 | Y4: 5
A5: 連続勝利 | B5: - | D5: 今師氏、てりー氏 | E5: 2 | F5: ヤンダル氏、予想王スタッフ | G5: 2 | H5: - | J5: ROT氏、タナリン氏、HiiMa氏、マドロック氏 | K5: 2 | L5: う～たん氏 | M5: 3 | N5: - | P5: - | R5: - | T5: 系譜氏 | U5: 2 | V5: まい氏 | W5: 3 | X5: -
A6: 連続敗北 | B6: ROT氏 | C6: 3 | D6: てりー氏 | E6: 3 | F6: ROT氏 | G6: 2 | H6: SHUKIOBI氏、ROT氏、う～たん氏、タナリン氏 | I6: 2 | J6: SG氏 | K6: 2 | L6: - | N6: AKU氏 | O6: 2 | P6: AKU氏(2回) | Q6: 2 | R6: - | T6: - | V6: - | X6: aru氏 （2回） | Y6: 2
A8: 連続入賞（第7期より集計） | B8: - | D8: - | F8: - | H8: - | J8: - | L8: - | N8: chukai氏 | O8: 4 | P8: ゆーの氏、HiiMa氏、yuifan氏、系譜氏 | Q8: 3 | R8: う～たん氏 | S8: 5 | T8: takuma氏 | U8: 3 | V8: まい氏 | W8: 4 | X8: タナリン氏、まい氏、yuifan氏 | Y8: 4
A9: 連続圏外（第7期より集計） | B9: - | D9: - | F9: - | H9: - | J9: - | L9: - | N9: エグドラシル使いM氏、aru氏 | O9: 4 | P9: AKU氏 | Q9: 5 | R9: aru氏 | S9: 3 | T9: takuma氏、zero氏、三村風味氏 | U9: 3 | X9: aru氏、ボチョコ氏 | Y9: 2
A10: 最多入賞（第7期より集計） | B10: - | D10: - | F10: - | H10: - | J10: - | L10: - | N10: yuifan氏 | O10: 10 | P10: ロトー氏、yuifan氏 | Q10: 10 | R10: う～たん氏 | S10: 12 | T10: ゆーの氏、タナリン氏、系譜氏 | U10: 9 | X10: まい氏 | Y10: 11
A11: 最多圏外（第7期より集計） | B11: - | D11: - | F11: - | H11: - | J11: - | L11: - | N11: aru氏 | O11: 15 | P11: AKU氏 | Q11: 11 | R11: aru氏、ゆーの氏、ブッフバルト氏、ロトー氏 | S11: 6 | T11: aru氏 | U11: 9 | X11: aru氏 | Y11: 5
A13: シーズン来連続無三振 | B13: ラル氏 | C13: 19 | D13: 亀井【仮名】氏 | E13: 11 | F13: ヤンダル氏、NOV氏 | G13: 10 | H13: う～たん氏 | I13: 9 | J13: らすこう氏、いでっく氏 | K13: 11 | L13: TAKO氏 | M13: 20 | N13: 今師氏 | O13: 23 | P13: ボチョコ氏 | Q13: 25 | R13: くろおび氏 | S13: 6 | T13: Defi氏、yuifan氏、ふみや氏、ZERU氏、じい氏、YSO-MC | U13: 14 | X13: ケロロ氏 | Y13: 25
A14: シーズン来連続ヒット | B14: - | D14: - | F14: - | H14: - | J14: いでっく氏 | K14: 3 | L14: - | N14: - | P14: - | R14: - | T14: - | X14: -
A15: 連続ヒット | B15: ラル氏 | C15: 4 | D15: ヤンダル氏 | E15: 3 | F15: NOV氏 | G15: 3 | H15: ヤンダル氏、NOV氏、てりー氏、タナリン氏、ルパン3世氏、清べえ氏 | I15: 3 | J15: タナリン氏 | K15: 6 | L15: HiiMa氏 | M15: 5 | N15: 系譜氏 | O15: 6 | P15: みったに氏 | Q15: 5 | R15: HiiMa氏 | S15: 4 | T15: ゆーの氏 | U15: 4 | X15: HiiMa氏、みったに氏、Ｔ－Ｋ氏、タナリン氏、.hackshak//氏、まい氏 | Y15: 3
A16: 連続三振 | B16: HMV氏 | C16: 2 | D16: ヤンダル氏 | E16: 4 | F16: 予想王スタッフ | G16: 4 | H16: ヤンダル氏 | I16: 4 | J16: ヤンダル氏、なりぼー氏、NOV氏、ROT氏、う～たん氏、田楽氏、蟹好き、清べえ氏、マドロック氏、SG氏、魔神ガーゼット氏、旧YSOスタッフ | K16: 2 | L16: ラル氏、ら・フランスFC、GEKO氏、ROTo氏、う～たん氏、田楽氏、ラムネ氏、らすこう氏、SG氏、uniuni氏、いでっく氏、じい氏、ケロロ氏、aru氏、ブッフバルト氏 | M16: 2 | N16: ヤンダル氏 | O16: 4 | P16: ゆーの氏、aru氏、ジョージ氏 | Q16: 3 | R16: ロトー氏 | S16: 4 | T16: aru氏、ブッフバルト氏 | U16: 3 | X16: .hackshak//氏、aru氏 | Y16: 2
A17: 連続無三振（シーズンまたぎ含む） | B17: ラル氏 | C17: 19 | D17: 亀井【仮名】氏 | E17: 27 | F17: NOV氏 | G17: 15 | H17: ROT氏、う～たん氏、タナリン氏、HiiMa氏 | I17: 10 | J17: GEKO氏、タナリン氏、HiiMa氏、マドロック氏、旧YSOスタッフ | K17: 18 | L17: TAKO氏 | M17: 20 | N17: 今師氏（第4期～第7期にかけて） | O17: 33 | P17: ゆーの氏 | Q17: 31 | T17: Defi氏 | U17: 29 | X17: 保留
A19: 連続ピンポイント（数） | B19: ラル氏、SSUZUKI氏、てりー氏 | C19: 4 | D19: ヤンダル氏、てりー氏、亀井【仮名】氏 | E19: 3 | F19: 今師氏 | G19: 6 | H19: Sovath伯爵 | I19: 6 | J19: 旧YSOスタッフ | K19: 5 | L19: 精霊氏、エグドラシル使いM氏、旧YSOスタッフ | M19: 5 | N19: HiiMa氏 | O19: 10 | P19: yuifan氏 | Q19: 6 | R19: 系譜氏、みったに氏、真央氏、Defi氏、タッキー＆伯爵氏、う～たん氏 | S19: 4 | T19: yuifan氏、真央氏、ケロロ氏 | U19: 6 | X19: タナリン氏 | Y19: 7
A20: 連続ピンポイント（週） | B20: ラル氏、刑事ポン氏、う～たん氏、亀井（仮名）氏 | C20: 3 | D20: てりー氏、亀井【仮名】氏 | E20: 3 | F20: 今師氏 | G20: 6 | H20: Sovath伯爵 | I20: 5 | J20: ら・フランスFC、reook氏、旧YSOスタッフ | K20: 4 | L20: エグドラシル使いM氏 | M20: 5 | N20: HiiMa氏 | O20: 9 | P20: yuifan氏 | Q20: 6 | R20: タナリン氏、みったに氏、真央氏、ボチョコ氏、楽園氏、ブッフバルト氏、タッキー＆伯爵氏 | S20: 3 | T20: みったに氏、yuifan氏 | U20: 5 | X20: タナリン氏、もんでんどん氏、まい氏 | Y20: 5
A21: 連続複数ピンポイント（週） | B21: SSUZUKI氏 | C21: 2 | D21: - | F21: ラル氏 | G21: 2 | H21: - | J21: - | L21: ら・フランスFC、精霊氏 | M21: 2 | N21: ゆーの氏 | O21: 2 | P21: - | R21: 系譜氏、Defi氏 | S21: 2 | T21: 真央氏、ケロロ氏 | U21: 2 | X21: Natit | Y21: 2
A23: 重盗（三重盗含む） | B23: - | D23: - | F23: - | H23: - | J23: - | L23: ヤンダル氏、GEKO氏、ROTo氏、マドロック氏、ZERU氏 | M23: 2 | N23: - | P23: - | R23: - | T23: タナリン氏、HiiMa氏、ゆーの氏 | U23: 2 | X23: -
A24: 最多盗塁敢行 | B24: ROT氏 | C24: 19 | D24: てりー氏 | E24: 20 | F24: ROT氏 | G24: 14 | H24: う～たん氏、HiiMa氏 | I24: 13 | J24: HiiMa氏 | K24: 11 | L24: HiiMa氏 | M24: 12 | N24: じい氏 | O24: 17 | P24: AKU氏 | Q24: 16 | R24: ふみや氏 | S24: 12 | T24: aru氏 | U24: 19 | X24: aru氏 | Y24: 18
A25: 最多盗塁成功 | B25: Sovath氏、刑事ポン氏、ice氏、てりー氏、亀井（仮名）氏 | C25: 2 | D25: てりー氏 | E25: 4 | F25: R6氏 | G25: 5 | H25: HiiMa氏 | I25: 5 | J25: HiiMa氏 | K25: 4 | L25: ヤンダル氏、GEKO氏 | M25: 6 | N25: GEKO氏 | O25: 3 | P25: HiiMa氏、みったに氏、T-K氏 | Q25: 2 | R25: う～たん氏、みったに氏、aru氏、Defi氏、ボチョコ氏 | S25: 2 | T25: タナリン氏、ブッフバルト氏 | U25: 5 | X25: タナリン氏 | Y25: 5
A26: 最優秀盗塁成功率（※盗塁成功2回以上） | B26: Sovath氏 | C26: 0.4 | D26: ヤンダル氏 | E26: 0.5 | F26: NOV氏 | G26: 0.429 | H26: 清べえ氏 | I26: 0.4 | J26: ら・フランスFC | K26: 0.5 | L26: GEKO氏 | M26: 0.6 | N26: タナリン氏、ゆーの氏 | O26: 0.4 | P26: T-K氏 | Q26: 0.4 | R26: Defi氏 | S26: 0.5 | T26: タナリン氏 | U26: 0.714 | X26: 楽園氏 | Y26: 0.667
A27: 最高盗塁ポイント（期間全体） | B27: Sovath氏、亀井（仮名）氏 | C27: 150 | D27: てりー氏 | E27: 270 | F27: R6氏 | G27: 381 | H27: HiiMa氏 | I27: 429 | J27: HiiMa氏 | K27: 199 | L27: SG氏 | M27: 384 | N27: GEKO氏 | O27: 253 | P27: T-K氏 | Q27: 424 | R27: aru氏 | S27: 428 | T27: ふみや氏 | U27: 385 | X27: みったに氏 | Y27: 358
A28: 最高盗塁ポイント（週単位） | B28: ice氏 | C28: 80 | D28: ラル氏、今師氏、てりー氏 | E28: 120 | F28: 今師氏、R6氏 | G28: 140 | H28: NOV氏、HiiMa氏 | I28: 130 | J28: ROT氏 | K28: 160 | L28: SG氏 | M28: 260 | N28: ヤンダル氏、GEKO氏 | O28: 156 | P28: T-K氏 | Q28: 360 | R28: aru氏 | S28: 340 | T28: ふみや氏 | U28: 340 | X28: みったに氏 | Y28: 310
A30: 週単位記録 | B30: 第1期 | D30: 第2期 | F30: 第3期 | H30: 第4期 | J30: 第5期 | L30: 第6期 | N30: 第7期 | P30: 第8期 | R30: 第9期 | T30: 第10期 | V30: 第11期 | X30: 第12期
A31: 全員ヒット | B31: - | D31: - | F31: - | H31: 第21回 | I31: 15 | J31: - | L31: - | N31: - | P31: - | R31: - | T31: 第12回 | U31: 37 | X31: -
A32: 全員三振 | B32: - | D32: 第21回 | E32: 12 | F32: - | H32: - | J32: 第25回 | K32: 23 | L32: - | N32: - | P32: - | R32: - | T32: - | X32: -
A33: 週間最多ピンポイント | B33: 第11回 | C33: 14 | D33: 第8回、第22回 | E33: 5 | F33: 第6回、第20回 | G33: 8 | H33: 第16回 | I33: 10 | J33: 第14回 | K33: 17 | L33: 第21回 | M33: 23 | N33: 第4回、第19回 | O33: 28 | P33: 第9回 | Q33: 30 | R33: 第7回、第8回 | S33: 21 | T33: 第12回 | U33: 37 | X33: 第9回 | Y33: 27
A34: 週間最多ヒット数 | B34: 第21回 | C34: 10 | D34: 第8回 | E34: 10 | F34: 第9回 | G34: 12 | H34: 第21回 | I34: 15 | J34: 第10回 | K34: 17 | L34: 第21回 | M34: 32 | N34: 第9回 | O34: 43 | P34: 第7回 | Q34: 32 | R34: 第23回 | S34: 32 | T34: 第12回 | U34: 37 | X34: 第20回 | Y34: 27
A35: 週間最多三振数 | B35: 第20回 | C35: 6 | D35: 第21回 | E35: 12 | F35: 第11回 | G35: 13 | H35: 第24回 | I35: 14 | J35: 第25回 | K35: 23 | L35: 第6回、第11回 | M35: 18 | N35: 第17回 | O35: 34 | P35: 第2回 | Q35: 20 | R35: 第25回 | S35: 25 | T35: 第15回 | U35: 33 | X35: 第10回 | Y35: 16
A36: 週間最多盗塁成功数 | B36: 第9回、第15回 | C36: 4 | D36: 第17回 | E36: 4 | F36: 第15回、第17回、第24回 | G36: 4 | H36: 第5回、第15回 | I36: 5 | J36: 第26回 | K36: 6 | L36: 第15回 | M36: 11 | N36: 第2回、第19回 | O36: 8 | P36: 第18回、第20回 | Q36: 5 | R36: 第21回、第25回 | S36: 6 | T36: 第22回、第26回 | U36: 12 | X36: 第16回、第17回 | Y36: 7

Sheet 各タイトル受賞規定
A2: 予想王対象タイトル | C2: Y1レコード | E2: 記録者 | F2: 記録期
A3: 得点王 | B3: 期間中、最高得点を記録した方に贈られる。 | C3: 3711 | D3: pts | E3: ジェナスさん | F3: 第20期
A4: 最高AVE | B4: 期間中、規定参加回数以上の参加をした方の中で最も平均点の高かった方に贈られる。 | C4: 142.7 | D4: pts | E4: ジェナスさん | F4: 第20期
A5: 最多勝 | B5: 期間中、勝利回数の最も多かった方に贈られる。 | C5: 6 | D5: 勝 | E5: てりーさん 予想王スタッフ | F5: 第2期 第3期
A6: 最多ヒット | B6: 期間中、ヒット回数の最も多かった方に贈られる。 | C6: 14 | D6: HIT | E6: みったにさん ミスター・ブシドーさん | F6: 第16期 第20期
A7: 最優秀ERA | B7: 期間中、規定参加回数以上の参加をした方の中で最も防御率の良かった方に贈られる。 | C7: 4.23 | E7: ラルさん | F7: 第1期
A8: 盗塁王 | B8: 期間中、盗塁による獲得点の最も多かった方に贈られる。 | C8: 482 | D8: pts | E8: 系譜さん | F8: 第19期
A9: ハイスコア | B9: 期間中、週間ベースで最高得点を出した方に贈られる。 | C9: 525 | D9: pts | E9: aruさん | F9: 第19期
A10: 最多入賞 | B10: 期間中、週間ランキングで3位以内（第5期まで）、または6位以内（第6期以降）に入着した回数の最も多かった方に贈られる。 | C10: 13 | D10: 回 | E10: タナリンさん | F10: 第15期
A12: 一般認定タイトル | C12: Y1レコード | E12: 記録者 | F12: 記録期
A13: 最多順位当て | B13: 期間中、各予想タイトルの順位を的中させた回数の最も多かった方に贈られる。 | C13: 59 | D13: pts | E13: みったにさん | F13: 第16期
A14: 最多ピンポイント | B14: 期間中、各予想タイトルの本数を誤差5％以内に予想できた回数の最も多かった方に贈られる。 | C14: 23 | D14: pts | E14: タナリンさん | F14: 第19期
A15: 最優秀ERA（補正値ベース） | B15: 期間中、規定参加回数以上の参加をした方の中で最も補正防御率の良かった方に贈られる。 | C15: 8.55 | E15: ディランドさん | F15: 第16期
A16: 最多盗塁敢行 | B16: 期間中、各予想タイトルが盗塁対象となった回数の最も多かった方に贈られる。 | C16: =生涯計算04!BG127 -> 20 | D16: 回 | E16: うにょさん | F16: 第2期
A17: 最多盗塁成功 | B17: 期間中、各予想タイトルが盗塁成功となった回数の最も多かった方に贈られる。 | C17: =生涯計算04!CK127 -> 6 | D17: 回 | E17: ヤンダルさん GEKOさん | F17: 第6期
A18: 最優秀誤差本数 | B18: 期間中、各予想タイトルの本数誤差（％ではなく実数）の最も小さかった方に贈られる。 | C18: 2 | D18: 本 | E18: GEKOさん | F18: 第2期
A19: 連続無三振 | B19: 期間中、三振しなかった週をカウントしその期間の最も長かった方に贈られる。 | C19: 26 | D19: 週 | E19: 6名
A20: 最優秀盗塁成功率 | B20: 期間中、規定回数以上の参加者のうち盗塁成功率（成功数÷敢行数）の最も高かった方に贈られる。 | C20: 100 | D20: ％ | E20: 3名
A21: 最優秀新作誤差率 | B21: 期間中、規定本数以上の新作を予想した戦士のうち、その誤差率（％値合計）の平均が最も小さかった方に贈られる。 | C21: 14.854 | E21: ジェナスさん | F21: 第20期
A22: 最優秀旧作誤差率 | B22: 期間中、規定本数以上の旧作を予想した戦士のうち、その誤差率（％値合計）の平均が最も小さかった方に贈られる。 | C22: 18.248 | E22: 楽園さん | F22: 第20期
A23: 完全試合 | B23: 完全試合規定を満たした方に贈られる。 | C23: 期間中1回 | D23: 達成 | E23: － | F23: －
A25: 裏四冠タイトル | C25: Y1レコード | E25: 記録者 | F25: 記録期
A26: 最多敗 | B26: 期間中、敗北回数の最も多かった方に贈られる。 | C26: 9 | D26: 敗 | E26: aruさん | F26: 第20期
A27: 最多三振 | B27: 期間中、三振回数の最も多かった方に贈られる。 | C27: 10 | D27: 三振 | E27: じいさん | F27: 第19期
A28: 最多圏外 | B28: 期間中、圏外回数の最も多かった方に贈られる。第6期以降のみ対象。 | C28: 15 | D28: 回
A29: ロースコア | B29: 期間中、週間ベースで最低得点を出した方に贈られる。 | C29: 20 | D29: pts | E29: 多数 | F29: －
A31: その他のタイトル | C31: Y1レコード | E31: 記録者・回
A32: 連続ヒット | B32: 期間中、連続して記録されたヒットの期間が最も長かった方に贈られる。 | C32: 6 | D32: 週
A33: 連続三振 | B33: 期間中、連続して記録された三振の期間が最も長かった方に贈られる。 | C33: 4 | D33: 週
A34: 連続ピンポイント（週数ベース） | B34: 期間中、連続して記録されたピンポイントの期間が最も長かった方に贈られる。 | C34: 9 | D34: 週 | E34: HiiMaさん
A35: 連続ピンポイント（本数ベース） | B35: 期間中、連続して記録されたピンポイントの数が最も多かった方に贈られる。 | C35: 10 | D35: pts | E35: HiiMaさん
A36: 連続複数ピンポイント（週数ベース） | B36: 期間中、連続して記録された複数ピンポイント（1回に2つ以上のPB）の数が最も多かった方に贈られる。 | C36: 2 | D36: 週 | E36: 多数
A37: 連勝 | B37: 期間中、連続して記録された勝利期間が最も長かった方に贈られる。 | C37: 3 | D37: 週
A38: 連敗 | B38: 期間中、連続して記録された敗北期間が最も長かった方に贈られる。 | C38: 3 | D38: 週
A39: 連続入賞 | B39: 期間中、連続して記録された入賞の期間が最も長かった方に贈られる。第6期以降のみ対象。 | D39: 週
A40: 連続圏外 | B40: 期間中、連続して記録された圏外の期間が最も長かった方に贈られる。第6期以降のみ対象。 | D40: 週
A41: 重盗／三重盗 | B41: 同一回に2つ以上の盗塁を記録した場合に贈られる。 | C41: －
A42: 最高盗塁ポイント（週間ベース） | B42: 期間中、週間ランキングで算出された盗塁ポイントのうち最も多かった方に贈られる。 | C42: 420 | D42: pts | E42: aruさん | F42: 19期2回
A43: 連続無三振（期間またぎ） | B43: 連続無三振記録を期初・期末で区切らずに集計。期間の最も長かった方に贈り、記録の途絶えた期の記録とする。 | C43: 48 | D43: 週 | E43: すいぶるさん | F43: 第17期
A44: 全員ヒット | B44: 開催回の参加者全員がヒットを記録した場合に記録認定。 | C44: 38 | D44: HIT
A45: 全員三振 | B45: 開催回の参加者全員が三振を記録した場合に記録認定。 | C45: 34 | D45: 三振 | E45: 15期2回
A46: 週間最多ピンポイント | B46: 開催期のピンポイント記録数を集計、最も多い回を記録とする。 | C46: 37 | D46: pts
A47: 週間最多ヒット | B47: 開催期のヒット記録数を集計、最も多い回を記録とする。 | C47: 37 | D47: HIT
A48: 週間最多三振 | B48: 開催期の三振記録数を集計、最も多い回を記録とする。 | C48: 34 | D48: 三振 | E48: 15期2回
A49: 週間最多盗塁成功 | B49: 開催期の盗塁成功数を集計、最も多い回を記録とする。 | C49: 12 | D49: 回

Sheet タイトル受賞者一覧
A1: タイトル一覧 | B1: 第1期 | D1: 第2期 | F1: 第3期 | H1: 第4期 | J1: 第5期 | L1: 第6期 | N1: 第7期 | P1: 第8期 | R1: 第9期 | T1: 第10期 | V1: 第11期 | X1: 第12期 | Z1: 第13期 | AB1: 第14期 | AD1: 第15期 | AF1: 第16期 | AH1: 第17期 | AJ1: 第18期 | AL1: 第19期 | AN1: 第20期 | AP1: 第21期 | AR1: 第22期
A2: 開催期間 | B2: 2000年上半期 | D2: 2000年下半期 | F2: 2001年上半期 | H2: 2001年下半期 | J2: 2002年上半期 | L2: 2002年下半期 | N2: 2003年上半期 | P2: 2003年下半期 | R2: 2004年上半期 | T2: 2004年下半期 | V2: 2005年上半期 | X2: 2005年下半期 | Z2: 2006年上半期 | AB2: 2006年下半期 | AD2: 2007年上半期 | AF2: 2007年下半期 | AH2: 2008年上半期 | AJ2: 2008年下半期 | AL2: 2009年上半期 | AN2: 2009年下半期 | AP2: 2010年上半期 | AR2: 2010年下半期
A3: 予想王対象タイトル
A4: 得点王 | B4: ラルさん | C4: 2789 | D4: 今師さん | E4: 2787 | F4: 予想王スタッフ | G4: 2756 | H4: HiiMaさん | I4: 3027 | J4: HiiMaさん | K4: 3073 | L4: HiiMaさん | M4: 3119 | X4: まいさん | Y4: 3462 | Z4: いでっくさん | AA4: 3349 | AB4: ディランドさん | AC4: 3409 | AD4: タナリンさん | AE4: 3373 | AF4: みったにさん | AG4: 3694 | AH4: ジェナスさん | AI4: 3526 | AJ4: すいぶるさん | AK4: 3522 | AL4: dbcaeさん | AM4: 3039 | AN4: ジェナスさん | AO4: 3711 | AP4: 系譜さん | AQ4: 3573
A5: 最高AVG | B5: てりーさん | C5: 108.3 | D5: 今師さん | E5: 107.2 | F5: R6さん | G5: 113.3 | H5: HiiMaさん | I5: 116.4 | J5: HiiMaさん | K5: 118.2 | L5: HiiMaさん | M5: 120 | X5: まいさん | Y5: 133.2 | Z5: ta-sanさん | AA5: 129.3 | AB5: ディランドさん | AC5: 131.1 | AD5: タナリンさん | AE5: 129.7 | AF5: みったにさん | AG5: 142.1 | AH5: ジェナスさん | AI5: 135.6 | AJ5: すいぶるさん | AK5: 135.5 | AL5: dbcaeさん | AM5: 116.9 | AN5: ジェナスさん | AO5: 142.7 | AP5: 系譜さん | AQ5: 137.42
A6: 最多勝 | B6: 刑事ポンさん | C6: 5 | D6: てりーさん | E6: 6 | F6: 予想王スタッフ | G6: 6 | H6: ろとーさん、NOVさん | I6: 4 | J6: ROTさん | K6: 4 | L6: GEKOさん、う～たんさん、SGさん | M6: 3 | X6: まいさん | Y6: 3 | Z6: みったにさん、う～たんさん | AA6: 3 | AB6: ディランドさん、カイザー鈴木さん | AC6: 3 | AD6: タナリンさん、ヤンダルさん | AE6: 3 | AF6: ディランドさん、ikeruさん、うにょさん | AG6: 3 | AH6: ta-sanさん、カイザー鈴木さん | AI6: 3 | AJ6: タナリンさん | AK6: 3 | AL6: dbcaeさん、ヤンダルさん、パルスさん、HiiMaさん、t-starsさん、 GEKOさん、aruさん | AM6: 2 | AN6: ジェナスさん | AO6: 4 | AP6: t-starsさん | AQ6: 4
A7: 最多ヒット | B7: ラルさん | C7: 10 | D7: 今師さん、ヤンダルさん | E7: 6 | F7: ヤンダルさん、予想王スタッフ | G7: 5 | H7: ラルさん、Sovath伯爵、タナリンさん | I7: 9 | J7: タナリンさん | K7: 10 | L7: ROToさん、タナリンさん、HiiMaさん、SGさん | M7: 8 | X7: いでっくさん、yuifanさん、系譜さん | Y7: 9 | Z7: ラルさん、う～たんさん | AA7: 11 | AB7: ディランドさん | AC7: 13 | AD7: タナリンさん | AE7: 13 | AF7: みったにさん | AG7: 14 | AH7: いでっくさん、すいぶるさん、ikeruさん、森の人さん、 サエグサさん、もんでんどんさん、GEKOさん、ナルクさん、 楽園さん、ジェナスさん、ラルさん | AI7: 10 | AJ7: ジェナスさん | AK7: 10 | AL7: カイザー鈴木さん、パルスさん、系譜さん、ナルクさん、 楽園さん | AM7: 7 | AN7: ミスター・ブシドーさん | AO7: 14 | AP7: dbcaeさん、ラル代表 | AQ7: 11
A8: 最優秀ERA | B8: ラルさん | C8: 4.23 | D8: 今師さん | E8: 4.81 | F8: ヤンダルさん | G8: 6.12 | H8: HiiMaさん | I8: 6 | J8: HiiMaさん | K8: 7.35 | L8: 精霊さん | M8: 11.83 | X8: いでっくさん | Y8: 9.73 | Z8: いでっくさん | AA8: 10.19 | AB8: タナリンさん | AC8: 11.15 | AD8: ディランドさん | AE8: 9.96 | AF8: ディランドさん | AG8: 10.81 | AH8: ジェナスさん | AI8: 13.31 | AJ8: すいぶるさん | AK8: 11.81 | AL8: dbcaeさん | AM8: 13.04 | AN8: ディランドさん | AO8: 12.93 | AP8: ラル代表 | AQ8: 10.96
A9: 盗塁王 | B9: Sovath伯爵、Cameiさん | C9: 150 | D9: てりーさん | E9: 270 | F9: R6さん | G9: 381 | H9: HiiMaさん | I9: 429 | J9: HiiMaさん | K9: 199 | L9: SGさん | M9: 384 | X9: みったにさん | Y9: 358 | Z9: ta-sanさん | AA9: 350 | AB9: 系譜さん | AC9: 342 | AD9: 楽園さん | AE9: 389 | AF9: みったにさん | AG9: 360 | AH9: ジャックSHOWさん | AI9: 380 | AJ9: aruさん | AK9: 420 | AL9: 系譜さん | AM9: 482 | AN9: ジェナスさん | AO9: 375 | AP9: もんでんどんさん | AQ9: 490
A10: ハイスコア | B10: てりーさん | C10: 280 | D10: HDBさん | E10: 219 | F10: 今師さん | G10: 265 | H10: HiiMaさん | I10: 248 | J10: う～たんさん | K10: 310 | L10: SGさん | M10: 408 | X10: みったにさん | Y10: 464 | Z10: ta-sanさん | AA10: 520 | AB10: ディランドさん、t-starsさん | AC10: 320 | AD10: aruさん | AE10: 440 | AF10: ディランドさん | AG10: 330 | AH10: ジャックSHOWさん | AI10: 509 | AJ10: aruさん | AK10: 469 | AL10: aruさん | AM10: 525 | AN10: ジェナスさん | AO10: 490 | AP10: 系譜さん | AQ10: 480
A11: 最多入賞（3着入賞回数） | B11: てりーさん、ラルさん | C11: 10 | D11: 今師さん | E11: 13 | F11: ヤンダルさん、予想王スタッフ | G11: 9 | H11: HiiMaさん | I11: 9 | J11: HiiMaさん | K11: 13 | L11: う～たんさん | M11: 10 | X11: まいさん | Y11: 11 | Z11: いでっくさん | AA11: 10 | AB11: 系譜さん | AC11: 10 | AD11: タナリンさん | AE11: 13 | AF11: ディランドさん | AG11: 12 | AH11: ジェナスさん | AI11: 11 | AJ11: タナリンさん、きたぼむさん | AK11: 9 | AL11: ジェナスさん、ヤンダルさん、パルスさん | AM11: 8 | AN11: ディランドさん | AO11: 10 | AP11: タナリンさん | AQ11: 10
A12: 一般認定タイトル
A13: 最多順位当て | B13: ラルさん | C13: 51 | D13: Cameiさん | E13: 38 | F13: ヤンダルさん | G13: 40 | H13: HiiMaさん | I13: 45 | J13: タナリンさん | K13: 44 | L13: HiiMaさん | M13: 46 | X13: yuifanさん | Y13: 54 | Z13: う～たんさん | AA13: 54 | AB13: ディランドさん | AC13: 50 | AD13: タナリンさん | AE13: 48 | AF13: みったにさん | AG13: 59 | AH13: すいぶるさん | AI13: 50 | AJ13: ジェナスさん | AK13: 53 | AL13: dbcaeさん | AM13: 42 | AN13: IKERUさん | AO13: 57 | AP13: ラル代表 | AQ13: 56
A14: 最多ピンポイント | B14: ラルさん | C14: 11 | D14: 今師さん | E14: 9 | F14: 予想王スタッフ | G14: 13 | H14: う～たんさん、予想王スタッフ | I14: 12 | J14: HiiMaさん | K14: 12 | L14: う～たんさん | M14: 10 | X14: もんでんどんさん | Y14: 18 | Z14: ディランドさん | AA14: 19 | AB14: Defiさん | AC14: 18 | AD14: ディランドさん、すいぶるさん | AE14: 18 | AF14: ディランドさん | AG14: 21 | AH14: ジェナスさん | AI14: 16 | AJ14: すいぶるさん | AK14: 16 | AL14: タナリンさん | AM14: 23 | AN14: 楽園さん | AO14: 20 | AP14: 系譜さん、IKERUさん、t-starsさん | AQ14: 15
A15: 最優秀ERA（補正値ベース） | B15: ラルさん | C15: 11.65 | D15: 今師さん | E15: 12.17 | F15: ヤンダルさん | G15: 13.33 | H15: HiiMaさん | I15: 12.54 | J15: HiiMaさん | K15: 11.13 | L15: 精霊さん | M15: 12.1 | X15: まいさん | Y15: 9.5 | Z15: いでっくさん | AA15: 9.37 | AB15: タナリンさん | AC15: 10.12 | AD15: ディランドさん | AE15: 8.82 | AF15: ディランドさん | AG15: 8.55 | AH15: ジェナスさん | AI15: 10.72 | AJ15: すいぶるさん | AK15: 9.96 | AL15: dbcaeさん | AM15: 11.34 | AN15: ディランドさん | AO15: 11.42 | AP15: ラル代表 | AQ15: 10.51
A16: 最多盗塁敢行 | B16: ROTさん | C16: 19 | D16: てりーさん | E16: 20 | F16: ROTさん、SHUKIOBIさん | G16: 15 | H16: HiiMaさん | I16: 13 | J16: HiiMaさん | K16: 11 | L16: HiiMaさん | M16: 12 | X16: aruさん | Y16: 18 | Z16: aruさん | AA16: 14 | AB16: HiiMaさん | AC16: 13 | AD16: aruさん | AE16: 16 | AH16: ボチョコさん | AI16: 11 | AJ16: きたぼむさん | AK16: 16 | AL16: aruさん | AM16: 16 | AN16: aruさん | AO16: 16 | AP16: ジェナスさん | AQ16: 10
A17: 最多盗塁成功 | B17: Sovath伯爵、刑事ポンさん、iceさん、てりーさん、Cameiさん | C17: 2 | D17: ラルさん | E17: 3 | F17: R6さん | G17: 5 | H17: HiiMaさん | I17: 5 | J17: HiiMaさん | K17: 4 | L17: ヤンダルさん、GEKOさん | M17: 6 | X17: タナリンさん | Y17: 5 | Z17: ボチョコさん、ディランドさん、ryo-kさん | AA17: 2 | AB17: 系譜さん | AC17: 4 | AD17: タナリンさん、HiiMaさん、GEKOさん、楽園さん | AE17: 2 | AH17: ジェナスさん | AI17: 2 | AJ17: きたぼむさん | AK17: 5 | AL17: HiiMaさん | AM17: 4 | AN17: dbcaeさん、ジェナスさん、HiiMaさん、森の人さん、Natit、 ディランドさん、楽園さん、らすこうさん、じいさん、ta-sanさん | AO17: 2 | AP17: もんでんどんさん | AQ17: 3
A18: 最優秀誤差本数 | B18: SSUZUKIさん （第24回「ハンター×ハンター ハンターの系譜」(GB)） | C18: 12 | D18: SHUKIOBIさん （第7回「SDガンダム Gジェネレーション-F」） | E18: 2 | F18: ラルさん （第20回「DQモンスターズ2 マルタの不思議な鍵・イルの旅立ち」） | G18: 5 | H18: ROTさん （第8回「Devil May Cry」） | I18: 32 | J18: 蟹好き （第3回「大乱闘！スマッシュブラザーズDX」） | K18: 40 | L18: ラムネさん、じいさん （第12回「真・三國無双2 猛将伝」） | M18: 37 | X18: ヤンダルさん、もんでんどんさん、vanblaesさん、まいさん （第24回 「マリオカートDS」） | Y18: 6 | Z18: タナリンさん （第4回 「新 鬼武者 Dawn of Dreams」） | AA18: 43 | AD18: 系譜さん （第6回、Wii Sports） | AE18: 4 | AH18: ナルクさん（第10回「大乱闘スマッシュブラザーズX」） | AI18: 41 | AJ18: みったにさん（第12回「リズム天国ゴールド」） | AK18: 32 | AL18: yuifanさん、伯爵豚野郎さん、HiiMaさん、ジェナスさん、 もんでんどんさん、ディランドさん （第18回「メイドイン俺」） | AM18: 28 | AN18: タナリンさん （第13回「実況パワフルプロ野球ポータブル4」） | AO18: 5 | AP18: みったにさん （第4回「ドラゴンクエストVI 幻の大地」(DS) ） | AQ18: 19
A19: 最優秀誤差率 | B19: SSUZUKIさん （第24回「ハンター×ハンター ハンターの系譜」(GB)） | C19: -0.00017 | D19: SHUKIOBIさん （第7回「SDガンダム Gジェネレーション-F」） | E19: 7.407956145e-05 | F19: ラルさん （第20回「DQモンスターズ2 マルタの不思議な鍵・イルの旅立ち」） | G19: -0.0002173440556 | H19: ROTさん （第8回「Devil May Cry」） | I19: 9.073689702e-05 | J19: ラル代表 （第21回「ワールドサッカーウイニングイレブン6」） | K19: -0.001542172486 | L19: nalkさん （第22回「ポケットモンスター ルビー／サファイア」） | M19: 0.000237520624 | AH19: ラルさん（第10回「龍が如く 見参！」） | AI19: 0.0006 | AJ19: ナルクさん（第6回「ファンタシースターポータブル」） | AK19: 0.0004 | AL19: yuifanさん、伯爵豚野郎さん、HiiMaさん、ジェナスさん、 もんでんどんさん、ディランドさん （第18回「メイドイン俺」） | AM19: 0.0004 | AN19: ヤンダルさん （第14回「ポケットモンスター ハートゴールド・ソウルシルバー」） | AO19: 8e-05 | AP19: みったにさん （第4回「ドラゴンクエストVI 幻の大地」(DS) ） | AQ19: 2e-05
A20: 連続無三振 | B20: ラルさん | C20: 19 | D20: Cameiさん、今師さん | E20: 11 | F20: ラルさん、今師さん | G20: 11 | H20: 予想王スタッフ | I20: 12 | J20: う～たんさん | K20: 19 | L20: TAKOさん | M20: 20 | V20: いでっくさん、真央さん | W20: 21 | X20: ケロロさん | Y20: 25 | Z20: いでっくさん、ディランドさん、ヤンダルさん、う～たんさん | AA20: 12 | AB20: タナリンさん | AC20: 25 | AD20: いでっくさん | AE20: 14 | AF20: みったにさん、ディランドさん、すいぶるさん | AG20: 26 | AH20: すいぶるさん、森の人さん | AI20: 20 | AJ20: ジェナスさん、いでっくさん、Natit | AK20: 26 | AL20: ヤンダルさん | AM20: 21 | AN20: カイザー鈴木さん | AO20: 23 | AP20: じいさん、森の人さん、もんでんどんさん、楽園さん、系譜さん、 パルスさん、vanblaesさん、ろとーさん、ラル代表、Natit | AQ20: 13
A21: 最優秀盗塁成功率 | B21: Sovath伯爵 | C21: 0.4 | D21: ヤンダルさん | E21: 0.5 | F21: NOVさん | G21: 0.429 | H21: 清べえさん | I21: 0.4 | J21: ら・フランスFC、タナリンさん | K21: 0.5 | L21: GEKOさん | M21: 0.6 | X21: ケロロさん、yuifanさん | Y21: 1 | Z21: ディランドさん | AA21: 0.667 | AB21: てぃるさん | AC21: 0.6 | AD21: タナリンさん | AE21: 0.5 | AF21: みったにさん | AG21: 0.429 | AH21: アントキの伯爵さん | AI21: 0.5 | AJ21: ディランドさん | AK21: 0.6 | AL21: HiiMaさん | AM21: 0.444 | AN21: 森の人さん、ミスター・ブシドーさん | AO21: 1 | AP21: ろとーさん | AQ21: 1
A22: 最優秀新作誤差率 | B22: （未選出） | D22: （未選出） | F22: （未選出） | H22: （未選出） | J22: （未選出） | L22: （未選出） | N22: （未選出） | P22: （未選出） | R22: （未選出） | T22: （未選出） | V22: （未選出） | X22: （未選出） | Z22: （未選出） | AB22: （未選出） | AD22: （未選出） | AF22: いでっくさん | AG22: 22.265 | AH22: ジェナスさん | AI22: 19.944 | AJ22: みったにさん | AK22: 18.708 | AL22: ジェナスさん | AM22: 20.717 | AN22: ジェナスさん | AO22: 14.854 | AP22: ジェナスさん | AQ22: 16.003
A23: 最優秀旧作誤差率 | B23: （未選出） | D23: （未選出） | F23: （未選出） | H23: （未選出） | J23: （未選出） | L23: （未選出） | N23: （未選出） | P23: （未選出） | R23: （未選出） | T23: （未選出） | V23: （未選出） | X23: （未選出） | Z23: （未選出） | AB23: （未選出） | AD23: （未選出） | AF23: タナリンさん | AG23: 20.3 | AH23: ジェナスさん | AI23: 19.931 | AJ23: タナリンさん | AK23: 21.837 | AL23: ジェナスさん | AM23: 24.512 | AN23: 楽園さん | AO23: 18.248 | AP23: タナリンさん | AQ23: 18.708
A24: 完全試合 | B24: てりーさん | C24: 1 | D24: （達成者無し） | F24: （達成者無し） | H24: （達成者無し） | J24: う～たんさん | K24: 1 | L24: 精霊さん | M24: 1 | X24: タナリンさん | Y24: 1 | Z24: （達成者無し） | AB24: ディランドさん、Defiさん、t-starsさん | AC24: 1 | AD24: ヤンダルさん、系譜さん | AE24: 1 | AF24: ぶんさん（第2回）、ディランドさん（第22回） | AG24: 1 | AH24: （達成者無し） | AJ24: すいぶるさん（第3回） | AK24: 1 | AL24: （達成者無し） | AN24: サエグサさん（第15回）、vanblaesさん（第22回） | AO24: 1 | AP24: みったにさん、ラル代表、ボチョコさん、系譜さん | AQ24: 1
A25: 新人王 | B25: （未選出） | D25: （未選出） | F25: （未選出） | H25: 清べえさん | J25: （情報無し） | L25: （情報無し） | X25: ディランドさん | Z25: にっちーさん | AB25: アルさん | AD25: すいぶるさん | AF25: ikeruさん | AH25: 1cupさん | AJ25: （該当者無し） | AL25: （該当者無し） | AN25: （該当者無し） | AP25: （該当者無し）
A26: MVP | B26: ラルさん | D26: 今師さん | F26: R6さん | H26: HiiMaさん | J26: HiiMaさん | L26: HiiMaさん | X26: まいさん | Z26: － | AB26: － | AD26: － | AF26: － | AH26: － | AJ26: － | AL26: － | AN26: － | AP26: －
A27: 優秀選手表彰 | B27: （未選出） | D27: （未選出） | F27: （未選出） | H27: （未選出） | J27: （未選出） | L27: （未選出） | N27: （未選出） | P27: （未選出） | R27: （未選出） | T27: （未選出） | V27: （未選出） | X27: － | Z27: ta-sanさん | AB27: Defiさん | AC27: 16 | AD27: ディランドさん | AE27: 22 | AF27: ディランドさん | AG27: 24 | AH27: ジャックSHOWさん | AI27: 13 | AJ27: ジェナスさん | AK27: 16 | AL27: タナリンさん | AM27: 13 | AN27: ディランドさん | AO27: 22 | AP27: ラル代表 | AQ27: 18
A28: 太字は敢闘賞受賞者 | Z28: ディランドさん | AB28: 系譜さん | AC28: 15 | AD28: ヤンダルさん | AE28: 15 | AF28: いでっくさん | AG28: 10 | AH28: 系譜さん | AI28: 9 | AJ28: aruさん | AK28: 14 | AL28: 系譜さん | AM28: 12 | AN28: ミスター・ブシドーさん | AO28: 11 | AP28: もんでんどんさん | AQ28: 17
Z29: う～たんさん | AB29: カイザー鈴木さん | AC29: 13 | AD29: 楽園さん | AE29: 13 | AF29: ぶんさん | AG29: 9 | AH29: みったにさん | AI29: 7 | AJ29: タナリンさん | AK29: 13 | AL29: aruさん | AM29: 10 | AN29: すいぶるさん | AO29: 9 | AP29: ジェナスさん | AQ29: 11
Z30: ヤンダルさん | AB30: タナリンさん | AC30: 10 | AD30: aruさん | AE30: 9 | AF30: すいぶるさん | AG30: 8 | AN30: サエグサさん | AO30: 7 | AP30: みったにさん | AQ30: 9
AN31: みったにさん | AO31: 6 | AP31: ボチョコさん | AQ31: 7
AN32: 楽園さん | AO32: 5
A34: 裏四冠タイトル
A35: 最多敗 | B35: SSUZUKIさん | C35: 7 | D35: ヤンダルさん、psycheさん、てりーさん | E35: 5 | F35: ろとーさん | G35: 5 | H35: う～たんさん | I35: 5 | J35: NOVさん、田楽さん、SGさん | K35: 3 | L35: 魔神ガーゼットさん | M35: 3 | AB35: aruさん | AC35: 6 | AD35: aruさん | AE35: 5 | AF35: ボチョコさん、ナルクさん、ナックさん、ta-sanさん | AG35: 3 | AH35: じいさん | AI35: 3 | AJ35: ボチョコさん | AK35: 6 | AL35: ta-sanさん | AM35: 4 | AN35: aruさん | AO35: 9 | AP35: ボチョコさん | AQ35: 4
A36: 最多三振 | B36: ROTさん、ヤンダルさん、う～たんさん、GEKOさん | C36: 4 | D36: ROTさん | E36: 8 | F36: 予想王スタッフ | G36: 7 | H36: ヤンダルさん | I36: 9 | J36: ヤンダルさん、田楽さん、清べえさん | K36: 6 | L36: らすこうさん | M36: 6 | AB36: 楽園さん、aruさん | AC36: 6 | AD36: t-starsさん | AE36: 9 | AF36: ナルクさん | AG36: 7 | AH36: 楽園さん | AI36: 7 | AJ36: きたぼむさん | AK36: 6 | AL36: じいさん | AM36: 10 | AN36: t-starsさん、ヤンダルさん、いでっくさん、サエグサさん、 aruさん、ろとーさん、Defiさん、う～たんさん、ラル代表 | AO36: 4 | AP36: ジェナスさん、カイザー鈴木さん、ボチョコさん | AQ36: 5
A37: 最多圏外 | B37: － | D37: － | F37: － | H37: － | J37: － | L37: 魔神ガーゼットさん、aruさん | M37: 3 | AB37: ボチョコさん | AC37: 9 | AD37: aruさん | AE37: 10 | AF37: ボチョコさん | AG37: 13 | AH37: じいさん | AI37: 12 | AJ37: aruさん | AK37: 11 | AL37: ta-sanさん | AM37: 11 | AN37: aruさん | AO37: 13 | AP37: ボチョコさん | AQ37: 7
A38: ロースコア | B38: ヤンダルさん、Cameiさん | C38: 24 | D38: ROTさん、今師さん、NOVさん、ラルさん、psycheさん、 タナリンさん、Cameiさん、ヤンダルさん | E38: 20 | F38: ROTさん | G38: 26 | H38: う～たんさん、清べえさん、Sovath伯爵、タナリンさん、 予想王スタッフ | I38: 30 | J38: ヤンダルさん | K38: 26 | L38: なりぼーさん | M38: 20 | AB38: GEKOさん | AC38: 21 | AD38: vanblaesさん、ryo-kさん、森の人さん | AE38: 20 | AF38: 楽園さん、t-starsさん、ナックさん、ボチョコさん | AG38: 20 | AH38: ナックさん | AI38: 20 | AJ38: ラル代表、ボチョコさん | AK38: 20 | AL38: う～たんさん、みったにさん、ta-sanさん、にっちーさん | AM38: 20 | AN38: にっちーさん | AO38: 28 | AP38: ta-sanさん、ボチョコさん | AQ38: 20
A39: その他のタイトル・記録
A40: 連続ヒット | B40: ラルさん | C40: 4 | D40: ヤンダルさん | E40: 3 | F40: NOVさん | G40: 3 | H40: ヤンダルさん、NOVさん、てりーさん、タナリンさん、 ルパン3世さん、清べえさん、予想王スタッフ | I40: 3 | J40: タナリンさん | K40: 6 | L40: HiiMaさん | M40: 5 | AB40: ディランドさん、yuifanさん、カイザー鈴木さん、にっちーさん、 nalkさん、Natit | AC40: 4 | AD40: タナリンさん（3回）、カイザー鈴木さん、HiiMaさん、 もんでんどんさん、みったにさん、ラルさん | AE40: 3 | AH40: アントキの伯爵さん、楽園さん、ta-sanさん | AI40: 4 | AJ40: みったにさん、ディランドさん、いでっくさん、タナリンさん、 vanblaesさん、すいぶるさん、にっちーさん、HiiMaさん、 ikeruさん、サエグサさん、う～たんさん | AK40: 3 | AL40: HiiMaさん、t-starsさん、ラル代表 | AM40: 3 | AN40: 森の人さん | AO40: 4
A41: 連続三振 | B41: NOVさん | C41: 2 | D41: ヤンダルさん | E41: 4 | F41: 予想王スタッフ | G41: 4 | H41: ヤンダルさん | I41: 4 | J41: ヤンダルさん、なりぼーさん、NOVさん、ROTさん、R6さん、 う～たんさん、楽園さん、清べえさん（2回）、蟹好き、SGさん、 マドロックさん（2回）、魔神ガーゼットさん、YSOスタッフ | K41: 2 | L41: ROToさん、ラル代表、GEKOさん、らすこうさん(2回)、 う～たんさん、SGさん、ら・フランスFCチーム、Atm0sph3reさん、じいさん、ラムネさん、uniuniさん、ケロロさん、kazunaさん、 aruさん、ブッフバルトさん | M41: 2 | AB41: みったにさん（2回）、カイザー鈴木さん、もんでんどんさん、 vanblaesさん、ろとーさん、スカイさん、系譜さん、Defiさん、 楽園さん（2回）、ryo-kさん、ナックさん、ラルさん(2回） | AC41: 2 | AD41: ryo-kさん | AE41: 3 | AH41: Defiさん、楽園さん、うえりさん | AI41: 3 | AJ41: う～たんさん、楽園さん | AK41: 2 | AL41: ボチョコさん、ろとーさん、GEKOさん | AM41: 4 | AN41: サエグサさん | AO41: 3
A42: 連続ピンポイント（週数ベース） | B42: ラルさん、今師さん、う～たんさん、Cameiさん | C42: 3 | D42: てりーさん、Cameiさん | E42: 3 | F42: 今師さん | G42: 6 | H42: Sovath伯爵 | I42: 5 | J42: ら・フランスFC、reookさん、YSOスタッフ | K42: 4 | AB42: カイザー鈴木さん | AC42: 5 | AD42: すいぶるさん | AE42: 9 | AH42: ジェナスさん | AI42: 7 | AJ42: 森の人さん | AK42: 6 | AL42: dbcaeさん | AM42: 6 | AN42: ナルクさん、vanblaesさん | AO42: 5
A43: 連続ピンポイント（本数ベース） | B43: ラルさん、てりーさん、GEKOさん | C43: 4 | D43: ヤンダルさん、てりーさん、Cameiさん | E43: 3 | F43: 今師さん | G43: 6 | H43: Sovath伯爵 | I43: 6 | J43: YSOスタッフ | K43: 5 | AB43: ディランドさん、ta-sanさん | AC43: 6 | AD43: すいぶるさん | AE43: 11 | AH43: ジェナスさん、カイザー鈴木さん | AI43: 8 | AJ43: 森の人さん、すいぶるさん | AK43: 7 | AL43: dbcaeさん、タナリンさん、森の人さん | AM43: 6 | AN43: ナルクさん、vanblaesさん、すいぶるさん | AO43: 6
A44: 連続複数ピンポイント（週数ベース） | B44: GEKOさん | C44: 2 | D44: （該当者無し） | F44: ラルさん | G44: 2 | H44: （該当者無し） | J44: （該当者無し） | AB44: ta-sanさん | AC44: 3 | AD44: （該当者無し） | AH44: （該当者無し） | AJ44: 伯爵のくせになまいきだor2氏、すいぶるさん | AK44: 2 | AL44: タナリンさん（2回）、森の人さん | AM44: 2 | AN44: すいぶるさん、GEKOさん | AO44: 2
A45: 連勝 | B45: （該当者無し） | D45: 今師さん、てりーさん | E45: 2 | F45: ヤンダルさん、予想王スタッフ | G45: 2 | H45: （該当者無し） | J45: ROTさん（2回）、HiiMaさん、タナリンさん、マドロックさん | K45: 2 | AB45: ヤンダルさん | AC45: 2 | AD45: （該当者無し） | AH45: dbcaeさん、うえりさん、サエグサさん | AI45: 2 | AJ45: タナリンさん、vanblaesさん、dbcaeさん | AK45: 2 | AL45: （該当者無し） | AN45: Natit | AO45: 2
A46: 連敗 | B46: ROTさん | C46: 3 | D46: てりーさん | E46: 3 | F46: ROTさん | G46: 2 | H46: SHUKIOBIさん、てりーさん、う～たんさん、タナリンさん | I46: 2 | J46: Defiさん | K46: 2 | AB46: aruさん | AC46: 2 | AD46: aruさん | AE46: 2 | AH46: アントキの伯爵さん | AI46: 2 | AJ46: Defiさん、aruさん | AK46: 2 | AL46: ta-sanさん | AM46: 2 | AN46: aruさん（2回） | AO46: 2
A47: 連続入賞 | B47: － | D47: － | F47: － | H47: － | J47: － | AL47: ジェナスさん、HiiMaさん | AM47: 4 | AN47: 森の人さん | AO47: 4
A48: 連続圏外 | B48: － | D48: － | F48: － | H48: － | J48: － | AL48: HiiMaさん | AM48: 3 | AN48: aruさん、GEKOさん | AO48: 3
A49: 重盗／三重盗 | B49: （該当者無し） | D49: （該当者無し） | F49: （該当者無し） | H49: （該当者無し） | J49: （該当者無し） | AB49: （該当者無し） | AD49: （該当者無し） | AF49: （該当者無し） | AH49: （該当者無し） | AJ49: （該当者無し） | AL49: aruさん | AM49: 2 | AN49: （該当者無し）
A50: 最高盗塁ポイント（週間ベース） | B50: iceさん | C50: 80 | D50: ラルさん、今師さん、てりーさん | E50: 120 | F50: R6さん、今師さん | G50: 140 | H50: HiiMaさん、NOVさん | I50: 130 | J50: Eugeneさん、YSOスタッフ | K50: 125 | L50: SGさん | M50: 260 | AB50: カイザー鈴木さん、系譜さん | AC50: 165 | AD50: aruさん | AE50: 350 | AH50: ジャックSHOWさん | AI50: 380 | AJ50: aruさん | AK50: 360 | AL50: aruさん | AM50: 420 | AN50: ジェナスさん | AO50: 340
A51: 連続無三振（期間またぎ） | B51: ラルさん | C51: 19 | D51: Cameiさん | E51: 27 | F51: NOVさん | G51: 15 | H51: 予想王スタッフ | I51: 12 | J51: GEKOさん、タナリンさん、HiiMaさん、マドロックさん、YSOスタッフ | K51: 18 | AB51: タナリンさん | AC51: 25 | AD51: いでっくさん（第16期に持ち越し） | AE51: 14 | AH51: すいぶるさん | AI51: 48 | AJ51: ジェナスさん（継続中） | AK51: 30 | AL51: ジェナスさん | AM51: 31 | AN51: カイザー鈴木さん | AO51: 25
A52: 全員ヒット | B52: （該当回無し） | D52: （該当回無し） | F52: （該当回無し） | H52: 第21回 | I52: 15 | J52: （該当回無し） | AB52: 第21回 | AC52: 35 | AD52: （該当回無し） | AF52: （該当回無し） | AH52: （該当回無し） | AJ52: （該当回無し） | AL52: 第22回 | AM52: 34 | AN52: （該当回無し） | AP52: 第17回、第18回 (29) | AQ52: 31
A53: 全員三振 | B53: （該当回無し） | D53: 第21回 | E53: 12 | F53: （該当回無し） | H53: （該当回無し） | J53: 第25回 | K53: 23 | AB53: （該当回無し） | AD53: 第2回 | AE53: 34 | AF53: （該当回無し） | AH53: （該当回無し） | AJ53: （該当回無し） | AL53: （該当回無し） | AN53: （該当回無し）
A54: 週間最多ピンポイント | B54: 第11回 | C54: 14 | D54: 第8回、第22回 | E54: 5 | F54: 第20回 | G54: 8 | H54: 第16回 | I54: 10 | J54: 第14回 | K54: 17 | AB54: 第6回 | AC54: 38 | AD54: 第4回、第16回 | AE54: 24 | AF54: 第15回 | AG54: 33 | AH54: 第10回 | AI54: 36 | AJ54: 第3回 | AK54: 34 | AL54: 第10回 | AM54: 32 | AN54: 第22回 | AO54: 30
A55: 週間最多ヒット | B55: 第21回 | C55: 10 | D55: 第8回 | E55: 10 | F55: 第9回 | G55: 12 | H55: 第21回 | I55: 15 | J55: 第10回 | K55: 17 | AB55: 第21回 | AC55: 35 | AD55: 第25回 | AE55: 28 | AF55: 第21回 | AG55: 28 | AH55: 第15回 | AI55: 38 | AJ55: 第11回 | AK55: 35 | AL55: 第22回 | AM55: 34 | AN55: 第2回 | AO55: 34
A56: 週間最多三振 | B56: 第20回 | C56: 6 | D56: 第21回 | E56: 12 | F56: 第11回 | G56: 13 | H56: 第24回 | I56: 14 | J56: 第25回 | K56: 23 | AB56: 第1回、第5回 | AC56: 25 | AD56: 第2回 | AE56: 34 | AF56: 第24回 | AG56: 19 | AH56: 第21回 | AI56: 28 | AJ56: 第6回 | AK56: 24 | AL56: 第2回、第4回、第24回 | AM56: 31 | AN56: 第8回 | AO56: 23
A57: 週間最多盗塁成功 | B57: 第9回、第15回 | C57: 4 | D57: 第17回 | E57: 4 | F57: 第15回、第17回、第24回 | G57: 4 | H57: 第5回、第15回 | I57: 5 | J57: 第26回 | K57: 6 | AB57: 第25回 | AC57: 11 | AD57: 第26回 | AE57: 5 | AF57: 第14回 | AG57: 7 | AH57: 第16回 | AI57: 7 | AJ57: 第16回 | AK57: 8 | AL57: 第4回、第10回 | AM57: 8 | AN57: 第4回、第13回 | AO57: 8

Sheet 受賞歴
A1: No. | B1: 登録名 | C1: 第1期 | D1: 第2期 | E1: 第3期 | F1: 第4期 | G1: 第5期 | H1: 第6期 | I1: 第7期 | J1: 第8期 | K1: 第9期 | L1: 第10期 | M1: 第11期 | N1: 第12期 | O1: 第13期 | P1: 第14期 | Q1: 第15期 | R1: 第16期 | S1: 第17期 | T1: 第18期 | U1: 第19期 | V1: 第20期 | W1: 第21期 | X1: 第22期
A2: 0 | B2: =VLOOKUP($A2,生涯個人成績!$A$3:$D$1006,2,FALSE) -> YSO-MC
A3: 1 | B3: =VLOOKUP($A3,生涯個人成績!$A$3:$D$1006,2,FALSE) -> ラルさん | S3: 最多ヒット 最優秀誤差率 | T3: ロースコア | U3: ロースコア
A4: 2 | B4: =VLOOKUP($A4,生涯個人成績!$A$3:$D$1006,2,FALSE) -> HAQ48 | S4: 最優秀盗塁成功率 連続ヒット 連敗 | T4: 連続複数PB（週ベース） | U4: 最優秀誤差本数 最優秀誤差率 ロースコア | V4: 最多ヒット（レコードタイ） 最優秀盗塁成功率（Rタイ）
A5: 3 | B5: =VLOOKUP($A5,生涯個人成績!$A$3:$D$1006,2,FALSE) -> ヤンダルさん | Q5: 優秀選手 最多勝 | U5: 連続無三振
A6: 4 | B6: =VLOOKUP($A6,生涯個人成績!$A$3:$D$1006,2,FALSE) -> 陣内閣竜さん
A7: 5 | B7: =VLOOKUP($A7,生涯個人成績!$A$3:$D$1006,2,FALSE) -> GEKOさん | Q7: 最多盗塁成功 | S7: 最多ヒット | U7: 連続三振（レコードタイ） | V7: 連続複数PB
A8: 6 | B8: =VLOOKUP($A8,生涯個人成績!$A$3:$D$1006,2,FALSE) -> なりぼーさん
A9: 7 | B9: =VLOOKUP($A9,生涯個人成績!$A$3:$D$1006,2,FALSE) -> NOVさん
A10: 8 | B10: =VLOOKUP($A10,生涯個人成績!$A$3:$D$1006,2,FALSE) -> ろとーさん | U10: 連続三振（レコードタイ）
A11: 9 | B11: =VLOOKUP($A11,生涯個人成績!$A$3:$D$1006,2,FALSE) -> HDBさん
A12: 10 | B12: =VLOOKUP($A12,生涯個人成績!$A$3:$D$1006,2,FALSE) -> カイザー鈴木さん | S12: 最多勝 連続PB（本数） | V12: 連続無三振 連続無三振（期間またぎ）
A13: 11 | B13: =VLOOKUP($A13,生涯個人成績!$A$3:$D$1006,2,FALSE) -> う～たんさん | T13: 連続ヒット 連続三振 | U13: ロースコア
A14: 12 | B14: =VLOOKUP($A14,生涯個人成績!$A$3:$D$1006,2,FALSE) -> iceさん
A15: 13 | B15: =VLOOKUP($A15,生涯個人成績!$A$3:$D$1006,2,FALSE) -> うにょさん | R15: 最多勝
A16: 14 | B16: =VLOOKUP($A16,生涯個人成績!$A$3:$D$1006,2,FALSE) -> リアル野比Ver2.0さん
A17: 15 | B17: =VLOOKUP($A17,生涯個人成績!$A$3:$D$1006,2,FALSE) -> タナリンさん | Q17: 得点王 最優秀AVG. 最多勝 最多ヒット 最多入賞 最多順位当て 最多盗塁成功 最優秀盗塁成功率 | R17: 最優秀旧作誤差率 | T17: 優秀選手 最多勝 最多入賞 最優秀旧作誤差率 連続ヒット 連勝 | U17: 敢闘賞 | V17: 最優秀誤差本数
A18: 16 | B18: =VLOOKUP($A18,生涯個人成績!$A$3:$D$1006,2,FALSE) -> R6さん
A19: 17 | B19: =VLOOKUP($A19,生涯個人成績!$A$3:$D$1006,2,FALSE) -> HiiMaさん | T19: 連続ヒット | U19: 最優秀誤差本数 最優秀誤差率 連続ヒット
A20: 18 | B20: =VLOOKUP($A20,生涯個人成績!$A$3:$D$1006,2,FALSE) -> 楽園さん | Q20: 優秀選手 | S20: 最多ヒット 最多三振 連続ヒット 連続三振 | T20: 連続三振 | U20: 連続ヒット
A21: 19 | B21: =VLOOKUP($A21,生涯個人成績!$A$3:$D$1006,2,FALSE) -> ルパン3世さん
A22: 20 | B22: =VLOOKUP($A22,生涯個人成績!$A$3:$D$1006,2,FALSE) -> Natit | T22: 連続無三振（レコード） | U22: 連続無三振（期間またぎ） | V22: 連勝 最多盗塁成功
A23: 21 | B23: =VLOOKUP($A23,生涯個人成績!$A$3:$D$1006,2,FALSE) -> 清べえさん
A24: 22 | B24: =VLOOKUP($A24,生涯個人成績!$A$3:$D$1006,2,FALSE) -> ラムネさん
A25: 23 | B25: =VLOOKUP($A25,生涯個人成績!$A$3:$D$1006,2,FALSE) -> なかやまさん
A26: 24 | B26: =VLOOKUP($A26,生涯個人成績!$A$3:$D$1006,2,FALSE) -> マドロックさん
A27: 25 | B27: =VLOOKUP($A27,生涯個人成績!$A$3:$D$1006,2,FALSE) -> らすこうさん
A28: 26 | B28: =VLOOKUP($A28,生涯個人成績!$A$3:$D$1006,2,FALSE) -> termtom2000さん
A29: 27 | B29: =VLOOKUP($A29,生涯個人成績!$A$3:$D$1006,2,FALSE) -> Defiさん | S29: 連続三振 | T29: 連敗
A30: 28 | B30: =VLOOKUP($A30,生涯個人成績!$A$3:$D$1006,2,FALSE) -> 魔神ガーゼットさん
A31: 29 | B31: =VLOOKUP($A31,生涯個人成績!$A$3:$D$1006,2,FALSE) -> reookさん
A32: 30 | B32: =VLOOKUP($A32,生涯個人成績!$A$3:$D$1006,2,FALSE) -> awoさん
A33: 31 | B33: =VLOOKUP($A33,生涯個人成績!$A$3:$D$1006,2,FALSE) -> uniuniさん
A34: 32 | B34: =VLOOKUP($A34,生涯個人成績!$A$3:$D$1006,2,FALSE) -> はぐさん
A35: 33 | B35: =VLOOKUP($A35,生涯個人成績!$A$3:$D$1006,2,FALSE) -> いでっくさん | R35: 最優秀新作誤差率 | S35: 最多ヒット | T35: 連続無三振（レコード） 連続ヒット | U35: 連続無三振（期間またぎ）
A36: 34 | B36: =VLOOKUP($A36,生涯個人成績!$A$3:$D$1006,2,FALSE) -> Atm0sph3reさん
A37: 35 | B37: =VLOOKUP($A37,生涯個人成績!$A$3:$D$1006,2,FALSE) -> じいさん | S37: 最多敗 最多圏外
A38: 36 | B38: =VLOOKUP($A38,生涯個人成績!$A$3:$D$1006,2,FALSE) -> 精霊さん
A39: 37 | B39: =VLOOKUP($A39,生涯個人成績!$A$3:$D$1006,2,FALSE) -> Eugeneさん
A40: 38 | B40: =VLOOKUP($A40,生涯個人成績!$A$3:$D$1006,2,FALSE) -> ゆーのさん
A41: 39 | B41: =VLOOKUP($A41,生涯個人成績!$A$3:$D$1006,2,FALSE) -> TAKOさん
A42: 40 | B42: =VLOOKUP($A42,生涯個人成績!$A$3:$D$1006,2,FALSE) -> ケロロさん
A43: 41 | B43: =VLOOKUP($A43,生涯個人成績!$A$3:$D$1006,2,FALSE) -> エグドラシル使いMさん
A44: 42 | B44: =VLOOKUP($A44,生涯個人成績!$A$3:$D$1006,2,FALSE) -> kazunaさん
A45: 43 | B45: =VLOOKUP($A45,生涯個人成績!$A$3:$D$1006,2,FALSE) -> ZERUさん
A46: 44 | B46: =VLOOKUP($A46,生涯個人成績!$A$3:$D$1006,2,FALSE) -> aruさん | Q46: 優秀選手 | T46: 盗塁王 ハイスコア 週間最高盗塁ポイント 最多圏外 連敗 | U46: 優秀選手 ハイスコア（レコード） 週間最高盗塁PT（レコード） 重盗 最多盗塁敢行 | V46: 最多盗塁敢行 最多敗（レコード） 最多三振 最多圏外 連敗（2回）
A47: 45 | B47: =VLOOKUP($A47,生涯個人成績!$A$3:$D$1006,2,FALSE) -> ナルクさん | R47: 最多三振 | S47: 最多ヒット 最優秀誤差本数 | T47: 最優秀誤差率
A48: 46 | B48: =VLOOKUP($A48,生涯個人成績!$A$3:$D$1006,2,FALSE) -> ブッフバルトさん
A49: 47 | B49: =VLOOKUP($A49,生涯個人成績!$A$3:$D$1006,2,FALSE) -> ボチョコさん | R49: 最多敗 最多圏外 | S49: 最多盗塁敢行 | T49: 最多敗 ロースコア | U49: 連続三振（レコードタイ）
A50: 48 | B50: =VLOOKUP($A50,生涯個人成績!$A$3:$D$1006,2,FALSE) -> 系譜さん | U50: 盗塁王（レコード） 優秀選手
A51: 49 | B51: =VLOOKUP($A51,生涯個人成績!$A$3:$D$1006,2,FALSE) -> vanblaesさん | T51: 連勝 連続ヒット
A52: 50 | B52: =VLOOKUP($A52,生涯個人成績!$A$3:$D$1006,2,FALSE) -> uwanさん
A53: 51 | B53: =VLOOKUP($A53,生涯個人成績!$A$3:$D$1006,2,FALSE) -> chukaiさん
A54: 52 | B54: =VLOOKUP($A54,生涯個人成績!$A$3:$D$1006,2,FALSE) -> zaozaoさん
A55: 53 | B55: =VLOOKUP($A55,生涯個人成績!$A$3:$D$1006,2,FALSE) -> みったにさん | R55: 得点王 盗塁王 最優秀AVG.（レコード） 最多ヒット（レコード） 最多順位当て（レコード） 最多盗塁成功 最優秀盗塁成功率 連続無三振（レコード） | T55: 優秀選手 最優秀誤差本数 最優秀新作誤差率（レコード） 連続ヒット | U55: ロースコア
A56: 54 | B56: =VLOOKUP($A56,生涯個人成績!$A$3:$D$1006,2,FALSE) -> yuifanさん | U56: 最優秀誤差本数 最優秀誤差率
A57: 55 | B57: =VLOOKUP($A57,生涯個人成績!$A$3:$D$1006,2,FALSE) -> 真央さん
A58: 56 | B58: =VLOOKUP($A58,生涯個人成績!$A$3:$D$1006,2,FALSE) -> 龍息さん
A59: 57 | B59: =VLOOKUP($A59,生涯個人成績!$A$3:$D$1006,2,FALSE) -> まいさん
A60: 58 | B60: =VLOOKUP($A60,生涯個人成績!$A$3:$D$1006,2,FALSE) -> Gahiggidyさん
A61: 59 | B61: =VLOOKUP($A61,生涯個人成績!$A$3:$D$1006,2,FALSE) -> ぱぴよんさん
A62: 60 | B62: =VLOOKUP($A62,生涯個人成績!$A$3:$D$1006,2,FALSE) -> nabeさん
A63: 61 | B63: =VLOOKUP($A63,生涯個人成績!$A$3:$D$1006,2,FALSE) -> 赤魔神儀さん
A64: 62 | B64: =VLOOKUP($A64,生涯個人成績!$A$3:$D$1006,2,FALSE) -> 信也さん
A65: 63 | B65: =VLOOKUP($A65,生涯個人成績!$A$3:$D$1006,2,FALSE) -> 大犬さん
A66: 64 | B66: =VLOOKUP($A66,生涯個人成績!$A$3:$D$1006,2,FALSE) -> ガストンさん
A67: 65 | B67: =VLOOKUP($A67,生涯個人成績!$A$3:$D$1006,2,FALSE) -> ポックスウイルスさん
A68: 66 | B68: =VLOOKUP($A68,生涯個人成績!$A$3:$D$1006,2,FALSE) -> arusuさん
A69: 67 | B69: =VLOOKUP($A69,生涯個人成績!$A$3:$D$1006,2,FALSE) -> 愚王さん
A70: 68 | B70: =VLOOKUP($A70,生涯個人成績!$A$3:$D$1006,2,FALSE) -> AKUさん
A71: 69 | B71: =VLOOKUP($A71,生涯個人成績!$A$3:$D$1006,2,FALSE) -> ジョージさん
A72: 70 | B72: =VLOOKUP($A72,生涯個人成績!$A$3:$D$1006,2,FALSE) -> T-Kさん
A73: 71 | B73: =VLOOKUP($A73,生涯個人成績!$A$3:$D$1006,2,FALSE) -> 智蔵さん
A74: 72 | B74: =VLOOKUP($A74,生涯個人成績!$A$3:$D$1006,2,FALSE) -> Libさん
A75: 73 | B75: =VLOOKUP($A75,生涯個人成績!$A$3:$D$1006,2,FALSE) -> 新人氏 さん
A76: 74 | B76: =VLOOKUP($A76,生涯個人成績!$A$3:$D$1006,2,FALSE) -> 迷予想人間さん
A77: 75 | B77: =VLOOKUP($A77,生涯個人成績!$A$3:$D$1006,2,FALSE) -> ゆーとぴあI企画 さん
A78: 76 | B78: =VLOOKUP($A78,生涯個人成績!$A$3:$D$1006,2,FALSE) -> リュウさん
A79: 77 | B79: =VLOOKUP($A79,生涯個人成績!$A$3:$D$1006,2,FALSE) -> 末魔導けんじ。 さん
A80: 78 | B80: =VLOOKUP($A80,生涯個人成績!$A$3:$D$1006,2,FALSE) -> くろおびさん
A81: 79 | B81: =VLOOKUP($A81,生涯個人成績!$A$3:$D$1006,2,FALSE) -> isaoさん
A82: 80 | B82: =VLOOKUP($A82,生涯個人成績!$A$3:$D$1006,2,FALSE) -> サンタさん
A83: 81 | B83: =VLOOKUP($A83,生涯個人成績!$A$3:$D$1006,2,FALSE) -> げ～り～さん
A84: 82 | B84: =VLOOKUP($A84,生涯個人成績!$A$3:$D$1006,2,FALSE) -> SEVENさん
A85: 83 | B85: =VLOOKUP($A85,生涯個人成績!$A$3:$D$1006,2,FALSE) -> ta-sanさん | S85: 最多勝 連続ヒット | U85: 連敗
A86: 84 | B86: =VLOOKUP($A86,生涯個人成績!$A$3:$D$1006,2,FALSE) -> t-starsさん
A87: 85 | B87: =VLOOKUP($A87,生涯個人成績!$A$3:$D$1006,2,FALSE) -> zeroさん
A88: 86 | B88: =VLOOKUP($A88,生涯個人成績!$A$3:$D$1006,2,FALSE) -> スカイさん
A89: 87 | B89: =VLOOKUP($A89,生涯個人成績!$A$3:$D$1006,2,FALSE) -> もんでんどんさん | S89: 最多ヒット | U89: 最優秀誤差本数 最優秀誤差率
A90: 88 | B90: =VLOOKUP($A90,生涯個人成績!$A$3:$D$1006,2,FALSE) -> 三村風味さん
A91: 89 | B91: =VLOOKUP($A91,生涯個人成績!$A$3:$D$1006,2,FALSE) -> Z-Kさん
A92: 90 | B92: =VLOOKUP($A92,生涯個人成績!$A$3:$D$1006,2,FALSE) -> ディランドさん | N92: 新人王 | O92: 最多ピンポイント 最多盗塁成功 連続無三振 | P92: 得点王 最高AVG. 最多勝 最多ヒット ハイスコア 最多順位当て 完全試合（1） | Q92: 敢闘賞 最優秀防御率 最多ピンポイント 最優秀防御率（補正）（レコード） | R92: 最多勝 最優秀防御率 ハイスコア 最多入賞 最多ピンポイント（レコード） 最優秀防御率（補正値）（Rec） 連続無三振（レコード） 完全試合（2） | U92: 最優秀誤差本数 最優秀誤差率
A93: 91 | B93: =VLOOKUP($A93,生涯個人成績!$A$3:$D$1006,2,FALSE) -> 例文さん
A94: 92 | B94: =VLOOKUP($A94,生涯個人成績!$A$3:$D$1006,2,FALSE) -> ryo-kさん
A95: 93 | B95: =VLOOKUP($A95,生涯個人成績!$A$3:$D$1006,2,FALSE) -> 「PSP完全攻略情報」管理人さん
A96: 94 | B96: =VLOOKUP($A96,生涯個人成績!$A$3:$D$1006,2,FALSE) -> サエグサさん | S96: 最多ヒット 連勝 | T96: 連続ヒット
A97: 95 | B97: =VLOOKUP($A97,生涯個人成績!$A$3:$D$1006,2,FALSE) -> にっちーさん | O97: 新人王 | T97: 連続ヒット | V97: ロースコア
A98: 96 | B98: =VLOOKUP($A98,生涯個人成績!$A$3:$D$1006,2,FALSE) -> ナックさん | S98: ロースコア
A99: 97 | B99: =VLOOKUP($A99,生涯個人成績!$A$3:$D$1006,2,FALSE) -> アルさん | P99: 新人王
A100: 98 | B100: =VLOOKUP($A100,生涯個人成績!$A$3:$D$1006,2,FALSE) -> どらすけさん
A101: 99 | B101: =VLOOKUP($A101,生涯個人成績!$A$3:$D$1006,2,FALSE) -> autoさん
A102: 100 | B102: =VLOOKUP($A102,生涯個人成績!$A$3:$D$1006,2,FALSE) -> dbcaeさん | S102: 連勝 | T102: 連勝 | U102: 得点王 最高AVG 最多勝 最優秀防御率 最多順位当て 最優秀防御率（補正値）
A103: 101 | B103: =VLOOKUP($A103,生涯個人成績!$A$3:$D$1006,2,FALSE) -> てぃるさん
A104: 102 | B104: =VLOOKUP($A104,生涯個人成績!$A$3:$D$1006,2,FALSE) -> よーいちさん
A105: 103 | B105: =VLOOKUP($A105,生涯個人成績!$A$3:$D$1006,2,FALSE) -> ナマイキさん
A106: 104 | B106: =VLOOKUP($A106,生涯個人成績!$A$3:$D$1006,2,FALSE) -> 森の人さん | S106: 最多ヒット 連続無三振 | T106: 連続ピンポイント（週数・本数） | V106: 連続ヒット 連続入賞
A107: 105 | B107: =VLOOKUP($A107,生涯個人成績!$A$3:$D$1006,2,FALSE) -> ぶんさん | R107: 完全試合（1）
A108: 106 | B108: =VLOOKUP($A108,生涯個人成績!$A$3:$D$1006,2,FALSE) -> すいぶるさん | Q108: 新人王 | R108: 連続無三振（レコード） | S108: 最多ヒット 連続無三振 最多順位当て 連続無三振（期間またぎ・Rec） | T108: 完全試合（1） 得点王 最高AVG 最優秀防御率 最多ピンポイント 最優秀防御率（補正値） 連続ヒット 連続ピンポイント（本数ベース） 連続複数PB
A109: 107 | B109: =VLOOKUP($A109,生涯個人成績!$A$3:$D$1006,2,FALSE) -> うえりさん | S109: 連勝
A110: 108 | B110: =VLOOKUP($A110,生涯個人成績!$A$3:$D$1006,2,FALSE) -> きたぼむさん | S110: 敢闘賞 盗塁王 ハイスコア 最高盗塁ポイント | T110: 最多盗塁敢行 最多盗塁成功 最多三振
A111: 109 | B111: =VLOOKUP($A111,生涯個人成績!$A$3:$D$1006,2,FALSE) -> おとろまさん
A112: 110 | B112: =VLOOKUP($A112,生涯個人成績!$A$3:$D$1006,2,FALSE) -> IKERUさん | R112: 新人王 最多勝 | S112: 最多ヒット | T112: 連続ヒット
A113: 111 | B113: =VLOOKUP($A113,生涯個人成績!$A$3:$D$1006,2,FALSE) -> ジェナスさん | S113: 得点王 最高AVG 最多ヒット 最優秀防御率 最優秀防御率（補正値） 最多入賞 最多PB 最多盗塁成功 最優秀新作誤差率（レコード） 最優秀旧作誤差率 連続PB（週数・本数） | T113: 敢闘賞 最多ヒット 最多順位当て 連続無三振（レコード） | U113: 最優秀誤差本数 最優秀誤差率 連続無三振（期間またぎ） ロースコア | V113: 得点王（レコード） 最高AVG（レコード） 盗塁王 最多勝 ハイスコア 最優秀新作誤差率（レコード） 最多盗塁成功
A114: 112 | B114: =VLOOKUP($A114,生涯個人成績!$A$3:$D$1006,2,FALSE) -> パルスさん
A115: 113 | B115: =VLOOKUP($A115,生涯個人成績!$A$3:$D$1006,2,FALSE) -> レプルさん
A116: 114 | B116: =VLOOKUP($A116,生涯個人成績!$A$3:$D$1006,2,FALSE) -> ますさん
A117: 115 | B117: =VLOOKUP($A117,生涯個人成績!$A$3:$D$1006,2,FALSE) -> 1cupさん | S117: 新人王
A118: 116 | B118: =VLOOKUP($A118,生涯個人成績!$A$3:$D$1006,2,FALSE) -> ＮＯＢＵさん
A119: 117 | B119: =VLOOKUP($A119,生涯個人成績!$A$3:$D$1006,2,FALSE) -> セイランさん
A120: 118 | B120: =VLOOKUP($A120,生涯個人成績!$A$3:$D$1006,2,FALSE) -> Memorinさん
A121: 119
A122: 120

Sheet 歴代ハイスコア
A1: 総ポイント（盗塁ポイントを含む）が200点以上が対象。
A3: 順位A | B3: 順位B | C3: 期順 | D3: 期 | E3: 回 | F3: No. | G3: ID | H3: 登録名（当時） | I3: 総ポイント | J3: 除盗塁点 | K3: 盗塁pts | L3: コメント・備考
A4: =RANK(I4,I$4:I$999,0) -> 130 | B4: =RANK(J4,J$4:J$999,0) -> 116 | D4: 1 | E4: 5 | F4: 0 | G4: =D4*1000+F4 -> 1000 | H4: =VLOOKUP(F4,第1期個人成績!$A$3:$B$100,2,FALSE) -> 亀井（仮名） | I4: 220 | J4: =I4-K4 -> 170 | K4: 50
A5: =RANK(I5,I$4:I$999,0) -> 135 | B5: =RANK(J5,J$4:J$999,0) -> 121 | D5: 1 | E5: 5 | F5: 2 | G5: 1002 | H5: Sovathさん | I5: 219 | J5: =I5-K5 -> 169 | K5: 50
A6: 191 | B6: 108 | D6: 1 | E6: 9 | F6: 12 | G6: 1012 | H6: iceさん | I6: 205 | J6: 175 | K6: 30
A7: 51 | B7: 17 | D7: 1 | E7: 11 | F7: 13 | G7: 1013 | H7: てりーさん | I7: 280 | J7: 280 | K7: 0 | L7: 「Y1」史上初の完全試合を達成。
A8: 178 | B8: 38 | D8: 1 | E8: 11 | F8: 1 | G8: 1001 | H8: ラルさん | I8: 206 | J8: 206 | K8: 0
A9: 219 | B9: 71 | D9: 1 | E9: 11 | F9: 11 | G9: 1011 | H9: う～たんさん | I9: 202 | J9: 202 | K9: 0
A10: 174 | B10: 127 | D10: 2 | E10: 1 | F10: 10 | G10: 2010 | H10: 今師さん | I10: 207 | J10: 167 | K10: 40
A11: 191 | B11: 228 | D11: 2 | E11: 4 | F11: 10 | G11: 2010 | H11: 今師さん | I11: 205 | J11: 85 | K11: 120
A12: 135 | B12: 138 | D12: 2 | E12: 5 | F12: 9 | G12: 2009 | H12: HDBさん | I12: 219 | J12: 159 | K12: 60
A13: 204 | B13: 230 | D13: 2 | E13: 26 | F13: 13 | G13: 2013 | H13: てりーさん | I13: 204 | J13: 84 | K13: 120
A14: 121 | B14: 223 | D14: 3 | E14: 5 | F14: 16 | G14: 3016 | H14: R6さん | I14: 224 | J14: 94 | K14: 130
A15: 67 | B15: 196 | D15: 3 | E15: 10 | F15: 16 | G15: 3016 | H15: R6さん | I15: 259 | J15: 119 | K15: 140
A16: 113 | B16: 87 | D16: 3 | E16: 15 | F16: 0 | G16: 3000 | H16: 予想王スタッフ | I16: 228 | J16: 193 | K16: 35
A17: 165 | B17: 176 | D17: 3 | E17: 19 | F17: 0 | G17: 3000 | H17: 予想王スタッフ | I17: 210 | J17: 140 | K17: 70
A18: 144 | B18: 166 | D18: 3 | E18: 21 | F18: 8 | G18: 3008 | H18: ROTさん | I18: 215 | J18: 145 | K18: 70
A19: 141 | B19: 164 | D19: 3 | E19: 21 | F19: 18 | G19: 3018 | H19: 田楽さん | I19: 216 | J19: 146 | K19: 70
A20: 62 | B20: 193 | D20: 3 | E20: 23 | F20: 10 | G20: 3010 | H20: 今師さん | I20: 265 | J20: 125 | K20: 140
A21: 117 | B21: 200 | D21: 3 | E21: 26 | F21: 5 | G21: 3005 | H21: SHUKIOBIさん | I21: 226 | J21: 114 | K21: 112
A22: 83 | B22: 198 | D22: 4 | E22: 6 | F22: 17 | G22: 4017 | H22: HiiMaさん | I22: 248 | J22: 118 | K22: 130
A23: 178 | B23: 235 | D23: 4 | E23: 26 | F23: 7 | G23: 4007 | H23: NOVさん | I23: 206 | J23: 76 | K23: 130
A24: 47 | B24: 193 | D24: 5 | E24: 4 | F24: 8 | G24: 5008 | H24: ROTさん | I24: 285 | J24: 125 | K24: 160
A25: 78 | B25: 153 | D25: 5 | E25: 8 | F25: 17 | G25: 5017 | H25: HiiMaさん | I25: 250 | J25: 150 | K25: 100
A26: 104 | B26: 185 | D26: 5 | E26: 8 | F26: 20 | G26: 5020 | H26: 蟹好き | I26: 233 | J26: 133 | K26: 100
A27: 37 | B27: 11 | D27: 5 | E27: 14 | F27: 11 | G27: 5011 | H27: う～たんさん | I27: 310 | J27: 310 | K27: 0 | L27: 「Y1」史上2度目の完全試合を達成。
A28: 119 | B28: 216 | D28: 5 | E28: 20 | F28: 37 | G28: 5037 | H28: Eugeneさん | I28: 225 | J28: 100 | K28: 125
A29: 52 | B29: 147 | D29: 5 | E29: 20 | F29: 0 | G29: 5000 | H29: YSOスタッフ | I29: 278 | J29: 153 | K29: 125
A30: 213 | B30: 218 | D30: 6 | E30: 1 | F30: 5 | G30: 6005 | H30: GEKOさん | I30: 203 | J30: 99 | K30: 104
A31: 213 | B31: 218 | D31: 6 | E31: 1 | F31: 20 | G31: 6020 | H31: Natit | I31: 203 | J31: 99 | K31: 104
A32: 16 | B32: 155 | D32: 6 | E32: 2 | F32: 27 | G32: 6027 | H32: SGさん | I32: 408 | J32: 148 | K32: 260 | L32: 「Y1」初の400ポイント台乗せ。
A33: 219 | B33: 71 | D33: 6 | E33: 5 | F33: 5 | G33: 6005 | H33: GEKOさん | I33: 202 | J33: 202 | K33: 0
A34: 42 | B34: 16 | D34: 6 | E34: 7 | F34: 36 | G34: 6036 | H34: 精霊さん | I34: 300 | J34: 300 | K34: 0 | L34: 「Y1」史上3度目の完全試合を達成。
A35: 72 | B35: 203 | D35: 6 | E35: 8 | F35: 5 | G35: 6005 | H35: GEKOさん | I35: 255 | J35: 111 | K35: 144 | L35: 「Y1」初の重盗を記録。
A36: 72 | B36: 96 | D36: 6 | E36: 12 | F36: 17 | G36: 6017 | H36: HiiMaさん | I36: 255 | J36: 182 | K36: 73
A37: 130 | B37: 124 | D37: 6 | E37: 20 | F37: 41 | G37: 6041 | H37: エグドラシル使いMさん | I37: 220 | J37: 168 | K37: 52
A38: 145 | B38: 19 | D38: 6 | E38: 21 | F38: 44 | G38: 6044 | H38: aruさん | I38: 214 | J38: 214 | K38: 0
A39: 174 | B39: 36 | D39: 6 | E39: 21 | F39: 2 | G39: 6002 | H39: ら・フランスFC | I39: 207 | J39: 207 | K39: 0
A40: 219 | B40: 71 | D40: 6 | E40: 21 | F40: 5 | G40: 6005 | H40: GEKOさん | I40: 202 | J40: 202 | K40: 0
A41: 219 | B41: 71 | D41: 7 | E41: 5 | F41: 38 | G41: 7038 | H41: ゆーのさん | I41: 202 | J41: 202 | K41: 0
A42: 227 | B42: 78 | D42: 7 | E42: 8 | F42: 33 | G42: 7033 | H42: いでっくさん | I42: 201 | J42: 201 | K42: 0
A43: 204 | B43: 59 | D43: 7 | E43: 8 | F43: 46 | G43: 7046 | H43: ブッフバルトさん | I43: 204 | J43: 204 | K43: 0
A44: 69 | B44: 213 | D44: 7 | E44: 12 | F44: 3 | G44: 7003 | H44: ヤンダルさん | I44: 258 | J44: 102 | K44: 156
A45: 91 | B45: 228 | D45: 7 | E45: 12 | F45: 5 | G45: 7005 | H45: GEKOさん | I45: 241 | J45: 85 | K45: 156
A46: 37 | B46: 11 | D46: 7 | E46: 16 | F46: 45 | G46: 7045 | H46: nalkさん | I46: 310 | J46: 310 | K46: 0 | L46: 「Y1」史上4度目の完全試合。
A47: 98 | B47: 103 | D47: 7 | E47: 17 | F47: 15 | G47: 7015 | H47: タナリンさん | I47: 237 | J47: 177 | K47: 60
A48: 98 | B48: 103 | D48: 7 | E48: 17 | F48: 17 | G48: 7017 | H48: HiiMaさん | I48: 237 | J48: 177 | K48: 60
A49: 125 | B49: 139 | D49: 7 | E49: 18 | F49: 59 | G49: 7059 | H49: ぱぴよんさん | I49: 222 | J49: 157 | K49: 65
A50: 178 | B50: 38 | D50: 7 | E50: 22 | F50: 49 | G50: 7049 | H50: vanblaesさん | I50: 206 | J50: 206 | K50: 0
A51: 11 | B51: 221 | D51: 8 | E51: 3 | F51: 70 | G51: 8070 | H51: T-Kさん | I51: 457 | J51: 97 | K51: 360 | L51: 単独盗塁で史上初の盗塁ポイント300超。
A52: 204 | B52: 59 | D52: 8 | E52: 9 | F52: 54 | G52: 8054 | H52: yuifanさん | I52: 204 | J52: 204 | K52: 0
A53: 159 | B53: 28 | D53: 8 | E53: 10 | F53: 18 | G53: 8018 | H53: 田楽さん | I53: 211 | J53: 211 | K53: 0
A54: 7 | B54: 177 | D54: 8 | E54: 13 | F54: 48 | G54: 8048 | H54: 系譜さん | I54: 478 | J54: 138 | K54: 340 | L54: 史上3度目の400ポイント台。
A55: 157 | B55: 26 | D55: 8 | E55: 21 | F55: 57 | G55: 8057 | H55: ふみやさん | I55: 212 | J55: 212 | K55: 0
A56: 191 | B56: 48 | D56: 8 | E56: 23 | F56: 35 | G56: 8035 | H56: じいさん | I56: 205 | J56: 205 | K56: 0
A57: 71 | B57: 233 | D57: 9 | E57: 2 | F57: 25 | G57: 9025 | H57: らすこうさん | I57: 256 | J57: 81 | K57: 175
A58: 21 | B58: 98 | D58: 9 | E58: 2 | F58: 69 | G58: 9069 | H58: ジョージさん | I58: 355 | J58: 180 | K58: 175
A59: 235 | B59: 83 | D59: 9 | E59: 6 | F59: 17 | G59: 9017 | H59: HiiMaさん | I59: 200 | J59: 200 | K59: 0
A60: 178 | B60: 38 | D60: 9 | E60: 8 | F60: 27 | G60: 9027 | H60: Defiさん | I60: 206 | J60: 206 | K60: 0
A61: 76 | B61: 130 | D61: 9 | E61: 11 | F61: 43 | G61: 9043 | H61: ZERUさん | I61: 254 | J61: 166 | K61: 88
A62: 86 | B62: 139 | D62: 9 | E62: 11 | F62: 48 | G62: 9048 | H62: 系譜さん | I62: 245 | J62: 157 | K62: 88
A63: 80 | B63: 187 | D63: 9 | E63: 13 | F63: 47 | G63: 9047 | H63: ボチョコさん | I63: 249 | J63: 132 | K63: 117
A64: 101 | B64: 196 | D64: 9 | E64: 13 | F64: 53 | G64: 9053 | H64: みったにさん | I64: 236 | J64: 119 | K64: 117
A65: 135 | B65: 213 | D65: 9 | E65: 13 | F65: 5 | G65: 9005 | H65: GEKOさん | I65: 219 | J65: 102 | K65: 117
A66: 123 | B66: 177 | D66: 9 | E66: 17 | F66: 57 | G66: 9057 | H66: ふみやさん | I66: 223 | J66: 138 | K66: 85
A67: 110 | B67: 170 | D67: 9 | E67: 17 | F67: 78 | G67: =D67*1000+F67 -> 9078 | H67: くろおびさん | I67: 229 | J67: 144 | K67: 85
A68: 13 | B68: 226 | D68: 9 | E68: 21 | F68: 44 | G68: 9044 | H68: aruさん | I68: 428 | J68: 88 | K68: 340 | L68: 史上4度目の400ポイント台。
A69: =RANK(I69,I$4:I$999,0) -> 29 | B69: =RANK(J69,J$4:J$999,0) -> 4 | D69: 9 | E69: 22 | F69: 11 | G69: 9011 | H69: う～たんさん | I69: 320 | J69: =I69-K69 -> 320 | K69: 0 | L69: 「Y1」史上5度目、同一参加者では2回目の完全試合。
A70: 170 | B70: 33 | D70: 9 | E70: 26 | F70: 0 | G70: 9000 | H70: YSO-MC | I70: 209 | J70: 209 | K70: 0
A71: 204 | B71: 59 | D71: 9 | E71: 26 | F71: 5 | G71: 9005 | H71: GEKOさん | I71: 204 | J71: 204 | K71: 0
A72: 130 | B72: 226 | D72: 10 | E72: 2 | F72: 46 | G72: 10046 | H72: ブッフバルトさん | I72: 220 | J72: 88 | K72: 132
A73: 55 | B73: 208 | D73: 10 | E73: 2 | F73: 0 | G73: 10000 | H73: YSO-MC | I73: 271 | J73: 106 | K73: 165
A74: 50 | B74: 113 | D74: 10 | E74: 3 | F74: 15 | G74: 10015 | H74: タナリンさん | I74: 281 | J74: 171 | K74: 110
A75: 47 | B75: 108 | D75: 10 | E75: 3 | F75: 48 | G75: 10048 | H75: 系譜さん | I75: 285 | J75: 175 | K75: 110
A76: 178 | B76: 222 | D76: 10 | E76: 3 | F76: 83 | G76: 10083 | H76: takumaさん | I76: 206 | J76: 96 | K76: 110
A77: 178 | B77: 38 | D77: 10 | E77: 4 | F77: 48 | G77: 10048 | H77: 系譜さん | I77: 206 | J77: 206 | K77: 0
A78: 19 | B78: 59 | D78: 10 | E78: 6 | F78: 43 | G78: 10043 | H78: ZERUさん | I78: 389 | J78: 204 | K78: 185 | L78: 盗塁成功ながら、通常点でも200pts超。
A79: 20 | B79: 94 | D79: 10 | E79: 6 | F79: 83 | G79: 10083 | H79: takumaさん | I79: 368 | J79: 183 | K79: 185
A80: 6 | B80: 172 | D80: 10 | E80: 7 | F80: 57 | G80: 10057 | H80: ふみやさん | I80: 483 | J80: 143 | K80: 340 | L80: 「Y1」史上最高得点を更新。
A81: 204 | B81: 59 | D81: 10 | E81: 8 | F81: 2 | G81: 10002 | H81: 空と伯爵さん | I81: 204 | J81: 204 | K81: 0
A82: 191 | B82: 48 | D82: 10 | E82: 8 | F82: 47 | G82: 10047 | H82: ボチョコさん | I82: 205 | J82: 205 | K82: 0
A83: 213 | B83: 68 | D83: 10 | E83: 8 | F83: 55 | G83: 10055 | H83: 真央さん | I83: 203 | J83: 203 | K83: 0
A84: 178 | B84: 38 | D84: 10 | E84: 8 | F84: 0 | G84: 10000 | H84: YSO-MC | I84: 206 | J84: 206 | K84: 0
A85: 178 | B85: 38 | D85: 10 | E85: 11 | F85: 44 | G85: 10044 | H85: aruさん | I85: 206 | J85: 206 | K85: 0
A86: 141 | B86: 18 | D86: 10 | E86: 12 | F86: 8 | G86: 10008 | H86: ロトーさん | I86: 216 | J86: 216 | K86: 0 | L86: 完全試合、盗塁成功を除いた中で最高得点。
A87: 145 | B87: 19 | D87: 10 | E87: 12 | F87: 1 | G87: 10001 | H87: ラルさん | I87: 214 | J87: 214 | K87: 0 | L87: この回、盗塁成功者なしにも関わらず、史上最多の11人が200pts超。
A88: 149 | B88: 23 | D88: 10 | E88: 12 | F88: 5 | G88: 10005 | H88: GEKOさん | I88: 213 | J88: 213 | K88: 0
A89: 145 | B89: 19 | D89: 10 | E89: 12 | F89: 15 | G89: 10015 | H89: タナリンさん | I89: 214 | J89: 214 | K89: 0
A90: 165 | B90: 31 | D90: 10 | E90: 12 | F90: 35 | G90: 10035 | H90: じいさん | I90: 210 | J90: 210 | K90: 0
A91: 174 | B91: 36 | D91: 10 | E91: 12 | F91: 44 | G91: 10044 | H91: aruさん | I91: 207 | J91: 207 | K91: 0
A92: 157 | B92: 26 | D92: 10 | E92: 12 | F92: 57 | G92: 10057 | H92: ふみやさん | I92: 212 | J92: 212 | K92: 0
A93: 149 | B93: 23 | D93: 10 | E93: 12 | F93: 54 | G93: 10054 | H93: yuifanさん | I93: 213 | J93: 213 | K93: 0
A94: 191 | B94: 48 | D94: 10 | E94: 12 | F94: 33 | G94: 10033 | H94: いでっくさん | I94: 205 | J94: 205 | K94: 0
A95: 178 | B95: 38 | D95: 10 | E95: 12 | F95: 27 | G95: 10027 | H95: Defiさん | I95: 206 | J95: 206 | K95: 0
A96: 159 | B96: 28 | D96: 10 | E96: 12 | F96: 53 | G96: 10053 | H96: みったにさん | I96: 211 | J96: 211 | K96: 0
A97: 95 | B97: 85 | D97: 10 | E97: 13 | F97: 2 | G97: 10002 | H97: 空と伯爵さん | I97: 239 | J97: 196 | K97: 43
A98: 138 | B98: 108 | D98: 10 | E98: 13 | F98: 5 | G98: 10005 | H98: GEKOさん | I98: 218 | J98: 175 | K98: 43
A99: 110 | B99: 91 | D99: 10 | E99: 13 | F99: 45 | G99: 10045 | H99: nalkさん | I99: 229 | J99: 186 | K99: 43
A100: 159 | B100: 124 | D100: 10 | E100: 13 | F100: 40 | G100: 10040 | H100: ケロロさん | I100: 211 | J100: 168 | K100: 43
A101: 149 | B101: 116 | D101: 10 | E101: 13 | F101: 0 | G101: 10000 | H101: YSO-MC | I101: 213 | J101: 170 | K101: 43
A102: 15 | B102: 210 | D102: 10 | E102: 16 | F102: 87 | G102: 10087 | H102: もんでんどんさん | I102: 415 | J102: 105 | K102: 310 | L102: 史上6回目の400ポイント超。
A103: 145 | B103: 19 | D103: 10 | E103: 21 | F103: 48 | G103: 10048 | H103: 系譜さん | I103: 214 | J103: 214 | K103: 0
A104: 42 | B104: 94 | D104: 10 | E104: 22 | F104: 15 | G104: 10015 | H104: タナリンさん | I104: 300 | J104: 183 | K104: 117 | L104: 重盗を記録。
A105: 57 | B105: 151 | D105: 10 | E105: 22 | F105: 17 | G105: 10017 | H105: HiiMaさん | I105: 268 | J105: 151 | K105: 117 | L105: 重盗を記録。
A106: 45 | B106: 101 | D106: 10 | E106: 22 | F106: 38 | G106: 10038 | H106: ゆーのさん | I106: 295 | J106: 178 | K106: 117 | L106: 重盗を記録。
A107: 213 | B107: 68 | D107: 10 | E107: 23 | F107: 83 | G107: 10083 | H107: takumaさん | I107: 203 | J107: 203 | K107: 0
A108: 57 | B108: 185 | D108: 11 | E108: 1 | F108: 38 | G108: 11038 | H108: ゆーのさん | I108: 268 | J108: 133 | K108: 135
A109: 159 | B109: 212 | D109: 11 | E109: 1 | F109: 87 | G109: 11087 | H109: もんでんどんさん | I109: 211 | J109: 103 | K109: 108
A110: 65 | B110: 136 | D110: 11 | E110: 5 | F110: 13 | G110: 11013 | H110: てりーさん | I110: 263 | J110: 160 | K110: 103
A111: 57 | B111: 132 | D111: 11 | E111: 5 | F111: 15 | G111: 11015 | H111: タナリンさん | I111: 268 | J111: 165 | K111: 103
A112: 89 | B112: 174 | D112: 11 | E112: 5 | F112: 17 | G112: 11017 | H112: HiiMaさん | I112: 244 | J112: 141 | K112: 103
A113: 25 | B113: 1 | D113: 11 | E113: 12 | F113: 57 | G113: 11057 | H113: まいさん | I113: 330 | J113: 330 | K113: 0 | L113: 史上6度目（5人目）の完全試合。
A114: 23 | B114: 236 | D114: 11 | E114: 17 | F114: 87 | G114: 11087 | H114: もんでんどんさん | I114: 339 | J114: 69 | K114: 270
A115: 117 | B115: 195 | D115: 11 | E115: 22 | F115: 11 | G115: 11011 | H115: う～たんさん | I115: 226 | J115: 123 | K115: 103
A116: 91 | B116: 87 | C116: =RANK(I116,$I$116:$I$136,0) -> 4 | D116: 12 | E116: 8 | F116: 33 | G116: 12033 | H116: いでっくさん | I116: 241 | J116: 193 | K116: 48
A117: 121 | B117: 106 | C117: 7 | D117: 12 | E117: 8 | F117: 10 | G117: 12010 | H117: 今師さん | I117: 224 | J117: 176 | K117: 48
A118: 129 | B118: 111 | C118: 8 | D118: 12 | E118: 8 | F118: 17 | G118: 12017 | H118: HiiMaさん | I118: 221 | J118: 173 | K118: 48
A119: 159 | B119: 134 | C119: 13 | D119: 12 | E119: 8 | F119: 13 | G119: 12013 | H119: てりーさん | I119: 211 | J119: 163 | K119: 48
A120: 159 | B120: 134 | C120: 13 | D120: 12 | E120: 8 | F120: 57 | G120: 12057 | H120: まいさん | I120: 211 | J120: 163 | K120: 48
A121: 9 | B121: 144 | C121: 1 | D121: 12 | E121: 6 | F121: 53 | G121: 12053 | H121: みったにさん | I121: 464 | J121: 154 | K121: 310 | L121: 史上7回目の400ポイント超え。
A122: 178 | B122: 38 | C122: 15 | D122: 12 | E122: 5 | F122: 44 | G122: 12044 | H122: aruさん | I122: 206 | J122: 206 | K122: 0
A123: 191 | B123: 48 | C123: 18 | D123: 12 | E123: 3 | F123: 57 | G123: 12057 | H123: まいさん | I123: 205 | J123: 205 | K123: 0
A124: 191 | B124: 48 | C124: 18 | D124: 12 | E124: 3 | F124: 90 | G124: 12090 | H124: ディランドさん | I124: 205 | J124: 205 | K124: 0
A125: 108 | B125: 103 | C125: 6 | D125: 12 | E125: 2 | F125: 5 | G125: 12005 | H125: GEKOさん | I125: 230 | J125: 177 | K125: 53
A126: 130 | B126: 127 | C126: 9 | D126: 12 | E126: 2 | F126: 10 | G126: 12010 | H126: 今師さん | I126: 220 | J126: 167 | K126: 53
A127: 235 | B127: 160 | C127: 21 | D127: 12 | E127: 2 | F127: 48 | G127: 12048 | H127: 系譜さん | I127: 200 | J127: 147 | K127: 53
A128: 178 | B128: 155 | C128: 15 | D128: 12 | E128: 14 | F128: 3 | G128: 12003 | H128: ヤンダルさん | I128: 206 | J128: 148 | K128: 58
A129: 149 | B129: 142 | C129: 10 | D129: 12 | E129: 14 | F129: 27 | G129: 12027 | H129: Defiさん | I129: 213 | J129: 155 | K129: 58
A130: 178 | B130: 155 | C130: 15 | D130: 12 | E130: 14 | F130: 45 | G130: 12045 | H130: nalkさん | I130: 206 | J130: 148 | K130: 58
A131: 149 | B131: 142 | C131: 10 | D131: 12 | E131: 14 | F131: 48 | G131: =D131*1000+F131 -> 12048 | H131: 系譜さん | I131: 213 | J131: 155 | K131: 58
A132: 106 | B132: 124 | C132: 5 | D132: 12 | E132: 18 | F132: 49 | G132: 12049 | H132: vanblaesさん | I132: 232 | J132: 168 | K132: 64
A133: =RANK(I133,I$4:I$999,0) -> 213 | B133: =RANK(J133,J$4:J$999,0) -> 68 | C133: 20 | D133: 12 | E133: 19 | F133: 40 | G133: 12040 | H133: ケロロさん | I133: 203 | J133: 203 | K133: 0
A134: 149 | B134: 132 | C134: 10 | D134: 12 | E134: 21 | F134: 57 | G134: 12057 | H134: まいさん | I134: 213 | J134: 165 | K134: 48
A135: 29 | B135: 4 | C135: 2 | D135: 12 | E135: 22 | F135: 15 | G135: 12015 | H135: タナリンさん | I135: 320 | J135: 320 | K135: 0 | L135: 「Y1」史上7度目の完全試合。
A136: 41 | B136: 181 | C136: =RANK(I136,$I$116:$I$136,0) -> 3 | D136: 12 | E136: 23 | F136: 47 | G136: 12047 | H136: ボチョコさん | I136: 301 | J136: 136 | K136: 165
A137: 227 | B137: 78 | C137: =RANK(I137,$I$137:$I$138,0) -> 2 | D137: 13 | E137: 4 | F137: 15 | G137: 13015 | H137: タナリンさん | I137: 201 | J137: 201 | K137: 0
A138: 2 | B138: 116 | C138: =RANK(I138,$I$137:$I$138,0) -> 1 | D138: 13 | E138: 13 | F138: 83 | G138: 13083 | H138: ta-sanさん | I138: 520 | J138: 170 | K138: 350 | L138: 「Y1」史上初の500点台突破！盗塁点350も歴代2位の大記録。
A139: 37 | B139: 11 | C139: =RANK(I139,$I$139:$I$151,0) -> 3 | D139: 14 | E139: 3 | F139: 27 | G139: 14027 | H139: Defiさん | I139: 310 | J139: 310 | K139: 0 | L139: 「Y1」史上8度目の完全試合。
A140: 29 | B140: 4 | C140: =RANK(I140,$I$139:$I$151,0) -> 1 | D140: 14 | E140: 4 | F140: 90 | G140: 14090 | H140: ディランドさん | I140: 320 | J140: =I140-K140 -> 320 | K140: 0 | L140: 「Y1」史上9度目の完全試合。2回続けての完全試合達成は史上初の快挙！
A141: 77 | B141: 113 | C141: 6 | D141: 14 | E141: 13 | F141: 101 | G141: 14101 | H141: てぃるさん | I141: 251 | J141: 171 | K141: 80
A142: 123 | B142: 172 | C142: 10 | D142: 14 | E142: 13 | F142: 17 | G142: 14017 | H142: HiiMaさん | I142: 223 | J142: 143 | K142: 80
A143: 165 | B143: 190 | C143: 11 | D143: 14 | E143: 13 | F143: 44 | G143: 14044 | H143: aruさん | I143: 210 | J143: 130 | K143: 80
A144: 115 | B144: 160 | C144: 9 | D144: 14 | E144: 13 | F144: 90 | G144: 14090 | H144: ディランドさん | I144: 227 | J144: 147 | K144: 80
A145: 90 | B145: 100 | C145: 7 | D145: 14 | E145: 14 | F145: 48 | G145: 14048 | H145: 系譜さん | I145: 243 | J145: 179 | K145: 64
A146: 103 | B146: 116 | C146: 8 | D146: 14 | E146: 14 | F146: 101 | G146: 14101 | H146: てぃるさん | I146: 234 | J146: 170 | K146: 64
A147: 29 | B147: 4 | C147: 1 | D147: 14 | E147: 23 | F147: 84 | G147: 14084 | H147: t-starsさん | I147: 320 | J147: 320 | K147: 0 | L147: 「Y1」史上10度目の完全試合。通算9人目で、今期3回目となる快挙。
A148: 204 | B148: 59 | C148: 12 | D148: 14 | E148: 23 | F148: 48 | G148: 14048 | H148: 系譜さん | I148: 204 | J148: 204 | K148: 0
A149: 227 | B149: 78 | C149: 13 | D149: 14 | E149: 23 | F149: 33 | G149: 14033 | H149: いでっくさん | I149: 201 | J149: 201 | K149: 0
A150: 55 | B150: 208 | C150: 4 | D150: 14 | E150: 24 | F150: 10 | G150: 14010 | H150: カイザー鈴木さん | I150: 271 | J150: 106 | K150: 165
A151: 60 | B151: 215 | C151: 5 | D151: 14 | E151: 24 | F151: 48 | G151: 14048 | H151: 系譜さん | I151: 266 | J151: 101 | K151: 165
A152: 24 | B152: 237 | C152: =RANK(I152,$I$152:$I$167,0) -> 2 | D152: 15 | E152: 2 | F152: 18 | G152: =D152*1000+F152 -> 15018 | H152: 楽園さん | I152: 335 | J152: =I152-K152 -> 63 | K152: 272
A153: 25 | B153: 1 | C153: 3 | D153: 15 | E153: 3 | F153: 48 | G153: 15048 | H153: 系譜さん | I153: 330 | J153: 330 | K153: 0 | L153: 史上11度目（10人目）の完全試合。
A154: 29 | B154: 4 | C154: 4 | D154: 15 | E154: 4 | F154: 3 | G154: 15003 | H154: ヤンダルさん | I154: 320 | J154: 320 | K154: 0 | L154: 史上12度目（11人目）の完全試合。前期に引き続き2回連続。
A155: 12 | B155: 225 | C155: 1 | D155: 15 | E155: 7 | F155: 44 | G155: 15044 | H155: aruさん | I155: 440 | J155: 90 | K155: 350
A156: 172 | B156: 34 | C156: 11 | D156: 15 | E156: 13 | F156: 35 | G156: 15035 | H156: じいさん | I156: 208 | J156: 208 | K156: 0
A157: 227 | B157: 230 | C157: 14 | D157: 15 | E157: 13 | F157: 5 | G157: 15005 | H157: GEKOさん | I157: 201 | J157: 84 | K157: 117
A158: 227 | B158: 230 | C158: 14 | D158: 15 | E158: 13 | F158: 18 | G158: 15018 | H158: 楽園さん | I158: 201 | J158: 84 | K158: 117
A159: 149 | B159: 23 | C159: 9 | D159: 15 | E159: 16 | F159: 15 | G159: 15015 | H159: タナリンさん | I159: 213 | J159: 213 | K159: 0
A160: 96 | B160: 147 | C160: 5 | D160: 15 | E160: 17 | F160: 3 | G160: 15003 | H160: ヤンダルさん | I160: 238 | J160: 153 | K160: 85
A161: 108 | B161: 166 | C161: 6 | D161: 15 | E161: 17 | F161: 17 | G161: 15017 | H161: HiiMaさん | I161: 230 | J161: 145 | K161: 85
A162: 110 | B162: 170 | C162: 7 | D162: 15 | E162: 17 | F162: 15 | G162: 15015 | H162: タナリンさん | I162: 229 | J162: 144 | K162: 85
A163: 125 | B163: 179 | C163: 8 | D163: 15 | E163: 17 | F163: 53 | G163: 15053 | H163: みったにさん | I163: 222 | J163: 137 | K163: 85
A164: 204 | B164: 59 | C164: 12 | D164: 15 | E164: 25 | F164: 105 | G164: 15105 | H164: ぶんさん | I164: 204 | J164: 204 | K164: 0
A165: 149 | B165: 160 | C165: 9 | D165: 15 | E165: 26 | F165: 17 | G165: 15017 | H165: HiiMaさん | I165: 213 | J165: 147 | K165: 66
A166: 219 | B166: 181 | C166: 13 | D166: 15 | E166: 26 | F166: 5 | G166: 15005 | H166: GEKOさん | I166: 202 | J166: 136 | K166: 66
A167: 235 | B167: 183 | C167: 16 | D167: 15 | E167: 26 | F167: 90 | G167: 15090 | H167: ディランドさん | I167: 200 | J167: 134 | K167: 66
A168: 29 | B168: 4 | C168: =RANK(I168,$I$168:$I$181,0) -> 3 | D168: 16 | E168: 2 | F168: 105 | G168: 16105 | H168: ぶんさん | I168: 320 | J168: 320 | K168: 0 | L168: 史上13度目（12人目）の完全試合。
A169: 191 | B169: 48 | C169: =RANK(I169,$I$168:$I$181,0) -> 12 | D169: 16 | E169: 2 | F169: 90 | G169: 16090 | H169: ディランドさん | I169: 205 | J169: 205 | K169: 0
A170: 49 | B170: 136 | C170: 5 | D170: 16 | E170: 8 | F170: 35 | G170: 16035 | H170: じいさん | I170: 283 | J170: 160 | K170: 123
A171: 53 | B171: 144 | C171: 6 | D171: 16 | E171: 8 | F171: 53 | G171: 16053 | H171: みったにさん | I171: 277 | J171: 154 | K171: 123
A172: 172 | B172: 34 | C172: 9 | D172: 16 | E172: 11 | F172: 90 | G172: 16090 | H172: ディランドさん | I172: 208 | J172: 208 | K172: 0
A173: 141 | B173: 144 | C173: 8 | D173: 16 | E173: 12 | F173: 15 | G173: 16015 | H173: タナリンさん | I173: 216 | J173: 154 | K173: 62
A174: 174 | B174: 166 | C174: 10 | D174: 16 | E174: 12 | F174: 108 | G174: 16108 | H174: ジャックSHOWさん | I174: 207 | J174: 145 | K174: 62
A175: 213 | B175: 174 | C175: 13 | D175: 16 | E175: 12 | F175: 13 | G175: 16013 | H175: うにょさん | I175: 203 | J175: 141 | K175: 62
A176: 113 | B176: 112 | C176: 7 | D176: 16 | E176: 14 | F176: 13 | G176: 16013 | H176: うにょさん | I176: 228 | J176: 172 | K176: 56
A177: 219 | B177: 164 | C177: 14 | D177: 16 | E177: 14 | F177: 17 | G177: 16017 | H177: HiiMaさん | I177: 202 | J177: 146 | K177: 56
A178: 178 | B178: 38 | C178: 11 | D178: 16 | E178: 21 | F178: 110 | G178: 16110 | H178: ikeruさん | I178: 206 | J178: 206 | K178: 0
A179: 25 | B179: 1 | C179: 1 | D179: 16 | E179: 22 | F179: 90 | G179: 16090 | H179: ディランドさん | I179: 330 | J179: 330 | K179: 0 | L179: 史上14度目（自身2度目）の完全試合達成。2度目の完全試合は史上2人目。
A180: 28 | B180: 147 | C180: 2 | D180: 16 | E180: 26 | F180: 53 | G180: 16053 | H180: みったにさん | I180: 328 | J180: 153 | K180: 175
A181: 46 | B181: 202 | C181: 4 | D181: 16 | E181: 26 | F181: 47 | G181: 16047 | H181: ボチョコさん | I181: 287 | J181: 112 | K181: 175
A182: 44 | B182: 98 | C182: =RANK(I182,$I$182:$I$198,0) -> 5 | D182: 17 | E182: 5 | F182: 47 | G182: =D182*1000+F182 -> 17047 | H182: ボチョコさん | I182: 297 | J182: =I182-K182 -> 180 | K182: 117
A183: 66 | B183: 166 | C183: 6 | D183: 17 | E183: 5 | F183: 90 | G183: 17090 | H183: ディランドさん | I183: 262 | J183: 145 | K183: 117
A184: 80 | B184: 187 | C184: 8 | D184: 17 | E184: 5 | F184: 87 | G184: 17087 | H184: もんでんどんさん | I184: 249 | J184: 132 | K184: 117
A185: 14 | B185: 201 | C185: 3 | D185: 17 | E185: 10 | F185: 53 | G185: 17053 | H185: みったにさん | I185: 417 | J185: 113 | K185: 304
A186: 3 | B186: 191 | C186: 1 | D186: 17 | E186: 12 | F186: 108 | G186: 17108 | H186: ジャックSHOWさん | I186: 509 | J186: 129 | K186: 380 | L186: 史上2度目の500点台。単独盗塁ptsは歴代1位を記録。
A187: 18 | B187: 224 | C187: 4 | D187: 17 | E187: 12 | F187: 111 | G187: 17111 | H187: ジェナスさん | I187: 396 | J187: 92 | K187: 304 | L187: 同一回に2つの単独盗塁が誕生した珍しい回。
A188: 204 | B188: 59 | C188: 14 | D188: 17 | E188: 13 | F188: 110 | G188: 17110 | H188: ikeruさん | I188: 204 | J188: 204 | K188: 0
A189: 204 | B189: 59 | C189: 14 | D189: 17 | E189: 13 | F189: 10 | G189: 17010 | H189: カイザー鈴木さん | I189: 204 | J189: 204 | K189: 0
A190: 235 | B190: 83 | C190: 17 | D190: 17 | E190: 13 | F190: 104 | G190: 17104 | H190: 森の人さん | I190: 200 | J190: 200 | K190: 0
A191: 78 | B191: 85 | C191: 7 | D191: 17 | E191: 16 | F191: 5 | G191: 17005 | H191: GEKOさん | I191: 250 | J191: 196 | K191: 54
A192: 86 | B192: 90 | C192: 9 | D192: 17 | E192: 16 | F192: 17 | G192: 17017 | H192: HiiMaさん | I192: 245 | J192: 191 | K192: 54
A193: 96 | B193: 93 | C193: 10 | D193: 17 | E193: 16 | F193: 11 | G193: 17011 | H193: う～たんさん | I193: 238 | J193: 184 | K193: 54
A194: 130 | B194: 130 | C194: 11 | D194: 17 | E194: 16 | F194: 2 | G194: 17002 | H194: アントキの伯爵さん | I194: 220 | J194: 166 | K194: 54
A195: 165 | B195: 141 | C195: 12 | D195: 17 | E195: 16 | F195: 111 | G195: 17111 | H195: ジェナスさん | I195: 210 | J195: 156 | K195: 54
A196: 227 | B196: 160 | C196: 16 | D196: 17 | E196: 16 | F196: 18 | G196: 17018 | H196: 楽園さん | I196: 201 | J196: 147 | K196: 54
A197: =RANK(I197,I$4:I$999,0) -> 4 | B197: =RANK(J197,J$4:J$999,0) -> 155 | C197: 2 | D197: 17 | E197: 23 | F197: 48 | G197: 17048 | H197: 系譜さん | I197: 508 | J197: 148 | K197: 360 | L197: 史上3度目の500点台。
A198: 191 | B198: 48 | C198: 13 | D198: 17 | E198: 26 | F198: 10 | G198: 17010 | H198: カイザー鈴木さん | I198: 205 | J198: 205 | K198: 0
A199: 8 | B199: 206 | C199: =RANK(I199,$I$199:$I$209,0) -> 1 | D199: 18 | E199: 2 | F199: 44 | G199: =D199*1000+F199 -> 18044 | H199: aruさん | I199: 469 | J199: =I199-K199 -> 109 | K199: 360
A200: 29 | B200: 4 | C200: 2 | D200: 18 | E200: 3 | F200: 106 | G200: 18106 | H200: すいぶるさん | I200: 320 | J200: 320 | K200: 0 | L200: 史上15度目（13人目）の完全試合。
A201: 191 | B201: 48 | C201: 9 | D201: 18 | E201: 3 | F201: 110 | G201: 18110 | H201: ikeruさん | I201: 205 | J201: 205 | K201: 0
... 322 more rows

Sheet 盗塁記録
A1: 順位 | B1: 期間 | C1: 週 | D1: No. | E1: ID | F1: 登録名 （当時） | G1: 盗塁P | H1: TOTAL | I1: 盗塁タイトル
A2: =RANK(G2,$G$2:$G$1037,0) -> 327 | B2: 1 | C2: 3 | D2: 10 | E2: =B2*1000+D2 -> 1010 | F2: 刑事ポンさん | G2: 50 | H2: 145 | I2: 筋肉番付1 (PS)
A3: 327 | B3: 1 | C3: 3 | D3: 2 | E3: =B3*1000+D3 -> 1002 | F3: Sovathさん | G3: 50 | H3: 132 | I3: 筋肉番付1 (PS)
A4: 206 | B4: 1 | C4: 3 | D4: 0 | E4: 1000 | F4: 亀井（仮名） | G4: 60 | H4: 138 | I4: デジモンアドベンチャー(WS)
A5: 327 | B5: 1 | C5: 5 | D5: 2 | E5: 1002 | F5: Sovathさん | G5: 50 | H5: 219 | I5: JETでGO! (PS)
A6: 327 | B6: 1 | C6: 5 | D6: 0 | E6: 1000 | F6: 亀井（仮名） | G6: 50 | H6: 220 | I6: JETでGO! (PS)
A7: 570 | B7: 1 | C7: 9 | D7: 3 | E7: 1003 | F7: ヤンダルさん | G7: 30 | H7: 179 | I7: ストリートファイターEX3 (PS2)
A8: 570 | B8: 1 | C8: 9 | D8: 7 | E8: 1007 | F8: NOVさん | G8: 30 | H8: 184 | I8: ストリートファイターEX3 (PS2)
A9: 570 | B9: 1 | C9: 9 | D9: 12 | E9: 1012 | F9: iceさん | G9: 30 | H9: 205 | I9: ストリートファイターEX3 (PS2)
A10: 607 | B10: 1 | C10: 9 | D10: 13 | E10: 1013 | F10: てりーさん | G10: 20 | H10: 65 | I10: ストリートファイターEX3 (PS2)
A11: 570 | B11: 1 | C11: 15 | D11: 9 | E11: 1009 | F11: HMVさん | G11: 30 | H11: 75 | I11: グラディウス 3&4 (PS2)
A12: 133 | B12: 1 | C12: 15 | D12: 12 | E12: 1012 | F12: iceさん | G12: 80 | H12: 125 | I12: 鉄拳TT (PS2)
A13: 455 | B13: 1 | C13: 15 | D13: 13 | E13: 1013 | F13: てりーさん | G13: 40 | H13: 100 | I13: グラディウス 3&4 (PS2)
A14: 455 | B14: 1 | C14: 15 | D14: 0 | E14: 1000 | F14: 亀井（仮名） | G14: 40 | H14: 100 | I14: グラディウス 3&4 (PS2)
A15: 327 | B15: 1 | C15: 16 | D15: 8 | E15: 1008 | F15: ROTさん | G15: 50 | H15: 144 | I15: 遊戯王モンスターカプセルGB (GB)
A16: 570 | B16: 1 | C16: 16 | D16: 10 | E16: 1010 | F16: 刑事ポンさん | G16: 30 | H16: 167 | I16: 遊戯王モンスターカプセルGB (GB)
A17: 327 | B17: 1 | C17: 18 | D17: 2 | E17: 1002 | F17: Sovathさん | G17: 50 | H17: 130 | I17: 実況パワフルプロ野球2000 (N64)
A18: 327 | B18: 1 | C18: 18 | D18: 8 | E18: 1008 | F18: ROTさん | G18: 50 | H18: 154 | I18: 実況パワフルプロ野球2000 (N64)
A19: 455 | B19: 2 | C19: 1 | D19: 3 | E19: 2003 | F19: ヤンダルさん | G19: 40 | H19: 192 | I19: ぼくのなつやすみ (PS2)
A20: 455 | B20: 2 | C20: 1 | D20: 10 | E20: 2010 | F20: 今師さん | G20: 40 | H20: 207 | I20: ぼくのなつやすみ (PS2)
A21: 455 | B21: 2 | C21: 1 | D21: 11 | E21: 2011 | F21: う～たんさん | G21: 40 | H21: 197 | I21: ぼくのなつやすみ (PS2)
A22: 133 | B22: 2 | C22: 4 | D22: 7 | E22: 2007 | F22: NOVさん | G22: 80 | H22: 140 | I22: 遊戯王デュエルモンスターズ3 (GBA)
A23: 61 | B23: 2 | C23: 4 | D23: 10 | E23: 2010 | F23: 今師さん | G23: 120 | H23: 205 | I23: デジモンワールド2 (PS)
A24: 206 | B24: 2 | C24: 5 | D24: 1 | E24: 2001 | F24: ラル代表 | G24: 60 | H24: 157 | I24: アーマードコア2 (PS2)
A25: 206 | B25: 2 | C25: 5 | D25: 9 | E25: 2009 | F25: HDBさん | G25: 60 | H25: 219 | I25: アーマードコア2 (PS2)
A26: 327 | B26: 2 | C26: 9 | D26: 3 | E26: 2003 | F26: ヤンダルさん | G26: 50 | H26: 139 | I26: マリオストーリー (N64)
A27: 327 | B27: 2 | C27: 9 | D27: 13 | E27: 2013 | F27: てりーさん | G27: 50 | H27: 180 | I27: マリオストーリー (N64)
A28: 570 | B28: 2 | C28: 16 | D28: 8 | E28: 2008 | F28: ロトーさん | G28: 30 | H28: 114 | I28: MotoGP (PS2)
A29: 570 | B29: 2 | C29: 16 | D29: 15 | E29: 2015 | F29: タナリンさん | G29: 30 | H29: 122 | I29: MotoGP (PS2)
A30: 61 | B30: 2 | C30: 17 | D30: 1 | E30: 2001 | F30: ラル代表 | G30: 120 | H30: 197 | I30: パーフェクトダーク (N64)
A31: 607 | B31: 2 | C31: 17 | D31: 7 | E31: 2007 | F31: NOVさん | G31: 20 | H31: 68 | I31: 北斗の拳 世紀末救世主伝説 (PS)
A32: 607 | B32: 2 | C32: 17 | D32: 12 | E32: 2012 | F32: iceさん | G32: 20 | H32: 76 | I32: 北斗の拳 世紀末救世主伝説 (PS)
A33: 570 | B33: 2 | C33: 17 | D33: 0 | E33: 2000 | F33: 旧YSOスタッフ | G33: 30 | H33: 85 | I33: 北斗の拳 世紀末救世主伝説 (PS)
A34: 133 | B34: 2 | C34: 19 | D34: 13 | E34: 2013 | F34: てりーさん | G34: 80 | H34: 186 | I34: テイルズオブファンタジアなりきりダンジョン (GBA)
A35: 259 | B35: 2 | C35: 20 | D35: 5 | E35: 2005 | F35: GEKOさん | G35: 56 | H35: 129 | I35: マリオテニスGB (GBA)
A36: 151 | B36: 2 | C36: 20 | D36: 6 | E36: 2006 | F36: なりぼーさん | G36: 70 | H36: 156 | I36: マリオテニスGB (GBA)
A37: 476 | B37: 2 | C37: 21 | D37: 8 | E37: 2008 | F37: ロトーさん | G37: 37 | H37: 57 | I37: パワースマッシュ (DC)
A38: 476 | B38: 2 | C38: 21 | D38: 13 | E38: 2013 | F38: てりーさん | G38: 37 | H38: 57 | I38: パワースマッシュ (DC)
A39: 476 | B39: 2 | C39: 23 | D39: 1 | E39: 2001 | F39: ラル代表 | G39: 37 | H39: 122 | I39: マリオパーティ3 (N64)
A40: 476 | B40: 2 | C40: 23 | D40: 5 | E40: 2005 | F40: GEKOさん | G40: 37 | H40: 105 | I40: マリオパーティ3 (N64)
A41: 357 | B41: 2 | C41: 23 | D41: 6 | E41: 2006 | F41: なりぼーさん | G41: 47 | H41: 176 | I41: マリオパーティ3 (N64)
A42: 61 | B42: 2 | C42: 26 | D42: 13 | E42: 2013 | F42: てりーさん | G42: 120 | H42: 204 | I42: バウンサー (PS2)
A43: 52 | B43: 3 | C43: 5 | D43: 16 | E43: 3016 | F43: R6さん | G43: 130 | H43: 224 | I43: ポケットモンスター クリスタル(GBA)
A44: 357 | B44: 3 | C44: 7 | D44: 5 | E44: 3005 | F44: GEKOさん | G44: 47 | H44: 174 | I44: 遊戯王デュエルモンスターズ4 (GBA)
A45: 357 | B45: 3 | C45: 7 | D45: 11 | E45: 3011 | F45: う～たんさん | G45: 47 | H45: 167 | I45: 遊戯王デュエルモンスターズ4 (GBA)
A46: 357 | B46: 3 | C46: 7 | D46: 16 | E46: 3016 | F46: R6さん | G46: 47 | H46: 151 | I46: 遊戯王デュエルモンスターズ4 (GBA)
A47: 42 | B47: 3 | C47: 10 | D47: 16 | E47: 3016 | F47: R6さん | G47: 140 | H47: 259 | I47: EXTERMINATION (PS2)
A48: 421 | B48: 3 | C48: 13 | D48: 3 | E48: 3003 | F48: ヤンダルさん | G48: 43 | H48: 213 | I48: スーパーマリオアドバンス (GBA)
A49: 421 | B49: 3 | C49: 13 | D49: 7 | E49: 3007 | F49: NOVさん | G49: 43 | H49: 195 | I49: スーパーマリオアドバンス (GBA)
A50: 421 | B50: 3 | C50: 13 | D50: 16 | E50: 3016 | F50: R6さん | G50: 43 | H50: 176 | I50: スーパーマリオアドバンス (GBA)
A51: 523 | B51: 3 | C51: 15 | D51: 5 | E51: 3005 | F51: GEKOさん | G51: 35 | H51: 146 | I51: スーパーマリオアドバンス (GBA)
A52: 523 | B52: 3 | C52: 15 | D52: 7 | E52: 3007 | F52: NOVさん | G52: 35 | H52: 179 | I52: スーパーマリオアドバンス (GBA)
A53: 523 | B53: 3 | C53: 15 | D53: 11 | E53: 3011 | F53: う～たんさん | G53: 35 | H53: 142 | I53: スーパーマリオアドバンス (GBA)
A54: 523 | B54: 3 | C54: 15 | D54: 0 | E54: 3000 | F54: 旧YSOスタッフ | G54: 35 | H54: 228 | I54: スーパーマリオアドバンス (GBA)
A55: 523 | B55: 3 | C55: 17 | D55: 2 | E55: 3002 | F55: .hackshak// さん | G55: 35 | H55: 178 | I55: From TV animation ONE PIECE 夢のルフィ海賊団誕生！ (PS2)
A56: 591 | B56: 3 | C56: 17 | D56: 13 | E56: 3013 | F56: てりーさん | G56: 28 | H56: 151 | I56: From TV animation ONE PIECE 夢のルフィ海賊団誕生！ (PS2)
A57: 591 | B57: 3 | C57: 17 | D57: 15 | E57: 3015 | F57: タナリンさん | G57: 28 | H57: 119 | I57: From TV animation ONE PIECE 夢のルフィ海賊団誕生！ (PS2)
A58: 591 | B58: 3 | C58: 17 | D58: 0 | E58: 3000 | F58: 旧YSOスタッフ | G58: 28 | H58: 121 | I58: From TV animation ONE PIECE 夢のルフィ海賊団誕生！ (PS2)
A59: 151 | B59: 3 | C59: 19 | D59: 17 | E59: 3017 | F59: HiiMaさん | G59: 70 | H59: 171 | I59: ドラゴンクエストモンスターズ2 (GBA)
A60: 151 | B60: 3 | C60: 19 | D60: 0 | E60: 3000 | F60: 旧YSOスタッフ | G60: 70 | H60: 210 | I60: ドラゴンクエストモンスターズ2 (GBA)
A61: 151 | B61: 3 | C61: 21 | D61: 8 | E61: 3008 | F61: ロトーさん | G61: 70 | H61: 215 | I61: ファイナルファイトONE (PS2)
A62: 151 | B62: 3 | C62: 21 | D62: 18 | E62: 3018 | F62: 楽園さん | G62: 70 | H62: 216 | I62: ファイナルファイトONE (PS2)
A63: 42 | B63: 3 | C63: 23 | D63: 10 | E63: 3010 | F63: 今師さん | G63: 140 | H63: 265 | I63: Grand Theft Auto A-spec (PS2)
A64: 598 | B64: 3 | C64: 24 | D64: 7 | E64: 3007 | F64: NOVさん | G64: 26 | H64: 93 | I64: Grand Theft Auto A-spec (PS2)
A65: 604 | B65: 3 | C65: 24 | D65: 10 | E65: 3010 | F65: 今師さん | G65: 21 | H65: 61 | I65: Grand Theft Auto A-spec (PS2)
A66: =RANK(G66,$G$2:$G$1037,0) -> 604 | B66: 3 | C66: 24 | D66: 15 | E66: 3015 | F66: タナリンさん | G66: 21 | H66: 64 | I66: Grand Theft Auto A-spec (PS2)
A67: 604 | B67: 3 | C67: 24 | D67: 16 | E67: =B67*1000+D67 -> 3016 | F67: R6さん | G67: 21 | H67: 59 | I67: Grand Theft Auto A-spec (PS2)
A68: 76 | B68: 3 | C68: 26 | D68: 5 | E68: 3005 | F68: GEKOさん | G68: 112 | H68: 226 | I68: シャドウハーツ (PS2)
A69: 607 | B69: 4 | C69: 5 | D69: 5 | E69: 4005 | F69: GEKOさん | G69: 20 | H69: 76 | I69: 黄金の太陽 (GBA)
A70: 558 | B70: 4 | C70: 5 | D70: 11 | E70: 4011 | F70: う～たんさん | G70: 32 | H70: 180 | I70: 黄金の太陽 (GBA)
A71: 558 | B71: 4 | C71: 5 | D71: 18 | E71: 4018 | F71: 楽園さん | G71: 32 | H71: 143 | I71: 黄金の太陽 (GBA)
A72: 607 | B72: 4 | C72: 5 | D72: 21 | E72: 4021 | F72: 清べえさん | G72: 20 | H72: 109 | I72: 黄金の太陽 (GBA)
A73: 558 | B73: 4 | C73: 5 | D73: 22 | E73: 4022 | F73: ラムネさん | G73: 32 | H73: 138 | I73: 黄金の太陽 (GBA)
A74: 52 | B74: 4 | C74: 6 | D74: 17 | E74: 4017 | F74: HiiMaさん | G74: 130 | H74: 248 | I74: 黄金の太陽 (GBA)
A75: 357 | B75: 4 | C75: 10 | D75: 2 | E75: 4002 | F75: .hackshak// さん | G75: 47 | H75: 194 | I75: 遊戯王真・デュエルモンスターズ2 (GBA)
A76: 357 | B76: 4 | C76: 10 | D76: 8 | E76: 4008 | F76: ロトーさん | G76: 47 | H76: 122 | I76: 遊戯王真・デュエルモンスターズ2 (GBA)
A77: 357 | B77: 4 | C77: 10 | D77: 17 | E77: 4017 | F77: HiiMaさん | G77: 47 | H77: 172 | I77: 遊戯王真・デュエルモンスターズ2 (GBA)
A78: 357 | B78: 4 | C78: 13 | D78: 1 | E78: 4001 | F78: ラル代表 | G78: 47 | H78: 162 | I78: スーパーロボット大戦A (GBA)
A79: 357 | B79: 4 | C79: 13 | D79: 8 | E79: 4008 | F79: ロトーさん | G79: 47 | H79: 140 | I79: スーパーロボット大戦A (GBA)
A80: 357 | B80: 4 | C80: 13 | D80: 0 | E80: 4000 | F80: 旧YSOスタッフ | G80: 47 | H80: 155 | I80: スーパーロボット大戦A (GBA)
A81: 591 | B81: 4 | C81: 15 | D81: 11 | E81: 4011 | F81: う～たんさん | G81: 28 | H81: 101 | I81: 逆転裁判 (GBA)
A82: 76 | B82: 4 | C82: 15 | D82: 17 | E82: 4017 | F82: HiiMaさん | G82: 112 | H82: 178 | I82: タイムクライシス2 (PS2)
A83: 591 | B83: 4 | C83: 15 | D83: 18 | E83: 4018 | F83: 楽園さん | G83: 28 | H83: 120 | I83: 逆転裁判 (GBA)
A84: 591 | B84: 4 | C84: 15 | D84: 20 | E84: 4020 | F84: Natit | G84: 28 | H84: 103 | I84: 逆転裁判 (GBA)
A85: 523 | B85: 4 | C85: 15 | D85: 21 | E85: 4021 | F85: 清べえさん | G85: 35 | H85: 124 | I85: 逆転裁判 (GBA)
A86: 421 | B86: 4 | C86: 19 | D86: 2 | E86: 4002 | F86: .hackshak// さん | G86: 43 | H86: 131 | I86: 真・三國無双2 (PS2)
A87: 421 | B87: 4 | C87: 19 | D87: 5 | E87: 4005 | F87: GEKOさん | G87: 43 | H87: 156 | I87: 真・三國無双2 (PS2)
A88: 421 | B88: 4 | C88: 19 | D88: 11 | E88: 4011 | F88: う～たんさん | G88: 43 | H88: 141 | I88: 真・三國無双2 (PS2)
A89: 544 | B89: 4 | C89: 19 | D89: 23 | E89: 4023 | F89: なかやまさん | G89: 34 | H89: 91 | I89: 真・三國無双2 (PS2)
A90: 570 | B90: 4 | C90: 20 | D90: 7 | E90: 4007 | F90: NOVさん | G90: 30 | H90: 141 | I90: BUSIN (PS2)
A91: 570 | B91: 4 | C91: 20 | D91: 15 | E91: 4015 | F91: タナリンさん | G91: 30 | H91: 130 | I91: BUSIN (PS2)
A92: 570 | B92: 4 | C92: 20 | D92: 17 | E92: 4017 | F92: HiiMaさん | G92: 30 | H92: 103 | I92: BUSIN (PS2)
A93: 570 | B93: 4 | C93: 20 | D93: 0 | E93: 4000 | F93: 旧YSOスタッフ | G93: 30 | H93: 126 | I93: BUSIN (PS2)
A94: 206 | B94: 4 | C94: 24 | D94: 8 | E94: 4008 | F94: ロトーさん | G94: 60 | H94: 140 | I94: ワールドサッカーウイニングイレブン5 FE (PS2)
A95: 339 | B95: 4 | C95: 24 | D95: 13 | E95: 4013 | F95: てりーさん | G95: 48 | H95: 87 | I95: ワールドサッカーウイニングイレブン5 FE (PS2)
A96: 78 | B96: 4 | C96: 25 | D96: 17 | E96: 4017 | F96: HiiMaさん | G96: 110 | H96: 163 | I96: 大乱闘！スマッシュブラザーズDX (GC)
A97: 52 | B97: 4 | C97: 26 | D97: 7 | E97: 4007 | F97: NOVさん | G97: 130 | H97: 206 | I97: 機動戦士ガンダム 連邦VS.ジオン DX (PS2)
A98: 36 | B98: 5 | C98: 4 | D98: 8 | E98: 5008 | F98: ロトーさん | G98: 160 | H98: 285 | I98: エキサイティングプロレス3 (PS2)
A99: 599 | B99: 5 | C99: 6 | D99: 2 | E99: 5002 | F99: .hackshak// さん | G99: 24 | H99: 67 | I99: 侍 ～SAMURAI～ (PS2)
A100: 599 | B100: 5 | C100: 6 | D100: 5 | E100: 5005 | F100: GEKOさん | G100: 24 | H100: 68 | I100: 侍 ～SAMURAI～ (PS2)
A101: 599 | B101: 5 | C101: 6 | D101: 8 | E101: 5008 | F101: ロトーさん | G101: 24 | H101: 54 | I101: 侍 ～SAMURAI～ (PS2)
A102: 599 | B102: 5 | C102: 6 | D102: 15 | E102: 5015 | F102: タナリンさん | G102: 24 | H102: 74 | I102: 侍 ～SAMURAI～ (PS2)
A103: 599 | B103: 5 | C103: 6 | D103: 17 | E103: 5017 | F103: HiiMaさん | G103: 24 | H103: 82 | I103: 侍 ～SAMURAI～ (PS2)
A104: 206 | B104: 5 | C104: 7 | D104: 11 | E104: 5011 | F104: う～たんさん | G104: 60 | H104: 160 | I104: スペースチャンネル5 part2 (DC)
A105: 206 | B105: 5 | C105: 7 | D105: 18 | E105: 5018 | F105: 楽園さん | G105: 60 | H105: 153 | I105: スペースチャンネル5 part2 (DC)
A106: 206 | B106: 5 | C106: 7 | D106: 24 | E106: 5024 | F106: マドロックさん | G106: 60 | H106: 162 | I106: スペースチャンネル5 part2 (DC)
A107: 97 | B107: 5 | C107: 8 | D107: 17 | E107: 5017 | F107: HiiMaさん | G107: 100 | H107: 250 | I107: 侍 ～SAMURAI～ (PS2)
A108: 97 | B108: 5 | C108: 8 | D108: 20 | E108: 5020 | F108: Natit | G108: 100 | H108: 233 | I108: 侍 ～SAMURAI～ (PS2)
A109: 421 | B109: 5 | C109: 9 | D109: 3 | E109: 5003 | F109: ヤンダルさん | G109: 43 | H109: 194 | I109: テニスの王子様 (PS2)
A110: 421 | B110: 5 | C110: 9 | D110: 11 | E110: 5011 | F110: う～たんさん | G110: 43 | H110: 159 | I110: テニスの王子様 (PS2)
A111: 421 | B111: 5 | C111: 9 | D111: 15 | E111: 5015 | F111: タナリンさん | G111: 43 | H111: 185 | I111: テニスの王子様 (PS2)
A112: 421 | B112: 5 | C112: 9 | D112: 17 | E112: 5017 | F112: HiiMaさん | G112: 43 | H112: 197 | I112: テニスの王子様 (PS2)
A113: 55 | B113: 5 | C113: 20 | D113: 37 | E113: 5037 | F113: Eugeneさん | G113: 125 | H113: 225 | I113: キャプテン翼 (PS2)
A114: 55 | B114: 5 | C114: 20 | D114: 0 | E114: 5000 | F114: 旧YSOスタッフ | G114: 125 | H114: 278 | I114: キャプテン翼 (PS2)
A115: 140 | B115: 5 | C115: 24 | D115: 25 | E115: 5025 | F115: らすこうさん | G115: 76 | H115: 169 | I115: とっとこハム太郎3 (GBA)
A116: 140 | B116: 5 | C116: 24 | D116: 28 | E116: 5028 | F116: 魔神ガーゼットさん | G116: 76 | H116: 151 | I116: とっとこハム太郎3 (GBA)
A117: 558 | B117: 5 | C117: 26 | D117: 2 | E117: 5002 | F117: .hackshak// さん | G117: 32 | H117: 152 | I117: 剣豪2 (PS2)
A118: 558 | B118: 5 | C118: 26 | D118: 3 | E118: 5003 | F118: ヤンダルさん | G118: 32 | H118: 142 | I118: 剣豪2 (PS2)
A119: 455 | B119: 5 | C119: 26 | D119: 5 | E119: 5005 | F119: GEKOさん | G119: 40 | H119: 140 | I119: 剣豪2 (PS2)
A120: 558 | B120: 5 | C120: 26 | D120: 17 | E120: 5017 | F120: HiiMaさん | G120: 32 | H120: 153 | I120: 剣豪2 (PS2)
A121: 558 | B121: 5 | C121: 26 | D121: 28 | E121: 5028 | F121: 魔神ガーゼットさん | G121: 32 | H121: 89 | I121: 剣豪2 (PS2)
A122: 558 | B122: 5 | C122: 26 | D122: 30 | E122: 5030 | F122: awoさん | G122: 32 | H122: 162 | I122: 剣豪2 (PS2)
A123: 86 | B123: 6 | C123: 1 | D123: 5 | E123: 6005 | F123: GEKOさん | G123: 104 | H123: 203 | I123: 剣豪2 (PS2)
A124: 86 | B124: 6 | C124: 1 | D124: 20 | E124: 6020 | F124: Natit | G124: 104 | H124: 203 | I124: 剣豪2 (PS2)
A125: 20 | B125: 6 | C125: 2 | D125: 27 | E125: 6027 | F125: Defiさん | G125: 260 | H125: 408 | I125: 黄金の太陽 失われし時代 (GBA)
A126: 558 | B126: 6 | C126: 4 | D126: 3 | E126: 6003 | F126: ヤンダルさん | G126: 32 | H126: 153 | I126: かまいたちの夜2 (PS2)
A127: 455 | B127: 6 | C127: 4 | D127: 15 | E127: 6015 | F127: タナリンさん | G127: 40 | H127: 177 | I127: かまいたちの夜2 (PS2)
A128: 455 | B128: 6 | C128: 4 | D128: 17 | E128: 6017 | F128: HiiMaさん | G128: 40 | H128: 177 | I128: かまいたちの夜2 (PS2)
A129: 455 | B129: 6 | C129: 4 | D129: 20 | E129: 6020 | F129: Natit | G129: 40 | H129: 168 | I129: かまいたちの夜2 (PS2)
A130: =RANK(G130,$G$2:$G$1037,0) -> 455 | B130: 6 | C130: 4 | D130: 27 | E130: 6027 | F130: Defiさん | G130: 40 | H130: 192 | I130: かまいたちの夜2 (PS2)
A131: 558 | B131: 6 | C131: 4 | D131: 31 | E131: =B131*1000+D131 -> 6031 | F131: uniuniさん | G131: 32 | H131: 126 | I131: かまいたちの夜2 (PS2)
A132: 570 | B132: 6 | C132: 6 | D132: 13 | E132: 6013 | F132: てりーさん | G132: 30 | H132: 93 | I132: スーパーロボット大戦R (GBA)
A133: 476 | B133: 6 | C133: 6 | D133: 18 | E133: 6018 | F133: 楽園さん | G133: 37 | H133: 91 | I133: スーパーロボット大戦R (GBA)
A134: 476 | B134: 6 | C134: 6 | D134: 22 | E134: 6022 | F134: ラムネさん | G134: 37 | H134: 92 | I134: スーパーロボット大戦R (GBA)
A135: 570 | B135: 6 | C135: 6 | D135: 24 | E135: 6024 | F135: マドロックさん | G135: 30 | H135: 72 | I135: スーパーロボット大戦R (GBA)
A136: 570 | B136: 6 | C136: 6 | D136: 27 | E136: 6027 | F136: Defiさん | G136: 30 | H136: 99 | I136: スーパーロボット大戦R (GBA)
A137: 570 | B137: 6 | C137: 6 | D137: 36 | E137: 6036 | F137: 精霊さん | G137: 30 | H137: 94 | I137: スーパーロボット大戦R (GBA)
A138: 280 | B138: 6 | C138: 8 | D138: 3 | E138: 6003 | F138: ヤンダルさん | G138: 54 | H138: 171 | I138: 機動戦士ガンダム戦記 (PS2)
A139: 280 | B139: 6 | C139: 8 | D139: 5 | E139: 6005 | F139: GEKOさん | G139: 54 | H139: 255 | I139: 機動戦士ガンダム戦記 (PS2)
A140: 104 | B140: 6 | C140: 8 | D140: 5 | E140: 6005 | F140: GEKOさん | G140: 90 | H140: 255 | I140: Project Minerva (PS2)
A141: 146 | B141: 6 | C141: 8 | D141: 6 | E141: 6006 | F141: なりぼーさん | G141: 72 | H141: 142 | I141: Project Minerva (PS2)
A142: 280 | B142: 6 | C142: 8 | D142: 7 | E142: 6007 | F142: NOVさん | G142: 54 | H142: 165 | I142: 機動戦士ガンダム戦記 (PS2)
A143: 104 | B143: 6 | C143: 8 | D143: 20 | E143: 6020 | F143: Natit | G143: 90 | H143: 175 | I143: Project Minerva (PS2)
A144: 280 | B144: 6 | C144: 8 | D144: 25 | E144: 6025 | F144: らすこうさん | G144: 54 | H144: 156 | I144: 機動戦士ガンダム戦記 (PS2)
A145: 280 | B145: 6 | C145: 8 | D145: 27 | E145: 6027 | F145: Defiさん | G145: 54 | H145: 168 | I145: 機動戦士ガンダム戦記 (PS2)
A146: 544 | B146: 6 | C146: 10 | D146: 3 | E146: 6003 | F146: ヤンダルさん | G146: 34 | H146: 96 | I146: 伝説のスタフィー (GBA)
A147: 544 | B147: 6 | C147: 10 | D147: 5 | E147: 6005 | F147: GEKOさん | G147: 34 | H147: 95 | I147: 伝説のスタフィー (GBA)
A148: 544 | B148: 6 | C148: 10 | D148: 18 | E148: 6018 | F148: 楽園さん | G148: 34 | H148: 87 | I148: 伝説のスタフィー (GBA)
A149: 421 | B149: 6 | C149: 10 | D149: 22 | E149: 6022 | F149: ラムネさん | G149: 43 | H149: 94 | I149: 伝説のスタフィー (GBA)
A150: 544 | B150: 6 | C150: 10 | D150: 35 | E150: 6035 | F150: じいさん | G150: 34 | H150: 101 | I150: 伝説のスタフィー (GBA)
A151: 544 | B151: 6 | C151: 10 | D151: 39 | E151: 6039 | F151: TAKOさん | G151: 34 | H151: 113 | I151: 伝説のスタフィー (GBA)
A152: 544 | B152: 6 | C152: 10 | D152: 43 | E152: 6043 | F152: ZERUさん | G152: 34 | H152: 96 | I152: 伝説のスタフィー (GBA)
A153: 504 | B153: 6 | C153: 11 | D153: 2 | E153: 6002 | F153: .hackshak// さん | G153: 36 | H153: 115 | I153: 伝説のスタフィー (GBA)
A154: 504 | B154: 6 | C154: 11 | D154: 5 | E154: 6005 | F154: GEKOさん | G154: 36 | H154: 96 | I154: 伝説のスタフィー (GBA)
A155: 504 | B155: 6 | C155: 11 | D155: 6 | E155: 6006 | F155: なりぼーさん | G155: 36 | H155: 119 | I155: 伝説のスタフィー (GBA)
A156: 504 | B156: 6 | C156: 11 | D156: 17 | E156: 6017 | F156: HiiMaさん | G156: 36 | H156: 121 | I156: 伝説のスタフィー (GBA)
A157: 504 | B157: 6 | C157: 11 | D157: 18 | E157: 6018 | F157: 楽園さん | G157: 36 | H157: 111 | I157: 伝説のスタフィー (GBA)
A158: 504 | B158: 6 | C158: 11 | D158: 21 | E158: 6021 | F158: 清べえさん | G158: 36 | H158: 102 | I158: 伝説のスタフィー (GBA)
A159: 504 | B159: 6 | C159: 11 | D159: 34 | E159: 6034 | F159: いでっくさん | G159: 36 | H159: 124 | I159: 伝説のスタフィー (GBA)
A160: 504 | B160: 6 | C160: 11 | D160: 36 | E160: 6036 | F160: 精霊さん | G160: 36 | H160: 124 | I160: 伝説のスタフィー (GBA)
A161: 142 | B161: 6 | C161: 12 | D161: 17 | E161: 6017 | F161: HiiMaさん | G161: 73 | H161: 255 | I161: マーヴル VS. カプコン 2 (PS2)
A162: 142 | B162: 6 | C162: 12 | D162: 34 | E162: 6034 | F162: いでっくさん | G162: 73 | H162: 182 | I162: マーヴル VS. カプコン 2 (PS2)
A163: 142 | B163: 6 | C163: 12 | D163: 42 | E163: 6042 | F163: kazunaさん | G163: 73 | H163: 123 | I163: マーヴル VS. カプコン 2 (PS2)
A164: 142 | B164: 6 | C164: 12 | D164: 43 | E164: 6043 | F164: ZERUさん | G164: 73 | H164: 158 | I164: マーヴル VS. カプコン 2 (PS2)
A165: 544 | B165: 6 | C165: 15 | D165: 3 | E165: 6003 | F165: ヤンダルさん | G165: 34 | H165: 141 | I165: 機動戦士ガンダムW THE バトル (PS2)
A166: 206 | B166: 6 | C166: 15 | D166: 3 | E166: 6003 | F166: ヤンダルさん | G166: 60 | H166: 141 | I166: 機動戦士Gガンダム THE バトル (PS2)
A167: 544 | B167: 6 | C167: 15 | D167: 8 | E167: 6008 | F167: ロトーさん | G167: 34 | H167: 138 | I167: 機動戦士ガンダムW THE バトル (PS2)
A168: 206 | B168: 6 | C168: 15 | D168: 8 | E168: 6008 | F168: ロトーさん | G168: 60 | H168: 138 | I168: 機動戦士Gガンダム THE バトル (PS2)
A169: 544 | B169: 6 | C169: 15 | D169: 18 | E169: 6018 | F169: 楽園さん | G169: 34 | H169: 72 | I169: 機動戦士ガンダムW THE バトル (PS2)
A170: 544 | B170: 6 | C170: 15 | D170: 20 | E170: 6020 | F170: Natit | G170: 34 | H170: 113 | I170: 機動戦士ガンダムW THE バトル (PS2)
A171: 544 | B171: 6 | C171: 15 | D171: 24 | E171: 6024 | F171: マドロックさん | G171: 34 | H171: 140 | I171: 機動戦士ガンダムW THE バトル (PS2)
A172: 206 | B172: 6 | C172: 15 | D172: 24 | E172: 6024 | F172: マドロックさん | G172: 60 | H172: 140 | I172: 機動戦士Gガンダム THE バトル (PS2)
A173: 597 | B173: 6 | C173: 15 | D173: 34 | E173: 6034 | F173: いでっくさん | G173: 27 | H173: 50 | I173: 機動戦士ガンダムW THE バトル (PS2)
A174: 544 | B174: 6 | C174: 15 | D174: 43 | E174: 6043 | F174: ZERUさん | G174: 34 | H174: 142 | I174: 機動戦士ガンダムW THE バトル (PS2)
A175: 206 | B175: 6 | C175: 15 | D175: 43 | E175: 6043 | F175: ZERUさん | G175: 60 | H175: 142 | I175: 機動戦士Gガンダム THE バトル (PS2)
A176: 314 | B176: 6 | C176: 20 | D176: 5 | E176: 6005 | F176: GEKOさん | G176: 52 | H176: 125 | I176: ドラゴンクエストキャラクターズ トルネコの大冒険3 (PS2)
A177: 446 | B177: 6 | C177: 20 | D177: 6 | E177: 6006 | F177: なりぼーさん | G177: 42 | H177: 146 | I177: ドラゴンクエストキャラクターズ トルネコの大冒険3 (PS2)
A178: 314 | B178: 6 | C178: 20 | D178: 17 | E178: 6017 | F178: HiiMaさん | G178: 52 | H178: 177 | I178: ドラゴンクエストキャラクターズ トルネコの大冒険3 (PS2)
A179: 314 | B179: 6 | C179: 20 | D179: 21 | E179: 6021 | F179: 清べえさん | G179: 52 | H179: 122 | I179: ドラゴンクエストキャラクターズ トルネコの大冒険3 (PS2)
A180: 314 | B180: 6 | C180: 20 | D180: 25 | E180: 6025 | F180: らすこうさん | G180: 52 | H180: 129 | I180: ドラゴンクエストキャラクターズ トルネコの大冒険3 (PS2)
A181: 314 | B181: 6 | C181: 20 | D181: 41 | E181: 6041 | F181: エグドラシル使いMさん | G181: 52 | H181: 220 | I181: ドラゴンクエストキャラクターズ トルネコの大冒険3 (PS2)
A182: 586 | B182: 6 | C182: 23 | D182: 2 | E182: 6002 | F182: .hackshak// さん | G182: 29 | H182: 117 | I182: ロックマン エグゼ3 (GBA)
A183: 476 | B183: 6 | C183: 23 | D183: 3 | E183: 6003 | F183: ヤンダルさん | G183: 37 | H183: 148 | I183: ロックマン エグゼ3 (GBA)
A184: 476 | B184: 6 | C184: 23 | D184: 11 | E184: 6011 | F184: う～たんさん | G184: 37 | H184: 180 | I184: ロックマン エグゼ3 (GBA)
A185: 586 | B185: 6 | C185: 23 | D185: 17 | E185: 6017 | F185: HiiMaさん | G185: 29 | H185: 123 | I185: ロックマン エグゼ3 (GBA)
A186: 476 | B186: 6 | C186: 23 | D186: 31 | E186: 6031 | F186: uniuniさん | G186: 37 | H186: 162 | I186: ロックマン エグゼ3 (GBA)
A187: 476 | B187: 6 | C187: 23 | D187: 35 | E187: 6035 | F187: じいさん | G187: 37 | H187: 153 | I187: ロックマン エグゼ3 (GBA)
A188: 586 | B188: 6 | C188: 23 | D188: 39 | E188: 6039 | F188: TAKOさん | G188: 29 | H188: 96 | I188: ロックマン エグゼ3 (GBA)
A189: 586 | B189: 6 | C189: 23 | D189: 41 | E189: 6041 | F189: エグドラシル使いMさん | G189: 29 | H189: 130 | I189: ロックマン エグゼ3 (GBA)
A190: 586 | B190: 6 | C190: 23 | D190: 46 | E190: 6046 | F190: ブッフバルトさん | G190: 29 | H190: 110 | I190: ロックマン エグゼ3 (GBA)
A191: 476 | B191: 7 | C191: 2 | D191: 5 | E191: 7005 | F191: GEKOさん | G191: 37 | H191: 140 | I191: ラチェット&クランク (PS2)
A192: 370 | B192: 7 | C192: 2 | D192: 7 | E192: 7007 | F192: NOVさん | G192: 46 | H192: 117 | I192: ラチェット&クランク (PS2)
A193: 476 | B193: 7 | C193: 2 | D193: 15 | E193: 7015 | F193: タナリンさん | G193: 37 | H193: 133 | I193: ラチェット&クランク (PS2)
A194: =RANK(G194,$G$2:$G$1037,0) -> 370 | B194: 7 | C194: 2 | D194: 18 | E194: 7018 | F194: 楽園さん | G194: 46 | H194: 131 | I194: ラチェット&クランク (PS2)
A195: 476 | B195: 7 | C195: 2 | D195: 21 | E195: =B195*1000+D195 -> 7021 | F195: 清べえさん | G195: 37 | H195: 97 | I195: ラチェット&クランク (PS2)
A196: 370 | B196: 7 | C196: 2 | D196: 25 | E196: 7025 | F196: らすこうさん | G196: 46 | H196: 166 | I196: ラチェット&クランク (PS2)
A197: 476 | B197: 7 | C197: 2 | D197: 38 | E197: 7038 | F197: ゆーのさん | G197: 37 | H197: 120 | I197: ラチェット&クランク (PS2)
A198: 370 | B198: 7 | C198: 2 | D198: 0 | E198: 7000 | F198: 旧YSOスタッフ | G198: 46 | H198: 163 | I198: ラチェット&クランク (PS2)
A199: 37 | B199: 7 | C199: 12 | D199: 3 | E199: 7003 | F199: ヤンダルさん | G199: 156 | H199: 258 | I199: メイドインワリオ (GBA)
A200: 37 | B200: 7 | C200: 12 | D200: 5 | E200: 7005 | F200: GEKOさん | G200: 156 | H200: 241 | I200: メイドインワリオ (GBA)
... 436 more rows

Sheet 生涯成績凡例
A2: 生涯成績01
B3: 参加回数
B4: 累計ポイント
B5: 平均ポイント | D5: 参加回数26回以上のみ正式記録。
B6: 勝利数
B7: 敗北数
B8: 完全試合数
B9: ヒット数
B10: 三振数
A11: 生涯成績02
B12: 累計順位
B13: 補正累計順位
B14: 防御率 | D14: 参加回数26回以上のみ正式記録。
B15: 補正防御率 | D15: 参加回数26回以上のみ正式記録。
B16: 順位当て数
B17: PB数
A18: 生涯成績03
B19: 入賞回数 | D19: 第6期以降のみ集計。
B20: 入賞率 | D20: 第6期以降のみ集計。
B21: 圏外回数 | D21: 第6期以降のみ集計。
B22: 圏外率 | D22: 第6期以降のみ集計。
B23: ハイスコア
B24: ロースコア
A25: 生涯成績04
B26: 盗塁ポイント
B27: 盗塁敢行数
B28: 盗塁成功数
B29: 盗塁成功率 | D29: 参加回数26回以上のみ正式記録。

Sheet 出場回数記録
A1: =CONCATENATE("第",ROUNDUP((B5-261)/26,0)+10,"期") -> 第21期 | B1: =CONCATENATE("第",IF(MOD((B5-261),26)=0,26,MOD((B5-261),26)),"回") -> 第1回 | C1: 現在
F2: 登場回数 | G2: 26 | I2: 50 | K2: 100 | M2: 150 | O2: 200 | Q2: 250 | S2: 300 | U2: 350 | W2: 400 | Y2: 450 | AA2: 500 | AC2: 550
A3: No. | B3: 回数 | C3: 登場ランク | D3: No. | E3: 登録名 | F3: 登場ランク | G3: 1 | H3: 2 | I3: 3 | J3: 4 | K3: 5 | L3: 6 | M3: 7 | N3: 8 | O3: 9 | P3: 10 | Q3: 11 | R3: 12 | S3: 13 | T3: 14 | U3: 15 | V3: 16 | W3: 17 | X3: 18 | Y3: 19 | Z3: 20 | AA3: 21 | AB3: 22 | AC3: 23 | AD3: 24
A4: 0 | B4: =VLOOKUP($A4,生涯個人成績!$A$3:$D$124,3,FALSE) -> 287 | C4: =IF($B4<26,0,IF($B4=26,1,IF($B4<50,2,IF(MOD($B4,50)=0,$B4/25+1,ROUNDUP($B4/50,0)*2)))) -> 12 | D4: =A4 -> 0 | E4: =VLOOKUP($A4,生涯個人成績!$A$3:$D$124,2,FALSE) -> YSO-MC | F4: =IF(ISERROR(VLOOKUP(0,$C4:$E4,3,FALSE)),"",VLOOKUP(0,$C4:$E4,3,FALSE)) ->  | G4: =IF(ISERROR(VLOOKUP(G$3,$C4:$E4,3,FALSE)),"",VLOOKUP(G$3,$C4:$E4,3,FALSE)) ->  | H4: =IF(ISERROR(VLOOKUP(H$3,$C4:$E4,3,FALSE)),"",VLOOKUP(H$3,$C4:$E4,3,FALSE)) ->  | R4: YSO-MC | X4: =IF(ISERROR(VLOOKUP(X$3,$C4:$E4,3,FALSE)),"",VLOOKUP(X$3,$C4:$E4,3,FALSE)) -> 
A5: 1 | B5: =VLOOKUP($A5,生涯個人成績!$A$3:$D$124,3,FALSE) -> 522 | C5: =IF($B5<26,0,IF($B5=26,1,IF($B5<50,2,IF(MOD($B5,50)=0,$B5/25+1,ROUNDUP($B5/50,0)*2)))) -> 22 | D5: =A5 -> 1 | E5: =VLOOKUP($A5,生涯個人成績!$A$3:$D$124,2,FALSE) -> ラルさん | F5: =IF(ISERROR(VLOOKUP(0,$C5:$E5,3,FALSE)),"",VLOOKUP(0,$C5:$E5,3,FALSE)) ->  | AB5: ラルさん
A6: 2 | B6: =VLOOKUP($A6,生涯個人成績!$A$3:$D$124,3,FALSE) -> 435 | C6: 18 | D6: 2 | E6: =VLOOKUP($A6,生涯個人成績!$A$3:$D$124,2,FALSE) -> HAQ48 | X6: HAQ48
A7: 3 | B7: =VLOOKUP($A7,生涯個人成績!$A$3:$D$124,3,FALSE) -> 518 | C7: 22 | D7: 3 | E7: =VLOOKUP($A7,生涯個人成績!$A$3:$D$124,2,FALSE) -> ヤンダルさん | AB7: ヤンダルさん
A8: 4 | B8: =VLOOKUP($A8,生涯個人成績!$A$3:$D$124,3,FALSE) -> 1 | C8: 0 | D8: 4 | E8: =VLOOKUP($A8,生涯個人成績!$A$3:$D$124,2,FALSE) -> 陣内閣竜さん | F8: 陣内閣竜さん
A9: 5 | B9: =VLOOKUP($A9,生涯個人成績!$A$3:$D$124,3,FALSE) -> 504 | C9: 22 | D9: 5 | E9: =VLOOKUP($A9,生涯個人成績!$A$3:$D$124,2,FALSE) -> GEKOさん | AB9: GEKOさん
A10: 6 | B10: =VLOOKUP($A10,生涯個人成績!$A$3:$D$124,3,FALSE) -> 55 | C10: 4 | D10: 6 | E10: =VLOOKUP($A10,生涯個人成績!$A$3:$D$124,2,FALSE) -> なりぼーさん | J10: なりぼーさん
A11: 7 | B11: =VLOOKUP($A11,生涯個人成績!$A$3:$D$124,3,FALSE) -> 214 | C11: 10 | D11: 7 | E11: =VLOOKUP($A11,生涯個人成績!$A$3:$D$124,2,FALSE) -> NOVさん | P11: NOVさん
A12: 8 | B12: =VLOOKUP($A12,生涯個人成績!$A$3:$D$124,3,FALSE) -> 518 | C12: 22 | D12: 8 | E12: =VLOOKUP($A12,生涯個人成績!$A$3:$D$124,2,FALSE) -> ろとーさん | AB12: ろとーさん
A13: 9 | B13: =VLOOKUP($A13,生涯個人成績!$A$3:$D$124,3,FALSE) -> 31 | C13: 2 | D13: 9 | E13: =VLOOKUP($A13,生涯個人成績!$A$3:$D$124,2,FALSE) -> HDBさん | H13: HDBさん
A14: 10 | B14: =VLOOKUP($A14,生涯個人成績!$A$3:$D$124,3,FALSE) -> 383 | C14: 16 | D14: 10 | E14: =VLOOKUP($A14,生涯個人成績!$A$3:$D$124,2,FALSE) -> カイザー鈴木さん | V14: カイザー鈴木さん
A15: 11 | B15: =VLOOKUP($A15,生涯個人成績!$A$3:$D$124,3,FALSE) -> 503 | C15: 22 | D15: 11 | E15: =VLOOKUP($A15,生涯個人成績!$A$3:$D$124,2,FALSE) -> う～たんさん | AB15: う～たんさん
A16: 12 | B16: =VLOOKUP($A16,生涯個人成績!$A$3:$D$124,3,FALSE) -> 53 | C16: 4 | D16: 12 | E16: =VLOOKUP($A16,生涯個人成績!$A$3:$D$124,2,FALSE) -> iceさん | J16: iceさん
A17: 13 | B17: =VLOOKUP($A17,生涯個人成績!$A$3:$D$124,3,FALSE) -> 380 | C17: 16 | D17: 13 | E17: =VLOOKUP($A17,生涯個人成績!$A$3:$D$124,2,FALSE) -> うにょさん | V17: うにょさん
A18: 14 | B18: =VLOOKUP($A18,生涯個人成績!$A$3:$D$124,3,FALSE) -> 4 | C18: 0 | D18: 14 | E18: =VLOOKUP($A18,生涯個人成績!$A$3:$D$124,2,FALSE) -> リアル野比Ver2.0さん | F18: リアル野比Ver2.0さん
A19: 15 | B19: =VLOOKUP($A19,生涯個人成績!$A$3:$D$124,3,FALSE) -> 475 | C19: 20 | D19: 15 | E19: =VLOOKUP($A19,生涯個人成績!$A$3:$D$124,2,FALSE) -> タナリンさん | Z19: タナリンさん
A20: 16 | B20: =VLOOKUP($A20,生涯個人成績!$A$3:$D$124,3,FALSE) -> 36 | C20: 2 | D20: 16 | E20: =VLOOKUP($A20,生涯個人成績!$A$3:$D$124,2,FALSE) -> R6さん | H20: =IF(ISERROR(VLOOKUP(H$3,$C20:$E20,3,FALSE)),"",VLOOKUP(H$3,$C20:$E20,3,FALSE)) -> R6さん | W20: =IF(ISERROR(VLOOKUP(W$3,$C20:$E20,3,FALSE)),"",VLOOKUP(W$3,$C20:$E20,3,FALSE)) -> 
A21: 17 | B21: =VLOOKUP($A21,生涯個人成績!$A$3:$D$124,3,FALSE) -> 450 | C21: 19 | D21: 17 | E21: =VLOOKUP($A21,生涯個人成績!$A$3:$D$124,2,FALSE) -> HiiMaさん | G21: =IF(ISERROR(VLOOKUP(G$3,$C21:$E21,3,FALSE)),"",VLOOKUP(G$3,$C21:$E21,3,FALSE)) ->  | Y21: HiiMaさん
A22: 18 | B22: =VLOOKUP($A22,生涯個人成績!$A$3:$D$124,3,FALSE) -> 419 | C22: 18 | D22: 18 | E22: =VLOOKUP($A22,生涯個人成績!$A$3:$D$124,2,FALSE) -> 楽園さん | X22: 楽園さん
A23: 19 | B23: =VLOOKUP($A23,生涯個人成績!$A$3:$D$124,3,FALSE) -> 8 | C23: 0 | D23: 19 | E23: =VLOOKUP($A23,生涯個人成績!$A$3:$D$124,2,FALSE) -> ルパン3世さん | F23: ルパン3世さん
A24: 20 | B24: =VLOOKUP($A24,生涯個人成績!$A$3:$D$124,3,FALSE) -> 407 | C24: 18 | D24: 20 | E24: =VLOOKUP($A24,生涯個人成績!$A$3:$D$124,2,FALSE) -> Natit | X24: Natit
A25: 21 | B25: =VLOOKUP($A25,生涯個人成績!$A$3:$D$124,3,FALSE) -> 79 | C25: 4 | D25: 21 | E25: =VLOOKUP($A25,生涯個人成績!$A$3:$D$124,2,FALSE) -> 清べえさん | J25: 清べえさん
A26: 22 | B26: =VLOOKUP($A26,生涯個人成績!$A$3:$D$124,3,FALSE) -> 36 | C26: 2 | D26: 22 | E26: =VLOOKUP($A26,生涯個人成績!$A$3:$D$124,2,FALSE) -> ラムネさん | H26: ラムネさん
A27: 23 | B27: =VLOOKUP($A27,生涯個人成績!$A$3:$D$124,3,FALSE) -> 2 | C27: 0 | D27: 23 | E27: =VLOOKUP($A27,生涯個人成績!$A$3:$D$124,2,FALSE) -> なかやまさん | F27: なかやまさん
A28: 24 | B28: =VLOOKUP($A28,生涯個人成績!$A$3:$D$124,3,FALSE) -> 53 | C28: 4 | D28: 24 | E28: =VLOOKUP($A28,生涯個人成績!$A$3:$D$124,2,FALSE) -> マドロックさん | J28: マドロックさん
A29: 25 | B29: =VLOOKUP($A29,生涯個人成績!$A$3:$D$124,3,FALSE) -> 384 | C29: 16 | D29: 25 | E29: =VLOOKUP($A29,生涯個人成績!$A$3:$D$124,2,FALSE) -> らすこうさん | V29: らすこうさん
A30: 26 | B30: =VLOOKUP($A30,生涯個人成績!$A$3:$D$124,3,FALSE) -> 1 | C30: 0 | D30: 26 | E30: =VLOOKUP($A30,生涯個人成績!$A$3:$D$124,2,FALSE) -> termtom2000さん | F30: termtom2000さん
A31: 27 | B31: =VLOOKUP($A31,生涯個人成績!$A$3:$D$124,3,FALSE) -> 411 | C31: 18 | D31: 27 | E31: =VLOOKUP($A31,生涯個人成績!$A$3:$D$124,2,FALSE) -> Defiさん | X31: Defiさん
A32: 28 | B32: =VLOOKUP($A32,生涯個人成績!$A$3:$D$124,3,FALSE) -> 59 | C32: 4 | D32: 28 | E32: =VLOOKUP($A32,生涯個人成績!$A$3:$D$124,2,FALSE) -> 魔神ガーゼットさん | J32: 魔神ガーゼットさん
A33: 29 | B33: =VLOOKUP($A33,生涯個人成績!$A$3:$D$124,3,FALSE) -> 7 | C33: 0 | D33: 29 | E33: =VLOOKUP($A33,生涯個人成績!$A$3:$D$124,2,FALSE) -> reookさん | F33: reookさん
A34: 30 | B34: =VLOOKUP($A34,生涯個人成績!$A$3:$D$124,3,FALSE) -> 10 | C34: 0 | D34: 30 | E34: =VLOOKUP($A34,生涯個人成績!$A$3:$D$124,2,FALSE) -> awoさん | F34: awoさん
A35: 31 | B35: =VLOOKUP($A35,生涯個人成績!$A$3:$D$124,3,FALSE) -> 68 | C35: 4 | D35: 31 | E35: =VLOOKUP($A35,生涯個人成績!$A$3:$D$124,2,FALSE) -> uniuniさん | J35: uniuniさん
A36: 32 | B36: =VLOOKUP($A36,生涯個人成績!$A$3:$D$124,3,FALSE) -> 7 | C36: 0 | D36: 32 | E36: =VLOOKUP($A36,生涯個人成績!$A$3:$D$124,2,FALSE) -> はぐさん | F36: はぐさん | V36: =IF(ISERROR(VLOOKUP(V$3,$C36:$E36,3,FALSE)),"",VLOOKUP(V$3,$C36:$E36,3,FALSE)) -> 
A37: 33 | B37: =VLOOKUP($A37,生涯個人成績!$A$3:$D$124,3,FALSE) -> 398 | C37: 16 | D37: 33 | E37: =VLOOKUP($A37,生涯個人成績!$A$3:$D$124,2,FALSE) -> いでっくさん | G37: =IF(ISERROR(VLOOKUP(G$3,$C37:$E37,3,FALSE)),"",VLOOKUP(G$3,$C37:$E37,3,FALSE)) ->  | V37: いでっくさん
A38: 34 | B38: =VLOOKUP($A38,生涯個人成績!$A$3:$D$124,3,FALSE) -> 14 | C38: 0 | D38: 34 | E38: =VLOOKUP($A38,生涯個人成績!$A$3:$D$124,2,FALSE) -> Atm0sph3reさん | F38: Atm0sph3reさん
A39: 35 | B39: =VLOOKUP($A39,生涯個人成績!$A$3:$D$124,3,FALSE) -> 397 | C39: 16 | D39: 35 | E39: =VLOOKUP($A39,生涯個人成績!$A$3:$D$124,2,FALSE) -> じいさん | V39: じいさん
A40: 36 | B40: =VLOOKUP($A40,生涯個人成績!$A$3:$D$124,3,FALSE) -> 42 | C40: 2 | D40: 36 | E40: =VLOOKUP($A40,生涯個人成績!$A$3:$D$124,2,FALSE) -> 精霊さん | H40: 精霊さん
A41: 37 | B41: =VLOOKUP($A41,生涯個人成績!$A$3:$D$124,3,FALSE) -> 5 | C41: 0 | D41: 37 | E41: =VLOOKUP($A41,生涯個人成績!$A$3:$D$124,2,FALSE) -> Eugeneさん | F41: Eugeneさん
A42: 38 | B42: =VLOOKUP($A42,生涯個人成績!$A$3:$D$124,3,FALSE) -> 142 | C42: 6 | D42: 38 | E42: =VLOOKUP($A42,生涯個人成績!$A$3:$D$124,2,FALSE) -> ゆーのさん | L42: ゆーのさん
A43: 39 | B43: =VLOOKUP($A43,生涯個人成績!$A$3:$D$124,3,FALSE) -> 25 | C43: 0 | D43: 39 | E43: =VLOOKUP($A43,生涯個人成績!$A$3:$D$124,2,FALSE) -> TAKOさん | F43: TAKOさん
A44: 40 | B44: =VLOOKUP($A44,生涯個人成績!$A$3:$D$124,3,FALSE) -> 194 | C44: 8 | D44: 40 | E44: =VLOOKUP($A44,生涯個人成績!$A$3:$D$124,2,FALSE) -> ケロロさん | N44: ケロロさん
A45: 41 | B45: =VLOOKUP($A45,生涯個人成績!$A$3:$D$124,3,FALSE) -> 33 | C45: 2 | D45: 41 | E45: =VLOOKUP($A45,生涯個人成績!$A$3:$D$124,2,FALSE) -> エグドラシル使いMさん | H45: エグドラシル使いMさん
A46: 42 | B46: =VLOOKUP($A46,生涯個人成績!$A$3:$D$124,3,FALSE) -> 7 | C46: 0 | D46: 42 | E46: =VLOOKUP($A46,生涯個人成績!$A$3:$D$124,2,FALSE) -> kazunaさん | F46: kazunaさん
A47: 43 | B47: =VLOOKUP($A47,生涯個人成績!$A$3:$D$124,3,FALSE) -> 91 | C47: 4 | D47: 43 | E47: =VLOOKUP($A47,生涯個人成績!$A$3:$D$124,2,FALSE) -> ZERUさん | J47: ZERUさん
A48: 44 | B48: =VLOOKUP($A48,生涯個人成績!$A$3:$D$124,3,FALSE) -> 337 | C48: 14 | D48: 44 | E48: =VLOOKUP($A48,生涯個人成績!$A$3:$D$124,2,FALSE) -> aruさん | T48: aruさん
A49: 45 | B49: =VLOOKUP($A49,生涯個人成績!$A$3:$D$124,3,FALSE) -> 373 | C49: 16 | D49: 45 | E49: =VLOOKUP($A49,生涯個人成績!$A$3:$D$124,2,FALSE) -> ナルクさん | V49: ナルクさん
A50: 46 | B50: =VLOOKUP($A50,生涯個人成績!$A$3:$D$124,3,FALSE) -> 111 | C50: 6 | D50: 46 | E50: =VLOOKUP($A50,生涯個人成績!$A$3:$D$124,2,FALSE) -> ブッフバルトさん | L50: ブッフバルトさん
A51: 47 | B51: =VLOOKUP($A51,生涯個人成績!$A$3:$D$124,3,FALSE) -> 364 | C51: 16 | D51: 47 | E51: =VLOOKUP($A51,生涯個人成績!$A$3:$D$124,2,FALSE) -> ボチョコさん | V51: ボチョコさん
A52: 48 | B52: =VLOOKUP($A52,生涯個人成績!$A$3:$D$124,3,FALSE) -> 355 | C52: 16 | D52: 48 | E52: =VLOOKUP($A52,生涯個人成績!$A$3:$D$124,2,FALSE) -> 系譜さん | V52: =IF(ISERROR(VLOOKUP(V$3,$C52:$E52,3,FALSE)),"",VLOOKUP(V$3,$C52:$E52,3,FALSE)) -> 系譜さん
A53: 49 | B53: =VLOOKUP($A53,生涯個人成績!$A$3:$D$124,3,FALSE) -> 343 | C53: 14 | D53: 49 | E53: =VLOOKUP($A53,生涯個人成績!$A$3:$D$124,2,FALSE) -> vanblaesさん | G53: =IF(ISERROR(VLOOKUP(G$3,$C53:$E53,3,FALSE)),"",VLOOKUP(G$3,$C53:$E53,3,FALSE)) ->  | T53: vanblaesさん
A54: 50 | B54: =VLOOKUP($A54,生涯個人成績!$A$3:$D$124,3,FALSE) -> 5 | C54: 0 | D54: 50 | E54: =VLOOKUP($A54,生涯個人成績!$A$3:$D$124,2,FALSE) -> uwanさん | F54: uwanさん
A55: 51 | B55: =VLOOKUP($A55,生涯個人成績!$A$3:$D$124,3,FALSE) -> 18 | C55: 0 | D55: 51 | E55: =VLOOKUP($A55,生涯個人成績!$A$3:$D$124,2,FALSE) -> chukaiさん | F55: chukaiさん
A56: 52 | B56: =VLOOKUP($A56,生涯個人成績!$A$3:$D$124,3,FALSE) -> 15 | C56: 0 | D56: 52 | E56: =VLOOKUP($A56,生涯個人成績!$A$3:$D$124,2,FALSE) -> zaozaoさん | F56: zaozaoさん
A57: 53 | B57: =VLOOKUP($A57,生涯個人成績!$A$3:$D$124,3,FALSE) -> 366 | C57: 16 | D57: 53 | E57: =VLOOKUP($A57,生涯個人成績!$A$3:$D$124,2,FALSE) -> みったにさん | V57: みったにさん
A58: 54 | B58: =VLOOKUP($A58,生涯個人成績!$A$3:$D$124,3,FALSE) -> 366 | C58: 16 | D58: 54 | E58: =VLOOKUP($A58,生涯個人成績!$A$3:$D$124,2,FALSE) -> yuifanさん | V58: yuifanさん
A59: 55 | B59: =VLOOKUP($A59,生涯個人成績!$A$3:$D$124,3,FALSE) -> 179 | C59: 8 | D59: 55 | E59: =VLOOKUP($A59,生涯個人成績!$A$3:$D$124,2,FALSE) -> 真央さん | N59: 真央さん
A60: 56 | B60: =VLOOKUP($A60,生涯個人成績!$A$3:$D$124,3,FALSE) -> 4 | C60: 0 | D60: 56 | E60: =VLOOKUP($A60,生涯個人成績!$A$3:$D$124,2,FALSE) -> 龍息さん | F60: 龍息さん
A61: 57 | B61: =VLOOKUP($A61,生涯個人成績!$A$3:$D$124,3,FALSE) -> 180 | C61: 8 | D61: 57 | E61: =VLOOKUP($A61,生涯個人成績!$A$3:$D$124,2,FALSE) -> まいさん | N61: まいさん
A62: 58 | B62: =VLOOKUP($A62,生涯個人成績!$A$3:$D$124,3,FALSE) -> 1 | C62: 0 | D62: 58 | E62: =VLOOKUP($A62,生涯個人成績!$A$3:$D$124,2,FALSE) -> Gahiggidyさん | F62: Gahiggidyさん
A63: 59 | B63: =VLOOKUP($A63,生涯個人成績!$A$3:$D$124,3,FALSE) -> 31 | C63: 2 | D63: 59 | E63: =VLOOKUP($A63,生涯個人成績!$A$3:$D$124,2,FALSE) -> ぱぴよんさん | H63: ぱぴよんさん
A64: 60 | B64: =VLOOKUP($A64,生涯個人成績!$A$3:$D$124,3,FALSE) -> 1 | C64: 0 | D64: 60 | E64: =VLOOKUP($A64,生涯個人成績!$A$3:$D$124,2,FALSE) -> nabeさん | F64: nabeさん
A65: 61 | B65: =VLOOKUP($A65,生涯個人成績!$A$3:$D$124,3,FALSE) -> 1 | C65: 0 | D65: 61 | E65: =VLOOKUP($A65,生涯個人成績!$A$3:$D$124,2,FALSE) -> 赤魔神儀さん | F65: 赤魔神儀さん
A66: 62 | B66: =VLOOKUP($A66,生涯個人成績!$A$3:$D$124,3,FALSE) -> 1 | C66: 0 | D66: 62 | E66: =VLOOKUP($A66,生涯個人成績!$A$3:$D$124,2,FALSE) -> 信也さん | F66: 信也さん
A67: 63 | B67: =VLOOKUP($A67,生涯個人成績!$A$3:$D$124,3,FALSE) -> 13 | C67: 0 | D67: 63 | E67: =VLOOKUP($A67,生涯個人成績!$A$3:$D$124,2,FALSE) -> 大犬さん | F67: 大犬さん
A68: 64 | B68: =VLOOKUP($A68,生涯個人成績!$A$3:$D$124,3,FALSE) -> 2 | C68: 0 | D68: 64 | E68: =VLOOKUP($A68,生涯個人成績!$A$3:$D$124,2,FALSE) -> ガストンさん | F68: ガストンさん | V68: =IF(ISERROR(VLOOKUP(V$3,$C68:$E68,3,FALSE)),"",VLOOKUP(V$3,$C68:$E68,3,FALSE)) -> 
A69: 65 | B69: =VLOOKUP($A69,生涯個人成績!$A$3:$D$124,3,FALSE) -> 1 | C69: =IF($B69<26,0,IF($B69=26,1,IF($B69<50,2,IF(MOD($B69,50)=0,$B69/25+1,ROUNDUP($B69/50,0)*2)))) -> 0 | D69: =A69 -> 65 | E69: =VLOOKUP($A69,生涯個人成績!$A$3:$D$124,2,FALSE) -> ポックスウイルスさん | F69: =IF(ISERROR(VLOOKUP(0,$C69:$E69,3,FALSE)),"",VLOOKUP(0,$C69:$E69,3,FALSE)) -> ポックスウイルスさん | G69: =IF(ISERROR(VLOOKUP(G$3,$C69:$E69,3,FALSE)),"",VLOOKUP(G$3,$C69:$E69,3,FALSE)) -> 
A70: 66 | B70: =VLOOKUP($A70,生涯個人成績!$A$3:$D$124,3,FALSE) -> 1 | C70: 0 | D70: 66 | E70: =VLOOKUP($A70,生涯個人成績!$A$3:$D$124,2,FALSE) -> arusuさん | F70: arusuさん
A71: 67 | B71: =VLOOKUP($A71,生涯個人成績!$A$3:$D$124,3,FALSE) -> 3 | C71: 0 | D71: 67 | E71: =VLOOKUP($A71,生涯個人成績!$A$3:$D$124,2,FALSE) -> 愚王さん | F71: 愚王さん
A72: 68 | B72: =VLOOKUP($A72,生涯個人成績!$A$3:$D$124,3,FALSE) -> 36 | C72: 2 | D72: 68 | E72: =VLOOKUP($A72,生涯個人成績!$A$3:$D$124,2,FALSE) -> AKUさん | H72: AKUさん
A73: 69 | B73: =VLOOKUP($A73,生涯個人成績!$A$3:$D$124,3,FALSE) -> 83 | C73: 4 | D73: 69 | E73: =VLOOKUP($A73,生涯個人成績!$A$3:$D$124,2,FALSE) -> ジョージさん | J73: ジョージさん
A74: 70 | B74: =VLOOKUP($A74,生涯個人成績!$A$3:$D$124,3,FALSE) -> 91 | C74: 4 | D74: 70 | E74: =VLOOKUP($A74,生涯個人成績!$A$3:$D$124,2,FALSE) -> T-Kさん | J74: T-Kさん
A75: 71 | B75: =VLOOKUP($A75,生涯個人成績!$A$3:$D$124,3,FALSE) -> 2 | C75: 0 | D75: 71 | E75: =VLOOKUP($A75,生涯個人成績!$A$3:$D$124,2,FALSE) -> 智蔵さん | F75: 智蔵さん
A76: 72 | B76: =VLOOKUP($A76,生涯個人成績!$A$3:$D$124,3,FALSE) -> 1 | C76: 0 | D76: 72 | E76: =VLOOKUP($A76,生涯個人成績!$A$3:$D$124,2,FALSE) -> Libさん | F76: Libさん
A77: 73 | B77: =VLOOKUP($A77,生涯個人成績!$A$3:$D$124,3,FALSE) -> 1 | C77: 0 | D77: 73 | E77: =VLOOKUP($A77,生涯個人成績!$A$3:$D$124,2,FALSE) -> 新人氏 さん | F77: 新人氏 さん
A78: 74 | B78: =VLOOKUP($A78,生涯個人成績!$A$3:$D$124,3,FALSE) -> 2 | C78: 0 | D78: 74 | E78: =VLOOKUP($A78,生涯個人成績!$A$3:$D$124,2,FALSE) -> 迷予想人間さん | F78: 迷予想人間さん
A79: 75 | B79: =VLOOKUP($A79,生涯個人成績!$A$3:$D$124,3,FALSE) -> 3 | C79: 0 | D79: 75 | E79: =VLOOKUP($A79,生涯個人成績!$A$3:$D$124,2,FALSE) -> ゆーとぴあI企画 さん | F79: ゆーとぴあI企画 さん
A80: 76 | B80: =VLOOKUP($A80,生涯個人成績!$A$3:$D$124,3,FALSE) -> 67 | C80: 4 | D80: 76 | E80: =VLOOKUP($A80,生涯個人成績!$A$3:$D$124,2,FALSE) -> リュウさん | J80: リュウさん
A81: 77 | B81: =VLOOKUP($A81,生涯個人成績!$A$3:$D$124,3,FALSE) -> 5 | C81: 0 | D81: 77 | E81: =VLOOKUP($A81,生涯個人成績!$A$3:$D$124,2,FALSE) -> 末魔導けんじ。 さん | F81: 末魔導けんじ。 さん
A82: 78 | B82: =VLOOKUP($A82,生涯個人成績!$A$3:$D$124,3,FALSE) -> 50 | C82: 3 | D82: 78 | E82: =VLOOKUP($A82,生涯個人成績!$A$3:$D$124,2,FALSE) -> くろおびさん | I82: くろおびさん
A83: 79 | B83: =VLOOKUP($A83,生涯個人成績!$A$3:$D$124,3,FALSE) -> 3 | C83: 0 | D83: 79 | E83: =VLOOKUP($A83,生涯個人成績!$A$3:$D$124,2,FALSE) -> isaoさん | F83: isaoさん
A84: 80 | B84: =VLOOKUP($A84,生涯個人成績!$A$3:$D$124,3,FALSE) -> 1 | C84: 0 | D84: 80 | E84: =VLOOKUP($A84,生涯個人成績!$A$3:$D$124,2,FALSE) -> サンタさん | F84: サンタさん | V84: =IF(ISERROR(VLOOKUP(V$3,$C84:$E84,3,FALSE)),"",VLOOKUP(V$3,$C84:$E84,3,FALSE)) -> 
A85: 81 | B85: =VLOOKUP($A85,生涯個人成績!$A$3:$D$124,3,FALSE) -> 1 | C85: 0 | D85: 81 | E85: =VLOOKUP($A85,生涯個人成績!$A$3:$D$124,2,FALSE) -> げ～り～さん | F85: げ～り～さん | G85: =IF(ISERROR(VLOOKUP(G$3,$C85:$E85,3,FALSE)),"",VLOOKUP(G$3,$C85:$E85,3,FALSE)) -> 
A86: 82 | B86: =VLOOKUP($A86,生涯個人成績!$A$3:$D$124,3,FALSE) -> 5 | C86: 0 | D86: 82 | E86: =VLOOKUP($A86,生涯個人成績!$A$3:$D$124,2,FALSE) -> SEVENさん | F86: SEVENさん
A87: 83 | B87: =VLOOKUP($A87,生涯個人成績!$A$3:$D$124,3,FALSE) -> 262 | C87: 12 | D87: 83 | E87: =VLOOKUP($A87,生涯個人成績!$A$3:$D$124,2,FALSE) -> ta-sanさん | R87: ta-sanさん
A88: 84 | B88: =VLOOKUP($A88,生涯個人成績!$A$3:$D$124,3,FALSE) -> 295 | C88: 12 | D88: 84 | E88: =VLOOKUP($A88,生涯個人成績!$A$3:$D$124,2,FALSE) -> t-starsさん | R88: t-starsさん
A89: 85 | B89: =VLOOKUP($A89,生涯個人成績!$A$3:$D$124,3,FALSE) -> 29 | C89: 2 | D89: 85 | E89: =VLOOKUP($A89,生涯個人成績!$A$3:$D$124,2,FALSE) -> zeroさん | H89: zeroさん
A90: 86 | B90: =VLOOKUP($A90,生涯個人成績!$A$3:$D$124,3,FALSE) -> 156 | C90: 8 | D90: 86 | E90: =VLOOKUP($A90,生涯個人成績!$A$3:$D$124,2,FALSE) -> スカイさん | N90: スカイさん
A91: 87 | B91: =VLOOKUP($A91,生涯個人成績!$A$3:$D$124,3,FALSE) -> 287 | C91: 12 | D91: 87 | E91: =VLOOKUP($A91,生涯個人成績!$A$3:$D$124,2,FALSE) -> もんでんどんさん | R91: もんでんどんさん
A92: 88 | B92: =VLOOKUP($A92,生涯個人成績!$A$3:$D$124,3,FALSE) -> 8 | C92: 0 | D92: 88 | E92: =VLOOKUP($A92,生涯個人成績!$A$3:$D$124,2,FALSE) -> 三村風味さん | F92: 三村風味さん
A93: 89 | B93: =VLOOKUP($A93,生涯個人成績!$A$3:$D$124,3,FALSE) -> 1 | C93: 0 | D93: 89 | E93: =VLOOKUP($A93,生涯個人成績!$A$3:$D$124,2,FALSE) -> Z-Kさん | F93: Z-Kさん
A94: 90 | B94: =VLOOKUP($A94,生涯個人成績!$A$3:$D$124,3,FALSE) -> 233 | C94: 10 | D94: 90 | E94: =VLOOKUP($A94,生涯個人成績!$A$3:$D$124,2,FALSE) -> ディランドさん | P94: ディランドさん
A95: 91 | B95: =VLOOKUP($A95,生涯個人成績!$A$3:$D$124,3,FALSE) -> 11 | C95: 0 | D95: 91 | E95: =VLOOKUP($A95,生涯個人成績!$A$3:$D$124,2,FALSE) -> 例文さん | F95: 例文さん
A96: 92 | B96: =VLOOKUP($A96,生涯個人成績!$A$3:$D$124,3,FALSE) -> 53 | C96: 4 | D96: 92 | E96: =VLOOKUP($A96,生涯個人成績!$A$3:$D$124,2,FALSE) -> ryo-kさん | J96: ryo-kさん
A97: 93 | B97: =VLOOKUP($A97,生涯個人成績!$A$3:$D$124,3,FALSE) -> 15 | C97: 0 | D97: 93 | E97: =VLOOKUP($A97,生涯個人成績!$A$3:$D$124,2,FALSE) -> 「PSP完全攻略情報」管理人さん | F97: 「PSP完全攻略情報」管理人さん
A98: 94 | B98: =VLOOKUP($A98,生涯個人成績!$A$3:$D$124,3,FALSE) -> 209 | C98: 10 | D98: 94 | E98: =VLOOKUP($A98,生涯個人成績!$A$3:$D$124,2,FALSE) -> サエグサさん | P98: サエグサさん
A99: 95 | B99: =VLOOKUP($A99,生涯個人成績!$A$3:$D$124,3,FALSE) -> 209 | C99: 10 | D99: 95 | E99: =VLOOKUP($A99,生涯個人成績!$A$3:$D$124,2,FALSE) -> にっちーさん | P99: にっちーさん
A100: 96 | B100: =VLOOKUP($A100,生涯個人成績!$A$3:$D$124,3,FALSE) -> 97 | C100: 4 | D100: 96 | E100: =VLOOKUP($A100,生涯個人成績!$A$3:$D$124,2,FALSE) -> ナックさん | J100: ナックさん | V100: =IF(ISERROR(VLOOKUP(V$3,$C100:$E100,3,FALSE)),"",VLOOKUP(V$3,$C100:$E100,3,FALSE)) -> 
A101: 97 | B101: =VLOOKUP($A101,生涯個人成績!$A$3:$D$124,3,FALSE) -> 30 | C101: 2 | D101: 97 | E101: =VLOOKUP($A101,生涯個人成績!$A$3:$D$124,2,FALSE) -> アルさん | G101: =IF(ISERROR(VLOOKUP(G$3,$C101:$E101,3,FALSE)),"",VLOOKUP(G$3,$C101:$E101,3,FALSE)) ->  | H101: アルさん
A102: 98 | B102: =VLOOKUP($A102,生涯個人成績!$A$3:$D$124,3,FALSE) -> 5 | C102: 0 | D102: 98 | E102: =VLOOKUP($A102,生涯個人成績!$A$3:$D$124,2,FALSE) -> どらすけさん | F102: どらすけさん
A103: 99 | B103: =VLOOKUP($A103,生涯個人成績!$A$3:$D$124,3,FALSE) -> 3 | C103: 0 | D103: 99 | E103: =VLOOKUP($A103,生涯個人成績!$A$3:$D$124,2,FALSE) -> autoさん | F103: autoさん
A104: 100 | B104: =VLOOKUP($A104,生涯個人成績!$A$3:$D$124,3,FALSE) -> 178 | C104: 8 | D104: 100 | E104: =VLOOKUP($A104,生涯個人成績!$A$3:$D$124,2,FALSE) -> dbcaeさん | N104: dbcaeさん
A105: 101 | B105: =VLOOKUP($A105,生涯個人成績!$A$3:$D$124,3,FALSE) -> 13 | C105: 0 | D105: 101 | E105: =VLOOKUP($A105,生涯個人成績!$A$3:$D$124,2,FALSE) -> てぃるさん | F105: てぃるさん
A106: 102 | B106: =VLOOKUP($A106,生涯個人成績!$A$3:$D$124,3,FALSE) -> 4 | C106: 0 | D106: 102 | E106: =VLOOKUP($A106,生涯個人成績!$A$3:$D$124,2,FALSE) -> よーいちさん | F106: よーいちさん
A107: 103 | B107: =VLOOKUP($A107,生涯個人成績!$A$3:$D$124,3,FALSE) -> 1 | C107: 0 | D107: 103 | E107: =VLOOKUP($A107,生涯個人成績!$A$3:$D$124,2,FALSE) -> ナマイキさん | F107: ナマイキさん
A108: 104 | B108: =VLOOKUP($A108,生涯個人成績!$A$3:$D$124,3,FALSE) -> 158 | C108: 8 | D108: 104 | E108: =VLOOKUP($A108,生涯個人成績!$A$3:$D$124,2,FALSE) -> 森の人さん | N108: 森の人さん
A109: 105 | B109: =VLOOKUP($A109,生涯個人成績!$A$3:$D$124,3,FALSE) -> 50 | C109: 3 | D109: 105 | E109: =VLOOKUP($A109,生涯個人成績!$A$3:$D$124,2,FALSE) -> ぶんさん | I109: ぶんさん
A110: 106 | B110: =VLOOKUP($A110,生涯個人成績!$A$3:$D$124,3,FALSE) -> 157 | C110: 8 | D110: 106 | E110: =VLOOKUP($A110,生涯個人成績!$A$3:$D$124,2,FALSE) -> すいぶるさん | N110: すいぶるさん
A111: 107 | B111: =VLOOKUP($A111,生涯個人成績!$A$3:$D$124,3,FALSE) -> 93 | C111: 4 | D111: 107 | E111: =VLOOKUP($A111,生涯個人成績!$A$3:$D$124,2,FALSE) -> うえりさん | J111: うえりさん
A112: 108 | B112: =VLOOKUP($A112,生涯個人成績!$A$3:$D$124,3,FALSE) -> 78 | C112: 4 | D112: 108 | E112: =VLOOKUP($A112,生涯個人成績!$A$3:$D$124,2,FALSE) -> きたぼむさん | J112: きたぼむさん
A113: 109 | B113: =VLOOKUP($A113,生涯個人成績!$A$3:$D$124,3,FALSE) -> 25 | C113: 0 | D113: 109 | E113: =VLOOKUP($A113,生涯個人成績!$A$3:$D$124,2,FALSE) -> おとろまさん | F113: おとろまさん
A114: 110 | B114: =VLOOKUP($A114,生涯個人成績!$A$3:$D$124,3,FALSE) -> 131 | C114: 6 | D114: 110 | E114: =VLOOKUP($A114,生涯個人成績!$A$3:$D$124,2,FALSE) -> IKERUさん | L114: IKERUさん
A115: 111 | B115: =VLOOKUP($A115,生涯個人成績!$A$3:$D$124,3,FALSE) -> 113 | C115: 6 | D115: 111 | E115: =VLOOKUP($A115,生涯個人成績!$A$3:$D$124,2,FALSE) -> ジェナスさん | L115: ジェナスさん
A116: 112 | B116: =VLOOKUP($A116,生涯個人成績!$A$3:$D$124,3,FALSE) -> 105 | C116: 6 | D116: 112 | E116: =VLOOKUP($A116,生涯個人成績!$A$3:$D$124,2,FALSE) -> パルスさん | L116: パルスさん | V116: =IF(ISERROR(VLOOKUP(V$3,$C116:$E116,3,FALSE)),"",VLOOKUP(V$3,$C116:$E116,3,FALSE)) -> 
A117: 113 | B117: =VLOOKUP($A117,生涯個人成績!$A$3:$D$124,3,FALSE) -> 16 | C117: 0 | D117: 113 | E117: =VLOOKUP($A117,生涯個人成績!$A$3:$D$124,2,FALSE) -> レプルさん | F117: レプルさん | G117: =IF(ISERROR(VLOOKUP(G$3,$C117:$E117,3,FALSE)),"",VLOOKUP(G$3,$C117:$E117,3,FALSE)) -> 
A118: 114 | B118: =VLOOKUP($A118,生涯個人成績!$A$3:$D$124,3,FALSE) -> 6 | C118: 0 | D118: 114 | E118: =VLOOKUP($A118,生涯個人成績!$A$3:$D$124,2,FALSE) -> ますさん | F118: ますさん
A119: 115 | B119: =VLOOKUP($A119,生涯個人成績!$A$3:$D$124,3,FALSE) -> 18 | C119: 0 | D119: 115 | E119: =VLOOKUP($A119,生涯個人成績!$A$3:$D$124,2,FALSE) -> 1cupさん | F119: 1cupさん
A120: 116 | B120: =VLOOKUP($A120,生涯個人成績!$A$3:$D$124,3,FALSE) -> 1 | C120: 0 | D120: 116 | E120: =VLOOKUP($A120,生涯個人成績!$A$3:$D$124,2,FALSE) -> ＮＯＢＵさん | F120: ＮＯＢＵさん
A121: 117 | D121: 117
A122: 118 | D122: 118
A123: 119 | D123: 119
A124: 120 | D124: 120
A125: 121 | D125: 121
A126: 122 | D126: 122
A127: 123 | D127: 123
A128: 124 | D128: 124
A129: 125 | D129: 125
A130: 126 | D130: 126
A131: 127 | D131: 127
A132: 128 | D132: 128 | V132: =IF(ISERROR(VLOOKUP(V$3,$C132:$E132,3,FALSE)),"",VLOOKUP(V$3,$C132:$E132,3,FALSE)) -> 
A133: 129 | D133: =A133 -> 129 | F133: =IF(ISERROR(VLOOKUP(0,$C133:$E133,3,FALSE)),"",VLOOKUP(0,$C133:$E133,3,FALSE)) ->  | G133: =IF(ISERROR(VLOOKUP(G$3,$C133:$E133,3,FALSE)),"",VLOOKUP(G$3,$C133:$E133,3,FALSE)) -> 
A134: 130 | D134: 130
A135: 131 | D135: 131
A136: 132 | D136: 132
A137: 133 | D137: 133
A138: 134 | D138: 134
A139: 135 | D139: 135
A140: 136 | D140: 136
A141: 137 | D141: 137
A142: 138 | D142: 138
A143: 139 | D143: 139
A144: 140 | D144: 140
A145: 141 | D145: 141
A146: 142 | D146: 142
A147: 143 | D147: 143
A148: 144 | D148: 144 | V148: =IF(ISERROR(VLOOKUP(V$3,$C148:$E148,3,FALSE)),"",VLOOKUP(V$3,$C148:$E148,3,FALSE)) -> 
A149: 145 | D149: 145 | G149: =IF(ISERROR(VLOOKUP(G$3,$C149:$E149,3,FALSE)),"",VLOOKUP(G$3,$C149:$E149,3,FALSE)) -> 
A150: 146 | D150: 146
A151: 147 | D151: 147
A152: 148 | D152: 148
A153: 149 | D153: 149
A154: 150 | D154: 150
A155: 151 | D155: 151
A156: 152 | D156: 152
A157: 153 | D157: 153
A158: 154 | D158: 154
A159: 155 | D159: 155
A160: 156 | D160: 156
A161: 157 | D161: 157
A162: 158 | D162: 158
A163: 159 | D163: 159
A164: 160 | D164: 160 | V164: =IF(ISERROR(VLOOKUP(V$3,$C164:$E164,3,FALSE)),"",VLOOKUP(V$3,$C164:$E164,3,FALSE)) -> 
A165: 161 | D165: 161 | G165: =IF(ISERROR(VLOOKUP(G$3,$C165:$E165,3,FALSE)),"",VLOOKUP(G$3,$C165:$E165,3,FALSE)) -> 
A166: 162 | D166: 162
A167: 163 | D167: 163
A168: 164 | D168: 164
A169: 165 | D169: 165
A170: 166 | D170: 166
A171: 167 | D171: 167
A172: 168 | D172: 168
A173: 169 | D173: 169
A174: 170 | D174: 170
A175: 171 | D175: 171
A176: 172 | D176: 172
A177: 173 | D177: 173
A178: 174 | D178: 174
A179: 175 | D179: 175
A180: 176 | D180: 176 | V180: =IF(ISERROR(VLOOKUP(V$3,$C180:$E180,3,FALSE)),"",VLOOKUP(V$3,$C180:$E180,3,FALSE)) -> 
A181: 177 | D181: 177 | G181: =IF(ISERROR(VLOOKUP(G$3,$C181:$E181,3,FALSE)),"",VLOOKUP(G$3,$C181:$E181,3,FALSE)) -> 
A182: 178 | D182: 178
A183: 179 | D183: 179
A184: 180 | D184: 180
A185: 181 | D185: 181
A186: 182 | D186: 182
A187: 183 | D187: 183
A188: 184 | D188: 184
A189: 185 | D189: 185
A190: 186 | D190: 186
A191: 187 | D191: 187
A192: 188 | D192: 188
A193: 189 | D193: 189
A194: 190 | D194: 190
A195: 191 | D195: 191
A196: 192 | D196: 192 | V196: =IF(ISERROR(VLOOKUP(V$3,$C196:$E196,3,FALSE)),"",VLOOKUP(V$3,$C196:$E196,3,FALSE)) -> 
A197: 193 | D197: =A197 -> 193 | F197: =IF(ISERROR(VLOOKUP(0,$C197:$E197,3,FALSE)),"",VLOOKUP(0,$C197:$E197,3,FALSE)) ->  | G197: =IF(ISERROR(VLOOKUP(G$3,$C197:$E197,3,FALSE)),"",VLOOKUP(G$3,$C197:$E197,3,FALSE)) -> 
A198: 194 | D198: 194
A199: 195 | D199: 195
A200: 196 | D200: 196
... 3 more rows

Sheet 登録名変遷
A1: 全予想戦士の登録名の変遷（期間中の変更は含まない）と特記事項（括弧でくくってあるもの）を一覧表示。 | C1: Y1始動、初の完全試合 「ギレンショック」 予想王2kシリーズ始動 PS2発売 | D1: 「伝説の2期21回」 | E1: 集計機関をファミ通に GBA発売 | F1: 「SOD」シリーズ始動 累計3000点突破 GC発売 | G1: Xbox発売 | H1: 初めて参加者30人突破 初の重盗記録 初の週間400点台 | I1: ルーキーイヤー到来 GBASP発売 | J1: Y1 200回 | K1: 史上初、非皆勤優勝 「ヨソウしようぜ3」始動 | L1: 「100人予想」S始動 DS、PSP発売 | M1: 「YSO」閉鎖 | N1: 「続YSO」始動 古参予想戦士、相次いでスタッフ就任 XB360発売 | O1: 史上初の週間500点台 | P1: 2週連続完全試合 「Y1」純参加者数100名突破 Wii、PS3発売 | Q1: 2週連続完全試合、再 「Y1」参加者数10000名突破 「SOD2007春」開催 | R1: 「Y1」400回 「SOD2007冬」開催 | S1: 史上初、未勝利優勝 | T1: 「SOD2008冬」開催 ニンテンドーDSi発売 | U1: 重盗で初の盗点400超 ＆2度目の500点超 | V1: 「Y1」500回 PSP go、DSi LL発売 100人予想 御三家揃い踏み
A2: No. | B2: 登録名（※最新版） | C2: 第1期 | D2: 第2期 | E2: 第3期 | F2: 第4期 | G2: 第5期 | H2: 第6期 | I2: 第7期 | J2: 第8期 | K2: 第9期 | L2: 第10期 | M2: 第11期 | N2: 第12期 | O2: 第13期 | P2: 第14期 | Q2: 第15期 | R2: 第16期 | S2: 第17期 | T2: 第18期 | U2: 第19期 | V2: 第20期 | W2: 第21期 | X2: 第22期 | Y2: 第23期 | Z2: 第24期
A3: 0 | B3: YSO-MC | C3: =VLOOKUP(A3,第1期個人成績!$A$3:$B$100,2,FALSE) -> 亀井（仮名） | D3: 亀井【仮名】 | E3: 予想王スタッフ | G3: YSOスタッフ | J3: YSO-MC | N3: （退役）
A4: 1 | B4: ラルさん | C4: ラルさん | K4: （ヨソしよ3アドバイザー） | N4: （2代目MC就任）
A5: 2 | B5: HAQ48 | C5: Sovathさん | E5: Sovath伯爵 | G5: フランスFC | H5: ら・フランスFC | I5: キグナスの予想戦士さん | J5: so-v.A.T.hチーム | K5: タッキー＆伯爵さん | L5: 空と伯爵さん | M5: 伯爵ペガサスさん | N5: .hackshak// さん | O5: けけマルセイユさん | P5: HAK-KUNさん | Q5: セイヤ無双さん | R5: ギザ伯爵さん | S5: アントキの伯爵さん | T5: 伯爵のくせになまいきだor2さん | U5: 伯爵豚野郎さん | V5: ミスター・ブシドーさん | W5: HAQ48 | X5: 渡り廊下で予想し隊
A6: 3 | B6: ヤンダルさん | C6: ヤンダルさん | N6: （YSOスタッフ就任）
A7: 4 | B7: 陣内閣竜さん | C7: 陣内閣竜さん
A8: 5 | B8: GEKOさん | C8: SSUZUKIさん | D8: SHUKIOBIさん | G8: GEKOさん | K8: （ヨソしよ3スタッフ就任） | N8: （YSOスタッフ就任）
A9: 6 | B9: なりぼーさん | C9: なりぼーさん
A10: 7 | B10: NOVさん | C10: HMVさん | D10: NOVさん
A11: 8 | B11: ろとーさん | C11: ROTさん | H11: ROToさん | J11: ロトーさん | O11: ろとーさん
A12: 9 | B12: HDBさん | C12: うききさん | D12: HDBさん
A13: 10 | B13: カイザー鈴木さん | C13: 刑事ポンさん | D13: 今師さん | P13: カイザー鈴木さん
A14: 11 | B14: う～たんさん | C14: う～たんさん
A15: 12 | B15: iceさん | C15: iceさん | D15: psycheさん | E15: iceさん
A16: 13 | B16: うにょさん | C16: てりーさん | N16: （YSOスタッフ就任） | O16: うにょさん
A17: 14 | B17: リアル野比Ver2.0さん | C17: リアル野比Ver2.0さん
A18: 15 | B18: タナリンさん | D18: タナリンさん
A19: 16 | B19: R6さん | D19: R6さん
A20: 17 | B20: HiiMaさん | E20: HiiMaさん | N20: （YSOスタッフ就任）
A21: 18 | B21: 楽園さん | E21: 田楽さん | J21: 楽園さん
A22: 19 | B22: ルパン3世さん | E22: ルパン3世さん
A23: 20 | B23: Natit | F23: 蟹好き | I23: Natit | N23: （YSOスタッフ就任）
A24: 21 | B24: 清べえさん | F24: 清べえさん
A25: 22 | B25: ラムネさん | F25: ラムネさん
A26: 23 | B26: なかやまさん | F26: なかやまさん
A27: 24 | B27: マドロックさん | F27: マドロックさん
A28: 25 | B28: らすこうさん | G28: らすこうさん
A29: 26 | B29: termtom2000さん | G29: termtom2000さん
A30: 27 | B30: Defiさん | G30: SGさん | J30: Defiさん | K30: （ヨソしよ3スタッフ就任） | N30: （YSOスタッフ就任）
A31: 28 | B31: 魔神ガーゼットさん | G31: 魔神ガーゼットさん
A32: 29 | B32: reookさん | G32: reookさん
A33: 30 | B33: awoさん | G33: awoさん
A34: 31 | B34: uniuniさん | G34: uniuniさん
A35: 32 | B35: はぐさん | G35: はぐさん
A36: 33 | B36: いでっくさん | G36: いでっくさん | N36: （YSOスタッフ就任）
A37: 34 | B37: Atm0sph3reさん | G37: Atm0sph3reさん
A38: 35 | B38: じいさん | G38: じいさん
A39: 36 | B39: 精霊さん | G39: 精霊さん
A40: 37 | B40: Eugeneさん | G40: Eugeneさん
A41: 38 | B41: ゆーのさん | H41: ゆーのさん
A42: 39 | B42: TAKOさん | H42: TAKOさん
A43: 40 | B43: ケロロさん | H43: ケロロさん
A44: 41 | B44: エグドラシル使いMさん | H44: エグドラシル使いMさん
A45: 42 | B45: kazunaさん | H45: kazunaさん
A46: 43 | B46: ZERUさん | H46: ZERUさん
A47: 44 | B47: aruさん | H47: aruさん
A48: 45 | B48: ナルクさん | H48: nalkさん | Q48: ナルクさん
A49: 46 | B49: ブッフバルトさん | H49: ブッフバルトさん
A50: 47 | B50: ボチョコさん | H50: ボチョコさん
A51: 48 | B51: 系譜さん | H51: 系譜さん
A52: 49 | B52: vanblaesさん | H52: vanblaesさん
A53: 50 | B53: uwanさん | H53: uwanさん
A54: 51 | B54: chukaiさん | H54: chukaiさん
A55: 52 | B55: zaozaoさん | I55: zaozaoさん
A56: 53 | B56: みったにさん | I56: みったにさん
A57: 54 | B57: yuifanさん | I57: yuifanさん
A58: 55 | B58: 真央さん | I58: 真央さん
A59: 56 | B59: 龍息さん | I59: 龍息さん
A60: 57 | B60: まいさん | I60: ふみやさん | M60: まいさん
A61: 58 | B61: Gahiggidyさん | I61: Gahiggidyさん
A62: 59 | B62: ぱぴよんさん | I62: ぱぴよんさん
A63: 60 | B63: nabeさん | I63: nabeさん
A64: 61 | B64: 赤魔神儀さん | I64: 赤魔神儀さん
A65: 62 | B65: 信也さん | I65: 信也さん
A66: 63 | B66: 大犬さん | I66: 大犬さん
A67: 64 | B67: ガストンさん | I67: ガストンさん
A68: 65 | B68: ポックスウイルスさん | I68: ポックスウイルスさん
A69: 66 | B69: arusuさん | I69: arusuさん
A70: 67 | B70: 愚王さん | I70: 愚王さん
A71: 68 | B71: AKUさん | I71: AKUさん
A72: 69 | B72: ジョージさん | I72: ジョージさん
A73: 70 | B73: T-Kさん | I73: T-Kさん
A74: 71 | B74: 智蔵さん | J74: 智蔵さん
A75: 72 | B75: Libさん | J75: Libさん
A76: 73 | B76: 新人氏 さん | J76: 新人氏 さん
A77: 74 | B77: 迷予想人間さん | J77: 迷予想人間さん
A78: 75 | B78: ゆーとぴあI企画 さん | J78: ゆーとぴあI企画 さん
A79: 76 | B79: リュウさん | J79: リュウさん
A80: 77 | B80: 末魔導けんじ。 さん | J80: 末魔導けんじ。 さん
A81: 78 | B81: くろおびさん | K81: くろおびさん
A82: 79 | B82: isaoさん | K82: isaoさん
A83: 80 | B83: サンタさん | K83: サンタさん
A84: 81 | B84: げ～り～さん | K84: げ～り～さん
A85: 82 | B85: SEVENさん | K85: SEVENさん
A86: 83 | B86: ta-sanさん | K86: takumaさん | O86: ta-sanさん
A87: 84 | B87: t-starsさん | K87: t-starsさん
A88: 85 | B88: zeroさん | K88: zeroさん
A89: 86 | B89: スカイさん | K89: スカイさん
A90: 87 | B90: もんでんどんさん | L90: もんでんどんさん
A91: 88 | B91: 三村風味さん | L91: 三村風味さん
A92: 89 | B92: Z-Kさん | L92: Z-Kさん
A93: 90 | B93: ディランドさん | N93: ディランドさん
A94: 91 | B94: 例文さん | N94: 例文さん
A95: 92 | B95: ryo-kさん | N95: ryo-kさん
A96: 93 | B96: 「PSP完全攻略情報」管理人さん | N96: 「PSP完全攻略情報」管理人さん
A97: 94 | B97: サエグサさん | O97: サエグサさん
A98: 95 | B98: にっちーさん | O98: にっちーさん
A99: 96 | B99: ナックさん | P99: ナックさん
A100: 97 | B100: アルさん | P100: アルさん
A101: 98 | B101: どらすけさん | P101: どらすけさん
A102: 99 | B102: autoさん | P102: autoさん
A103: 100 | B103: dbcaeさん | P103: dbcaeさん
A104: 101 | B104: てぃるさん | P104: てぃるさん
A105: 102 | B105: よーいちさん | P105: よーいちさん
A106: 103 | B106: ナマイキさん | P106: ナマイキさん
A107: 104 | B107: 森の人さん | P107: 森の人さん
A108: 105 | B108: ぶんさん | Q108: ぶんさん
A109: 106 | B109: すいぶるさん | Q109: すいぶるさん
A110: 107 | B110: うえりさん | Q110: うえりさん
A111: 108 | B111: きたぼむさん | R111: ジャックSHOWさん | T111: きたぼむさん
A112: 109 | B112: おとろまさん | R112: おとろまさん
A113: 110 | B113: IKERUさん | R113: ikeruさん | V113: IKERUさん
A114: 111 | B114: ジェナスさん | R114: ジェナスさん
A115: 112 | B115: パルスさん | S115: パルスさん
A116: 113 | B116: レプルさん | S116: レプルさん
A117: 114 | B117: ますさん | S117: ますさん
A118: 115 | B118: 1cupさん | S118: 1cupさん
A119: 116 | B119: ＮＯＢＵさん | T119: ＮＯＢＵさん
A120: 117 | B120: セイランさん | V120: セイランさん
A121: 118 | B121: Memorinさん | V121: Memorinさん
A122: 119
A123: 120
A124: 121
A125: 122
A126: 123
A127: 124

Sheet 登録名変遷（伯爵専用）
A1: 「Y1」史上最多の登録名変遷を行っている伯爵さんの登録名をすべて掲載 | M1: 12期2回からスレログよりデータ収集開始
B2: 第1期 | C2: 第2期 | D2: 第3期 | E2: 第4期 | F2: 第5期 | G2: 第6期 | H2: 第7期 | I2: 第8期 | J2: 第9期 | K2: 第10期 | L2: 第11期 | M2: 第12期 | N2: 第13期 | O2: 第14期 | P2: 第15期 | Q2: 第16期 | R2: 第17期 | S2: 第18期 | T2: 第19期 | U2: 第20期 | V2: 第21期 | W2: 第22期
A3: 第1回 | B3: Sovathさん | C3: Sovathさん | D3: Sovath伯爵 | E3: Sovath伯爵 | F3: フランスFC | G3: ら・フランスFCチーム | H3: キグナスの予想戦士さん | I3: so-v.A.T.hさん | J3: タッキー＆伯爵さん | L3: 伯爵ペガサスさん | M3: .hackshak// さん | N3: けけマルセイユさん | O3: （休） | P3: セイヤ無双さん | Q3: ギザ伯爵さん | R3: アントキの伯爵さん | S3: 伯爵のくせになまいきだor2さん | T3: 伯爵豚野郎さん | U3: ミスター・ブシドーさん | V3: HAQ48
A4: 第2回 | B4: （この期は変更なし） | C4: （この期は変更なし） | D4: （この期は変更なし） | E4: （この期は変更なし） | F4: ↓ | G4: ↓ | H4: ↓ | I4: so-v.A.T.hチーム | J4: ↓ | L4: ↓ | M4: .hackshak//伯爵混乱さん | N4: ↓ | O4: （休） | P4: ↓ | Q4: グループ魂に伯爵が | R4: ↓ | S4: 崖の上の伯爵さん | T4: メイちゃんの伯爵さん | U4: ↓ | V4: 南仏事変さん
A5: 第3回 | F5: ↓ | G5: ↓ | H5: ↓ | I5: ↓ | J5: ↓ | L5: ↓ | M5: （休） | N5: ↓ | O5: HAK-KUNさん | P5: 華麗なる伯爵さん | Q5: ギザ伯爵2.0さん | R5: ↓ | S5: ～Haqshak project ver.～ | T5: Wiiで遊ぶ伯爵（たまに。） | U5: 9伯爵9人9の扉
A6: 第4回 | F6: ↓ | G6: ↓ | H6: ↓ | I6: ↓ | J6: ↓ | L6: ↓ | M6: .hackshak// × EXILEさん | N6: ↓ | O6: （休） | P6: 華麗なる伯爵②さん | Q6: ↓ | R6: フリート街の悪魔の理伯爵さん | S6: アテナエクスクラメーションさん | T6: 伯爵さん | U6: リュカ w/B.I.Haqshak
A7: 第5回 | F7: ↓ | G7: ↓ | H7: ↓ | I7: ↓ | J7: ↓ | K7: （ここまで休） | L7: ↓ | M7: .hackshak// 虫は嫌いだ～ の巻さん | N7: （休） | O7: （休） | P7: セイヤ無双さん | Q7: 佐伯爵さん | R7: ハクシャクスローネさん | S7: 伯爵さん | T7: 伯爵30（体験版）さん | U7: 伯爵VS嵐
A8: 第6回 | F8: ↓ | G8: ↓ | H8: ↓ | I8: ↓ | J8: ↓ | K8: 空と伯爵さん | L8: ↓ | M8: ワンダと伯爵さん | N8: HOTEI vs HAKUSHAKさん | O8: 伯爵とクローバーさん | P8: ↓ | Q8: Haq! Shak! 7 | R8: HAQSHAK with QUESTION? | S8: 伯爵と妖精(仮題) | T8: めぐりあう二人の名伯爵さん | U8: T260G supported by haqshak
A9: 第7回 | F9: ↓ | G9: ↓ | H9: ↓ | I9: ↓ | J9: ↓ | K9: ↓ | L9: ↓ | M9: 伯爵はそれを愛と呼ぶんだぜさん | N9: 伯爵の愛した数式さん | O9: （休） | P9: （休） | Q9: GIZA伯爵さん | R9: 伯爵 the Last Name | S9: ナニコレ珍伯爵さん | T9: 伯爵さん | U9: 伝説のハクシャ君人形さん
A10: 第8回 | F10: ↓ | G10: ↓ | H10: ↓ | I10: ↓ | J10: ↓ | K10: ↓ | L10: ↓ | M10: 新党伯爵さん | N10: （休） | O10: HAK-KUNさん | P10: ↓ | Q10: ギザ伯爵さん | R10: 伯爵テルマ feat. SoulJa | S10: 打撃予想天使ハクさん | T10: アリオトフェンリルさん | U10: ミスター・ブシドーさん
A11: 第9回 | F11: ↓ | G11: ↓ | H11: ↓ | I11: ↓ | J11: ↓ | K11: ↓ | L11: ↓ | M11: （休） | N11: 伯爵さん | O11: （休） | P11: （休） | Q11: ギザ伯爵スさん | R11: オルフェさん | S11: ハクシャ・クラウザーⅡ世さん | T11: エピソード2 目覚める伯爵さん | U11: ↓
A12: 第10回 | F12: ↓ | G12: ↓ | H12: キグナスの予想聖闘士さん | I12: ↓ | J12: ↓ | K12: ↓ | L12: ↓ | M12: NANA starring .hackshak// | N12: （休） | O12: （休） | P12: ↓ | Q12: 伯☆爵さん | R12: 十二宮のあそこで | S12: 予想戦士伯爵 伯爵 vs 伯爵(PSP) | T12: すっごい！アルカナはくしゃく２さん | U12: （休）
A13: 第11回 | F13: ↓ | G13: ↓ | H13: ↓ | I13: ↓ | J13: ↓ | K13: ↓ | L13: ↓ | M13: 伯爵Girl's Sideさん | N13: ドスマルセイユさん | O13: ↓ | P13: セイヤ無双 -Ballad Version- | Q13: ↓ | R13: エド・はくしゃくさん | S13: YOSOH NEXT DOOR | T13: はくしゃクンは呪われてしまった！ | U13: ドラえもん はくさく のびたさん
A14: 第12回 | F14: ↓ | G14: ↓ | H14: ↓ | I14: ↓ | J14: ↓ | K14: ↓ | L14: ↓ | M14: 僕も伯爵も塊魂さん | N14: おさわり伯爵 けけマルセイユさん | O14: ↓ | P14: セイヤ無双OROCHIさん | Q14: 予想戦士ハクシャク ハクシャク VS.ハクシャク | R14: ソヴァスタル・ビーイング | S14: メイクレジェンドfeat.伯爵 | T14: 伯爵位認定BOXさん | U14: ミスター・ブシドーさん
A15: 第13回 | F15: ↓ | G15: ↓ | H15: ↓ | I15: ↓ | J15: ↓ | K15: ↓ | L15: ↓ | M15: 伯爵の教室さん | N15: 伯爵 with ダウンローズ | O15: ↓ | P15: セイヤ無双フェス | Q15: 刹那・F・ハクシャクさん | R15: 髭伯爵さん | S15: 真伯爵府長 MULTI RAID | T15: 33分伯爵さん | U15: 伯爵のくせになまいきだ:3D
A16: 第14回 | F16: ↓ | G16: ↓ | H16: ↓ | I16: ↓ | J16: ↓ | K16: ↓ | L16: ↓ | M16: （休） | N16: テオ・マルセイユ（伯爵龍）さん | O16: （休） | P16: セイヤ由伸さん | Q16: Atashiga Sovath Haqshak (A.S.H.) | R16: 伯爵さん | S16: 予想者Xの献身さん | T16: きみとぼくと伯爵。さん | U16: サンダー・エアロさん
A17: 第15回 | F17: ↓ | G17: ↓ | H17: ↓ | I17: ↓ | J17: ↓ | K17: ↓ | L17: ↓ | M17: おいでよ！伯爵邸脇の庭の森さん | N17: 伯爵さん | O17: ↓ | P17: 伯爵は見た!いや、見てない。 | Q17: 伯爵様 | R17: 244 HAQSHA-x | S17: ファントムハイヴ伯爵さん | T17: 仏の予想術士 ～FRENCH EXPECTIST～ さん | U17: 光と闇の予想さん
A18: 第16回 | F18: ↓ | G18: ↓ | H18: ↓ | I18: ↓ | J18: ↓ | K18: ↓ | L18: ↓ | M18: .hackshak//魑魅魍魎さん | N18: ライラの伯爵さん | O18: ↓ | P18: ノワール伯爵さん | Q18: Kiss & Cry | R18: 伯爵心さん | S18: 伯爵さん | T18: HAQXILE | U18: フランス（CV:伯爵）
A19: 第17回 | F19: ラ・フランスFCチーム | G19: ↓ | H19: ↓ | I19: ↓ | J19: ↓ | K19: ↓ | L19: ↓ | M19: まだまだあぶない伯爵さん | N19: （休） | O19: ↓ | P19: ザ・伯爵ズ | Q19: セイエイさん | R19: シグマハクシャニクスさん | S19: ↓ | T19: スローンとハクシャークの謎の予想 | U19: 伯爵(ｽｰﾊﾟｰﾌﾗﾝｽ人3即時解放ﾌﾟﾛﾀﾞｸﾄｺｰﾄﾞ付)
A20: 第18回 | F20: ↓ | G20: ↓ | H20: ↓ | I20: ↓ | J20: ↓ | K20: ↓ | L20: ↓ | M20: 修二と彰と伯爵さん | N20: HAKUSHAK☆HAKUSHAKさん | O20: （休） | P20: ビューティフル伯爵魂 | Q20: 伯爵さん | R20: 伯の騎士団さん | S20: 矢島伯爵府さん | T20: 桜高予想部（伯爵とか） | U20: ハクシャクライムさん
A21: 第19回 | F21: ↓ | G21: ↓ | H21: ↓ | I21: ↓ | J21: ↓ | K21: ↓ | L21: ↓ | M21: .hackshak//フラグメントさん | N21: 伯爵さん | O21: 伯爵さん | P21: セイヤ無双さん | Q21: （マルセイユ） ３丁目の伯爵さん | R21: クルム伯爵さん | S21: ハクシャク☆スーツさん | T21: （休） | U21: 予想戦士ハクシャクUC（ﾃﾞｽﾄﾛｲﾓｰﾄﾞ）
A22: 第20回 | F22: ↓ | G22: ↓ | H22: ↓ | I22: ↓ | J22: ↓ | K22: ↓ | L22: ↓ | M22: 伯爵の不思議なペンションさん | N22: （休） | O22: ↓ | P22: 伯爵起草さん | Q22: 伯爵さん | R22: 隠し砦の三伯爵さん | S22: MAZDA Zoom-Zoom スタジアム伯爵 | T22: 伯爵ともりもりさん | U22: 伯爵iLLさん
A23: 第21回 | F23: ↓ | G23: ↓ | H23: ↓ | I23: ↓ | J23: ↓ | K23: ↓ | L23: ↓ | M23: （休） | N23: （休） | O23: オシャレ貴族 伯爵＆ベリーさん | P23: 伯爵の愛した数式さん | Q23: Haq！Shak！JUMP | R23: 伯爵さん | S23: 伯爵も永久のカナシさん | T23: THE 予想員さん | U23: ハクシャック×ダクスターさん
A24: 第22回 | F24: ↓ | G24: ↓ | H24: ↓ | I24: ↓ | J24: ↓ | K24: ↓ | L24: ↓ | M24: 伯爵さん | N24: 伯爵さん | O24: ↓ | P24: セイヤ無双Sparking METEOR | Q24: 伯爵さん | R24: 伯欧州 | S24: JUJU feat.haqshak | T24: 水晶聖闘士さん | U24: 伯爵のロンドンライフさん
A25: 第23回 | F25: ↓ | G25: ↓ | H25: ↓ | I25: ↓ | J25: ↓ | K25: ↓ | L25: ↓ | M25: m-flo loves .hackshak// | N25: ↓ | O25: ↓ | P25: 株アンドロメダー瞬さん | Q25: 伯爵のくせになまいきだ | R25: 伯爵(幼年期) | S25: 伯爵さん | T25: 伯爵もgoさん | U25: はくしゃクンポケット12
A26: 第24回 | F26: ↓ | G26: ↓ | H26: ↓ | I26: ↓ | J26: ↓ | K26: ↓ | L26: ↓ | M26: .hackshak//厚着防寒さん | N26: ↓ | O26: （休） | P26: （休） | Q26: 伯爵ナドレさん | R26: 伯爵はこすもでまわってる | S26: 特命貴族長 只野伯爵さん | T26: 人喰いの貴族ハクシャクさん | U26: スノープリンス予想団
A27: 第25回 | F27: ↓ | G27: ↓ | H27: ↓ | I27: ↓ | J27: ↓ | K27: ↓ | L27: ↓ | M27: （休） | N27: ↓ | O27: HAK-KUNさん | P27: SeeeeIYA MUSOH | Q27: フェルーゼン伯爵さん | R27: 伯爵者達 | S27: 天璋院伯姫さん | T27: HUDSON×HAQSHaaaaK | U27: 南仏事変さん
A28: 第26回 | F28: ↓ | G28: ↓ | H28: ↓ | I28: ↓ | J28: ↓ | K28: ↓ | L28: ↓ | M28: （休） | N28: （休） | O28: （休） | P28: （休） | Q28: 伯爵さん | R28: ザ・ビッグ伯爵 | S28: 伯爵さん | T28: 伯爵豚野郎さん | U28: ファルシ＝ハクシャクさん
A29: 第27回 | K29: ↓ | U29: 100万トンのハクシャクさん

Sheet 自己ベスト一覧
B1: 自己ベスト一覧 | C1: 基本データ | W1: 盗塁関連 | Z1: 誤差指数 | AC1: 連続無三振
A2: No. | B2: 登録名（※最終登録名を記載） ※青字はYSOスタッフ | C2: 参加 | D2: 累計 ポイント | E2: 平均 ポイント | F2: 盗塁 ポイント | G2: 勝数 | H2: 負数 | I2: ヒット | J2: 三振 | K2: 防御率 | L2: 補正 防御率 | M2: 累計順位 | N2: 補正 累計順位 | O2: PB数 | P2: 順位当て | Q2: 入賞回数 | R2: 入賞率 | S2: 圏外回数 | T2: 圏外率 | U2: ハイ スコア | V2: ロー スコア | W2: 敢行数 | X2: 成功数 | Y2: 成功率 | Z2: 総合 | AA2: 新作 | AB2: 旧作 | AC2: 期間 | AD2: 通算 | AE2: No. | AF2: 登録名（※最終登録名を記載）
A3: 0 | B3: =VLOOKUP(A3,登録名変遷!$A$3:$B$1005,2,FALSE) -> YSO-MC | C3: =生涯計算01!AB3 -> 27 | D3: =生涯計算01!BD3 -> 3458 | E3: =生涯計算01!CC3 -> 128.0740741 | F3: =生涯計算04!AC3 -> 259 | G3: =生涯計算01!DE3 -> 6 | H3: =生涯計算01!EG3 -> 2 | I3: =生涯計算01!GI3 -> 10 | J3: =生涯計算01!HK3 -> 7 | K3: =生涯計算02!CE3 -> 5.115384615 | L3: =生涯計算02!DH3 -> 11.43975783 | M3: =生涯計算02!AC3 -> 133 | N3: =生涯計算02!BE3 -> 308.8734614 | O3: =生涯計算02!FN3 -> 13 | P3: =生涯計算02!EK3 -> 49 | Q3: =生涯計算03!AB3 -> 8 | R3: =生涯計算03!BD3 -> 0.3076923077 | S3: =生涯計算03!CG3 -> 4 | T3: =生涯計算03!DH3 -> 0.1538461538 | U3: =生涯計算03!EJ3 -> 278 | V3: =生涯計算03!FN3 -> 20 | W3: =生涯計算04!BG3 -> 8 | X3: =生涯計算04!CK3 -> 3 | Y3: =生涯計算04!DM3 -> 0.375 | Z3: =IF(生涯計算05!BE3=0,"－",生涯計算05!BE3) -> － | AA3: =IF(生涯計算05!BS3=0,"－",生涯計算05!BS3) -> － | AB3: =IF(生涯計算05!CG3=0,"－",生涯計算05!CG3) -> － | AE3: 0 | AF3: YSO-MC
A4: 1 | B4: =VLOOKUP(A4,登録名変遷!$A$3:$B$1005,2,FALSE) -> ラルさん | C4: =生涯計算01!AB4 -> 27 | D4: =生涯計算01!BD4 -> 3317 | E4: =生涯計算01!CC4 -> 122.8518519 | F4: =生涯計算04!AC4 -> 210 | G4: =生涯計算01!DE4 -> 2 | H4: =生涯計算01!EG4 -> 2 | I4: =生涯計算01!GI4 -> 11 | J4: =生涯計算01!HK4 -> 8 | K4: =生涯計算02!CE4 -> 4.230769231 | L4: =生涯計算02!DH4 -> 11.6486014 | M4: =生涯計算02!AC4 -> 110 | N4: =生涯計算02!BE4 -> 302.8636364 | O4: =生涯計算02!FN4 -> 13 | P4: =生涯計算02!EK4 -> 54 | Q4: =生涯計算03!AB4 -> 6 | R4: =生涯計算03!BD4 -> 0.2307692308 | S4: =生涯計算03!CG4 -> 4 | T4: =生涯計算03!DH4 -> 0.1538461538 | U4: =生涯計算03!EJ4 -> 214 | V4: =生涯計算03!FN4 -> 20 | W4: =生涯計算04!BG4 -> 8 | X4: =生涯計算04!CK4 -> 3 | Y4: =生涯計算04!DM4 -> 0.5 | Z4: =IF(生涯計算05!BE4=0,"－",生涯計算05!BE4) -> 19.31309877 | AA4: =IF(生涯計算05!BS4=0,"－",生涯計算05!BS4) -> 19.71214815 | AB4: =IF(生涯計算05!CG4=0,"－",生涯計算05!CG4) -> 19.11357407 | AE4: 1 | AF4: ラル氏
A5: 2 | B5: =VLOOKUP(A5,登録名変遷!$A$3:$B$1005,2,FALSE) -> HAQ48 | C5: =生涯計算01!AB5 -> 26 | D5: =生涯計算01!BD5 -> 3231 | E5: =生涯計算01!CC5 -> 124.2692308 | F5: =生涯計算04!AC5 -> 150 | G5: =生涯計算01!DE5 -> 2 | H5: =生涯計算01!EG5 -> 3 | I5: =生涯計算01!GI5 -> 14 | J5: =生涯計算01!HK5 -> 6 | K5: =生涯計算02!CE5 -> 4.875 | L5: =生涯計算02!DH5 -> 12.59709041 | M5: =生涯計算02!AC5 -> 35 | N5: =生涯計算02!BE5 -> 87.5 | O5: =生涯計算02!FN5 -> 14 | P5: =生涯計算02!EK5 -> 56 | Q5: =生涯計算03!AB5 -> 7 | R5: =生涯計算03!BD5 -> 0.2692307692 | S5: =生涯計算03!CG5 -> 6 | T5: =生涯計算03!DH5 -> 0.2608695652 | U5: =生涯計算03!EJ5 -> 266 | V5: =生涯計算03!FN5 -> 20 | W5: =生涯計算04!BG5 -> 9 | X5: =生涯計算04!CK5 -> 2 | Y5: =生涯計算04!DM5 -> 1 | Z5: =IF(生涯計算05!BE5=0,"－",生涯計算05!BE5) -> 21.70048718 | AA5: =IF(生涯計算05!BS5=0,"－",生涯計算05!BS5) -> 23.29313636 | AB5: =IF(生涯計算05!CG5=0,"－",生涯計算05!CG5) -> 22.50515385 | AE5: 2 | AF5: .hackshak// 氏
A6: 3 | B6: =VLOOKUP(A6,登録名変遷!$A$3:$B$1005,2,FALSE) -> ヤンダルさん | C6: =生涯計算01!AB6 -> 27 | D6: =生涯計算01!BD6 -> 3224 | E6: =生涯計算01!CC6 -> 124 | F6: =生涯計算04!AC6 -> 251 | G6: =生涯計算01!DE6 -> 5 | H6: =生涯計算01!EG6 -> 5 | I6: =生涯計算01!GI6 -> 11 | J6: =生涯計算01!HK6 -> 9 | K6: =生涯計算02!CE6 -> 6 | L6: =生涯計算02!DH6 -> 12.20886193 | M6: =生涯計算02!AC6 -> 156 | N6: =生涯計算02!BE6 -> 317.4304102 | O6: =生涯計算02!FN6 -> 15 | P6: =生涯計算02!EK6 -> 48 | Q6: =生涯計算03!AB6 -> 8 | R6: =生涯計算03!BD6 -> 0.3076923077 | S6: =生涯計算03!CG6 -> 5 | T6: =生涯計算03!DH6 -> 0.1923076923 | U6: =生涯計算03!EJ6 -> 320 | V6: =生涯計算03!FN6 -> 20 | W6: =生涯計算04!BG6 -> 11 | X6: =生涯計算04!CK6 -> 6 | Y6: =生涯計算04!DM6 -> 0.5454545455 | Z6: =IF(生涯計算05!BE6=0,"－",生涯計算05!BE6) -> 19.46783951 | AA6: =IF(生涯計算05!BS6=0,"－",生涯計算05!BS6) -> 25.91378571 | AB6: =IF(生涯計算05!CG6=0,"－",生涯計算05!CG6) -> 20.36985714 | AE6: 3 | AF6: ヤンダル氏
A7: 4 | B7: =VLOOKUP(A7,登録名変遷!$A$3:$B$1005,2,FALSE) -> 陣内閣竜さん | C7: =生涯計算01!AB7 -> 1 | D7: =生涯計算01!BD7 -> 65 | E7: =生涯計算01!CC7 -> 0 | F7: =生涯計算04!AC7 -> 0 | G7: =生涯計算01!DE7 -> 0 | H7: =生涯計算01!EG7 -> 0 | I7: =生涯計算01!GI7 -> 0 | J7: =生涯計算01!HK7 -> 0 | K7: =生涯計算02!CE7 -> － | L7: =生涯計算02!DH7 -> － | M7: =生涯計算02!AC7 -> 7 | N7: =生涯計算02!BE7 -> 23.33333333 | O7: =生涯計算02!FN7 -> 0 | P7: =生涯計算02!EK7 -> 2 | Q7: =生涯計算03!AB7 -> 0 | R7: =生涯計算03!BD7 -> 0 | S7: =生涯計算03!CG7 -> 0 | T7: =生涯計算03!DH7 -> 0 | U7: =生涯計算03!EJ7 -> 65 | V7: =生涯計算03!FN7 -> 65 | W7: =生涯計算04!BG7 -> 1 | X7: =生涯計算04!CK7 -> 0 | Y7: =生涯計算04!DM7 -> 0 | Z7: =IF(生涯計算05!BE7=0,"－",生涯計算05!BE7) -> － | AA7: =IF(生涯計算05!BS7=0,"－",生涯計算05!BS7) -> － | AB7: =IF(生涯計算05!CG7=0,"－",生涯計算05!CG7) -> － | AE7: 4 | AF7: 陣内閣竜氏
A8: 5 | B8: =VLOOKUP(A8,登録名変遷!$A$3:$B$1005,2,FALSE) -> GEKOさん | C8: =生涯計算01!AB8 -> 27 | D8: =生涯計算01!BD8 -> 3132 | E8: =生涯計算01!CC8 -> 118.3846154 | F8: =生涯計算04!AC8 -> 360 | G8: =生涯計算01!DE8 -> 3 | H8: =生涯計算01!EG8 -> 7 | I8: =生涯計算01!GI8 -> 10 | J8: =生涯計算01!HK8 -> 9 | K8: =生涯計算02!CE8 -> 5.884615385 | L8: =生涯計算02!DH8 -> 14.2604762 | M8: =生涯計算02!AC8 -> 136 | N8: =生涯計算02!BE8 -> 289.6986102 | O8: =生涯計算02!FN8 -> 13 | P8: =生涯計算02!EK8 -> 52 | Q8: =生涯計算03!AB8 -> 8 | R8: =生涯計算03!BD8 -> 0.3076923077 | S8: =生涯計算03!CG8 -> 9 | T8: =生涯計算03!DH8 -> 0.3333333333 | U8: =生涯計算03!EJ8 -> 255 | V8: =生涯計算03!FN8 -> 20 | W8: =生涯計算04!BG8 -> 15 | X8: =生涯計算04!CK8 -> 6 | Y8: =生涯計算04!DM8 -> 0.6 | Z8: =IF(生涯計算05!BE8=0,"－",生涯計算05!BE8) -> 32.66828395 | AA8: =IF(生涯計算05!BS8=0,"－",生涯計算05!BS8) -> 31.34830769 | AB8: =IF(生涯計算05!CG8=0,"－",生涯計算05!CG8) -> 23.0604 | AE8: 5 | AF8: GEKO氏
A9: 6 | B9: =VLOOKUP(A9,登録名変遷!$A$3:$B$1005,2,FALSE) -> なりぼーさん | C9: =生涯計算01!AB9 -> 22 | D9: =生涯計算01!BD9 -> 2301 | E9: =生涯計算01!CC9 -> 104.5909091 | F9: =生涯計算04!AC9 -> 150 | G9: =生涯計算01!DE9 -> 3 | H9: =生涯計算01!EG9 -> 1 | I9: =生涯計算01!GI9 -> 5 | J9: =生涯計算01!HK9 -> 2 | K9: =生涯計算02!CE9 -> 16.77272727 | L9: =生涯計算02!DH9 -> 17.42035819 | M9: =生涯計算02!AC9 -> 16 | N9: =生涯計算02!BE9 -> 12.63157895 | O9: =生涯計算02!FN9 -> 5 | P9: =生涯計算02!EK9 -> 34 | Q9: =生涯計算03!AB9 -> 2 | R9: =生涯計算03!BD9 -> 0.09090909091 | S9: =生涯計算03!CG9 -> 1 | T9: =生涯計算03!DH9 -> 0.04545454545 | U9: =生涯計算03!EJ9 -> 176 | V9: =生涯計算03!FN9 -> 20 | W9: =生涯計算04!BG9 -> 8 | X9: =生涯計算04!CK9 -> 3 | Y9: =生涯計算04!DM9 -> 0.375 | Z9: =IF(生涯計算05!BE9=0,"－",生涯計算05!BE9) -> － | AA9: =IF(生涯計算05!BS9=0,"－",生涯計算05!BS9) -> － | AB9: =IF(生涯計算05!CG9=0,"－",生涯計算05!CG9) -> － | AE9: 6 | AF9: なりぼー氏
A10: 7 | B10: =VLOOKUP(A10,登録名変遷!$A$3:$B$1005,2,FALSE) -> NOVさん | C10: =生涯計算01!AB10 -> 26 | D10: =生涯計算01!BD10 -> 3163 | E10: =生涯計算01!CC10 -> 121.6538462 | F10: =生涯計算04!AC10 -> 160 | G10: =生涯計算01!DE10 -> 4 | H10: =生涯計算01!EG10 -> 3 | I10: =生涯計算01!GI10 -> 9 | J10: =生涯計算01!HK10 -> 6 | K10: =生涯計算02!CE10 -> 6.153846154 | L10: =生涯計算02!DH10 -> 11.73097533 | M10: =生涯計算02!AC10 -> 59 | N10: =生涯計算02!BE10 -> 51.42439028 | O10: =生涯計算02!FN10 -> 13 | P10: =生涯計算02!EK10 -> 48 | Q10: =生涯計算03!AB10 -> 8 | R10: =生涯計算03!BD10 -> 0.3076923077 | S10: =生涯計算03!CG10 -> 5 | T10: =生涯計算03!DH10 -> 0.1923076923 | U10: =生涯計算03!EJ10 -> 206 | V10: =生涯計算03!FN10 -> 20 | W10: =生涯計算04!BG10 -> 10 | X10: =生涯計算04!CK10 -> 3 | Y10: =生涯計算04!DM10 -> 0.4285714286 | Z10: =IF(生涯計算05!BE10=0,"－",生涯計算05!BE10) -> － | AA10: =IF(生涯計算05!BS10=0,"－",生涯計算05!BS10) -> － | AB10: =IF(生涯計算05!CG10=0,"－",生涯計算05!CG10) -> － | AE10: 7 | AF10: NOV氏
A11: 8 | B11: =VLOOKUP(A11,登録名変遷!$A$3:$B$1005,2,FALSE) -> ろとーさん | C11: =生涯計算01!AB11 -> 27 | D11: =生涯計算01!BD11 -> 3146 | E11: =生涯計算01!CC11 -> 116.5185185 | F11: =生涯計算04!AC11 -> 184 | G11: =生涯計算01!DE11 -> 4 | H11: =生涯計算01!EG11 -> 5 | I11: =生涯計算01!GI11 -> 9 | J11: =生涯計算01!HK11 -> 8 | K11: =生涯計算02!CE11 -> 6.769230769 | L11: =生涯計算02!DH11 -> 14.03138038 | M11: =生涯計算02!AC11 -> 176 | N11: =生涯計算02!BE11 -> 364.81589 | O11: =生涯計算02!FN11 -> 15 | P11: =生涯計算02!EK11 -> 50 | Q11: =生涯計算03!AB11 -> 10 | R11: =生涯計算03!BD11 -> 0.3846153846 | S11: =生涯計算03!CG11 -> 7 | T11: =生涯計算03!DH11 -> 0.2592592593 | U11: =生涯計算03!EJ11 -> 285 | V11: =生涯計算03!FN11 -> 20 | W11: =生涯計算04!BG11 -> 19 | X11: =生涯計算04!CK11 -> 3 | Y11: =生涯計算04!DM11 -> 0.3333333333 | Z11: =IF(生涯計算05!BE11=0,"－",生涯計算05!BE11) -> 25.80679012 | AA11: =IF(生涯計算05!BS11=0,"－",生涯計算05!BS11) -> 26.00453333 | AB11: =IF(生涯計算05!CG11=0,"－",生涯計算05!CG11) -> 25.69047059 | AE11: 8 | AF11: ロトー氏
A12: 9 | B12: =VLOOKUP(A12,登録名変遷!$A$3:$B$1005,2,FALSE) -> HDBさん | C12: =生涯計算01!AB12 -> 17 | D12: =生涯計算01!BD12 -> 1663 | E12: =生涯計算01!CC12 -> 97.82352941 | F12: =生涯計算04!AC12 -> 60 | G12: =生涯計算01!DE12 -> 1 | H12: =生涯計算01!EG12 -> 3 | I12: =生涯計算01!GI12 -> 4 | J12: =生涯計算01!HK12 -> 2 | K12: =生涯計算02!CE12 -> 6.357142857 | L12: =生涯計算02!DH12 -> 17.33441558 | M12: =生涯計算02!AC12 -> 89 | N12: =生涯計算02!BE12 -> 242.6818182 | O12: =生涯計算02!FN12 -> 1 | P12: =生涯計算02!EK12 -> 26 | Q12: =生涯計算03!AB12 -> 0 | R12: =生涯計算03!BD12 -> 0 | S12: =生涯計算03!CG12 -> 0 | T12: =生涯計算03!DH12 -> 0 | U12: =生涯計算03!EJ12 -> 219 | V12: =生涯計算03!FN12 -> 31 | W12: =生涯計算04!BG12 -> 6 | X12: =生涯計算04!CK12 -> 1 | Y12: =生涯計算04!DM12 -> 0.1666666667 | Z12: =IF(生涯計算05!BE12=0,"－",生涯計算05!BE12) -> － | AA12: =IF(生涯計算05!BS12=0,"－",生涯計算05!BS12) -> － | AB12: =IF(生涯計算05!CG12=0,"－",生涯計算05!CG12) -> － | AE12: 9 | AF12: HDB氏
A13: 10 | B13: =VLOOKUP(A13,登録名変遷!$A$3:$B$1005,2,FALSE) -> カイザー鈴木さん | C13: =生涯計算01!AB13 -> 26 | D13: =生涯計算01!BD13 -> 3262 | E13: =生涯計算01!CC13 -> 129.3913043 | F13: =生涯計算04!AC13 -> 165 | G13: =生涯計算01!DE13 -> 5 | H13: =生涯計算01!EG13 -> 2 | I13: =生涯計算01!GI13 -> 11 | J13: =生涯計算01!HK13 -> 7 | K13: =生涯計算02!CE13 -> 4.807692308 | L13: =生涯計算02!DH13 -> 9.738419166 | M13: =生涯計算02!AC13 -> 11 | N13: =生涯計算02!BE13 -> 10 | O13: =生涯計算02!FN13 -> 14 | P13: =生涯計算02!EK13 -> 50 | Q13: =生涯計算03!AB13 -> 8 | R13: =生涯計算03!BD13 -> 0.347826087 | S13: =生涯計算03!CG13 -> 3 | T13: =生涯計算03!DH13 -> 0.1304347826 | U13: =生涯計算03!EJ13 -> 271 | V13: =生涯計算03!FN13 -> 20 | W13: =生涯計算04!BG13 -> 8 | X13: =生涯計算04!CK13 -> 3 | Y13: =生涯計算04!DM13 -> 0.5 | Z13: =IF(生涯計算05!BE13=0,"－",生涯計算05!BE13) -> 21.60150725 | AA13: =IF(生涯計算05!BS13=0,"－",生涯計算05!BS13) -> 21.80173171 | AB13: =IF(生涯計算05!CG13=0,"－",生涯計算05!CG13) -> 18.804 | AE13: 10 | AF13: 今師氏
A14: 11 | B14: =VLOOKUP(A14,登録名変遷!$A$3:$B$1005,2,FALSE) -> う～たんさん | C14: =生涯計算01!AB14 -> 27 | D14: =生涯計算01!BD14 -> 3227 | E14: =生涯計算01!CC14 -> 124.1153846 | F14: =生涯計算04!AC14 -> 197 | G14: =生涯計算01!DE14 -> 3 | H14: =生涯計算01!EG14 -> 5 | I14: =生涯計算01!GI14 -> 11 | J14: =生涯計算01!HK14 -> 7 | K14: =生涯計算02!CE14 -> 6.24 | L14: =生涯計算02!DH14 -> 10.98597283 | M14: =生涯計算02!AC14 -> 138 | N14: =生涯計算02!BE14 -> 263.663348 | O14: =生涯計算02!FN14 -> 14 | P14: =生涯計算02!EK14 -> 54 | Q14: =生涯計算03!AB14 -> 12 | R14: =生涯計算03!BD14 -> 0.5 | S14: =生涯計算03!CG14 -> 7 | T14: =生涯計算03!DH14 -> 0.28 | U14: =生涯計算03!EJ14 -> 320 | V14: =生涯計算03!FN14 -> 20 | W14: =生涯計算04!BG14 -> 13 | X14: =生涯計算04!CK14 -> 3 | Y14: =生涯計算04!DM14 -> 0.4 | Z14: =IF(生涯計算05!BE14=0,"－",生涯計算05!BE14) -> 21.0108642 | AA14: =IF(生涯計算05!BS14=0,"－",生涯計算05!BS14) -> 25.06537037 | AB14: =IF(生涯計算05!CG14=0,"－",生涯計算05!CG14) -> 18.98361111 | AE14: 11 | AF14: う～たん氏
A15: 12 | B15: =VLOOKUP(A15,登録名変遷!$A$3:$B$1005,2,FALSE) -> iceさん | C15: =生涯計算01!AB15 -> 26 | D15: =生涯計算01!BD15 -> 2233 | E15: =生涯計算01!CC15 -> 106.3333333 | F15: =生涯計算04!AC15 -> 110 | G15: =生涯計算01!DE15 -> 4 | H15: =生涯計算01!EG15 -> 5 | I15: =生涯計算01!GI15 -> 7 | J15: =生涯計算01!HK15 -> 5 | K15: =生涯計算02!CE15 -> 5.19047619 | L15: =生涯計算02!DH15 -> 14.03896104 | M15: =生涯計算02!AC15 -> 51 | N15: =生涯計算02!BE15 -> 108.6428571 | O15: =生涯計算02!FN15 -> 9 | P15: =生涯計算02!EK15 -> 34 | Q15: =生涯計算03!AB15 -> 0 | R15: =生涯計算03!BD15 -> 0 | S15: =生涯計算03!CG15 -> 0 | T15: =生涯計算03!DH15 -> 0 | U15: =生涯計算03!EJ15 -> 205 | V15: =生涯計算03!FN15 -> 20 | W15: =生涯計算04!BG15 -> 8 | X15: =生涯計算04!CK15 -> 2 | Y15: =生涯計算04!DM15 -> 0.3333333333 | Z15: =IF(生涯計算05!BE15=0,"－",生涯計算05!BE15) -> － | AA15: =IF(生涯計算05!BS15=0,"－",生涯計算05!BS15) -> － | AB15: =IF(生涯計算05!CG15=0,"－",生涯計算05!CG15) -> － | AE15: 12 | AF15: ice氏
A16: 13 | B16: =VLOOKUP(A16,登録名変遷!$A$3:$B$1005,2,FALSE) -> うにょさん | C16: =生涯計算01!AB16 -> 26 | D16: =生涯計算01!BD16 -> 3073 | E16: =生涯計算01!CC16 -> 123.5 | F16: =生涯計算04!AC16 -> 270 | G16: =生涯計算01!DE16 -> 6 | H16: =生涯計算01!EG16 -> 5 | I16: =生涯計算01!GI16 -> 11 | J16: =生涯計算01!HK16 -> 7 | K16: =生涯計算02!CE16 -> 5.095238095 | L16: =生涯計算02!DH16 -> 11.9472947 | M16: =生涯計算02!AC16 -> 107 | N16: =生涯計算02!BE16 -> 262.8404835 | O16: =生涯計算02!FN16 -> 12 | P16: =生涯計算02!EK16 -> 49 | Q16: =生涯計算03!AB16 -> 8 | R16: =生涯計算03!BD16 -> 0.3636363636 | S16: =生涯計算03!CG16 -> 4 | T16: =生涯計算03!DH16 -> 0.1904761905 | U16: =生涯計算03!EJ16 -> 280 | V16: =生涯計算03!FN16 -> 33 | W16: =生涯計算04!BG16 -> 20 | X16: =生涯計算04!CK16 -> 4 | Y16: =生涯計算04!DM16 -> 0.5 | Z16: =IF(生涯計算05!BE16=0,"－",生涯計算05!BE16) -> 29.40748485 | AA16: =IF(生涯計算05!BS16=0,"－",生涯計算05!BS16) -> 34.08538889 | AB16: =IF(生涯計算05!CG16=0,"－",生涯計算05!CG16) -> 23.794 | AE16: 13 | AF16: てりー氏
A17: 14 | B17: =VLOOKUP(A17,登録名変遷!$A$3:$B$1005,2,FALSE) -> リアル野比Ver2.0さん | C17: =生涯計算01!AB17 -> 4 | D17: =生涯計算01!BD17 -> 322 | E17: =生涯計算01!CC17 -> 0 | F17: =生涯計算04!AC17 -> 0 | G17: =生涯計算01!DE17 -> 0 | H17: =生涯計算01!EG17 -> 1 | I17: =生涯計算01!GI17 -> 0 | J17: =生涯計算01!HK17 -> 0 | K17: =生涯計算02!CE17 -> － | L17: =生涯計算02!DH17 -> － | M17: =生涯計算02!AC17 -> 35 | N17: =生涯計算02!BE17 -> 87.5 | O17: =生涯計算02!FN17 -> 0 | P17: =生涯計算02!EK17 -> 2 | Q17: =生涯計算03!AB17 -> 0 | R17: =生涯計算03!BD17 -> 0 | S17: =生涯計算03!CG17 -> 0 | T17: =生涯計算03!DH17 -> 0 | U17: =生涯計算03!EJ17 -> 94 | V17: =生涯計算03!FN17 -> 52 | W17: =生涯計算04!BG17 -> 0 | X17: =生涯計算04!CK17 -> 0 | Y17: =生涯計算04!DM17 -> 0 | Z17: =IF(生涯計算05!BE17=0,"－",生涯計算05!BE17) -> － | AA17: =IF(生涯計算05!BS17=0,"－",生涯計算05!BS17) -> － | AB17: =IF(生涯計算05!CG17=0,"－",生涯計算05!CG17) -> － | AE17: 14 | AF17: リアル野比Ver2.0氏
A18: 15 | B18: =VLOOKUP(A18,登録名変遷!$A$3:$B$1005,2,FALSE) -> タナリンさん | C18: =生涯計算01!AB18 -> 27 | D18: =生涯計算01!BD18 -> 3648 | E18: =生涯計算01!CC18 -> 135.1111111 | F18: =生涯計算04!AC18 -> 264 | G18: =生涯計算01!DE18 -> 4 | H18: =生涯計算01!EG18 -> 4 | I18: =生涯計算01!GI18 -> 13 | J18: =生涯計算01!HK18 -> 9 | K18: =生涯計算02!CE18 -> 6.5 | L18: =生涯計算02!DH18 -> 9.120772176 | M18: =生涯計算02!AC18 -> 97 | N18: =生涯計算02!BE18 -> 230.1748252 | O18: =生涯計算02!FN18 -> 23 | P18: =生涯計算02!EK18 -> 52 | Q18: =生涯計算03!AB18 -> 13 | R18: =生涯計算03!BD18 -> 0.5 | S18: =生涯計算03!CG18 -> 4 | T18: =生涯計算03!DH18 -> 0.1538461538 | U18: =生涯計算03!EJ18 -> 320 | V18: =生涯計算03!FN18 -> 20 | W18: =生涯計算04!BG18 -> 9 | X18: =生涯計算04!CK18 -> 5 | Y18: =生涯計算04!DM18 -> 0.7142857143 | Z18: =IF(生涯計算05!BE18=0,"－",生涯計算05!BE18) -> 20.99942308 | AA18: =IF(生涯計算05!BS18=0,"－",生涯計算05!BS18) -> 20.11826316 | AB18: =IF(生涯計算05!CG18=0,"－",生涯計算05!CG18) -> 20.29958824 | AE18: 15 | AF18: タナリン氏
A19: 16 | B19: =VLOOKUP(A19,登録名変遷!$A$3:$B$1005,2,FALSE) -> R6さん | C19: =生涯計算01!AB19 -> 23 | D19: =生涯計算01!BD19 -> 2606 | E19: =生涯計算01!CC19 -> 113.3043478 | F19: =生涯計算04!AC19 -> 381 | G19: =生涯計算01!DE19 -> 3 | H19: =生涯計算01!EG19 -> 1 | I19: =生涯計算01!GI19 -> 4 | J19: =生涯計算01!HK19 -> 3 | K19: =生涯計算02!CE19 -> 6.304347826 | L19: =生涯計算02!DH19 -> 13.79359771 | M19: =生涯計算02!AC19 -> 58 | N19: =生涯計算02!BE19 -> 126.1523478 | O19: =生涯計算02!FN19 -> 5 | P19: =生涯計算02!EK19 -> 34 | Q19: =生涯計算03!AB19 -> 0 | R19: =生涯計算03!BD19 -> 0 | S19: =生涯計算03!CG19 -> 0 | T19: =生涯計算03!DH19 -> 0 | U19: =生涯計算03!EJ19 -> 259 | V19: =生涯計算03!FN19 -> 27 | W19: =生涯計算04!BG19 -> 12 | X19: =生涯計算04!CK19 -> 5 | Y19: =生涯計算04!DM19 -> 0.4166666667 | Z19: =IF(生涯計算05!BE19=0,"－",生涯計算05!BE19) -> － | AA19: =IF(生涯計算05!BS19=0,"－",生涯計算05!BS19) -> － | AB19: =IF(生涯計算05!CG19=0,"－",生涯計算05!CG19) -> － | AE19: 16 | AF19: R6氏
A20: 17 | B20: =VLOOKUP(A20,登録名変遷!$A$3:$B$1005,2,FALSE) -> HiiMaさん | C20: =生涯計算01!AB20 -> 27 | D20: =生涯計算01!BD20 -> 3480 | E20: =生涯計算01!CC20 -> 128.8888889 | F20: =生涯計算04!AC20 -> 429 | G20: =生涯計算01!DE20 -> 3 | H20: =生涯計算01!EG20 -> 1 | I20: =生涯計算01!GI20 -> 10 | J20: =生涯計算01!HK20 -> 7 | K20: =生涯計算02!CE20 -> 6 | L20: =生涯計算02!DH20 -> 11.12622431 | M20: =生涯計算02!AC20 -> 156 | N20: =生涯計算02!BE20 -> 233.6404806 | O20: =生涯計算02!FN20 -> 17 | P20: =生涯計算02!EK20 -> 55 | Q20: =生涯計算03!AB20 -> 7 | R20: =生涯計算03!BD20 -> 0.28 | S20: =生涯計算03!CG20 -> 6 | T20: =生涯計算03!DH20 -> 0.2307692308 | U20: =生涯計算03!EJ20 -> 268 | V20: =生涯計算03!FN20 -> 25 | W20: =生涯計算04!BG20 -> 13 | X20: =生涯計算04!CK20 -> 5 | Y20: =生涯計算04!DM20 -> 0.4444444444 | Z20: =IF(生涯計算05!BE20=0,"－",生涯計算05!BE20) -> 21.90135802 | AA20: =IF(生涯計算05!BS20=0,"－",生涯計算05!BS20) -> 23.03854839 | AB20: =IF(生涯計算05!CG20=0,"－",生涯計算05!CG20) -> 21.1963 | AE20: 17 | AF20: HiiMa氏
A21: 18 | B21: =VLOOKUP(A21,登録名変遷!$A$3:$B$1005,2,FALSE) -> 楽園さん | C21: =生涯計算01!AB21 -> 27 | D21: =生涯計算01!BD21 -> 3461 | E21: =生涯計算01!CC21 -> 128.1851852 | F21: =生涯計算04!AC21 -> 389 | G21: =生涯計算01!DE21 -> 2 | H21: =生涯計算01!EG21 -> 5 | I21: =生涯計算01!GI21 -> 10 | J21: =生涯計算01!HK21 -> 8 | K21: =生涯計算02!CE21 -> 8.458333333 | L21: =生涯計算02!DH21 -> 12.72404719 | M21: =生涯計算02!AC21 -> 120 | N21: =生涯計算02!BE21 -> 187.176205 | O21: =生涯計算02!FN21 -> 20 | P21: =生涯計算02!EK21 -> 52 | Q21: =生涯計算03!AB21 -> 6 | R21: =生涯計算03!BD21 -> 0.2222222222 | S21: =生涯計算03!CG21 -> 11 | T21: =生涯計算03!DH21 -> 0.4230769231 | U21: =生涯計算03!EJ21 -> 335 | V21: =生涯計算03!FN21 -> 20 | W21: =生涯計算04!BG21 -> 13 | X21: =生涯計算04!CK21 -> 4 | Y21: =生涯計算04!DM21 -> 0.4444444444 | Z21: =IF(生涯計算05!BE21=0,"－",生涯計算05!BE21) -> 22.33288889 | AA21: =IF(生涯計算05!BS21=0,"－",生涯計算05!BS21) -> 28.92103226 | AB21: =IF(生涯計算05!CG21=0,"－",生涯計算05!CG21) -> 18.24824 | AE21: 18 | AF21: 楽園氏
A22: 19 | B22: =VLOOKUP(A22,登録名変遷!$A$3:$B$1005,2,FALSE) -> ルパン3世さん | C22: =生涯計算01!AB22 -> 5 | D22: =生涯計算01!BD22 -> 606 | E22: =生涯計算01!CC22 -> 0 | F22: =生涯計算04!AC22 -> 0 | G22: =生涯計算01!DE22 -> 1 | H22: =生涯計算01!EG22 -> 0 | I22: =生涯計算01!GI22 -> 3 | J22: =生涯計算01!HK22 -> 1 | K22: =生涯計算02!CE22 -> － | L22: =生涯計算02!DH22 -> － | M22: =生涯計算02!AC22 -> 22 | N22: =生涯計算02!BE22 -> 42.95022624 | O22: =生涯計算02!FN22 -> 3 | P22: =生涯計算02!EK22 -> 10 | Q22: =生涯計算03!AB22 -> 0 | R22: =生涯計算03!BD22 -> 0 | S22: =生涯計算03!CG22 -> 0 | T22: =生涯計算03!DH22 -> 0 | U22: =生涯計算03!EJ22 -> 171 | V22: =生涯計算03!FN22 -> 58 | W22: =生涯計算04!BG22 -> 2 | X22: =生涯計算04!CK22 -> 0 | Y22: =生涯計算04!DM22 -> 0 | Z22: =IF(生涯計算05!BE22=0,"－",生涯計算05!BE22) -> － | AA22: =IF(生涯計算05!BS22=0,"－",生涯計算05!BS22) -> － | AB22: =IF(生涯計算05!CG22=0,"－",生涯計算05!CG22) -> － | AE22: 19 | AF22: ルパン3世氏
A23: 20 | B23: =VLOOKUP(A23,登録名変遷!$A$3:$B$1005,2,FALSE) -> Natit | C23: =生涯計算01!AB23 -> 27 | D23: =生涯計算01!BD23 -> 3264 | E23: =生涯計算01!CC23 -> 120.8888889 | F23: =生涯計算04!AC23 -> 268 | G23: =生涯計算01!DE23 -> 2 | H23: =生涯計算01!EG23 -> 2 | I23: =生涯計算01!GI23 -> 10 | J23: =生涯計算01!HK23 -> 7 | K23: =生涯計算02!CE23 -> 7.5 | L23: =生涯計算02!DH23 -> 13.51516262 | M23: =生涯計算02!AC23 -> 150 | N23: =生涯計算02!BE23 -> 228.3836129 | O23: =生涯計算02!FN23 -> 13 | P23: =生涯計算02!EK23 -> 53 | Q23: =生涯計算03!AB23 -> 7 | R23: =生涯計算03!BD23 -> 0.2692307692 | S23: =生涯計算03!CG23 -> 5 | T23: =生涯計算03!DH23 -> 0.2 | U23: =生涯計算03!EJ23 -> 312 | V23: =生涯計算03!FN23 -> 23 | W23: =生涯計算04!BG23 -> 10 | X23: =生涯計算04!CK23 -> 4 | Y23: =生涯計算04!DM23 -> 0.6666666667 | Z23: =IF(生涯計算05!BE23=0,"－",生涯計算05!BE23) -> 23.3384321 | AA23: =IF(生涯計算05!BS23=0,"－",生涯計算05!BS23) -> 22.67144118 | AB23: =IF(生涯計算05!CG23=0,"－",生涯計算05!CG23) -> 21.43266038 | AE23: 20 | AF23: Natit
A24: 21 | B24: =VLOOKUP(A24,登録名変遷!$A$3:$B$1005,2,FALSE) -> 清べえさん | C24: =生涯計算01!AB24 -> 23 | D24: =生涯計算01!BD24 -> 2347 | E24: =生涯計算01!CC24 -> 118.3125 | F24: =生涯計算04!AC24 -> 88 | G24: =生涯計算01!DE24 -> 1 | H24: =生涯計算01!EG24 -> 1 | I24: =生涯計算01!GI24 -> 8 | J24: =生涯計算01!HK24 -> 6 | K24: =生涯計算02!CE24 -> 6.476190476 | L24: =生涯計算02!DH24 -> 13.43840263 | M24: =生涯計算02!AC24 -> 136 | N24: =生涯計算02!BE24 -> 227.9012331 | O24: =生涯計算02!FN24 -> 7 | P24: =生涯計算02!EK24 -> 41 | Q24: =生涯計算03!AB24 -> 3 | R24: =生涯計算03!BD24 -> 0.1304347826 | S24: =生涯計算03!CG24 -> 2 | T24: =生涯計算03!DH24 -> 0.125 | U24: =生涯計算03!EJ24 -> 191 | V24: =生涯計算03!FN24 -> 21 | W24: =生涯計算04!BG24 -> 5 | X24: =生涯計算04!CK24 -> 2 | Y24: =生涯計算04!DM24 -> 0.4 | Z24: =IF(生涯計算05!BE24=0,"－",生涯計算05!BE24) -> － | AA24: =IF(生涯計算05!BS24=0,"－",生涯計算05!BS24) -> － | AB24: =IF(生涯計算05!CG24=0,"－",生涯計算05!CG24) -> － | AE24: 21 | AF24: 清べえ氏
A25: 22 | B25: =VLOOKUP(A25,登録名変遷!$A$3:$B$1005,2,FALSE) -> ラムネさん | C25: =生涯計算01!AB25 -> 16 | D25: =生涯計算01!BD25 -> 1364 | E25: =生涯計算01!CC25 -> 96.53846154 | F25: =生涯計算04!AC25 -> 80 | G25: =生涯計算01!DE25 -> 1 | H25: =生涯計算01!EG25 -> 2 | I25: =生涯計算01!GI25 -> 2 | J25: =生涯計算01!HK25 -> 6 | K25: =生涯計算02!CE25 -> 9.125 | L25: =生涯計算02!DH25 -> 17.19823392 | M25: =生涯計算02!AC25 -> 72 | N25: =生涯計算02!BE25 -> 116.1600877 | O25: =生涯計算02!FN25 -> 4 | P25: =生涯計算02!EK25 -> 16 | Q25: =生涯計算03!AB25 -> 1 | R25: =生涯計算03!BD25 -> 0.07692307692 | S25: =生涯計算03!CG25 -> 0 | T25: =生涯計算03!DH25 -> 0 | U25: =生涯計算03!EJ25 -> 151 | V25: =生涯計算03!FN25 -> 44 | W25: =生涯計算04!BG25 -> 7 | X25: =生涯計算04!CK25 -> 2 | Y25: =生涯計算04!DM25 -> 0.5 | Z25: =IF(生涯計算05!BE25=0,"－",生涯計算05!BE25) -> － | AA25: =IF(生涯計算05!BS25=0,"－",生涯計算05!BS25) -> － | AB25: =IF(生涯計算05!CG25=0,"－",生涯計算05!CG25) -> － | AE25: 22 | AF25: ラムネ氏
A26: 23 | B26: =VLOOKUP(A26,登録名変遷!$A$3:$B$1005,2,FALSE) -> なかやまさん | C26: =生涯計算01!AB26 -> 2 | D26: =生涯計算01!BD26 -> 235 | E26: =生涯計算01!CC26 -> 0 | F26: =生涯計算04!AC26 -> 34 | G26: =生涯計算01!DE26 -> 0 | H26: =生涯計算01!EG26 -> 0 | I26: =生涯計算01!GI26 -> 1 | J26: =生涯計算01!HK26 -> 1 | K26: =生涯計算02!CE26 -> － | L26: =生涯計算02!DH26 -> － | M26: =生涯計算02!AC26 -> 15 | N26: =生涯計算02!BE26 -> 28.58823529 | O26: =生涯計算02!FN26 -> 1 | P26: =生涯計算02!EK26 -> 3 | Q26: =生涯計算03!AB26 -> 0 | R26: =生涯計算03!BD26 -> 0 | S26: =生涯計算03!CG26 -> 0 | T26: =生涯計算03!DH26 -> 0 | U26: =生涯計算03!EJ26 -> 144 | V26: =生涯計算03!FN26 -> 91 | W26: =生涯計算04!BG26 -> 1 | X26: =生涯計算04!CK26 -> 1 | Y26: =生涯計算04!DM26 -> 0 | Z26: =IF(生涯計算05!BE26=0,"－",生涯計算05!BE26) -> － | AA26: =IF(生涯計算05!BS26=0,"－",生涯計算05!BS26) -> － | AB26: =IF(生涯計算05!CG26=0,"－",生涯計算05!CG26) -> － | AE26: 23 | AF26: なかやま氏
A27: 24 | B27: =VLOOKUP(A27,登録名変遷!$A$3:$B$1005,2,FALSE) -> マドロックさん | C27: =生涯計算01!AB27 -> 26 | D27: =生涯計算01!BD27 -> 2845 | E27: =生涯計算01!CC27 -> 109.4230769 | F27: =生涯計算04!AC27 -> 124 | G27: =生涯計算01!DE27 -> 2 | H27: =生涯計算01!EG27 -> 1 | I27: =生涯計算01!GI27 -> 6 | J27: =生涯計算01!HK27 -> 5 | K27: =生涯計算02!CE27 -> 10.03846154 | L27: =生涯計算02!DH27 -> 14.89923516 | M27: =生涯計算02!AC27 -> 11 | N27: =生涯計算02!BE27 -> 25.38461538 | O27: =生涯計算02!FN27 -> 7 | P27: =生涯計算02!EK27 -> 40 | Q27: =生涯計算03!AB27 -> 2 | R27: =生涯計算03!BD27 -> 0.07692307692 | S27: =生涯計算03!CG27 -> 1 | T27: =生涯計算03!DH27 -> 0.03846153846 | U27: =生涯計算03!EJ27 -> 188 | V27: =生涯計算03!FN27 -> 30 | W27: =生涯計算04!BG27 -> 8 | X27: =生涯計算04!CK27 -> 3 | Y27: =生涯計算04!DM27 -> 0.375 | Z27: =IF(生涯計算05!BE27=0,"－",生涯計算05!BE27) -> － | AA27: =IF(生涯計算05!BS27=0,"－",生涯計算05!BS27) -> － | AB27: =IF(生涯計算05!CG27=0,"－",生涯計算05!CG27) -> － | AE27: 24 | AF27: マドロック氏
A28: 25 | B28: =VLOOKUP(A28,登録名変遷!$A$3:$B$1005,2,FALSE) -> らすこうさん | C28: =生涯計算01!AB28 -> 26 | D28: =生涯計算01!BD28 -> 3019 | E28: =生涯計算01!CC28 -> 122.8333333 | F28: =生涯計算04!AC28 -> 175 | G28: =生涯計算01!DE28 -> 2 | H28: =生涯計算01!EG28 -> 4 | I28: =生涯計算01!GI28 -> 9 | J28: =生涯計算01!HK28 -> 6 | K28: =生涯計算02!CE28 -> 10.07692308 | L28: =生涯計算02!DH28 -> 13.65599387 | M28: =生涯計算02!AC28 -> 262 | N28: =生涯計算02!BE28 -> 259.9195598 | O28: =生涯計算02!FN28 -> 13 | P28: =生涯計算02!EK28 -> 46 | Q28: =生涯計算03!AB28 -> 6 | R28: =生涯計算03!BD28 -> 0.2608695652 | S28: =生涯計算03!CG28 -> 6 | T28: =生涯計算03!DH28 -> 0.2857142857 | U28: =生涯計算03!EJ28 -> 256 | V28: =生涯計算03!FN28 -> 22 | W28: =生涯計算04!BG28 -> 10 | X28: =生涯計算04!CK28 -> 2 | Y28: =生涯計算04!DM28 -> 0.6666666667 | Z28: =IF(生涯計算05!BE28=0,"－",生涯計算05!BE28) -> 23.5202807 | AA28: =IF(生涯計算05!BS28=0,"－",生涯計算05!BS28) -> 24.15081818 | AB28: =IF(生涯計算05!CG28=0,"－",生涯計算05!CG28) -> 22.270875 | AE28: 25 | AF28: らすこう氏
A29: 26 | B29: =VLOOKUP(A29,登録名変遷!$A$3:$B$1005,2,FALSE) -> termtom2000さん | C29: =生涯計算01!AB29 -> 1 | D29: =生涯計算01!BD29 -> 66 | E29: =生涯計算01!CC29 -> 0 | F29: =生涯計算04!AC29 -> 0 | G29: =生涯計算01!DE29 -> 0 | H29: =生涯計算01!EG29 -> 0 | I29: =生涯計算01!GI29 -> 0 | J29: =生涯計算01!HK29 -> 0 | K29: =生涯計算02!CE29 -> － | L29: =生涯計算02!DH29 -> － | M29: =生涯計算02!AC29 -> 18 | N29: =生涯計算02!BE29 -> 27 | O29: =生涯計算02!FN29 -> 0 | P29: =生涯計算02!EK29 -> 1 | Q29: =生涯計算03!AB29 -> 0 | R29: =生涯計算03!BD29 -> 0 | S29: =生涯計算03!CG29 -> 0 | T29: =生涯計算03!DH29 -> 0 | U29: =生涯計算03!EJ29 -> 66 | V29: =生涯計算03!FN29 -> 66 | W29: =生涯計算04!BG29 -> 0 | X29: =生涯計算04!CK29 -> 0 | Y29: =生涯計算04!DM29 -> 0 | Z29: =IF(生涯計算05!BE29=0,"－",生涯計算05!BE29) -> － | AA29: =IF(生涯計算05!BS29=0,"－",生涯計算05!BS29) -> － | AB29: =IF(生涯計算05!CG29=0,"－",生涯計算05!CG29) -> － | AE29: 26 | AF29: termtom2000氏
A30: 27 | B30: =VLOOKUP(A30,登録名変遷!$A$3:$B$1005,2,FALSE) -> Defiさん | C30: =生涯計算01!AB30 -> 27 | D30: =生涯計算01!BD30 -> 3118 | E30: =生涯計算01!CC30 -> 119.9230769 | F30: =生涯計算04!AC30 -> 384 | G30: =生涯計算01!DE30 -> 3 | H30: =生涯計算01!EG30 -> 4 | I30: =生涯計算01!GI30 -> 10 | J30: =生涯計算01!HK30 -> 7 | K30: =生涯計算02!CE30 -> 12.27272727 | L30: =生涯計算02!DH30 -> 12.98930945 | M30: =生涯計算02!AC30 -> 270 | N30: =生涯計算02!BE30 -> 337.7220458 | O30: =生涯計算02!FN30 -> 18 | P30: =生涯計算02!EK30 -> 48 | Q30: =生涯計算03!AB30 -> 8 | R30: =生涯計算03!BD30 -> 0.3076923077 | S30: =生涯計算03!CG30 -> 8 | T30: =生涯計算03!DH30 -> 0.347826087 | U30: =生涯計算03!EJ30 -> 408 | V30: =生涯計算03!FN30 -> 21 | W30: =生涯計算04!BG30 -> 10 | X30: =生涯計算04!CK30 -> 4 | Y30: =生涯計算04!DM30 -> 0.5 | Z30: =IF(生涯計算05!BE30=0,"－",生涯計算05!BE30) -> 25.23806173 | AA30: =IF(生涯計算05!BS30=0,"－",生涯計算05!BS30) -> 26.82205882 | AB30: =IF(生涯計算05!CG30=0,"－",生涯計算05!CG30) -> 21.82344444 | AE30: 27 | AF30: Defi氏
A31: 28 | B31: =VLOOKUP(A31,登録名変遷!$A$3:$B$1005,2,FALSE) -> 魔神ガーゼットさん | C31: =生涯計算01!AB31 -> 26 | D31: =生涯計算01!BD31 -> 2253 | E31: =生涯計算01!CC31 -> 104.6111111 | F31: =生涯計算04!AC31 -> 108 | G31: =生涯計算01!DE31 -> 0 | H31: =生涯計算01!EG31 -> 3 | I31: =生涯計算01!GI31 -> 5 | J31: =生涯計算01!HK31 -> 4 | K31: =生涯計算02!CE31 -> 11.83333333 | L31: =生涯計算02!DH31 -> 16.98645727 | M31: =生涯計算02!AC31 -> 213 | N31: =生涯計算02!BE31 -> 305.7562308 | O31: =生涯計算02!FN31 -> 6 | P31: =生涯計算02!EK31 -> 33 | Q31: =生涯計算03!AB31 -> 0 | R31: =生涯計算03!BD31 -> 0 | S31: =生涯計算03!CG31 -> 7 | T31: =生涯計算03!DH31 -> 0.4666666667 | U31: =生涯計算03!EJ31 -> 153 | V31: =生涯計算03!FN31 -> 26 | W31: =生涯計算04!BG31 -> 10 | X31: =生涯計算04!CK31 -> 2 | Y31: =生涯計算04!DM31 -> 0.4 | Z31: =IF(生涯計算05!BE31=0,"－",生涯計算05!BE31) -> － | AA31: =IF(生涯計算05!BS31=0,"－",生涯計算05!BS31) -> － | AB31: =IF(生涯計算05!CG31=0,"－",生涯計算05!CG31) -> － | AE31: 28 | AF31: 魔神ガーゼット氏
A32: 29 | B32: =VLOOKUP(A32,登録名変遷!$A$3:$B$1005,2,FALSE) -> reookさん | C32: =生涯計算01!AB32 -> 6 | D32: =生涯計算01!BD32 -> 810 | E32: =生涯計算01!CC32 -> 0 | F32: =生涯計算04!AC32 -> 0 | G32: =生涯計算01!DE32 -> 0 | H32: =生涯計算01!EG32 -> 1 | I32: =生涯計算01!GI32 -> 3 | J32: =生涯計算01!HK32 -> 0 | K32: =生涯計算02!CE32 -> － | L32: =生涯計算02!DH32 -> － | M32: =生涯計算02!AC32 -> 27 | N32: =生涯計算02!BE32 -> 27 | O32: =生涯計算02!FN32 -> 3 | P32: =生涯計算02!EK32 -> 9 | Q32: =生涯計算03!AB32 -> 0 | R32: =生涯計算03!BD32 -> 0 | S32: =生涯計算03!CG32 -> 0 | T32: =生涯計算03!DH32 -> 0 | U32: =生涯計算03!EJ32 -> 182 | V32: =生涯計算03!FN32 -> 83 | W32: =生涯計算04!BG32 -> 1 | X32: =生涯計算04!CK32 -> 0 | Y32: =生涯計算04!DM32 -> 0 | Z32: =IF(生涯計算05!BE32=0,"－",生涯計算05!BE32) -> － | AA32: =IF(生涯計算05!BS32=0,"－",生涯計算05!BS32) -> － | AB32: =IF(生涯計算05!CG32=0,"－",生涯計算05!CG32) -> － | AE32: 29 | AF32: reook氏
A33: 30 | B33: =VLOOKUP(A33,登録名変遷!$A$3:$B$1005,2,FALSE) -> awoさん | C33: =生涯計算01!AB33 -> 9 | D33: =生涯計算01!BD33 -> 881 | E33: =生涯計算01!CC33 -> 0 | F33: =生涯計算04!AC33 -> 32 | G33: =生涯計算01!DE33 -> 1 | H33: =生涯計算01!EG33 -> 1 | I33: =生涯計算01!GI33 -> 0 | J33: =生涯計算01!HK33 -> 0 | K33: =生涯計算02!CE33 -> － | L33: =生涯計算02!DH33 -> － | M33: =生涯計算02!AC33 -> 6 | N33: =生涯計算02!BE33 -> 6.923076923 | O33: =生涯計算02!FN33 -> 2 | P33: =生涯計算02!EK33 -> 14 | Q33: =生涯計算03!AB33 -> 1 | R33: =生涯計算03!BD33 -> 0 | S33: =生涯計算03!CG33 -> 0 | T33: =生涯計算03!DH33 -> 0 | U33: =生涯計算03!EJ33 -> 162 | V33: =生涯計算03!FN33 -> 43 | W33: =生涯計算04!BG33 -> 4 | X33: =生涯計算04!CK33 -> 1 | Y33: =生涯計算04!DM33 -> 0 | Z33: =IF(生涯計算05!BE33=0,"－",生涯計算05!BE33) -> － | AA33: =IF(生涯計算05!BS33=0,"－",生涯計算05!BS33) -> － | AB33: =IF(生涯計算05!CG33=0,"－",生涯計算05!CG33) -> － | AE33: 30 | AF33: awo氏
A34: 31 | B34: =VLOOKUP(A34,登録名変遷!$A$3:$B$1005,2,FALSE) -> uniuniさん | C34: =生涯計算01!AB34 -> 26 | D34: =生涯計算01!BD34 -> 2764 | E34: =生涯計算01!CC34 -> 115.4705882 | F34: =生涯計算04!AC34 -> 99 | G34: =生涯計算01!DE34 -> 3 | H34: =生涯計算01!EG34 -> 2 | I34: =生涯計算01!GI34 -> 8 | J34: =生涯計算01!HK34 -> 3 | K34: =生涯計算02!CE34 -> 13.07692308 | L34: =生涯計算02!DH34 -> 13.47385464 | M34: =生涯計算02!AC34 -> 16 | N34: =生涯計算02!BE34 -> 26.66666667 | O34: =生涯計算02!FN34 -> 15 | P34: =生涯計算02!EK34 -> 39 | Q34: =生涯計算03!AB34 -> 6 | R34: =生涯計算03!BD34 -> 0.2307692308 | S34: =生涯計算03!CG34 -> 4 | T34: =生涯計算03!DH34 -> 0.1666666667 | U34: =生涯計算03!EJ34 -> 196 | V34: =生涯計算03!FN34 -> 40 | W34: =生涯計算04!BG34 -> 10 | X34: =生涯計算04!CK34 -> 3 | Y34: =生涯計算04!DM34 -> 0.3333333333 | Z34: =IF(生涯計算05!BE34=0,"－",生涯計算05!BE34) -> － | AA34: =IF(生涯計算05!BS34=0,"－",生涯計算05!BS34) -> － | AB34: =IF(生涯計算05!CG34=0,"－",生涯計算05!CG34) -> － | AE34: 31 | AF34: uniuni氏
A35: 32 | B35: =VLOOKUP(A35,登録名変遷!$A$3:$B$1005,2,FALSE) -> はぐさん | C35: =生涯計算01!AB35 -> 7 | D35: =生涯計算01!BD35 -> 805 | E35: =生涯計算01!CC35 -> 0 | F35: =生涯計算04!AC35 -> 0 | G35: =生涯計算01!DE35 -> 1 | H35: =生涯計算01!EG35 -> 1 | I35: =生涯計算01!GI35 -> 2 | J35: =生涯計算01!HK35 -> 0 | K35: =生涯計算02!CE35 -> － | L35: =生涯計算02!DH35 -> － | M35: =生涯計算02!AC35 -> 63 | N35: =生涯計算02!BE35 -> 81.66217718 | O35: =生涯計算02!FN35 -> 3 | P35: =生涯計算02!EK35 -> 15 | Q35: =生涯計算03!AB35 -> 0 | R35: =生涯計算03!BD35 -> 0 | S35: =生涯計算03!CG35 -> 0 | T35: =生涯計算03!DH35 -> 0 | U35: =生涯計算03!EJ35 -> 187 | V35: =生涯計算03!FN35 -> 63 | W35: =生涯計算04!BG35 -> 0 | X35: =生涯計算04!CK35 -> 0 | Y35: =生涯計算04!DM35 -> 0 | Z35: =IF(生涯計算05!BE35=0,"－",生涯計算05!BE35) -> － | AA35: =IF(生涯計算05!BS35=0,"－",生涯計算05!BS35) -> － | AB35: =IF(生涯計算05!CG35=0,"－",生涯計算05!CG35) -> － | AE35: 32 | AF35: はぐ氏
A36: 33 | B36: =VLOOKUP(A36,登録名変遷!$A$3:$B$1005,2,FALSE) -> いでっくさん | C36: =生涯計算01!AB36 -> 27 | D36: =生涯計算01!BD36 -> 3438 | E36: =生涯計算01!CC36 -> 132.2307692 | F36: =生涯計算04!AC36 -> 136 | G36: =生涯計算01!DE36 -> 4 | H36: =生涯計算01!EG36 -> 1 | I36: =生涯計算01!GI36 -> 12 | J36: =生涯計算01!HK36 -> 7 | K36: =生涯計算02!CE36 -> 9.076923077 | L36: =生涯計算02!DH36 -> 9.073286827 | M36: =生涯計算02!AC36 -> 118 | N36: =生涯計算02!BE36 -> 158.3880769 | O36: =生涯計算02!FN36 -> 17 | P36: =生涯計算02!EK36 -> 55 | Q36: =生涯計算03!AB36 -> 10 | R36: =生涯計算03!BD36 -> 0.3846153846 | S36: =生涯計算03!CG36 -> 4 | T36: =生涯計算03!DH36 -> 0.1538461538 | U36: =生涯計算03!EJ36 -> 255 | V36: =生涯計算03!FN36 -> 25 | W36: =生涯計算04!BG36 -> 7 | X36: =生涯計算04!CK36 -> 3 | Y36: =生涯計算04!DM36 -> 0.4285714286 | Z36: =IF(生涯計算05!BE36=0,"－",生涯計算05!BE36) -> 21.88160256 | AA36: =IF(生涯計算05!BS36=0,"－",生涯計算05!BS36) -> 21.46528571 | AB36: =IF(生涯計算05!CG36=0,"－",生涯計算05!CG36) -> 21.41005714 | AE36: 33 | AF36: いでっく氏
A37: 34 | B37: =VLOOKUP(A37,登録名変遷!$A$3:$B$1005,2,FALSE) -> Atm0sph3reさん | C37: =生涯計算01!AB37 -> 12 | D37: =生涯計算01!BD37 -> 1214 | E37: =生涯計算01!CC37 -> 0 | F37: =生涯計算04!AC37 -> 0 | G37: =生涯計算01!DE37 -> 0 | H37: =生涯計算01!EG37 -> 1 | I37: =生涯計算01!GI37 -> 1 | J37: =生涯計算01!HK37 -> 1 | K37: =生涯計算02!CE37 -> － | L37: =生涯計算02!DH37 -> － | M37: =生涯計算02!AC37 -> 42 | N37: =生涯計算02!BE37 -> 48.46153846 | O37: =生涯計算02!FN37 -> 2 | P37: =生涯計算02!EK37 -> 16 | Q37: =生涯計算03!AB37 -> 0 | R37: =生涯計算03!BD37 -> 0 | S37: =生涯計算03!CG37 -> 0 | T37: =生涯計算03!DH37 -> 0 | U37: =生涯計算03!EJ37 -> 173 | V37: =生涯計算03!FN37 -> 61 | W37: =生涯計算04!BG37 -> 2 | X37: =生涯計算04!CK37 -> 0 | Y37: =生涯計算04!DM37 -> 0 | Z37: =IF(生涯計算05!BE37=0,"－",生涯計算05!BE37) -> － | AA37: =IF(生涯計算05!BS37=0,"－",生涯計算05!BS37) -> － | AB37: =IF(生涯計算05!CG37=0,"－",生涯計算05!CG37) -> － | AE37: 34 | AF37: Atm0sph3re氏
A38: 35 | B38: =VLOOKUP(A38,登録名変遷!$A$3:$B$1005,2,FALSE) -> じいさん | C38: =生涯計算01!AB38 -> 27 | D38: =生涯計算01!BD38 -> 3498 | E38: =生涯計算01!CC38 -> 129.5555556 | F38: =生涯計算04!AC38 -> 175 | G38: =生涯計算01!DE38 -> 2 | H38: =生涯計算01!EG38 -> 3 | I38: =生涯計算01!GI38 -> 8 | J38: =生涯計算01!HK38 -> 10 | K38: =生涯計算02!CE38 -> 13.26923077 | L38: =生涯計算02!DH38 -> 12.45057705 | M38: =生涯計算02!AC38 -> 132 | N38: =生涯計算02!BE38 -> 177.8829698 | O38: =生涯計算02!FN38 -> 13 | P38: =生涯計算02!EK38 -> 52 | Q38: =生涯計算03!AB38 -> 8 | R38: =生涯計算03!BD38 -> 0.3076923077 | S38: =生涯計算03!CG38 -> 12 | T38: =生涯計算03!DH38 -> 0.4615384615 | U38: =生涯計算03!EJ38 -> 283 | V38: =生涯計算03!FN38 -> 20 | W38: =生涯計算04!BG38 -> 17 | X38: =生涯計算04!CK38 -> 3 | Y38: =生涯計算04!DM38 -> 0.3333333333 | Z38: =IF(生涯計算05!BE38=0,"－",生涯計算05!BE38) -> 21.29682716 | AA38: =IF(生涯計算05!BS38=0,"－",生涯計算05!BS38) -> 23.47417241 | AB38: =IF(生涯計算05!CG38=0,"－",生涯計算05!CG38) -> 20.08253846 | AE38: 35 | AF38: じい氏
A39: 36 | B39: =VLOOKUP(A39,登録名変遷!$A$3:$B$1005,2,FALSE) -> 精霊さん | C39: =生涯計算01!AB39 -> 23 | D39: =生涯計算01!BD39 -> 2737 | E39: =生涯計算01!CC39 -> 119 | F39: =生涯計算04!AC39 -> 66 | G39: =生涯計算01!DE39 -> 1 | H39: =生涯計算01!EG39 -> 0 | I39: =生涯計算01!GI39 -> 6 | J39: =生涯計算01!HK39 -> 3 | K39: =生涯計算02!CE39 -> 11.82608696 | L39: =生涯計算02!DH39 -> 12.10008865 | M39: =生涯計算02!AC39 -> 102 | N39: =生涯計算02!BE39 -> 131.9636646 | O39: =生涯計算02!FN39 -> 14 | P39: =生涯計算02!EK39 -> 35 | Q39: =生涯計算03!AB39 -> 9 | R39: =生涯計算03!BD39 -> 0.3913043478 | S39: =生涯計算03!CG39 -> 1 | T39: =生涯計算03!DH39 -> 0 | U39: =生涯計算03!EJ39 -> 300 | V39: =生涯計算03!FN39 -> 40 | W39: =生涯計算04!BG39 -> 6 | X39: =生涯計算04!CK39 -> 2 | Y39: =生涯計算04!DM39 -> 0.3333333333 | Z39: =IF(生涯計算05!BE39=0,"－",生涯計算05!BE39) -> － | AA39: =IF(生涯計算05!BS39=0,"－",生涯計算05!BS39) -> － | AB39: =IF(生涯計算05!CG39=0,"－",生涯計算05!CG39) -> － | AE39: 36 | AF39: 精霊氏
A40: 37 | B40: =VLOOKUP(A40,登録名変遷!$A$3:$B$1005,2,FALSE) -> Eugeneさん | C40: =生涯計算01!AB40 -> 5 | D40: =生涯計算01!BD40 -> 513 | E40: =生涯計算01!CC40 -> 0 | F40: =生涯計算04!AC40 -> 125 | G40: =生涯計算01!DE40 -> 0 | H40: =生涯計算01!EG40 -> 0 | I40: =生涯計算01!GI40 -> 1 | J40: =生涯計算01!HK40 -> 1 | K40: =生涯計算02!CE40 -> － | L40: =生涯計算02!DH40 -> － | M40: =生涯計算02!AC40 -> 81 | N40: =生涯計算02!BE40 -> 102.7409091 | O40: =生涯計算02!FN40 -> 0 | P40: =生涯計算02!EK40 -> 7 | Q40: =生涯計算03!AB40 -> 0 | R40: =生涯計算03!BD40 -> 0 | S40: =生涯計算03!CG40 -> 0 | T40: =生涯計算03!DH40 -> 0 | U40: =生涯計算03!EJ40 -> 225 | V40: =生涯計算03!FN40 -> 58 | W40: =生涯計算04!BG40 -> 1 | X40: =生涯計算04!CK40 -> 1 | Y40: =生涯計算04!DM40 -> 0 | Z40: =IF(生涯計算05!BE40=0,"－",生涯計算05!BE40) -> － | AA40: =IF(生涯計算05!BS40=0,"－",生涯計算05!BS40) -> － | AB40: =IF(生涯計算05!CG40=0,"－",生涯計算05!CG40) -> － | AE40: 37 | AF40: Eugene氏
A41: 38 | B41: =VLOOKUP(A41,登録名変遷!$A$3:$B$1005,2,FALSE) -> ゆーのさん | C41: =生涯計算01!AB41 -> 26 | D41: =生涯計算01!BD41 -> 3349 | E41: =生涯計算01!CC41 -> 128.8076923 | F41: =生涯計算04!AC41 -> 160 | G41: =生涯計算01!DE41 -> 3 | H41: =生涯計算01!EG41 -> 2 | I41: =生涯計算01!GI41 -> 10 | J41: =生涯計算01!HK41 -> 6 | K41: =生涯計算02!CE41 -> 13.11538462 | L41: =生涯計算02!DH41 -> 11.25765633 | M41: =生涯計算02!AC41 -> 205 | N41: =生涯計算02!BE41 -> 197.5200503 | O41: =生涯計算02!FN41 -> 15 | P41: =生涯計算02!EK41 -> 49 | Q41: =生涯計算03!AB41 -> 9 | R41: =生涯計算03!BD41 -> 0.3461538462 | S41: =生涯計算03!CG41 -> 6 | T41: =生涯計算03!DH41 -> 0.2307692308 | U41: =生涯計算03!EJ41 -> 295 | V41: =生涯計算03!FN41 -> 23 | W41: =生涯計算04!BG41 -> 7 | X41: =生涯計算04!CK41 -> 4 | Y41: =生涯計算04!DM41 -> 0.5714285714 | Z41: =IF(生涯計算05!BE41=0,"－",生涯計算05!BE41) -> － | AA41: =IF(生涯計算05!BS41=0,"－",生涯計算05!BS41) -> － | AB41: =IF(生涯計算05!CG41=0,"－",生涯計算05!CG41) -> － | AE41: 38 | AF41: ゆーの氏
A42: 39 | B42: =VLOOKUP(A42,登録名変遷!$A$3:$B$1005,2,FALSE) -> TAKOさん | C42: =生涯計算01!AB42 -> 20 | D42: =生涯計算01!BD42 -> 1974 | E42: =生涯計算01!CC42 -> 98.7 | F42: =生涯計算04!AC42 -> 63 | G42: =生涯計算01!DE42 -> 0 | H42: =生涯計算01!EG42 -> 0 | I42: =生涯計算01!GI42 -> 4 | J42: =生涯計算01!HK42 -> 0 | K42: =生涯計算02!CE42 -> 16.6 | L42: =生涯計算02!DH42 -> 17.20724971 | M42: =生涯計算02!AC42 -> 155 | N42: =生涯計算02!BE42 -> 122.318461 | O42: =生涯計算02!FN42 -> 4 | P42: =生涯計算02!EK42 -> 34 | Q42: =生涯計算03!AB42 -> 3 | R42: =生涯計算03!BD42 -> 0.15 | S42: =生涯計算03!CG42 -> 3 | T42: =生涯計算03!DH42 -> 0 | U42: =生涯計算03!EJ42 -> 180 | V42: =生涯計算03!FN42 -> 50 | W42: =生涯計算04!BG42 -> 7 | X42: =生涯計算04!CK42 -> 2 | Y42: =生涯計算04!DM42 -> 0.2857142857 | Z42: =IF(生涯計算05!BE42=0,"－",生涯計算05!BE42) -> － | AA42: =IF(生涯計算05!BS42=0,"－",生涯計算05!BS42) -> － | AB42: =IF(生涯計算05!CG42=0,"－",生涯計算05!CG42) -> － | AE42: 39 | AF42: TAKO氏
A43: 40 | B43: =VLOOKUP(A43,登録名変遷!$A$3:$B$1005,2,FALSE) -> ケロロさん | C43: =生涯計算01!AB43 -> 26 | D43: =生涯計算01!BD43 -> 3107 | E43: =生涯計算01!CC43 -> 123.72 | F43: =生涯計算04!AC43 -> 46 | G43: =生涯計算01!DE43 -> 1 | H43: =生涯計算01!EG43 -> 2 | I43: =生涯計算01!GI43 -> 8 | J43: =生涯計算01!HK43 -> 8 | K43: =生涯計算02!CE43 -> 11.44 | L43: =生涯計算02!DH43 -> 11.33853315 | M43: =生涯計算02!AC43 -> 286 | N43: =生涯計算02!BE43 -> 259.7822288 | O43: =生涯計算02!FN43 -> 17 | P43: =生涯計算02!EK43 -> 48 | Q43: =生涯計算03!AB43 -> 8 | R43: =生涯計算03!BD43 -> 0.32 | S43: =生涯計算03!CG43 -> 1 | T43: =生涯計算03!DH43 -> 0.03846153846 | U43: =生涯計算03!EJ43 -> 211 | V43: =生涯計算03!FN43 -> 22 | W43: =生涯計算04!BG43 -> 4 | X43: =生涯計算04!CK43 -> 1 | Y43: =生涯計算04!DM43 -> 1 | Z43: =IF(生涯計算05!BE43=0,"－",生涯計算05!BE43) -> － | AA43: =IF(生涯計算05!BS43=0,"－",生涯計算05!BS43) -> － | AB43: =IF(生涯計算05!CG43=0,"－",生涯計算05!CG43) -> － | AE43: 40 | AF43: ケロロ氏
A44: 41 | B44: =VLOOKUP(A44,登録名変遷!$A$3:$B$1005,2,FALSE) -> エグドラシル使いMさん | C44: =生涯計算01!AB44 -> 17 | D44: =生涯計算01!BD44 -> 1861 | E44: =生涯計算01!CC44 -> 116.3125 | F44: =生涯計算04!AC44 -> 81 | G44: =生涯計算01!DE44 -> 2 | H44: =生涯計算01!EG44 -> 1 | I44: =生涯計算01!GI44 -> 4 | J44: =生涯計算01!HK44 -> 3 | K44: =生涯計算02!CE44 -> 14.0625 | L44: =生涯計算02!DH44 -> 13.69007292 | M44: =生涯計算02!AC44 -> 225 | N44: =生涯計算02!BE44 -> 219.0411667 | O44: =生涯計算02!FN44 -> 9 | P44: =生涯計算02!EK44 -> 28 | Q44: =生涯計算03!AB44 -> 5 | R44: =生涯計算03!BD44 -> 0.3125 | S44: =生涯計算03!CG44 -> 7 | T44: =生涯計算03!DH44 -> 0.4117647059 | U44: =生涯計算03!EJ44 -> 220 | V44: =生涯計算03!FN44 -> 37 | W44: =生涯計算04!BG44 -> 6 | X44: =生涯計算04!CK44 -> 2 | Y44: =生涯計算04!DM44 -> 0.3333333333 | Z44: =IF(生涯計算05!BE44=0,"－",生涯計算05!BE44) -> － | AA44: =IF(生涯計算05!BS44=0,"－",生涯計算05!BS44) -> － | AB44: =IF(生涯計算05!CG44=0,"－",生涯計算05!CG44) -> － | AE44: 41 | AF44: エグドラシル使いM氏
A45: 42 | B45: =VLOOKUP(A45,登録名変遷!$A$3:$B$1005,2,FALSE) -> kazunaさん | C45: =生涯計算01!AB45 -> 7 | D45: =生涯計算01!BD45 -> 453 | E45: =生涯計算01!CC45 -> 0 | F45: =生涯計算04!AC45 -> 73 | G45: =生涯計算01!DE45 -> 0 | H45: =生涯計算01!EG45 -> 2 | I45: =生涯計算01!GI45 -> 0 | J45: =生涯計算01!HK45 -> 3 | K45: =生涯計算02!CE45 -> － | L45: =生涯計算02!DH45 -> － | M45: =生涯計算02!AC45 -> 150 | N45: =生涯計算02!BE45 -> 153.4482759 | O45: =生涯計算02!FN45 -> 1 | P45: =生涯計算02!EK45 -> 5 | Q45: =生涯計算03!AB45 -> 1 | R45: =生涯計算03!BD45 -> 0 | S45: =生涯計算03!CG45 -> 0 | T45: =生涯計算03!DH45 -> 0 | U45: =生涯計算03!EJ45 -> 123 | V45: =生涯計算03!FN45 -> 27 | W45: =生涯計算04!BG45 -> 11 | X45: =生涯計算04!CK45 -> 1 | Y45: =生涯計算04!DM45 -> 0 | Z45: =IF(生涯計算05!BE45=0,"－",生涯計算05!BE45) -> － | AA45: =IF(生涯計算05!BS45=0,"－",生涯計算05!BS45) -> － | AB45: =IF(生涯計算05!CG45=0,"－",生涯計算05!CG45) -> － | AE45: 42 | AF45: kazuna氏
A46: 43 | B46: =VLOOKUP(A46,登録名変遷!$A$3:$B$1005,2,FALSE) -> ZERUさん | C46: =生涯計算01!AB46 -> 26 | D46: =生涯計算01!BD46 -> 3290 | E46: =生涯計算01!CC46 -> 126.5384615 | F46: =生涯計算04!AC46 -> 201 | G46: =生涯計算01!DE46 -> 2 | H46: =生涯計算01!EG46 -> 2 | I46: =生涯計算01!GI46 -> 10 | J46: =生涯計算01!HK46 -> 4 | K46: =生涯計算02!CE46 -> 13.23529412 | L46: =生涯計算02!DH46 -> 10.70630996 | M46: =生涯計算02!AC46 -> 136 | N46: =生涯計算02!BE46 -> 111.3904694 | O46: =生涯計算02!FN46 -> 16 | P46: =生涯計算02!EK46 -> 51 | Q46: =生涯計算03!AB46 -> 7 | R46: =生涯計算03!BD46 -> 0.2727272727 | S46: =生涯計算03!CG46 -> 3 | T46: =生涯計算03!DH46 -> 0.15 | U46: =生涯計算03!EJ46 -> 389 | V46: =生涯計算03!FN46 -> 42 | W46: =生涯計算04!BG46 -> 11 | X46: =生涯計算04!CK46 -> 4 | Y46: =生涯計算04!DM46 -> 0.5 | Z46: =IF(生涯計算05!BE46=0,"－",生涯計算05!BE46) -> － | AA46: =IF(生涯計算05!BS46=0,"－",生涯計算05!BS46) -> － | AB46: =IF(生涯計算05!CG46=0,"－",生涯計算05!CG46) -> － | AE46: 43 | AF46: ZERU氏
A47: 44 | B47: =VLOOKUP(A47,登録名変遷!$A$3:$B$1005,2,FALSE) -> aruさん | C47: =生涯計算01!AB47 -> 27 | D47: =生涯計算01!BD47 -> 2822 | E47: =生涯計算01!CC47 -> 108.6363636 | F47: =生涯計算04!AC47 -> 455 | G47: =生涯計算01!DE47 -> 2 | H47: =生涯計算01!EG47 -> 9 | I47: =生涯計算01!GI47 -> 6 | J47: =生涯計算01!HK47 -> 8 | K47: =生涯計算02!CE47 -> 19.53846154 | L47: =生涯計算02!DH47 -> 17.27369689 | M47: =生涯計算02!AC47 -> 158 | N47: =生涯計算02!BE47 -> 144.6412815 | O47: =生涯計算02!FN47 -> 12 | P47: =生涯計算02!EK47 -> 41 | Q47: =生涯計算03!AB47 -> 5 | R47: =生涯計算03!BD47 -> 0.1923076923 | S47: =生涯計算03!CG47 -> 15 | T47: =生涯計算03!DH47 -> 0.5769230769 | U47: =生涯計算03!EJ47 -> 525 | V47: =生涯計算03!FN47 -> 26 | W47: =生涯計算04!BG47 -> 19 | X47: =生涯計算04!CK47 -> 3 | Y47: =生涯計算04!DM47 -> 0.1875 | Z47: =IF(生涯計算05!BE47=0,"－",生涯計算05!BE47) -> 42.06184615 | AA47: =IF(生涯計算05!BS47=0,"－",生涯計算05!BS47) -> 55.0467 | AB47: =IF(生涯計算05!CG47=0,"－",生涯計算05!CG47) -> 27.9257234 | AE47: 44 | AF47: aru氏
A48: 45 | B48: =VLOOKUP(A48,登録名変遷!$A$3:$B$1005,2,FALSE) -> ナルクさん | C48: =生涯計算01!AB48 -> 27 | D48: =生涯計算01!BD48 -> 3253 | E48: =生涯計算01!CC48 -> 120.4814815 | F48: =生涯計算04!AC48 -> 106 | G48: =生涯計算01!DE48 -> 2 | H48: =生涯計算01!EG48 -> 3 | I48: =生涯計算01!GI48 -> 10 | J48: =生涯計算01!HK48 -> 7 | K48: =生涯計算02!CE48 -> 15.07692308 | L48: =生涯計算02!DH48 -> 13.70006879 | M48: =生涯計算02!AC48 -> 153 | N48: =生涯計算02!BE48 -> 139.4590921 | O48: =生涯計算02!FN48 -> 14 | P48: =生涯計算02!EK48 -> 50 | Q48: =生涯計算03!AB48 -> 7 | R48: =生涯計算03!BD48 -> 0.2692307692 | S48: =生涯計算03!CG48 -> 9 | T48: =生涯計算03!DH48 -> 0.3461538462 | U48: =生涯計算03!EJ48 -> 310 | V48: =生涯計算03!FN48 -> 22 | W48: =生涯計算04!BG48 -> 9 | X48: =生涯計算04!CK48 -> 2 | Y48: =生涯計算04!DM48 -> 0.3333333333 | Z48: =IF(生涯計算05!BE48=0,"－",生涯計算05!BE48) -> 25.39617949 | AA48: =IF(生涯計算05!BS48=0,"－",生涯計算05!BS48) -> 21.79251515 | AB48: =IF(生涯計算05!CG48=0,"－",生涯計算05!CG48) -> 23.15706122 | AE48: 45 | AF48: nalk氏
A49: 46 | B49: =VLOOKUP(A49,登録名変遷!$A$3:$B$1005,2,FALSE) -> ブッフバルトさん | C49: =生涯計算01!AB49 -> 27 | D49: =生涯計算01!BD49 -> 3291 | E49: =生涯計算01!CC49 -> 126.5769231 | F49: =生涯計算04!AC49 -> 309 | G49: =生涯計算01!DE49 -> 2 | H49: =生涯計算01!EG49 -> 2 | I49: =生涯計算01!GI49 -> 13 | J49: =生涯計算01!HK49 -> 6 | K49: =生涯計算02!CE49 -> 13.76923077 | L49: =生涯計算02!DH49 -> 10.79281093 | M49: =生涯計算02!AC49 -> 114 | N49: =生涯計算02!BE49 -> 103.237204 | O49: =生涯計算02!FN49 -> 16 | P49: =生涯計算02!EK49 -> 54 | Q49: =生涯計算03!AB49 -> 7 | R49: =生涯計算03!BD49 -> 0.2592592593 | S49: =生涯計算03!CG49 -> 6 | T49: =生涯計算03!DH49 -> 0.2307692308 | U49: =生涯計算03!EJ49 -> 220 | V49: =生涯計算03!FN49 -> 38 | W49: =生涯計算04!BG49 -> 15 | X49: =生涯計算04!CK49 -> 5 | Y49: =生涯計算04!DM49 -> 0.3333333333 | Z49: =IF(生涯計算05!BE49=0,"－",生涯計算05!BE49) -> － | AA49: =IF(生涯計算05!BS49=0,"－",生涯計算05!BS49) -> － | AB49: =IF(生涯計算05!CG49=0,"－",生涯計算05!CG49) -> － | AE49: 46 | AF49: ブッフバルト氏
A50: 47 | B50: =VLOOKUP(A50,登録名変遷!$A$3:$B$1005,2,FALSE) -> ボチョコさん | C50: =生涯計算01!AB50 -> 27 | D50: =生涯計算01!BD50 -> 2873 | E50: =生涯計算01!CC50 -> 114.28 | F50: =生涯計算04!AC50 -> 303 | G50: =生涯計算01!DE50 -> 2 | H50: =生涯計算01!EG50 -> 6 | I50: =生涯計算01!GI50 -> 9 | J50: =生涯計算01!HK50 -> 9 | K50: =生涯計算02!CE50 -> 16.16 | L50: =生涯計算02!DH50 -> 14.75415393 | M50: =生涯計算02!AC50 -> 108 | N50: =生涯計算02!BE50 -> 97.81737013 | O50: =生涯計算02!FN50 -> 13 | P50: =生涯計算02!EK50 -> 47 | Q50: =生涯計算03!AB50 -> 5 | R50: =生涯計算03!BD50 -> 0.2 | S50: =生涯計算03!CG50 -> 13 | T50: =生涯計算03!DH50 -> 0.5 | U50: =生涯計算03!EJ50 -> 301 | V50: =生涯計算03!FN50 -> 20 | W50: =生涯計算04!BG50 -> 14 | X50: =生涯計算04!CK50 -> 4 | Y50: =生涯計算04!DM50 -> 0.3636363636 | Z50: =IF(生涯計算05!BE50=0,"－",生涯計算05!BE50) -> 28.64737037 | AA50: =IF(生涯計算05!BS50=0,"－",生涯計算05!BS50) -> 33.20673529 | AB50: =IF(生涯計算05!CG50=0,"－",生涯計算05!CG50) -> 25.34910638 | AE50: 47 | AF50: ボチョコ氏
A51: 48 | B51: =VLOOKUP(A51,登録名変遷!$A$3:$B$1005,2,FALSE) -> 系譜さん | C51: =生涯計算01!AB51 -> 27 | D51: =生涯計算01!BD51 -> 3710 | E51: =生涯計算01!CC51 -> 137.4074074 | F51: =生涯計算04!AC51 -> 482 | G51: =生涯計算01!DE51 -> 5 | H51: =生涯計算01!EG51 -> 2 | I51: =生涯計算01!GI51 -> 12 | J51: =生涯計算01!HK51 -> 8 | K51: =生涯計算02!CE51 -> 12.81481481 | L51: =生涯計算02!DH51 -> 11.16219618 | M51: =生涯計算02!AC51 -> 81 | N51: =生涯計算02!BE51 -> 72.87542972 | O51: =生涯計算02!FN51 -> 15 | P51: =生涯計算02!EK51 -> 56 | Q51: =生涯計算03!AB51 -> 10 | R51: =生涯計算03!BD51 -> 0.4 | S51: =生涯計算03!CG51 -> 7 | T51: =生涯計算03!DH51 -> 0.2692307692 | U51: =生涯計算03!EJ51 -> 508 | V51: =生涯計算03!FN51 -> 20 | W51: =生涯計算04!BG51 -> 10 | X51: =生涯計算04!CK51 -> 4 | Y51: =生涯計算04!DM51 -> 0.5 | Z51: =IF(生涯計算05!BE51=0,"－",生涯計算05!BE51) -> 24.23516049 | AA51: =IF(生涯計算05!BS51=0,"－",生涯計算05!BS51) -> 27.4619 | AB51: =IF(生涯計算05!CG51=0,"－",生涯計算05!CG51) -> 24.54201754 | AE51: 48 | AF51: 系譜氏
A52: 49 | B52: =VLOOKUP(A52,登録名変遷!$A$3:$B$1005,2,FALSE) -> vanblaesさん | C52: =生涯計算01!AB52 -> 27 | D52: =生涯計算01!BD52 -> 3288 | E52: =生涯計算01!CC52 -> 121.7777778 | F52: =生涯計算04!AC52 -> 64 | G52: =生涯計算01!DE52 -> 3 | H52: =生涯計算01!EG52 -> 2 | I52: =生涯計算01!GI52 -> 9 | J52: =生涯計算01!HK52 -> 7 | K52: =生涯計算02!CE52 -> 15.52 | L52: =生涯計算02!DH52 -> 13.32054949 | M52: =生涯計算02!AC52 -> 67 | N52: =生涯計算02!BE52 -> 60.05194805 | O52: =生涯計算02!FN52 -> 16 | P52: =生涯計算02!EK52 -> 48 | Q52: =生涯計算03!AB52 -> 7 | R52: =生涯計算03!BD52 -> 0.28 | S52: =生涯計算03!CG52 -> 11 | T52: =生涯計算03!DH52 -> 0.4782608696 | U52: =生涯計算03!EJ52 -> 310 | V52: =生涯計算03!FN52 -> 20 | W52: =生涯計算04!BG52 -> 10 | X52: =生涯計算04!CK52 -> 1 | Y52: =生涯計算04!DM52 -> 0.3333333333 | Z52: =IF(生涯計算05!BE52=0,"－",生涯計算05!BE52) -> 21.31202469 | AA52: =IF(生涯計算05!BS52=0,"－",生涯計算05!BS52) -> 20.6997 | AB52: =IF(生涯計算05!CG52=0,"－",生涯計算05!CG52) -> 21.67221569 | AE52: 49 | AF52: vanblaes氏
A53: 50 | B53: =VLOOKUP(A53,登録名変遷!$A$3:$B$1005,2,FALSE) -> uwanさん | C53: =生涯計算01!AB53 -> 3 | D53: =生涯計算01!BD53 -> 303 | E53: =生涯計算01!CC53 -> 0 | F53: =生涯計算04!AC53 -> 0 | G53: =生涯計算01!DE53 -> 0 | H53: =生涯計算01!EG53 -> 1 | I53: =生涯計算01!GI53 -> 0 | J53: =生涯計算01!HK53 -> 1 | K53: =生涯計算02!CE53 -> － | L53: =生涯計算02!DH53 -> － | M53: =生涯計算02!AC53 -> 40 | N53: =生涯計算02!BE53 -> 34.54545455 | O53: =生涯計算02!FN53 -> 1 | P53: =生涯計算02!EK53 -> 4 | Q53: =生涯計算03!AB53 -> 1 | R53: =生涯計算03!BD53 -> 0 | S53: =生涯計算03!CG53 -> 2 | T53: =生涯計算03!DH53 -> 0 | U53: =生涯計算03!EJ53 -> 140 | V53: =生涯計算03!FN53 -> 61 | W53: =生涯計算04!BG53 -> 2 | X53: =生涯計算04!CK53 -> 0 | Y53: =生涯計算04!DM53 -> 0 | Z53: =IF(生涯計算05!BE53=0,"－",生涯計算05!BE53) -> － | AA53: =IF(生涯計算05!BS53=0,"－",生涯計算05!BS53) -> － | AB53: =IF(生涯計算05!CG53=0,"－",生涯計算05!CG53) -> － | AE53: 50 | AF53: uwan氏
A54: 51 | B54: =VLOOKUP(A54,登録名変遷!$A$3:$B$1005,2,FALSE) -> chukaiさん | C54: =生涯計算01!AB54 -> 17 | D54: =生涯計算01!BD54 -> 2069 | E54: =生涯計算01!CC54 -> 121.7058824 | F54: =生涯計算04!AC54 -> 0 | G54: =生涯計算01!DE54 -> 1 | H54: =生涯計算01!EG54 -> 0 | I54: =生涯計算01!GI54 -> 5 | J54: =生涯計算01!HK54 -> 1 | K54: =生涯計算02!CE54 -> 18.11764706 | L54: =生涯計算02!DH54 -> 13.54091571 | M54: =生涯計算02!AC54 -> 13 | N54: =生涯計算02!BE54 -> 11.14285714 | O54: =生涯計算02!FN54 -> 8 | P54: =生涯計算02!EK54 -> 33 | Q54: =生涯計算03!AB54 -> 4 | R54: =生涯計算03!BD54 -> 0.2352941176 | S54: =生涯計算03!CG54 -> 2 | T54: =生涯計算03!DH54 -> 0.1176470588 | U54: =生涯計算03!EJ54 -> 184 | V54: =生涯計算03!FN54 -> 68 | W54: =生涯計算04!BG54 -> 4 | X54: =生涯計算04!CK54 -> 0 | Y54: =生涯計算04!DM54 -> 0 | Z54: =IF(生涯計算05!BE54=0,"－",生涯計算05!BE54) -> － | AA54: =IF(生涯計算05!BS54=0,"－",生涯計算05!BS54) -> － | AB54: =IF(生涯計算05!CG54=0,"－",生涯計算05!CG54) -> － | AE54: 51 | AF54: chukai氏
A55: 52 | B55: =VLOOKUP(A55,登録名変遷!$A$3:$B$1005,2,FALSE) -> zaozaoさん | C55: =生涯計算01!AB55 -> 15 | D55: =生涯計算01!BD55 -> 1483 | E55: =生涯計算01!CC55 -> 98.86666667 | F55: =生涯計算04!AC55 -> 0 | G55: =生涯計算01!DE55 -> 0 | H55: =生涯計算01!EG55 -> 1 | I55: =生涯計算01!GI55 -> 3 | J55: =生涯計算01!HK55 -> 3 | K55: =生涯計算02!CE55 -> 23.26666667 | L55: =生涯計算02!DH55 -> 17.63246635 | M55: =生涯計算02!AC55 -> 349 | N55: =生涯計算02!BE55 -> 264.4869952 | O55: =生涯計算02!FN55 -> 5 | P55: =生涯計算02!EK55 -> 20 | Q55: =生涯計算03!AB55 -> 1 | R55: =生涯計算03!BD55 -> 0.06666666667 | S55: =生涯計算03!CG55 -> 5 | T55: =生涯計算03!DH55 -> 0.3333333333 | U55: =生涯計算03!EJ55 -> 159 | V55: =生涯計算03!FN55 -> 34 | W55: =生涯計算04!BG55 -> 4 | X55: =生涯計算04!CK55 -> 0 | Y55: =生涯計算04!DM55 -> 0 | Z55: =IF(生涯計算05!BE55=0,"－",生涯計算05!BE55) -> － | AA55: =IF(生涯計算05!BS55=0,"－",生涯計算05!BS55) -> － | AB55: =IF(生涯計算05!CG55=0,"－",生涯計算05!CG55) -> － | AE55: 52 | AF55: zaozao氏
A56: 53 | B56: =VLOOKUP(A56,登録名変遷!$A$3:$B$1005,2,FALSE) -> みったにさん | C56: =生涯計算01!AB56 -> 27 | D56: =生涯計算01!BD56 -> 3694 | E56: =生涯計算01!CC56 -> 142.0769231 | F56: =生涯計算04!AC56 -> 360 | G56: =生涯計算01!DE56 -> 3 | H56: =生涯計算01!EG56 -> 1 | I56: =生涯計算01!GI56 -> 14 | J56: =生涯計算01!HK56 -> 9 | K56: =生涯計算02!CE56 -> 11.07692308 | L56: =生涯計算02!DH56 -> 8.718482697 | M56: =生涯計算02!AC56 -> 288 | N56: =生涯計算02!BE56 -> 226.6805501 | O56: =生涯計算02!FN56 -> 15 | P56: =生涯計算02!EK56 -> 59 | Q56: =生涯計算03!AB56 -> 9 | R56: =生涯計算03!BD56 -> 0.3461538462 | S56: =生涯計算03!CG56 -> 4 | T56: =生涯計算03!DH56 -> 0.1538461538 | U56: =生涯計算03!EJ56 -> 464 | V56: =生涯計算03!FN56 -> 20 | W56: =生涯計算04!BG56 -> 9 | X56: =生涯計算04!CK56 -> 3 | Y56: =生涯計算04!DM56 -> 0.5 | Z56: =IF(生涯計算05!BE56=0,"－",生涯計算05!BE56) -> 18.90264198 | AA56: =IF(生涯計算05!BS56=0,"－",生涯計算05!BS56) -> 18.70792308 | AB56: =IF(生涯計算05!CG56=0,"－",生涯計算05!CG56) -> 20.07698246 | AE56: 53 | AF56: みったに氏
A57: 54 | B57: =VLOOKUP(A57,登録名変遷!$A$3:$B$1005,2,FALSE) -> yuifanさん | C57: =生涯計算01!AB57 -> 27 | D57: =生涯計算01!BD57 -> 3361 | E57: =生涯計算01!CC57 -> 129.2692308 | F57: =生涯計算04!AC57 -> 110 | G57: =生涯計算01!DE57 -> 2 | H57: =生涯計算01!EG57 -> 0 | I57: =生涯計算01!GI57 -> 10 | J57: =生涯計算01!HK57 -> 8 | K57: =生涯計算02!CE57 -> 11.07692308 | L57: =生涯計算02!DH57 -> 10.68621819 | M57: =生涯計算02!AC57 -> 288 | N57: =生涯計算02!BE57 -> 277.8416729 | O57: =生涯計算02!FN57 -> 19 | P57: =生涯計算02!EK57 -> 54 | Q57: =生涯計算03!AB57 -> 10 | R57: =生涯計算03!BD57 -> 0.3846153846 | S57: =生涯計算03!CG57 -> 5 | T57: =生涯計算03!DH57 -> 0.1923076923 | U57: =生涯計算03!EJ57 -> 213 | V57: =生涯計算03!FN57 -> 31 | W57: =生涯計算04!BG57 -> 6 | X57: =生涯計算04!CK57 -> 2 | Y57: =生涯計算04!DM57 -> 1 | Z57: =IF(生涯計算05!BE57=0,"－",生涯計算05!BE57) -> 21.52060494 | AA57: =IF(生涯計算05!BS57=0,"－",生涯計算05!BS57) -> 22.43847059 | AB57: =IF(生涯計算05!CG57=0,"－",生涯計算05!CG57) -> 20.94301818 | AE57: 54 | AF57: yuifan氏
A58: 55 | B58: =VLOOKUP(A58,登録名変遷!$A$3:$B$1005,2,FALSE) -> 真央さん | C58: =生涯計算01!AB58 -> 26 | D58: =生涯計算01!BD58 -> 2995 | E58: =生涯計算01!CC58 -> 118 | F58: =生涯計算04!AC58 -> 0 | G58: =生涯計算01!DE58 -> 1 | H58: =生涯計算01!EG58 -> 1 | I58: =生涯計算01!GI58 -> 10 | J58: =生涯計算01!HK58 -> 8 | K58: =生涯計算02!CE58 -> 13.42307692 | L58: =生涯計算02!DH58 -> 11.83127575 | M58: =生涯計算02!AC58 -> 97 | N58: =生涯計算02!BE58 -> 87.52139191 | O58: =生涯計算02!FN58 -> 13 | P58: =生涯計算02!EK58 -> 51 | Q58: =生涯計算03!AB58 -> 7 | R58: =生涯計算03!BD58 -> 0.2692307692 | S58: =生涯計算03!CG58 -> 2 | T58: =生涯計算03!DH58 -> 0.08333333333 | U58: =生涯計算03!EJ58 -> 203 | V58: =生涯計算03!FN58 -> 44 | W58: =生涯計算04!BG58 -> 4 | X58: =生涯計算04!CK58 -> 0 | Y58: =生涯計算04!DM58 -> 0 | Z58: =IF(生涯計算05!BE58=0,"－",生涯計算05!BE58) -> － | AA58: =IF(生涯計算05!BS58=0,"－",生涯計算05!BS58) -> － | AB58: =IF(生涯計算05!CG58=0,"－",生涯計算05!CG58) -> － | AE58: 55 | AF58: 真央氏
A59: 56 | B59: =VLOOKUP(A59,登録名変遷!$A$3:$B$1005,2,FALSE) -> 龍息さん | C59: =生涯計算01!AB59 -> 4 | D59: =生涯計算01!BD59 -> 363 | E59: =生涯計算01!CC59 -> 0 | F59: =生涯計算04!AC59 -> 0 | G59: =生涯計算01!DE59 -> 0 | H59: =生涯計算01!EG59 -> 1 | I59: =生涯計算01!GI59 -> 2 | J59: =生涯計算01!HK59 -> 0 | K59: =生涯計算02!CE59 -> － | L59: =生涯計算02!DH59 -> － | M59: =生涯計算02!AC59 -> 136 | N59: =生涯計算02!BE59 -> 97.38086304 | O59: =生涯計算02!FN59 -> 0 | P59: =生涯計算02!EK59 -> 8 | Q59: =生涯計算03!AB59 -> 0 | R59: =生涯計算03!BD59 -> 0 | S59: =生涯計算03!CG59 -> 3 | T59: =生涯計算03!DH59 -> 0 | U59: =生涯計算03!EJ59 -> 120 | V59: =生涯計算03!FN59 -> 40 | W59: =生涯計算04!BG59 -> 1 | X59: =生涯計算04!CK59 -> 0 | Y59: =生涯計算04!DM59 -> 0 | Z59: =IF(生涯計算05!BE59=0,"－",生涯計算05!BE59) -> － | AA59: =IF(生涯計算05!BS59=0,"－",生涯計算05!BS59) -> － | AB59: =IF(生涯計算05!CG59=0,"－",生涯計算05!CG59) -> － | AE59: 56 | AF59: 龍息氏
A60: 57 | B60: =VLOOKUP(A60,登録名変遷!$A$3:$B$1005,2,FALSE) -> まいさん | C60: =生涯計算01!AB60 -> 27 | D60: =生涯計算01!BD60 -> 3462 | E60: =生涯計算01!CC60 -> 133.1538462 | F60: =生涯計算04!AC60 -> 385 | G60: =生涯計算01!DE60 -> 3 | H60: =生涯計算01!EG60 -> 1 | I60: =生涯計算01!GI60 -> 10 | J60: =生涯計算01!HK60 -> 7 | K60: =生涯計算02!CE60 -> 9.769230769 | L60: =生涯計算02!DH60 -> 9.501862674 | M60: =生涯計算02!AC60 -> 254 | N60: =生涯計算02!BE60 -> 247.0484295 | O60: =生涯計算02!FN60 -> 20 | P60: =生涯計算02!EK60 -> 50 | Q60: =生涯計算03!AB60 -> 11 | R60: =生涯計算03!BD60 -> 0.4230769231 | S60: =生涯計算03!CG60 -> 3 | T60: =生涯計算03!DH60 -> 0.1304347826 | U60: =生涯計算03!EJ60 -> 483 | V60: =生涯計算03!FN60 -> 34 | W60: =生涯計算04!BG60 -> 12 | X60: =生涯計算04!CK60 -> 4 | Y60: =生涯計算04!DM60 -> 0.4444444444 | Z60: =IF(生涯計算05!BE60=0,"－",生涯計算05!BE60) -> － | AA60: =IF(生涯計算05!BS60=0,"－",生涯計算05!BS60) -> － | AB60: =IF(生涯計算05!CG60=0,"－",生涯計算05!CG60) -> － | AE60: 57 | AF60: まい氏
A61: 58 | B61: =VLOOKUP(A61,登録名変遷!$A$3:$B$1005,2,FALSE) -> Gahiggidyさん | C61: =生涯計算01!AB61 -> 1 | D61: =生涯計算01!BD61 -> 50 | E61: =生涯計算01!CC61 -> 0 | F61: =生涯計算04!AC61 -> 0 | G61: =生涯計算01!DE61 -> 0 | H61: =生涯計算01!EG61 -> 0 | I61: =生涯計算01!GI61 -> 0 | J61: =生涯計算01!HK61 -> 1 | K61: =生涯計算02!CE61 -> － | L61: =生涯計算02!DH61 -> － | M61: =生涯計算02!AC61 -> 38 | N61: =生涯計算02!BE61 -> 29.23076923 | O61: =生涯計算02!FN61 -> 1 | P61: =生涯計算02!EK61 -> 0 | Q61: =生涯計算03!AB61 -> 0 | R61: =生涯計算03!BD61 -> 0 | S61: =生涯計算03!CG61 -> 1 | T61: =生涯計算03!DH61 -> 0 | U61: =生涯計算03!EJ61 -> 50 | V61: =生涯計算03!FN61 -> 50 | W61: =生涯計算04!BG61 -> 1 | X61: =生涯計算04!CK61 -> 0 | Y61: =生涯計算04!DM61 -> 0 | Z61: =IF(生涯計算05!BE61=0,"－",生涯計算05!BE61) -> － | AA61: =IF(生涯計算05!BS61=0,"－",生涯計算05!BS61) -> － | AB61: =IF(生涯計算05!CG61=0,"－",生涯計算05!CG61) -> － | AE61: 58 | AF61: Gahiggidy氏
A62: 59 | B62: =VLOOKUP(A62,登録名変遷!$A$3:$B$1005,2,FALSE) -> ぱぴよんさん | C62: =生涯計算01!AB62 -> 19 | D62: =生涯計算01!BD62 -> 2308 | E62: =生涯計算01!CC62 -> 121.4736842 | F62: =生涯計算04!AC62 -> 65 | G62: =生涯計算01!DE62 -> 1 | H62: =生涯計算01!EG62 -> 0 | I62: =生涯計算01!GI62 -> 8 | J62: =生涯計算01!HK62 -> 2 | K62: =生涯計算02!CE62 -> 16.94736842 | L62: =生涯計算02!DH62 -> 13.16340189 | M62: =生涯計算02!AC62 -> 203 | N62: =生涯計算02!BE62 -> 173.0666207 | O62: =生涯計算02!FN62 -> 11 | P62: =生涯計算02!EK62 -> 35 | Q62: =生涯計算03!AB62 -> 4 | R62: =生涯計算03!BD62 -> 0.2105263158 | S62: =生涯計算03!CG62 -> 2 | T62: =生涯計算03!DH62 -> 0.05263157895 | U62: =生涯計算03!EJ62 -> 222 | V62: =生涯計算03!FN62 -> 50 | W62: =生涯計算04!BG62 -> 3 | X62: =生涯計算04!CK62 -> 1 | Y62: =生涯計算04!DM62 -> 0.3333333333 | Z62: =IF(生涯計算05!BE62=0,"－",生涯計算05!BE62) -> － | AA62: =IF(生涯計算05!BS62=0,"－",生涯計算05!BS62) -> － | AB62: =IF(生涯計算05!CG62=0,"－",生涯計算05!CG62) -> － | AE62: 59 | AF62: ぱぴよん氏
A63: 60 | B63: =VLOOKUP(A63,登録名変遷!$A$3:$B$1005,2,FALSE) -> nabeさん | C63: =生涯計算01!AB63 -> 1 | D63: =生涯計算01!BD63 -> 88 | E63: =生涯計算01!CC63 -> 0 | F63: =生涯計算04!AC63 -> 0 | G63: =生涯計算01!DE63 -> 0 | H63: =生涯計算01!EG63 -> 1 | I63: =生涯計算01!GI63 -> 0 | J63: =生涯計算01!HK63 -> 0 | K63: =生涯計算02!CE63 -> － | L63: =生涯計算02!DH63 -> － | M63: =生涯計算02!AC63 -> 37 | N63: =生涯計算02!BE63 -> 29.21052632 | O63: =生涯計算02!FN63 -> 0 | P63: =生涯計算02!EK63 -> 1 | Q63: =生涯計算03!AB63 -> 0 | R63: =生涯計算03!BD63 -> 0 | S63: =生涯計算03!CG63 -> 1 | T63: =生涯計算03!DH63 -> 0 | U63: =生涯計算03!EJ63 -> 88 | V63: =生涯計算03!FN63 -> 88 | W63: =生涯計算04!BG63 -> 0 | X63: =生涯計算04!CK63 -> 0 | Y63: =生涯計算04!DM63 -> 0 | Z63: =IF(生涯計算05!BE63=0,"－",生涯計算05!BE63) -> － | AA63: =IF(生涯計算05!BS63=0,"－",生涯計算05!BS63) -> － | AB63: =IF(生涯計算05!CG63=0,"－",生涯計算05!CG63) -> － | AE63: 60 | AF63: nabe氏
A64: 61 | B64: =VLOOKUP(A64,登録名変遷!$A$3:$B$1005,2,FALSE) -> 赤魔神儀さん | C64: =生涯計算01!AB64 -> 1 | D64: =生涯計算01!BD64 -> 155 | E64: =生涯計算01!CC64 -> 0 | F64: =生涯計算04!AC64 -> 0 | G64: =生涯計算01!DE64 -> 0 | H64: =生涯計算01!EG64 -> 0 | I64: =生涯計算01!GI64 -> 1 | J64: =生涯計算01!HK64 -> 0 | K64: =生涯計算02!CE64 -> － | L64: =生涯計算02!DH64 -> － | M64: =生涯計算02!AC64 -> 32 | N64: =生涯計算02!BE64 -> 21.33333333 | O64: =生涯計算02!FN64 -> 0 | P64: =生涯計算02!EK64 -> 3 | Q64: =生涯計算03!AB64 -> 0 | R64: =生涯計算03!BD64 -> 0 | S64: =生涯計算03!CG64 -> 1 | T64: =生涯計算03!DH64 -> 0 | U64: =生涯計算03!EJ64 -> 155 | V64: =生涯計算03!FN64 -> 155 | W64: =生涯計算04!BG64 -> 0 | X64: =生涯計算04!CK64 -> 0 | Y64: =生涯計算04!DM64 -> 0 | Z64: =IF(生涯計算05!BE64=0,"－",生涯計算05!BE64) -> － | AA64: =IF(生涯計算05!BS64=0,"－",生涯計算05!BS64) -> － | AB64: =IF(生涯計算05!CG64=0,"－",生涯計算05!CG64) -> － | AE64: 61 | AF64: 赤魔神儀氏
A65: 62 | B65: =VLOOKUP(A65,登録名変遷!$A$3:$B$1005,2,FALSE) -> 信也さん | C65: =生涯計算01!AB65 -> 1 | D65: =生涯計算01!BD65 -> 133 | E65: =生涯計算01!CC65 -> 0 | F65: =生涯計算04!AC65 -> 0 | G65: =生涯計算01!DE65 -> 0 | H65: =生涯計算01!EG65 -> 0 | I65: =生涯計算01!GI65 -> 1 | J65: =生涯計算01!HK65 -> 0 | K65: =生涯計算02!CE65 -> － | L65: =生涯計算02!DH65 -> － | M65: =生涯計算02!AC65 -> 41 | N65: =生涯計算02!BE65 -> 27.33333333 | O65: =生涯計算02!FN65 -> 0 | P65: =生涯計算02!EK65 -> 3 | Q65: =生涯計算03!AB65 -> 0 | R65: =生涯計算03!BD65 -> 0 | S65: =生涯計算03!CG65 -> 1 | T65: =生涯計算03!DH65 -> 0 | U65: =生涯計算03!EJ65 -> 133 | V65: =生涯計算03!FN65 -> 133 | W65: =生涯計算04!BG65 -> 0 | X65: =生涯計算04!CK65 -> 0 | Y65: =生涯計算04!DM65 -> 0 | Z65: =IF(生涯計算05!BE65=0,"－",生涯計算05!BE65) -> － | AA65: =IF(生涯計算05!BS65=0,"－",生涯計算05!BS65) -> － | AB65: =IF(生涯計算05!CG65=0,"－",生涯計算05!CG65) -> － | AE65: 62 | AF65: 信也氏
A66: 63 | B66: =VLOOKUP(A66,登録名変遷!$A$3:$B$1005,2,FALSE) -> 大犬さん | C66: =生涯計算01!AB66 -> 13 | D66: =生涯計算01!BD66 -> 1339 | E66: =生涯計算01!CC66 -> 103 | F66: =生涯計算04!AC66 -> 37 | G66: =生涯計算01!DE66 -> 0 | H66: =生涯計算01!EG66 -> 1 | I66: =生涯計算01!GI66 -> 2 | J66: =生涯計算01!HK66 -> 3 | K66: =生涯計算02!CE66 -> 21.23076923 | L66: =生涯計算02!DH66 -> 15.94523227 | M66: =生涯計算02!AC66 -> 276 | N66: =生涯計算02!BE66 -> 207.2880195 | O66: =生涯計算02!FN66 -> 3 | P66: =生涯計算02!EK66 -> 19 | Q66: =生涯計算03!AB66 -> 2 | R66: =生涯計算03!BD66 -> 0.1538461538 | S66: =生涯計算03!CG66 -> 3 | T66: =生涯計算03!DH66 -> 0.2307692308 | U66: =生涯計算03!EJ66 -> 161 | V66: =生涯計算03!FN66 -> 20 | W66: =生涯計算04!BG66 -> 7 | X66: =生涯計算04!CK66 -> 1 | Y66: =生涯計算04!DM66 -> 0.1428571429 | Z66: =IF(生涯計算05!BE66=0,"－",生涯計算05!BE66) -> － | AA66: =IF(生涯計算05!BS66=0,"－",生涯計算05!BS66) -> － | AB66: =IF(生涯計算05!CG66=0,"－",生涯計算05!CG66) -> － | AE66: 63 | AF66: 大犬氏
A67: 64 | B67: =VLOOKUP(A67,登録名変遷!$A$3:$B$1005,2,FALSE) -> ガストンさん | C67: =生涯計算01!AB67 -> 2 | D67: =生涯計算01!BD67 -> 191 | E67: =生涯計算01!CC67 -> 0 | F67: =生涯計算04!AC67 -> 0 | G67: =生涯計算01!DE67 -> 0 | H67: =生涯計算01!EG67 -> 0 | I67: =生涯計算01!GI67 -> 1 | J67: =生涯計算01!HK67 -> 1 | K67: =生涯計算02!CE67 -> － | L67: =生涯計算02!DH67 -> － | M67: =生涯計算02!AC67 -> 78 | N67: =生涯計算02!BE67 -> 53.33333333 | O67: =生涯計算02!FN67 -> 0 | P67: =生涯計算02!EK67 -> 3 | Q67: =生涯計算03!AB67 -> 0 | R67: =生涯計算03!BD67 -> 0 | S67: =生涯計算03!CG67 -> 2 | T67: =生涯計算03!DH67 -> 0 | U67: =生涯計算03!EJ67 -> 154 | V67: =生涯計算03!FN67 -> 37 | W67: =生涯計算04!BG67 -> 1 | X67: =生涯計算04!CK67 -> 0 | Y67: =生涯計算04!DM67 -> 0 | Z67: =IF(生涯計算05!BE67=0,"－",生涯計算05!BE67) -> － | AA67: =IF(生涯計算05!BS67=0,"－",生涯計算05!BS67) -> － | AB67: =IF(生涯計算05!CG67=0,"－",生涯計算05!CG67) -> － | AE67: 64 | AF67: ガストン氏
A68: 65 | B68: =VLOOKUP(A68,登録名変遷!$A$3:$B$1005,2,FALSE) -> ポックスウイルスさん | C68: =生涯計算01!AB68 -> 1 | D68: =生涯計算01!BD68 -> 196 | E68: =生涯計算01!CC68 -> 0 | F68: =生涯計算04!AC68 -> 0 | G68: =生涯計算01!DE68 -> 0 | H68: =生涯計算01!EG68 -> 0 | I68: =生涯計算01!GI68 -> 1 | J68: =生涯計算01!HK68 -> 0 | K68: =生涯計算02!CE68 -> － | L68: =生涯計算02!DH68 -> － | M68: =生涯計算02!AC68 -> 2 | N68: =生涯計算02!BE68 -> 1.333333333 | O68: =生涯計算02!FN68 -> 1 | P68: =生涯計算02!EK68 -> 3 | Q68: =生涯計算03!AB68 -> 1 | R68: =生涯計算03!BD68 -> 0 | S68: =生涯計算03!CG68 -> 0 | T68: =生涯計算03!DH68 -> 0 | U68: =生涯計算03!EJ68 -> 196 | V68: =生涯計算03!FN68 -> 196 | W68: =生涯計算04!BG68 -> 0 | X68: =生涯計算04!CK68 -> 0 | Y68: =生涯計算04!DM68 -> 0 | Z68: =IF(生涯計算05!BE68=0,"－",生涯計算05!BE68) -> － | AA68: =IF(生涯計算05!BS68=0,"－",生涯計算05!BS68) -> － | AB68: =IF(生涯計算05!CG68=0,"－",生涯計算05!CG68) -> － | AE68: 65 | AF68: ポックスウイルス氏
A69: 66 | B69: =VLOOKUP(A69,登録名変遷!$A$3:$B$1005,2,FALSE) -> arusuさん | C69: =生涯計算01!AB69 -> 1 | D69: =生涯計算01!BD69 -> 81 | E69: =生涯計算01!CC69 -> 0 | F69: =生涯計算04!AC69 -> 0 | G69: =生涯計算01!DE69 -> 0 | H69: =生涯計算01!EG69 -> 0 | I69: =生涯計算01!GI69 -> 0 | J69: =生涯計算01!HK69 -> 0 | K69: =生涯計算02!CE69 -> － | L69: =生涯計算02!DH69 -> － | M69: =生涯計算02!AC69 -> 39 | N69: =生涯計算02!BE69 -> 27.20930233 | O69: =生涯計算02!FN69 -> 0 | P69: =生涯計算02!EK69 -> 2 | Q69: =生涯計算03!AB69 -> 0 | R69: =生涯計算03!BD69 -> 0 | S69: =生涯計算03!CG69 -> 1 | T69: =生涯計算03!DH69 -> 0 | U69: =生涯計算03!EJ69 -> 81 | V69: =生涯計算03!FN69 -> 81 | W69: =生涯計算04!BG69 -> 1 | X69: =生涯計算04!CK69 -> 0 | Y69: =生涯計算04!DM69 -> 0 | Z69: =IF(生涯計算05!BE69=0,"－",生涯計算05!BE69) -> － | AA69: =IF(生涯計算05!BS69=0,"－",生涯計算05!BS69) -> － | AB69: =IF(生涯計算05!CG69=0,"－",生涯計算05!CG69) -> － | AE69: 66 | AF69: arusu氏
A70: 67 | B70: =VLOOKUP(A70,登録名変遷!$A$3:$B$1005,2,FALSE) -> 愚王さん | C70: =生涯計算01!AB70 -> 3 | D70: =生涯計算01!BD70 -> 319 | E70: =生涯計算01!CC70 -> 0 | F70: =生涯計算04!AC70 -> 0 | G70: =生涯計算01!DE70 -> 0 | H70: =生涯計算01!EG70 -> 0 | I70: =生涯計算01!GI70 -> 0 | J70: =生涯計算01!HK70 -> 0 | K70: =生涯計算02!CE70 -> － | L70: =生涯計算02!DH70 -> － | M70: =生涯計算02!AC70 -> 57 | N70: =生涯計算02!BE70 -> 41.68550111 | O70: =生涯計算02!FN70 -> 2 | P70: =生涯計算02!EK70 -> 4 | Q70: =生涯計算03!AB70 -> 0 | R70: =生涯計算03!BD70 -> 0 | S70: =生涯計算03!CG70 -> 0 | T70: =生涯計算03!DH70 -> 0 | U70: =生涯計算03!EJ70 -> 119 | V70: =生涯計算03!FN70 -> 89 | W70: =生涯計算04!BG70 -> 1 | X70: =生涯計算04!CK70 -> 0 | Y70: =生涯計算04!DM70 -> 0 | Z70: =IF(生涯計算05!BE70=0,"－",生涯計算05!BE70) -> － | AA70: =IF(生涯計算05!BS70=0,"－",生涯計算05!BS70) -> － | AB70: =IF(生涯計算05!CG70=0,"－",生涯計算05!CG70) -> － | AE70: 67 | AF70: 愚王氏
A71: 68 | B71: =VLOOKUP(A71,登録名変遷!$A$3:$B$1005,2,FALSE) -> AKUさん | C71: =生涯計算01!AB71 -> 19 | D71: =生涯計算01!BD71 -> 1341 | E71: =生涯計算01!CC71 -> 70.57894737 | F71: =生涯計算04!AC71 -> 0 | G71: =生涯計算01!DE71 -> 0 | H71: =生涯計算01!EG71 -> 7 | I71: =生涯計算01!GI71 -> 1 | J71: =生涯計算01!HK71 -> 5 | K71: =生涯計算02!CE71 -> 28.78947368 | L71: =生涯計算02!DH71 -> 24.99923825 | M71: =生涯計算02!AC71 -> 113 | N71: =生涯計算02!BE71 -> 101.9978355 | O71: =生涯計算02!FN71 -> 1 | P71: =生涯計算02!EK71 -> 21 | Q71: =生涯計算03!AB71 -> 1 | R71: =生涯計算03!BD71 -> 0.05263157895 | S71: =生涯計算03!CG71 -> 11 | T71: =生涯計算03!DH71 -> 0.5789473684 | U71: =生涯計算03!EJ71 -> 139 | V71: =生涯計算03!FN71 -> 20 | W71: =生涯計算04!BG71 -> 16 | X71: =生涯計算04!CK71 -> 0 | Y71: =生涯計算04!DM71 -> 0 | Z71: =IF(生涯計算05!BE71=0,"－",生涯計算05!BE71) -> － | AA71: =IF(生涯計算05!BS71=0,"－",生涯計算05!BS71) -> － | AB71: =IF(生涯計算05!CG71=0,"－",生涯計算05!CG71) -> － | AE71: 68 | AF71: AKU氏
A72: 69 | B72: =VLOOKUP(A72,登録名変遷!$A$3:$B$1005,2,FALSE) -> ジョージさん | C72: =生涯計算01!AB72 -> 26 | D72: =生涯計算01!BD72 -> 2858 | E72: =生涯計算01!CC72 -> 110 | F72: =生涯計算04!AC72 -> 175 | G72: =生涯計算01!DE72 -> 1 | H72: =生涯計算01!EG72 -> 1 | I72: =生涯計算01!GI72 -> 11 | J72: =生涯計算01!HK72 -> 8 | K72: =生涯計算02!CE72 -> 15.46153846 | L72: =生涯計算02!DH72 -> 13.68606307 | M72: =生涯計算02!AC72 -> 231 | N72: =生涯計算02!BE72 -> 180.9969334 | O72: =生涯計算02!FN72 -> 10 | P72: =生涯計算02!EK72 -> 48 | Q72: =生涯計算03!AB72 -> 5 | R72: =生涯計算03!BD72 -> 0.1923076923 | S72: =生涯計算03!CG72 -> 3 | T72: =生涯計算03!DH72 -> 0.2307692308 | U72: =生涯計算03!EJ72 -> 355 | V72: =生涯計算03!FN72 -> 23 | W72: =生涯計算04!BG72 -> 5 | X72: =生涯計算04!CK72 -> 1 | Y72: =生涯計算04!DM72 -> 0.2 | Z72: =IF(生涯計算05!BE72=0,"－",生涯計算05!BE72) -> － | AA72: =IF(生涯計算05!BS72=0,"－",生涯計算05!BS72) -> － | AB72: =IF(生涯計算05!CG72=0,"－",生涯計算05!CG72) -> － | AE72: 69 | AF72: ジョージ氏
A73: 70 | B73: =VLOOKUP(A73,登録名変遷!$A$3:$B$1005,2,FALSE) -> T-Kさん | C73: =生涯計算01!AB73 -> 25 | D73: =生涯計算01!BD73 -> 2874 | E73: =生涯計算01!CC73 -> 114.96 | F73: =生涯計算04!AC73 -> 424 | G73: =生涯計算01!DE73 -> 1 | H73: =生涯計算01!EG73 -> 2 | I73: =生涯計算01!GI73 -> 7 | J73: =生涯計算01!HK73 -> 5 | K73: =生涯計算02!CE73 -> 19.75 | L73: =生涯計算02!DH73 -> 17.4895748 | M73: =生涯計算02!AC73 -> 75 | N73: =生涯計算02!BE73 -> 66.29192131 | O73: =生涯計算02!FN73 -> 7 | P73: =生涯計算02!EK73 -> 42 | Q73: =生涯計算03!AB73 -> 3 | R73: =生涯計算03!BD73 -> 0.15 | S73: =生涯計算03!CG73 -> 6 | T73: =生涯計算03!DH73 -> 0.16 | U73: =生涯計算03!EJ73 -> 457 | V73: =生涯計算03!FN73 -> 40 | W73: =生涯計算04!BG73 -> 9 | X73: =生涯計算04!CK73 -> 2 | Y73: =生涯計算04!DM73 -> 0.4 | Z73: =IF(生涯計算05!BE73=0,"－",生涯計算05!BE73) -> － | AA73: =IF(生涯計算05!BS73=0,"－",生涯計算05!BS73) -> － | AB73: =IF(生涯計算05!CG73=0,"－",生涯計算05!CG73) -> － | AE73: 70 | AF73: T-K氏
A74: 71 | B74: =VLOOKUP(A74,登録名変遷!$A$3:$B$1005,2,FALSE) -> 智蔵さん | C74: =生涯計算01!AB74 -> 2 | D74: =生涯計算01!BD74 -> 163 | E74: =生涯計算01!CC74 -> 0 | F74: =生涯計算04!AC74 -> 0 | G74: =生涯計算01!DE74 -> 0 | H74: =生涯計算01!EG74 -> 0 | I74: =生涯計算01!GI74 -> 0 | J74: =生涯計算01!HK74 -> 1 | K74: =生涯計算02!CE74 -> － | L74: =生涯計算02!DH74 -> － | M74: =生涯計算02!AC74 -> 38 | N74: =生涯計算02!BE74 -> 30.6401138 | O74: =生涯計算02!FN74 -> 1 | P74: =生涯計算02!EK74 -> 1 | Q74: =生涯計算03!AB74 -> 0 | R74: =生涯計算03!BD74 -> 0 | S74: =生涯計算03!CG74 -> 0 | T74: =生涯計算03!DH74 -> 0 | U74: =生涯計算03!EJ74 -> 90 | V74: =生涯計算03!FN74 -> 73 | W74: =生涯計算04!BG74 -> 0 | X74: =生涯計算04!CK74 -> 0 | Y74: =生涯計算04!DM74 -> 0 | Z74: =IF(生涯計算05!BE74=0,"－",生涯計算05!BE74) -> － | AA74: =IF(生涯計算05!BS74=0,"－",生涯計算05!BS74) -> － | AB74: =IF(生涯計算05!CG74=0,"－",生涯計算05!CG74) -> － | AE74: 71 | AF74: 智蔵氏
A75: 72 | B75: =VLOOKUP(A75,登録名変遷!$A$3:$B$1005,2,FALSE) -> Libさん | C75: =生涯計算01!AB75 -> 1 | D75: =生涯計算01!BD75 -> 74 | E75: =生涯計算01!CC75 -> 0 | F75: =生涯計算04!AC75 -> 0 | G75: =生涯計算01!DE75 -> 0 | H75: =生涯計算01!EG75 -> 0 | I75: =生涯計算01!GI75 -> 0 | J75: =生涯計算01!HK75 -> 0 | K75: =生涯計算02!CE75 -> － | L75: =生涯計算02!DH75 -> － | M75: =生涯計算02!AC75 -> 33 | N75: =生涯計算02!BE75 -> 26.75675676 | O75: =生涯計算02!FN75 -> 0 | P75: =生涯計算02!EK75 -> 1 | Q75: =生涯計算03!AB75 -> 0 | R75: =生涯計算03!BD75 -> 0 | S75: =生涯計算03!CG75 -> 1 | T75: =生涯計算03!DH75 -> 0 | U75: =生涯計算03!EJ75 -> 74 | V75: =生涯計算03!FN75 -> 74 | W75: =生涯計算04!BG75 -> 0 | X75: =生涯計算04!CK75 -> 0 | Y75: =生涯計算04!DM75 -> 0 | Z75: =IF(生涯計算05!BE75=0,"－",生涯計算05!BE75) -> － | AA75: =IF(生涯計算05!BS75=0,"－",生涯計算05!BS75) -> － | AB75: =IF(生涯計算05!CG75=0,"－",生涯計算05!CG75) -> － | AE75: 72 | AF75: Lib氏
A76: 73 | B76: =VLOOKUP(A76,登録名変遷!$A$3:$B$1005,2,FALSE) -> 新人氏 さん | C76: =生涯計算01!AB76 -> 1 | D76: =生涯計算01!BD76 -> 145 | E76: =生涯計算01!CC76 -> 0 | F76: =生涯計算04!AC76 -> 0 | G76: =生涯計算01!DE76 -> 0 | H76: =生涯計算01!EG76 -> 0 | I76: =生涯計算01!GI76 -> 1 | J76: =生涯計算01!HK76 -> 0 | K76: =生涯計算02!CE76 -> － | L76: =生涯計算02!DH76 -> － | M76: =生涯計算02!AC76 -> 12 | N76: =生涯計算02!BE76 -> 10.58823529 | O76: =生涯計算02!FN76 -> 0 | P76: =生涯計算02!EK76 -> 3 | Q76: =生涯計算03!AB76 -> 0 | R76: =生涯計算03!BD76 -> 0 | S76: =生涯計算03!CG76 -> 0 | T76: =生涯計算03!DH76 -> 0 | U76: =生涯計算03!EJ76 -> 145 | V76: =生涯計算03!FN76 -> 145 | W76: =生涯計算04!BG76 -> 0 | X76: =生涯計算04!CK76 -> 0 | Y76: =生涯計算04!DM76 -> 0 | Z76: =IF(生涯計算05!BE76=0,"－",生涯計算05!BE76) -> － | AA76: =IF(生涯計算05!BS76=0,"－",生涯計算05!BS76) -> － | AB76: =IF(生涯計算05!CG76=0,"－",生涯計算05!CG76) -> － | AE76: 73 | AF76: 新人氏 氏
A77: 74 | B77: =VLOOKUP(A77,登録名変遷!$A$3:$B$1005,2,FALSE) -> 迷予想人間さん | C77: =生涯計算01!AB77 -> 2 | D77: =生涯計算01!BD77 -> 147 | E77: =生涯計算01!CC77 -> 0 | F77: =生涯計算04!AC77 -> 0 | G77: =生涯計算01!DE77 -> 0 | H77: =生涯計算01!EG77 -> 1 | I77: =生涯計算01!GI77 -> 0 | J77: =生涯計算01!HK77 -> 1 | K77: =生涯計算02!CE77 -> － | L77: =生涯計算02!DH77 -> － | M77: =生涯計算02!AC77 -> 63 | N77: =生涯計算02!BE77 -> 58.125 | O77: =生涯計算02!FN77 -> 0 | P77: =生涯計算02!EK77 -> 3 | Q77: =生涯計算03!AB77 -> 0 | R77: =生涯計算03!BD77 -> 0 | S77: =生涯計算03!CG77 -> 1 | T77: =生涯計算03!DH77 -> 0 | U77: =生涯計算03!EJ77 -> 81 | V77: =生涯計算03!FN77 -> 66 | W77: =生涯計算04!BG77 -> 2 | X77: =生涯計算04!CK77 -> 0 | Y77: =生涯計算04!DM77 -> 0 | Z77: =IF(生涯計算05!BE77=0,"－",生涯計算05!BE77) -> － | AA77: =IF(生涯計算05!BS77=0,"－",生涯計算05!BS77) -> － | AB77: =IF(生涯計算05!CG77=0,"－",生涯計算05!CG77) -> － | AE77: 74 | AF77: 迷予想人間氏
A78: 75 | B78: =VLOOKUP(A78,登録名変遷!$A$3:$B$1005,2,FALSE) -> ゆーとぴあI企画 さん | C78: =生涯計算01!AB78 -> 2 | D78: =生涯計算01!BD78 -> 137 | E78: =生涯計算01!CC78 -> 0 | F78: =生涯計算04!AC78 -> 0 | G78: =生涯計算01!DE78 -> 0 | H78: =生涯計算01!EG78 -> 1 | I78: =生涯計算01!GI78 -> 0 | J78: =生涯計算01!HK78 -> 1 | K78: =生涯計算02!CE78 -> － | L78: =生涯計算02!DH78 -> － | M78: =生涯計算02!AC78 -> 30 | N78: =生涯計算02!BE78 -> 27.27272727 | O78: =生涯計算02!FN78 -> 2 | P78: =生涯計算02!EK78 -> 2 | Q78: =生涯計算03!AB78 -> 0 | R78: =生涯計算03!BD78 -> 0 | S78: =生涯計算03!CG78 -> 1 | T78: =生涯計算03!DH78 -> 0 | U78: =生涯計算03!EJ78 -> 112 | V78: =生涯計算03!FN78 -> 52 | W78: =生涯計算04!BG78 -> 3 | X78: =生涯計算04!CK78 -> 0 | Y78: =生涯計算04!DM78 -> 0 | Z78: =IF(生涯計算05!BE78=0,"－",生涯計算05!BE78) -> － | AA78: =IF(生涯計算05!BS78=0,"－",生涯計算05!BS78) -> － | AB78: =IF(生涯計算05!CG78=0,"－",生涯計算05!CG78) -> － | AE78: 75 | AF78: ゆーとぴあI企画 氏
A79: 76 | B79: =VLOOKUP(A79,登録名変遷!$A$3:$B$1005,2,FALSE) -> リュウさん | C79: =生涯計算01!AB79 -> 26 | D79: =生涯計算01!BD79 -> 2891 | E79: =生涯計算01!CC79 -> 115.64 | F79: =生涯計算04!AC79 -> 68 | G79: =生涯計算01!DE79 -> 1 | H79: =生涯計算01!EG79 -> 1 | I79: =生涯計算01!GI79 -> 8 | J79: =生涯計算01!HK79 -> 4 | K79: =生涯計算02!CE79 -> 15.26923077 | L79: =生涯計算02!DH79 -> 13.58737787 | M79: =生涯計算02!AC79 -> 14 | N79: =生涯計算02!BE79 -> 12.35294118 | O79: =生涯計算02!FN79 -> 7 | P79: =生涯計算02!EK79 -> 46 | Q79: =生涯計算03!AB79 -> 5 | R79: =生涯計算03!BD79 -> 0.2 | S79: =生涯計算03!CG79 -> 4 | T79: =生涯計算03!DH79 -> 0.16 | U79: =生涯計算03!EJ79 -> 179 | V79: =生涯計算03!FN79 -> 37 | W79: =生涯計算04!BG79 -> 6 | X79: =生涯計算04!CK79 -> 1 | Y79: =生涯計算04!DM79 -> 0.25 | Z79: =IF(生涯計算05!BE79=0,"－",生涯計算05!BE79) -> － | AA79: =IF(生涯計算05!BS79=0,"－",生涯計算05!BS79) -> － | AB79: =IF(生涯計算05!CG79=0,"－",生涯計算05!CG79) -> － | AE79: 76 | AF79: リュウ氏
A80: 77 | B80: =VLOOKUP(A80,登録名変遷!$A$3:$B$1005,2,FALSE) -> 末魔導けんじ。 さん | C80: =生涯計算01!AB80 -> 3 | D80: =生涯計算01!BD80 -> 286 | E80: =生涯計算01!CC80 -> 0 | F80: =生涯計算04!AC80 -> 0 | G80: =生涯計算01!DE80 -> 0 | H80: =生涯計算01!EG80 -> 0 | I80: =生涯計算01!GI80 -> 1 | J80: =生涯計算01!HK80 -> 2 | K80: =生涯計算02!CE80 -> － | L80: =生涯計算02!DH80 -> － | M80: =生涯計算02!AC80 -> 56 | N80: =生涯計算02!BE80 -> 49.41176471 | O80: =生涯計算02!FN80 -> 1 | P80: =生涯計算02!EK80 -> 4 | Q80: =生涯計算03!AB80 -> 0 | R80: =生涯計算03!BD80 -> 0 | S80: =生涯計算03!CG80 -> 1 | T80: =生涯計算03!DH80 -> 0 | U80: =生涯計算03!EJ80 -> 143 | V80: =生涯計算03!FN80 -> 30 | W80: =生涯計算04!BG80 -> 2 | X80: =生涯計算04!CK80 -> 0 | Y80: =生涯計算04!DM80 -> 0 | Z80: =IF(生涯計算05!BE80=0,"－",生涯計算05!BE80) -> － | AA80: =IF(生涯計算05!BS80=0,"－",生涯計算05!BS80) -> － | AB80: =IF(生涯計算05!CG80=0,"－",生涯計算05!CG80) -> － | AE80: 77 | AF80: 末魔導けんじ。 氏
A81: 78 | B81: =VLOOKUP(A81,登録名変遷!$A$3:$B$1005,2,FALSE) -> くろおびさん | C81: =生涯計算01!AB81 -> 23 | D81: =生涯計算01!BD81 -> 2236 | E81: =生涯計算01!CC81 -> 101.15 | F81: =生涯計算04!AC81 -> 85 | G81: =生涯計算01!DE81 -> 1 | H81: =生涯計算01!EG81 -> 1 | I81: =生涯計算01!GI81 -> 5 | J81: =生涯計算01!HK81 -> 5 | K81: =生涯計算02!CE81 -> 18.4 | L81: =生涯計算02!DH81 -> 16.05818054 | M81: =生涯計算02!AC81 -> 131 | N81: =生涯計算02!BE81 -> 125.1988636 | O81: =生涯計算02!FN81 -> 5 | P81: =生涯計算02!EK81 -> 31 | Q81: =生涯計算03!AB81 -> 4 | R81: =生涯計算03!BD81 -> 0.2 | S81: =生涯計算03!CG81 -> 3 | T81: =生涯計算03!DH81 -> 0.1304347826 | U81: =生涯計算03!EJ81 -> 229 | V81: =生涯計算03!FN81 -> 49 | W81: =生涯計算04!BG81 -> 10 | X81: =生涯計算04!CK81 -> 1 | Y81: =生涯計算04!DM81 -> 0.1666666667 | Z81: =IF(生涯計算05!BE81=0,"－",生涯計算05!BE81) -> － | AA81: =IF(生涯計算05!BS81=0,"－",生涯計算05!BS81) -> － | AB81: =IF(生涯計算05!CG81=0,"－",生涯計算05!CG81) -> － | AE81: 78 | AF81: くろおび氏
A82: 79 | B82: =VLOOKUP(A82,登録名変遷!$A$3:$B$1005,2,FALSE) -> isaoさん | C82: =生涯計算01!AB82 -> 3 | D82: =生涯計算01!BD82 -> 309 | E82: =生涯計算01!CC82 -> 0 | F82: =生涯計算04!AC82 -> 0 | G82: =生涯計算01!DE82 -> 1 | H82: =生涯計算01!EG82 -> 1 | I82: =生涯計算01!GI82 -> 2 | J82: =生涯計算01!HK82 -> 0 | K82: =生涯計算02!CE82 -> － | L82: =生涯計算02!DH82 -> － | M82: =生涯計算02!AC82 -> 49 | N82: =生涯計算02!BE82 -> 43 | O82: =生涯計算02!FN82 -> 1 | P82: =生涯計算02!EK82 -> 7 | Q82: =生涯計算03!AB82 -> 1 | R82: =生涯計算03!BD82 -> 0 | S82: =生涯計算03!CG82 -> 1 | T82: =生涯計算03!DH82 -> 0 | U82: =生涯計算03!EJ82 -> 129 | V82: =生涯計算03!FN82 -> 57 | W82: =生涯計算04!BG82 -> 0 | X82: =生涯計算04!CK82 -> 0 | Y82: =生涯計算04!DM82 -> 0 | Z82: =IF(生涯計算05!BE82=0,"－",生涯計算05!BE82) -> － | AA82: =IF(生涯計算05!BS82=0,"－",生涯計算05!BS82) -> － | AB82: =IF(生涯計算05!CG82=0,"－",生涯計算05!CG82) -> － | AE82: 79 | AF82: isao氏
A83: 80 | B83: =VLOOKUP(A83,登録名変遷!$A$3:$B$1005,2,FALSE) -> サンタさん | C83: =生涯計算01!AB83 -> 1 | D83: =生涯計算01!BD83 -> 60 | E83: =生涯計算01!CC83 -> 0 | F83: =生涯計算04!AC83 -> 0 | G83: =生涯計算01!DE83 -> 0 | H83: =生涯計算01!EG83 -> 0 | I83: =生涯計算01!GI83 -> 0 | J83: =生涯計算01!HK83 -> 0 | K83: =生涯計算02!CE83 -> － | L83: =生涯計算02!DH83 -> － | M83: =生涯計算02!AC83 -> 33 | N83: =生涯計算02!BE83 -> 29.11764706 | O83: =生涯計算02!FN83 -> 0 | P83: =生涯計算02!EK83 -> 0 | Q83: =生涯計算03!AB83 -> 0 | R83: =生涯計算03!BD83 -> 0 | S83: =生涯計算03!CG83 -> 1 | T83: =生涯計算03!DH83 -> 0 | U83: =生涯計算03!EJ83 -> 60 | V83: =生涯計算03!FN83 -> 60 | W83: =生涯計算04!BG83 -> 1 | X83: =生涯計算04!CK83 -> 0 | Y83: =生涯計算04!DM83 -> 0 | Z83: =IF(生涯計算05!BE83=0,"－",生涯計算05!BE83) -> － | AA83: =IF(生涯計算05!BS83=0,"－",生涯計算05!BS83) -> － | AB83: =IF(生涯計算05!CG83=0,"－",生涯計算05!CG83) -> － | AE83: 80 | AF83: サンタ氏
A84: 81 | B84: =VLOOKUP(A84,登録名変遷!$A$3:$B$1005,2,FALSE) -> げ～り～さん | C84: =生涯計算01!AB84 -> 1 | D84: =生涯計算01!BD84 -> 66 | E84: =生涯計算01!CC84 -> 0 | F84: =生涯計算04!AC84 -> 0 | G84: =生涯計算01!DE84 -> 0 | H84: =生涯計算01!EG84 -> 0 | I84: =生涯計算01!GI84 -> 0 | J84: =生涯計算01!HK84 -> 0 | K84: =生涯計算02!CE84 -> － | L84: =生涯計算02!DH84 -> － | M84: =生涯計算02!AC84 -> 32 | N84: =生涯計算02!BE84 -> 28.23529412 | O84: =生涯計算02!FN84 -> 0 | P84: =生涯計算02!EK84 -> 1 | Q84: =生涯計算03!AB84 -> 0 | R84: =生涯計算03!BD84 -> 0 | S84: =生涯計算03!CG84 -> 1 | T84: =生涯計算03!DH84 -> 0 | U84: =生涯計算03!EJ84 -> 66 | V84: =生涯計算03!FN84 -> 66 | W84: =生涯計算04!BG84 -> 0 | X84: =生涯計算04!CK84 -> 0 | Y84: =生涯計算04!DM84 -> 0 | Z84: =IF(生涯計算05!BE84=0,"－",生涯計算05!BE84) -> － | AA84: =IF(生涯計算05!BS84=0,"－",生涯計算05!BS84) -> － | AB84: =IF(生涯計算05!CG84=0,"－",生涯計算05!CG84) -> － | AE84: 81 | AF84: げ～り～氏
A85: 82 | B85: =VLOOKUP(A85,登録名変遷!$A$3:$B$1005,2,FALSE) -> SEVENさん | C85: =生涯計算01!AB85 -> 5 | D85: =生涯計算01!BD85 -> 356 | E85: =生涯計算01!CC85 -> 0 | F85: =生涯計算04!AC85 -> 0 | G85: =生涯計算01!DE85 -> 0 | H85: =生涯計算01!EG85 -> 1 | I85: =生涯計算01!GI85 -> 0 | J85: =生涯計算01!HK85 -> 0 | K85: =生涯計算02!CE85 -> － | L85: =生涯計算02!DH85 -> － | M85: =生涯計算02!AC85 -> 108 | N85: =生涯計算02!BE85 -> 93.55844156 | O85: =生涯計算02!FN85 -> 2 | P85: =生涯計算02!EK85 -> 7 | Q85: =生涯計算03!AB85 -> 0 | R85: =生涯計算03!BD85 -> 0 | S85: =生涯計算03!CG85 -> 1 | T85: =生涯計算03!DH85 -> 0 | U85: =生涯計算03!EJ85 -> 102 | V85: =生涯計算03!FN85 -> 40 | W85: =生涯計算04!BG85 -> 3 | X85: =生涯計算04!CK85 -> 0 | Y85: =生涯計算04!DM85 -> 0 | Z85: =IF(生涯計算05!BE85=0,"－",生涯計算05!BE85) -> － | AA85: =IF(生涯計算05!BS85=0,"－",生涯計算05!BS85) -> － | AB85: =IF(生涯計算05!CG85=0,"－",生涯計算05!CG85) -> － | AE85: 82 | AF85: SEVEN氏
A86: 83 | B86: =VLOOKUP(A86,登録名変遷!$A$3:$B$1005,2,FALSE) -> ta-sanさん | C86: =生涯計算01!AB86 -> 26 | D86: =生涯計算01!BD86 -> 3102 | E86: =生涯計算01!CC86 -> 129.25 | F86: =生涯計算04!AC86 -> 350 | G86: =生涯計算01!DE86 -> 3 | H86: =生涯計算01!EG86 -> 4 | I86: =生涯計算01!GI86 -> 10 | J86: =生涯計算01!HK86 -> 7 | K86: =生涯計算02!CE86 -> 14.96153846 | L86: =生涯計算02!DH86 -> 13.54832033 | M86: =生涯計算02!AC86 -> 237 | N86: =生涯計算02!BE86 -> 213.3454927 | O86: =生涯計算02!FN86 -> 16 | P86: =生涯計算02!EK86 -> 45 | Q86: =生涯計算03!AB86 -> 7 | R86: =生涯計算03!BD86 -> 0.2916666667 | S86: =生涯計算03!CG86 -> 11 | T86: =生涯計算03!DH86 -> 0.44 | U86: =生涯計算03!EJ86 -> 520 | V86: =生涯計算03!FN86 -> 20 | W86: =生涯計算04!BG86 -> 8 | X86: =生涯計算04!CK86 -> 2 | Y86: =生涯計算04!DM86 -> 0.6666666667 | Z86: =IF(生涯計算05!BE86=0,"－",生涯計算05!BE86) -> 22.4513913 | AA86: =IF(生涯計算05!BS86=0,"－",生涯計算05!BS86) -> 26.873 | AB86: =IF(生涯計算05!CG86=0,"－",生涯計算05!CG86) -> 23.19368182 | AE86: 83 | AF86: takuma氏
A87: 84 | B87: =VLOOKUP(A87,登録名変遷!$A$3:$B$1005,2,FALSE) -> t-starsさん | C87: =生涯計算01!AB87 -> 27 | D87: =生涯計算01!BD87 -> 3212 | E87: =生涯計算01!CC87 -> 122.6 | F87: =生涯計算04!AC87 -> 194 | G87: =生涯計算01!DE87 -> 2 | H87: =生涯計算01!EG87 -> 2 | I87: =生涯計算01!GI87 -> 10 | J87: =生涯計算01!HK87 -> 9 | K87: =生涯計算02!CE87 -> 13.52 | L87: =生涯計算02!DH87 -> 13.2343258 | M87: =生涯計算02!AC87 -> 297 | N87: =生涯計算02!BE87 -> 262.460657 | O87: =生涯計算02!FN87 -> 13 | P87: =生涯計算02!EK87 -> 50 | Q87: =生涯計算03!AB87 -> 6 | R87: =生涯計算03!BD87 -> 0.2307692308 | S87: =生涯計算03!CG87 -> 6 | T87: =生涯計算03!DH87 -> 0.3076923077 | U87: =生涯計算03!EJ87 -> 320 | V87: =生涯計算03!FN87 -> 20 | W87: =生涯計算04!BG87 -> 13 | X87: =生涯計算04!CK87 -> 2 | Y87: =生涯計算04!DM87 -> 0.5 | Z87: =IF(生涯計算05!BE87=0,"－",生涯計算05!BE87) -> 26.57204938 | AA87: =IF(生涯計算05!BS87=0,"－",生涯計算05!BS87) -> 26.19729032 | AB87: =IF(生涯計算05!CG87=0,"－",生涯計算05!CG87) -> 24.62376471 | AE87: 84 | AF87: t-stars氏
A88: 85 | B88: =VLOOKUP(A88,登録名変遷!$A$3:$B$1005,2,FALSE) -> zeroさん | C88: =生涯計算01!AB88 -> 12 | D88: =生涯計算01!BD88 -> 1125 | E88: =生涯計算01!CC88 -> 0 | F88: =生涯計算04!AC88 -> 53 | G88: =生涯計算01!DE88 -> 1 | H88: =生涯計算01!EG88 -> 1 | I88: =生涯計算01!GI88 -> 1 | J88: =生涯計算01!HK88 -> 2 | K88: =生涯計算02!CE88 -> － | L88: =生涯計算02!DH88 -> － | M88: =生涯計算02!AC88 -> 35 | N88: =生涯計算02!BE88 -> 30 | O88: =生涯計算02!FN88 -> 3 | P88: =生涯計算02!EK88 -> 14 | Q88: =生涯計算03!AB88 -> 3 | R88: =生涯計算03!BD88 -> 0 | S88: =生涯計算03!CG88 -> 6 | T88: =生涯計算03!DH88 -> 0 | U88: =生涯計算03!EJ88 -> 151 | V88: =生涯計算03!FN88 -> 38 | W88: =生涯計算04!BG88 -> 7 | X88: =生涯計算04!CK88 -> 1 | Y88: =生涯計算04!DM88 -> 0 | Z88: =IF(生涯計算05!BE88=0,"－",生涯計算05!BE88) -> － | AA88: =IF(生涯計算05!BS88=0,"－",生涯計算05!BS88) -> － | AB88: =IF(生涯計算05!CG88=0,"－",生涯計算05!CG88) -> － | AE88: 85 | AF88: zero氏
A89: 86 | B89: =VLOOKUP(A89,登録名変遷!$A$3:$B$1005,2,FALSE) -> スカイさん | C89: =生涯計算01!AB89 -> 26 | D89: =生涯計算01!BD89 -> 2700 | E89: =生涯計算01!CC89 -> 108 | F89: =生涯計算04!AC89 -> 103 | G89: =生涯計算01!DE89 -> 1 | H89: =生涯計算01!EG89 -> 3 | I89: =生涯計算01!GI89 -> 7 | J89: =生涯計算01!HK89 -> 8 | K89: =生涯計算02!CE89 -> 17.05882353 | L89: =生涯計算02!DH89 -> 15.16578486 | M89: =生涯計算02!AC89 -> 0 | N89: =生涯計算02!BE89 -> 0 | O89: =生涯計算02!FN89 -> 9 | P89: =生涯計算02!EK89 -> 42 | Q89: =生涯計算03!AB89 -> 6 | R89: =生涯計算03!BD89 -> 0.24 | S89: =生涯計算03!CG89 -> 8 | T89: =生涯計算03!DH89 -> 0.3333333333 | U89: =生涯計算03!EJ89 -> 193 | V89: =生涯計算03!FN89 -> 25 | W89: =生涯計算04!BG89 -> 7 | X89: =生涯計算04!CK89 -> 2 | Y89: =生涯計算04!DM89 -> 0.4 | Z89: =IF(生涯計算05!BE89=0,"－",生涯計算05!BE89) -> 40.81141667 | AA89: =IF(生涯計算05!BS89=0,"－",生涯計算05!BS89) -> 46.0539 | AB89: =IF(生涯計算05!CG89=0,"－",生涯計算05!CG89) -> 34.2583125 | AE89: 86 | AF89: スカイ氏
A90: 87 | B90: =VLOOKUP(A90,登録名変遷!$A$3:$B$1005,2,FALSE) -> もんでんどんさん | C90: =生涯計算01!AB90 -> 27 | D90: =生涯計算01!BD90 -> 3276 | E90: =生涯計算01!CC90 -> 121.9230769 | F90: =生涯計算04!AC90 -> 383 | G90: =生涯計算01!DE90 -> 2 | H90: =生涯計算01!EG90 -> 1 | I90: =生涯計算01!GI90 -> 10 | J90: =生涯計算01!HK90 -> 8 | K90: =生涯計算02!CE90 -> 13.46153846 | L90: =生涯計算02!DH90 -> 13.02965033 | M90: =生涯計算02!AC90 -> 350 | N90: =生涯計算02!BE90 -> 338.7709086 | O90: =生涯計算02!FN90 -> 18 | P90: =生涯計算02!EK90 -> 55 | Q90: =生涯計算03!AB90 -> 9 | R90: =生涯計算03!BD90 -> 0.3461538462 | S90: =生涯計算03!CG90 -> 5 | T90: =生涯計算03!DH90 -> 0.1923076923 | U90: =生涯計算03!EJ90 -> 415 | V90: =生涯計算03!FN90 -> 20 | W90: =生涯計算04!BG90 -> 11 | X90: =生涯計算04!CK90 -> 3 | Y90: =生涯計算04!DM90 -> 0.2727272727 | Z90: =IF(生涯計算05!BE90=0,"－",生涯計算05!BE90) -> 23.71301235 | AA90: =IF(生涯計算05!BS90=0,"－",生涯計算05!BS90) -> 29.32803125 | AB90: =IF(生涯計算05!CG90=0,"－",生涯計算05!CG90) -> 20.04606122 | AE90: 87 | AF90: もんでんどん氏
A91: 88 | B91: =VLOOKUP(A91,登録名変遷!$A$3:$B$1005,2,FALSE) -> 三村風味さん | C91: =生涯計算01!AB91 -> 8 | D91: =生涯計算01!BD91 -> 617 | E91: =生涯計算01!CC91 -> 0 | F91: =生涯計算04!AC91 -> 0 | G91: =生涯計算01!DE91 -> 0 | H91: =生涯計算01!EG91 -> 3 | I91: =生涯計算01!GI91 -> 1 | J91: =生涯計算01!HK91 -> 3 | K91: =生涯計算02!CE91 -> － | L91: =生涯計算02!DH91 -> － | M91: =生涯計算02!AC91 -> 228 | N91: =生涯計算02!BE91 -> 177.2815126 | O91: =生涯計算02!FN91 -> 2 | P91: =生涯計算02!EK91 -> 7 | Q91: =生涯計算03!AB91 -> 0 | R91: =生涯計算03!BD91 -> 0 | S91: =生涯計算03!CG91 -> 5 | T91: =生涯計算03!DH91 -> 0 | U91: =生涯計算03!EJ91 -> 114 | V91: =生涯計算03!FN91 -> 45 | W91: =生涯計算04!BG91 -> 5 | X91: =生涯計算04!CK91 -> 0 | Y91: =生涯計算04!DM91 -> 0 | Z91: =IF(生涯計算05!BE91=0,"－",生涯計算05!BE91) -> － | AA91: =IF(生涯計算05!BS91=0,"－",生涯計算05!BS91) -> － | AB91: =IF(生涯計算05!CG91=0,"－",生涯計算05!CG91) -> － | AE91: 88 | AF91: 三村風味氏
A92: 89 | B92: =VLOOKUP(A92,登録名変遷!$A$3:$B$1005,2,FALSE) -> Z-Kさん | C92: =生涯計算01!AB92 -> 1 | D92: =生涯計算01!BD92 -> 89 | E92: =生涯計算01!CC92 -> 0 | F92: =生涯計算04!AC92 -> 0 | G92: =生涯計算01!DE92 -> 0 | H92: =生涯計算01!EG92 -> 0 | I92: =生涯計算01!GI92 -> 0 | J92: =生涯計算01!HK92 -> 0 | K92: =生涯計算02!CE92 -> － | L92: =生涯計算02!DH92 -> － | M92: =生涯計算02!AC92 -> 15 | N92: =生涯計算02!BE92 -> 13.23529412 | O92: =生涯計算02!FN92 -> 0 | P92: =生涯計算02!EK92 -> 2 | Q92: =生涯計算03!AB92 -> 0 | R92: =生涯計算03!BD92 -> 0 | S92: =生涯計算03!CG92 -> 0 | T92: =生涯計算03!DH92 -> 0 | U92: =生涯計算03!EJ92 -> 89 | V92: =生涯計算03!FN92 -> 89 | W92: =生涯計算04!BG92 -> 1 | X92: =生涯計算04!CK92 -> 0 | Y92: =生涯計算04!DM92 -> 0 | Z92: =IF(生涯計算05!BE92=0,"－",生涯計算05!BE92) -> － | AA92: =IF(生涯計算05!BS92=0,"－",生涯計算05!BS92) -> － | AB92: =IF(生涯計算05!CG92=0,"－",生涯計算05!CG92) -> － | AE92: 89 | AF92: Z-K氏
A93: 90 | B93: =VLOOKUP(A93,登録名変遷!$A$3:$B$1005,2,FALSE) -> ディランドさん | C93: =生涯計算01!AB93 -> 27 | D93: =生涯計算01!BD93 -> 3636 | E93: =生涯計算01!CC93 -> 139.8461538 | F93: =生涯計算04!AC93 -> 210 | G93: =生涯計算01!DE93 -> 3 | H93: =生涯計算01!EG93 -> 0 | I93: =生涯計算01!GI93 -> 13 | J93: =生涯計算01!HK93 -> 8 | K93: =生涯計算02!CE93 -> 9.96 | L93: =生涯計算02!DH93 -> 8.549088317 | M93: =生涯計算02!AC93 -> 249 | N93: =生涯計算02!BE93 -> 220.1421066 | O93: =生涯計算02!FN93 -> 21 | P93: =生涯計算02!EK93 -> 56 | Q93: =生涯計算03!AB93 -> 12 | R93: =生涯計算03!BD93 -> 0.4615384615 | S93: =生涯計算03!CG93 -> 6 | T93: =生涯計算03!DH93 -> 0.2307692308 | U93: =生涯計算03!EJ93 -> 344 | V93: =生涯計算03!FN93 -> 31 | W93: =生涯計算04!BG93 -> 10 | X93: =生涯計算04!CK93 -> 3 | Y93: =生涯計算04!DM93 -> 0.6666666667 | Z93: =IF(生涯計算05!BE93=0,"－",生涯計算05!BE93) -> 18.52803704 | AA93: =IF(生涯計算05!BS93=0,"－",生涯計算05!BS93) -> 23.449125 | AB93: =IF(生涯計算05!CG93=0,"－",生涯計算05!CG93) -> 18.4986 | AE93: 91 | AF93: ディランド氏
A94: 91 | B94: =VLOOKUP(A94,登録名変遷!$A$3:$B$1005,2,FALSE) -> 例文さん | C94: =生涯計算01!AB94 -> 11 | D94: =生涯計算01!BD94 -> 1217 | E94: =生涯計算01!CC94 -> 0 | F94: =生涯計算04!AC94 -> 0 | G94: =生涯計算01!DE94 -> 0 | H94: =生涯計算01!EG94 -> 0 | I94: =生涯計算01!GI94 -> 2 | J94: =生涯計算01!HK94 -> 2 | K94: =生涯計算02!CE94 -> － | L94: =生涯計算02!DH94 -> － | M94: =生涯計算02!AC94 -> 159 | N94: =生涯計算02!BE94 -> 158.9473378 | O94: =生涯計算02!FN94 -> 5 | P94: =生涯計算02!EK94 -> 16 | Q94: =生涯計算03!AB94 -> 2 | R94: =生涯計算03!BD94 -> 0 | S94: =生涯計算03!CG94 -> 0 | T94: =生涯計算03!DH94 -> 0 | U94: =生涯計算03!EJ94 -> 169 | V94: =生涯計算03!FN94 -> 69 | W94: =生涯計算04!BG94 -> 1 | X94: =生涯計算04!CK94 -> 0 | Y94: =生涯計算04!DM94 -> 0 | Z94: =IF(生涯計算05!BE94=0,"－",生涯計算05!BE94) -> － | AA94: =IF(生涯計算05!BS94=0,"－",生涯計算05!BS94) -> － | AB94: =IF(生涯計算05!CG94=0,"－",生涯計算05!CG94) -> － | AE94: 92 | AF94: 例文氏
A95: 92 | B95: =VLOOKUP(A95,登録名変遷!$A$3:$B$1005,2,FALSE) -> ryo-kさん | C95: =生涯計算01!AB95 -> 21 | D95: =生涯計算01!BD95 -> 2104 | E95: =生涯計算01!CC95 -> 114.1111111 | F95: =生涯計算04!AC95 -> 89 | G95: =生涯計算01!DE95 -> 1 | H95: =生涯計算01!EG95 -> 2 | I95: =生涯計算01!GI95 -> 5 | J95: =生涯計算01!HK95 -> 6 | K95: =生涯計算02!CE95 -> 17.72222222 | L95: =生涯計算02!DH95 -> 15.97382968 | M95: =生涯計算02!AC95 -> 58 | N95: =生涯計算02!BE95 -> 53.32386364 | O95: =生涯計算02!FN95 -> 9 | P95: =生涯計算02!EK95 -> 34 | Q95: =生涯計算03!AB95 -> 4 | R95: =生涯計算03!BD95 -> 0.2222222222 | S95: =生涯計算03!CG95 -> 8 | T95: =生涯計算03!DH95 -> 0.380952381 | U95: =生涯計算03!EJ95 -> 197 | V95: =生涯計算03!FN95 -> 20 | W95: =生涯計算04!BG95 -> 5 | X95: =生涯計算04!CK95 -> 2 | Y95: =生涯計算04!DM95 -> 0.5 | Z95: =IF(生涯計算05!BE95=0,"－",生涯計算05!BE95) -> － | AA95: =IF(生涯計算05!BS95=0,"－",生涯計算05!BS95) -> － | AB95: =IF(生涯計算05!CG95=0,"－",生涯計算05!CG95) -> －
A96: 93 | B96: =VLOOKUP(A96,登録名変遷!$A$3:$B$1005,2,FALSE) -> 「PSP完全攻略情報」管理人さん | C96: =生涯計算01!AB96 -> 14 | D96: =生涯計算01!BD96 -> 1317 | E96: =生涯計算01!CC96 -> 94.07142857 | F96: =生涯計算04!AC96 -> 44 | G96: =生涯計算01!DE96 -> 1 | H96: =生涯計算01!EG96 -> 3 | I96: =生涯計算01!GI96 -> 1 | J96: =生涯計算01!HK96 -> 2 | K96: =生涯計算02!CE96 -> 22 | L96: =生涯計算02!DH96 -> 19.67483357 | M96: =生涯計算02!AC96 -> 1 | N96: =生涯計算02!BE96 -> 0.9375 | O96: =生涯計算02!FN96 -> 7 | P96: =生涯計算02!EK96 -> 17 | Q96: =生涯計算03!AB96 -> 1 | R96: =生涯計算03!BD96 -> 0.07142857143 | S96: =生涯計算03!CG96 -> 5 | T96: =生涯計算03!DH96 -> 0.3571428571 | U96: =生涯計算03!EJ96 -> 180 | V96: =生涯計算03!FN96 -> 40 | W96: =生涯計算04!BG96 -> 10 | X96: =生涯計算04!CK96 -> 1 | Y96: =生涯計算04!DM96 -> 0.1 | Z96: =IF(生涯計算05!BE96=0,"－",生涯計算05!BE96) -> － | AA96: =IF(生涯計算05!BS96=0,"－",生涯計算05!BS96) -> － | AB96: =IF(生涯計算05!CG96=0,"－",生涯計算05!CG96) -> －
A97: 94 | B97: =VLOOKUP(A97,登録名変遷!$A$3:$B$1005,2,FALSE) -> サエグサさん | C97: =生涯計算01!AB97 -> 27 | D97: =生涯計算01!BD97 -> 3422 | E97: =生涯計算01!CC97 -> 126.7407407 | F97: =生涯計算04!AC97 -> 148 | G97: =生涯計算01!DE97 -> 2 | H97: =生涯計算01!EG97 -> 2 | I97: =生涯計算01!GI97 -> 10 | J97: =生涯計算01!HK97 -> 7 | K97: =生涯計算02!CE97 -> 14.61538462 | L97: =生涯計算02!DH97 -> 12.30230263 | M97: =生涯計算02!AC97 -> 380 | N97: =生涯計算02!BE97 -> 319.8598683 | O97: =生涯計算02!FN97 -> 16 | P97: =生涯計算02!EK97 -> 52 | Q97: =生涯計算03!AB97 -> 7 | R97: =生涯計算03!BD97 -> 0.2692307692 | S97: =生涯計算03!CG97 -> 5 | T97: =生涯計算03!DH97 -> 0.1923076923 | U97: =生涯計算03!EJ97 -> 398 | V97: =生涯計算03!FN97 -> 28 | W97: =生涯計算04!BG97 -> 8 | X97: =生涯計算04!CK97 -> 2 | Y97: =生涯計算04!DM97 -> 0.25 | Z97: =IF(生涯計算05!BE97=0,"－",生涯計算05!BE97) -> 22.91483951 | AA97: =IF(生涯計算05!BS97=0,"－",生涯計算05!BS97) -> 24.69789744 | AB97: =IF(生涯計算05!CG97=0,"－",生涯計算05!CG97) -> 20.50259615
A98: 95 | B98: =VLOOKUP(A98,登録名変遷!$A$3:$B$1005,2,FALSE) -> にっちーさん | C98: =生涯計算01!AB98 -> 27 | D98: =生涯計算01!BD98 -> 3246 | E98: =生涯計算01!CC98 -> 124.8461538 | F98: =生涯計算04!AC98 -> 88 | G98: =生涯計算01!DE98 -> 1 | H98: =生涯計算01!EG98 -> 1 | I98: =生涯計算01!GI98 -> 9 | J98: =生涯計算01!HK98 -> 7 | K98: =生涯計算02!CE98 -> 14.30769231 | L98: =生涯計算02!DH98 -> 11.30097363 | M98: =生涯計算02!AC98 -> 372 | N98: =生涯計算02!BE98 -> 293.8253143 | O98: =生涯計算02!FN98 -> 13 | P98: =生涯計算02!EK98 -> 52 | Q98: =生涯計算03!AB98 -> 5 | R98: =生涯計算03!BD98 -> 0.1923076923 | S98: =生涯計算03!CG98 -> 3 | T98: =生涯計算03!DH98 -> 0.1153846154 | U98: =生涯計算03!EJ98 -> 236 | V98: =生涯計算03!FN98 -> 20 | W98: =生涯計算04!BG98 -> 6 | X98: =生涯計算04!CK98 -> 1 | Y98: =生涯計算04!DM98 -> 0.3333333333 | Z98: =IF(生涯計算05!BE98=0,"－",生涯計算05!BE98) -> 21.71280769 | AA98: =IF(生涯計算05!BS98=0,"－",生涯計算05!BS98) -> 23.40369697 | AB98: =IF(生涯計算05!CG98=0,"－",生涯計算05!CG98) -> 20.47282222
A99: 96 | B99: =VLOOKUP(A99,登録名変遷!$A$3:$B$1005,2,FALSE) -> ナックさん | C99: =生涯計算01!AB99 -> 26 | D99: =生涯計算01!BD99 -> 2624 | E99: =生涯計算01!CC99 -> 100.9230769 | F99: =生涯計算04!AC99 -> 123 | G99: =生涯計算01!DE99 -> 1 | H99: =生涯計算01!EG99 -> 3 | I99: =生涯計算01!GI99 -> 8 | J99: =生涯計算01!HK99 -> 7 | K99: =生涯計算02!CE99 -> 18.57692308 | L99: =生涯計算02!DH99 -> 17.05282709 | M99: =生涯計算02!AC99 -> 34 | N99: =生涯計算02!BE99 -> 28.33333333 | O99: =生涯計算02!FN99 -> 8 | P99: =生涯計算02!EK99 -> 41 | Q99: =生涯計算03!AB99 -> 2 | R99: =生涯計算03!BD99 -> 0.08695652174 | S99: =生涯計算03!CG99 -> 8 | T99: =生涯計算03!DH99 -> 0.3636363636 | U99: =生涯計算03!EJ99 -> 177 | V99: =生涯計算03!FN99 -> 20 | W99: =生涯計算04!BG99 -> 7 | X99: =生涯計算04!CK99 -> 1 | Y99: =生涯計算04!DM99 -> 0.1666666667 | Z99: =IF(生涯計算05!BE99=0,"－",生涯計算05!BE99) -> 34.65993939 | AA99: =IF(生涯計算05!BS99=0,"－",生涯計算05!BS99) -> 30.86228571 | AB99: =IF(生涯計算05!CG99=0,"－",生涯計算05!CG99) -> 31.29633333
A100: 97 | B100: =VLOOKUP(A100,登録名変遷!$A$3:$B$1005,2,FALSE) -> アルさん | C100: =生涯計算01!AB100 -> 25 | D100: =生涯計算01!BD100 -> 2734 | E100: =生涯計算01!CC100 -> 109.36 | F100: =生涯計算04!AC100 -> 0 | G100: =生涯計算01!DE100 -> 1 | H100: =生涯計算01!EG100 -> 0 | I100: =生涯計算01!GI100 -> 6 | J100: =生涯計算01!HK100 -> 2 | K100: =生涯計算02!CE100 -> 15.36 | L100: =生涯計算02!DH100 -> 14.02643615 | M100: =生涯計算02!AC100 -> 83 | N100: =生涯計算02!BE100 -> 70.72450602 | O100: =生涯計算02!FN100 -> 16 | P100: =生涯計算02!EK100 -> 42 | Q100: =生涯計算03!AB100 -> 4 | R100: =生涯計算03!BD100 -> 0.16 | S100: =生涯計算03!CG100 -> 0 | T100: =生涯計算03!DH100 -> 0 | U100: =生涯計算03!EJ100 -> 170 | V100: =生涯計算03!FN100 -> 28 | W100: =生涯計算04!BG100 -> 3 | X100: =生涯計算04!CK100 -> 0 | Y100: =生涯計算04!DM100 -> 0 | Z100: =IF(生涯計算05!BE100=0,"－",生涯計算05!BE100) -> － | AA100: =IF(生涯計算05!BS100=0,"－",生涯計算05!BS100) -> － | AB100: =IF(生涯計算05!CG100=0,"－",生涯計算05!CG100) -> －
A101: 98 | B101: =VLOOKUP(A101,登録名変遷!$A$3:$B$1005,2,FALSE) -> どらすけさん | C101: =生涯計算01!AB101 -> 5 | D101: =生涯計算01!BD101 -> 500 | E101: =生涯計算01!CC101 -> 0 | F101: =生涯計算04!AC101 -> 57 | G101: =生涯計算01!DE101 -> 0 | H101: =生涯計算01!EG101 -> 1 | I101: =生涯計算01!GI101 -> 1 | J101: =生涯計算01!HK101 -> 1 | K101: =生涯計算02!CE101 -> － | L101: =生涯計算02!DH101 -> － | M101: =生涯計算02!AC101 -> 99 | N101: =生涯計算02!BE101 -> 89.19098549 | O101: =生涯計算02!FN101 -> 2 | P101: =生涯計算02!EK101 -> 8 | Q101: =生涯計算03!AB101 -> 1 | R101: =生涯計算03!BD101 -> 0 | S101: =生涯計算03!CG101 -> 1 | T101: =生涯計算03!DH101 -> 0 | U101: =生涯計算03!EJ101 -> 164 | V101: =生涯計算03!FN101 -> 31 | W101: =生涯計算04!BG101 -> 3 | X101: =生涯計算04!CK101 -> 1 | Y101: =生涯計算04!DM101 -> 0 | Z101: =IF(生涯計算05!BE101=0,"－",生涯計算05!BE101) -> － | AA101: =IF(生涯計算05!BS101=0,"－",生涯計算05!BS101) -> － | AB101: =IF(生涯計算05!CG101=0,"－",生涯計算05!CG101) -> －
A102: 99 | B102: =VLOOKUP(A102,登録名変遷!$A$3:$B$1005,2,FALSE) -> autoさん | C102: =生涯計算01!AB102 -> 3 | D102: =生涯計算01!BD102 -> 371 | E102: =生涯計算01!CC102 -> 0 | F102: =生涯計算04!AC102 -> 57 | G102: =生涯計算01!DE102 -> 1 | H102: =生涯計算01!EG102 -> 1 | I102: =生涯計算01!GI102 -> 1 | J102: =生涯計算01!HK102 -> 0 | K102: =生涯計算02!CE102 -> － | L102: =生涯計算02!DH102 -> － | M102: =生涯計算02!AC102 -> 65 | N102: =生涯計算02!BE102 -> 55.7394958 | O102: =生涯計算02!FN102 -> 0 | P102: =生涯計算02!EK102 -> 7 | Q102: =生涯計算03!AB102 -> 1 | R102: =生涯計算03!BD102 -> 0 | S102: =生涯計算03!CG102 -> 1 | T102: =生涯計算03!DH102 -> 0 | U102: =生涯計算03!EJ102 -> 198 | V102: =生涯計算03!FN102 -> 70 | W102: =生涯計算04!BG102 -> 2 | X102: =生涯計算04!CK102 -> 1 | Y102: =生涯計算04!DM102 -> 0 | Z102: =IF(生涯計算05!BE102=0,"－",生涯計算05!BE102) -> － | AA102: =IF(生涯計算05!BS102=0,"－",生涯計算05!BS102) -> － | AB102: =IF(生涯計算05!CG102=0,"－",生涯計算05!CG102) -> －
A103: 100 | B103: =VLOOKUP(A103,登録名変遷!$A$3:$B$1005,2,FALSE) -> dbcaeさん | C103: =生涯計算01!AB103 -> 27 | D103: =生涯計算01!BD103 -> 3300 | E103: =生涯計算01!CC103 -> 122.2222222 | F103: =生涯計算04!AC103 -> 123 | G103: =生涯計算01!DE103 -> 2 | H103: =生涯計算01!EG103 -> 2 | I103: =生涯計算01!GI103 -> 9 | J103: =生涯計算01!HK103 -> 7 | K103: =生涯計算02!CE103 -> 13.03846154 | L103: =生涯計算02!DH103 -> 11.34318623 | M103: =生涯計算02!AC103 -> 339 | N103: =生涯計算02!BE103 -> 294.9228419 | O103: =生涯計算02!FN103 -> 14 | P103: =生涯計算02!EK103 -> 48 | Q103: =生涯計算03!AB103 -> 8 | R103: =生涯計算03!BD103 -> 0.3076923077 | S103: =生涯計算03!CG103 -> 4 | T103: =生涯計算03!DH103 -> 0.1538461538 | U103: =生涯計算03!EJ103 -> 222 | V103: =生涯計算03!FN103 -> 20 | W103: =生涯計算04!BG103 -> 8 | X103: =生涯計算04!CK103 -> 2 | Y103: =生涯計算04!DM103 -> 0.2857142857 | Z103: =IF(生涯計算05!BE103=0,"－",生涯計算05!BE103) -> 21.99553086 | AA103: =IF(生涯計算05!BS103=0,"－",生涯計算05!BS103) -> 17.77414286 | AB103: =IF(生涯計算05!CG103=0,"－",生涯計算05!CG103) -> 24.22569811
A104: 101 | B104: =VLOOKUP(A104,登録名変遷!$A$3:$B$1005,2,FALSE) -> てぃるさん | C104: =生涯計算01!AB104 -> 13 | D104: =生涯計算01!BD104 -> 1532 | E104: =生涯計算01!CC104 -> 117.8461538 | F104: =生涯計算04!AC104 -> 208 | G104: =生涯計算01!DE104 -> 1 | H104: =生涯計算01!EG104 -> 0 | I104: =生涯計算01!GI104 -> 5 | J104: =生涯計算01!HK104 -> 1 | K104: =生涯計算02!CE104 -> 19.38461538 | L104: =生涯計算02!DH104 -> 17.07146163 | M104: =生涯計算02!AC104 -> 252 | N104: =生涯計算02!BE104 -> 221.9290011 | O104: =生涯計算02!FN104 -> 5 | P104: =生涯計算02!EK104 -> 22 | Q104: =生涯計算03!AB104 -> 3 | R104: =生涯計算03!BD104 -> 0.2307692308 | S104: =生涯計算03!CG104 -> 3 | T104: =生涯計算03!DH104 -> 0.1428571429 | U104: =生涯計算03!EJ104 -> 251 | V104: =生涯計算03!FN104 -> 52 | W104: =生涯計算04!BG104 -> 5 | X104: =生涯計算04!CK104 -> 3 | Y104: =生涯計算04!DM104 -> 0.6 | Z104: =IF(生涯計算05!BE104=0,"－",生涯計算05!BE104) -> － | AA104: =IF(生涯計算05!BS104=0,"－",生涯計算05!BS104) -> － | AB104: =IF(生涯計算05!CG104=0,"－",生涯計算05!CG104) -> －
A105: 102 | B105: =VLOOKUP(A105,登録名変遷!$A$3:$B$1005,2,FALSE) -> よーいちさん | C105: =生涯計算01!AB105 -> 4 | D105: =生涯計算01!BD105 -> 489 | E105: =生涯計算01!CC105 -> 0 | F105: =生涯計算04!AC105 -> 0 | G105: =生涯計算01!DE105 -> 0 | H105: =生涯計算01!EG105 -> 0 | I105: =生涯計算01!GI105 -> 2 | J105: =生涯計算01!HK105 -> 0 | K105: =生涯計算02!CE105 -> － | L105: =生涯計算02!DH105 -> － | M105: =生涯計算02!AC105 -> 78 | N105: =生涯計算02!BE105 -> 67.85255921 | O105: =生涯計算02!FN105 -> 2 | P105: =生涯計算02!EK105 -> 7 | Q105: =生涯計算03!AB105 -> 0 | R105: =生涯計算03!BD105 -> 0 | S105: =生涯計算03!CG105 -> 0 | T105: =生涯計算03!DH105 -> 0 | U105: =生涯計算03!EJ105 -> 157 | V105: =生涯計算03!FN105 -> 77 | W105: =生涯計算04!BG105 -> 0 | X105: =生涯計算04!CK105 -> 0 | Y105: =生涯計算04!DM105 -> 0 | Z105: =IF(生涯計算05!BE105=0,"－",生涯計算05!BE105) -> － | AA105: =IF(生涯計算05!BS105=0,"－",生涯計算05!BS105) -> － | AB105: =IF(生涯計算05!CG105=0,"－",生涯計算05!CG105) -> －
A106: 103 | B106: =VLOOKUP(A106,登録名変遷!$A$3:$B$1005,2,FALSE) -> ナマイキさん | C106: =生涯計算01!AB106 -> 1 | D106: =生涯計算01!BD106 -> 59 | E106: =生涯計算01!CC106 -> 0 | F106: =生涯計算04!AC106 -> 0 | G106: =生涯計算01!DE106 -> 0 | H106: =生涯計算01!EG106 -> 0 | I106: =生涯計算01!GI106 -> 0 | J106: =生涯計算01!HK106 -> 0 | K106: =生涯計算02!CE106 -> － | L106: =生涯計算02!DH106 -> － | M106: =生涯計算02!AC106 -> 24 | N106: =生涯計算02!BE106 -> 21.81818182 | O106: =生涯計算02!FN106 -> 0 | P106: =生涯計算02!EK106 -> 1 | Q106: =生涯計算03!AB106 -> 0 | R106: =生涯計算03!BD106 -> 0 | S106: =生涯計算03!CG106 -> 0 | T106: =生涯計算03!DH106 -> 0 | U106: =生涯計算03!EJ106 -> 59 | V106: =生涯計算03!FN106 -> 59 | W106: =生涯計算04!BG106 -> 1 | X106: =生涯計算04!CK106 -> 0 | Y106: =生涯計算04!DM106 -> 0 | Z106: =IF(生涯計算05!BE106=0,"－",生涯計算05!BE106) -> － | AA106: =IF(生涯計算05!BS106=0,"－",生涯計算05!BS106) -> － | AB106: =IF(生涯計算05!CG106=0,"－",生涯計算05!CG106) -> －
A107: 104 | B107: =VLOOKUP(A107,登録名変遷!$A$3:$B$1005,2,FALSE) -> 森の人さん | C107: =生涯計算01!AB107 -> 27 | D107: =生涯計算01!BD107 -> 3459 | E107: =生涯計算01!CC107 -> 128.1111111 | F107: =生涯計算04!AC107 -> 98 | G107: =生涯計算01!DE107 -> 1 | H107: =生涯計算01!EG107 -> 1 | I107: =生涯計算01!GI107 -> 10 | J107: =生涯計算01!HK107 -> 7 | K107: =生涯計算02!CE107 -> 13.73076923 | L107: =生涯計算02!DH107 -> 11.92619146 | M107: =生涯計算02!AC107 -> 11 | N107: =生涯計算02!BE107 -> 10 | O107: =生涯計算02!FN107 -> 18 | P107: =生涯計算02!EK107 -> 50 | Q107: =生涯計算03!AB107 -> 9 | R107: =生涯計算03!BD107 -> 0.3333333333 | S107: =生涯計算03!CG107 -> 3 | T107: =生涯計算03!DH107 -> 0.1153846154 | U107: =生涯計算03!EJ107 -> 200 | V107: =生涯計算03!FN107 -> 20 | W107: =生涯計算04!BG107 -> 5 | X107: =生涯計算04!CK107 -> 2 | Y107: =生涯計算04!DM107 -> 1 | Z107: =IF(生涯計算05!BE107=0,"－",生涯計算05!BE107) -> 19.09719753 | AA107: =IF(生涯計算05!BS107=0,"－",生涯計算05!BS107) -> 19.13143333 | AB107: =IF(生涯計算05!CG107=0,"－",生涯計算05!CG107) -> 19.07705882
A108: 105 | B108: =VLOOKUP(A108,登録名変遷!$A$3:$B$1005,2,FALSE) -> ぶんさん | C108: =生涯計算01!AB108 -> 24 | D108: =生涯計算01!BD108 -> 2638 | E108: =生涯計算01!CC108 -> 112.4210526 | F108: =生涯計算04!AC108 -> 85 | G108: =生涯計算01!DE108 -> 2 | H108: =生涯計算01!EG108 -> 1 | I108: =生涯計算01!GI108 -> 5 | J108: =生涯計算01!HK108 -> 5 | K108: =生涯計算02!CE108 -> 15.54166667 | L108: =生涯計算02!DH108 -> 13.61608304 | M108: =生涯計算02!AC108 -> 26 | N108: =生涯計算02!BE108 -> 21.08108108 | O108: =生涯計算02!FN108 -> 13 | P108: =生涯計算02!EK108 -> 35 | Q108: =生涯計算03!AB108 -> 6 | R108: =生涯計算03!BD108 -> 0.25 | S108: =生涯計算03!CG108 -> 6 | T108: =生涯計算03!DH108 -> 0.3157894737 | U108: =生涯計算03!EJ108 -> 320 | V108: =生涯計算03!FN108 -> 21 | W108: =生涯計算04!BG108 -> 8 | X108: =生涯計算04!CK108 -> 1 | Y108: =生涯計算04!DM108 -> 0.2 | Z108: =IF(生涯計算05!BE108=0,"－",生涯計算05!BE108) -> 22.23308333 | AA108: =IF(生涯計算05!BS108=0,"－",生涯計算05!BS108) -> 42.18267742 | AB108: =IF(生涯計算05!CG108=0,"－",生涯計算05!CG108) -> 27.72823077
A109: 106 | B109: =VLOOKUP(A109,登録名変遷!$A$3:$B$1005,2,FALSE) -> すいぶるさん | C109: =生涯計算01!AB109 -> 27 | D109: =生涯計算01!BD109 -> 3522 | E109: =生涯計算01!CC109 -> 135.4615385 | F109: =生涯計算04!AC109 -> 141 | G109: =生涯計算01!DE109 -> 2 | H109: =生涯計算01!EG109 -> 1 | I109: =生涯計算01!GI109 -> 11 | J109: =生涯計算01!HK109 -> 8 | K109: =生涯計算02!CE109 -> 11.80769231 | L109: =生涯計算02!DH109 -> 9.960512063 | M109: =生涯計算02!AC109 -> 307 | N109: =生涯計算02!BE109 -> 258.9733136 | O109: =生涯計算02!FN109 -> 18 | P109: =生涯計算02!EK109 -> 56 | Q109: =生涯計算03!AB109 -> 10 | R109: =生涯計算03!BD109 -> 0.3846153846 | S109: =生涯計算03!CG109 -> 5 | T109: =生涯計算03!DH109 -> 0.1923076923 | U109: =生涯計算03!EJ109 -> 320 | V109: =生涯計算03!FN109 -> 23 | W109: =生涯計算04!BG109 -> 11 | X109: =生涯計算04!CK109 -> 3 | Y109: =生涯計算04!DM109 -> 0.375 | Z109: =IF(生涯計算05!BE109=0,"－",生涯計算05!BE109) -> 20.83869136 | AA109: =IF(生涯計算05!BS109=0,"－",生涯計算05!BS109) -> 20.23271429 | AB109: =IF(生涯計算05!CG109=0,"－",生涯計算05!CG109) -> 20.72757692
A110: 107 | B110: =VLOOKUP(A110,登録名変遷!$A$3:$B$1005,2,FALSE) -> うえりさん | C110: =生涯計算01!AB110 -> 25 | D110: =生涯計算01!BD110 -> 2476 | E110: =生涯計算01!CC110 -> 109.8181818 | F110: =生涯計算04!AC110 -> 56 | G110: =生涯計算01!DE110 -> 2 | H110: =生涯計算01!EG110 -> 1 | I110: =生涯計算01!GI110 -> 6 | J110: =生涯計算01!HK110 -> 4 | K110: =生涯計算02!CE110 -> 18.31818182 | L110: =生涯計算02!DH110 -> 14.48945732 | M110: =生涯計算02!AC110 -> 68 | N110: =生涯計算02!BE110 -> 60 | O110: =生涯計算02!FN110 -> 10 | P110: =生涯計算02!EK110 -> 40 | Q110: =生涯計算03!AB110 -> 2 | R110: =生涯計算03!BD110 -> 0.09090909091 | S110: =生涯計算03!CG110 -> 6 | T110: =生涯計算03!DH110 -> 0.25 | U110: =生涯計算03!EJ110 -> 196 | V110: =生涯計算03!FN110 -> 25 | W110: =生涯計算04!BG110 -> 7 | X110: =生涯計算04!CK110 -> 1 | Y110: =生涯計算04!DM110 -> 0.1666666667 | Z110: =IF(生涯計算05!BE110=0,"－",生涯計算05!BE110) -> 33.73316667 | AA110: =IF(生涯計算05!BS110=0,"－",生涯計算05!BS110) -> 35.01988 | AB110: =IF(生涯計算05!CG110=0,"－",生涯計算05!CG110) -> 27.08933333
A111: 108 | B111: =VLOOKUP(A111,登録名変遷!$A$3:$B$1005,2,FALSE) -> きたぼむさん | C111: =生涯計算01!AB111 -> 26 | D111: =生涯計算01!BD111 -> 3197 | E111: =生涯計算01!CC111 -> 122.9615385 | F111: =生涯計算04!AC111 -> 380 | G111: =生涯計算01!DE111 -> 2 | H111: =生涯計算01!EG111 -> 1 | I111: =生涯計算01!GI111 -> 6 | J111: =生涯計算01!HK111 -> 6 | K111: =生涯計算02!CE111 -> 16.5 | L111: =生涯計算02!DH111 -> 13.9032274 | M111: =生涯計算02!AC111 -> 0 | N111: =生涯計算02!BE111 -> 0 | O111: =生涯計算02!FN111 -> 12 | P111: =生涯計算02!EK111 -> 41 | Q111: =生涯計算03!AB111 -> 9 | R111: =生涯計算03!BD111 -> 0.3461538462 | S111: =生涯計算03!CG111 -> 6 | T111: =生涯計算03!DH111 -> 0.2307692308 | U111: =生涯計算03!EJ111 -> 509 | V111: =生涯計算03!FN111 -> 48 | W111: =生涯計算04!BG111 -> 16 | X111: =生涯計算04!CK111 -> 5 | Y111: =生涯計算04!DM111 -> 0.3125 | Z111: =IF(生涯計算05!BE111=0,"－",生涯計算05!BE111) -> 24.78479487 | AA111: =IF(生涯計算05!BS111=0,"－",生涯計算05!BS111) -> 21.83902941 | AB111: =IF(生涯計算05!CG111=0,"－",生涯計算05!CG111) -> 22.58075
A112: 109 | B112: =VLOOKUP(A112,登録名変遷!$A$3:$B$1005,2,FALSE) -> おとろまさん | C112: =生涯計算01!AB112 -> 25 | D112: =生涯計算01!BD112 -> 2375 | E112: =生涯計算01!CC112 -> 95 | F112: =生涯計算04!AC112 -> 0 | G112: =生涯計算01!DE112 -> 0 | H112: =生涯計算01!EG112 -> 2 | I112: =生涯計算01!GI112 -> 1 | J112: =生涯計算01!HK112 -> 2 | K112: =生涯計算02!CE112 -> 24.48 | L112: =生涯計算02!DH112 -> 19.32287658 | M112: =生涯計算02!AC112 -> 612 | N112: =生涯計算02!BE112 -> 483.0719145 | O112: =生涯計算02!FN112 -> 12 | P112: =生涯計算02!EK112 -> 36 | Q112: =生涯計算03!AB112 -> 2 | R112: =生涯計算03!BD112 -> 0.08 | S112: =生涯計算03!CG112 -> 8 | T112: =生涯計算03!DH112 -> 0.32 | U112: =生涯計算03!EJ112 -> 144 | V112: =生涯計算03!FN112 -> 60 | W112: =生涯計算04!BG112 -> 11 | X112: =生涯計算04!CK112 -> 0 | Y112: =生涯計算04!DM112 -> 0 | Z112: =IF(生涯計算05!BE112=0,"－",生涯計算05!BE112) -> 39.97832 | AA112: =IF(生涯計算05!BS112=0,"－",生涯計算05!BS112) -> 48.08151429 | AB112: =IF(生涯計算05!CG112=0,"－",生涯計算05!CG112) -> 32.888025
A113: 110 | B113: =VLOOKUP(A113,登録名変遷!$A$3:$B$1005,2,FALSE) -> IKERUさん | C113: =生涯計算01!AB113 -> 27 | D113: =生涯計算01!BD113 -> 3315 | E113: =生涯計算01!CC113 -> 122.7777778 | F113: =生涯計算04!AC113 -> 58 | G113: =生涯計算01!DE113 -> 3 | H113: =生涯計算01!EG113 -> 1 | I113: =生涯計算01!GI113 -> 12 | J113: =生涯計算01!HK113 -> 6 | K113: =生涯計算02!CE113 -> 15.57692308 | L113: =生涯計算02!DH113 -> 12.26805529 | M113: =生涯計算02!AC113 -> 405 | N113: =生涯計算02!BE113 -> 318.9694376 | O113: =生涯計算02!FN113 -> 14 | P113: =生涯計算02!EK113 -> 57 | Q113: =生涯計算03!AB113 -> 7 | R113: =生涯計算03!BD113 -> 0.2592592593 | S113: =生涯計算03!CG113 -> 4 | T113: =生涯計算03!DH113 -> 0.1538461538 | U113: =生涯計算03!EJ113 -> 206 | V113: =生涯計算03!FN113 -> 33 | W113: =生涯計算04!BG113 -> 8 | X113: =生涯計算04!CK113 -> 1 | Y113: =生涯計算04!DM113 -> 0.3333333333 | Z113: =IF(生涯計算05!BE113=0,"－",生涯計算05!BE113) -> 21.3788642 | AA113: =IF(生涯計算05!BS113=0,"－",生涯計算05!BS113) -> 19.81151852 | AB113: =IF(生涯計算05!CG113=0,"－",生涯計算05!CG113) -> 22.16253704
A114: 111 | B114: =VLOOKUP(A114,登録名変遷!$A$3:$B$1005,2,FALSE) -> ジェナスさん | C114: =生涯計算01!AB114 -> 26 | D114: =生涯計算01!BD114 -> 3711 | E114: =生涯計算01!CC114 -> 142.7307692 | F114: =生涯計算04!AC114 -> 375 | G114: =生涯計算01!DE114 -> 4 | H114: =生涯計算01!EG114 -> 2 | I114: =生涯計算01!GI114 -> 11 | J114: =生涯計算01!HK114 -> 7 | K114: =生涯計算02!CE114 -> 12.96153846 | L114: =生涯計算02!DH114 -> 10.71959084 | M114: =生涯計算02!AC114 -> 139 | N114: =生涯計算02!BE114 -> 113.7161654 | O114: =生涯計算02!FN114 -> 17 | P114: =生涯計算02!EK114 -> 55 | Q114: =生涯計算03!AB114 -> 11 | R114: =生涯計算03!BD114 -> 0.4230769231 | S114: =生涯計算03!CG114 -> 3 | T114: =生涯計算03!DH114 -> 0.1153846154 | U114: =生涯計算03!EJ114 -> 490 | V114: =生涯計算03!FN114 -> 20 | W114: =生涯計算04!BG114 -> 9 | X114: =生涯計算04!CK114 -> 2 | Y114: =生涯計算04!DM114 -> 0.5 | Z114: =IF(生涯計算05!BE114=0,"－",生涯計算05!BE114) -> 18.09065385 | AA114: =IF(生涯計算05!BS114=0,"－",生涯計算05!BS114) -> 14.85427586 | AB114: =IF(生涯計算05!CG114=0,"－",生涯計算05!CG114) -> 19.93123256
A115: 112 | B115: =VLOOKUP(A115,登録名変遷!$A$3:$B$1005,2,FALSE) -> パルスさん | C115: =生涯計算01!AB115 -> 27 | D115: =生涯計算01!BD115 -> 3325 | E115: =生涯計算01!CC115 -> 123.1481481 | F115: =生涯計算04!AC115 -> 91 | G115: =生涯計算01!DE115 -> 2 | H115: =生涯計算01!EG115 -> 1 | I115: =生涯計算01!GI115 -> 11 | J115: =生涯計算01!HK115 -> 3 | K115: =生涯計算02!CE115 -> 15.38461538 | L115: =生涯計算02!DH115 -> 13.6799826 | M115: =生涯計算02!AC115 -> 400 | N115: =生涯計算02!BE115 -> 369.3595302 | O115: =生涯計算02!FN115 -> 10 | P115: =生涯計算02!EK115 -> 55 | Q115: =生涯計算03!AB115 -> 8 | R115: =生涯計算03!BD115 -> 0.3076923077 | S115: =生涯計算03!CG115 -> 4 | T115: =生涯計算03!DH115 -> 0.1538461538 | U115: =生涯計算03!EJ115 -> 222 | V115: =生涯計算03!FN115 -> 27 | W115: =生涯計算04!BG115 -> 5 | X115: =生涯計算04!CK115 -> 2 | Y115: =生涯計算04!DM115 -> 0.5 | Z115: =IF(生涯計算05!BE115=0,"－",生涯計算05!BE115) -> 23.1387284 | AA115: =IF(生涯計算05!BS115=0,"－",生涯計算05!BS115) -> 24.37206061 | AB115: =IF(生涯計算05!CG115=0,"－",生涯計算05!CG115) -> 22.22111538
A116: 113 | B116: =VLOOKUP(A116,登録名変遷!$A$3:$B$1005,2,FALSE) -> レプルさん | C116: =生涯計算01!AB116 -> 16 | D116: =生涯計算01!BD116 -> 1658 | E116: =生涯計算01!CC116 -> 103.625 | F116: =生涯計算04!AC116 -> 0 | G116: =生涯計算01!DE116 -> 0 | H116: =生涯計算01!EG116 -> 0 | I116: =生涯計算01!GI116 -> 4 | J116: =生涯計算01!HK116 -> 2 | K116: =生涯計算02!CE116 -> 22.3125 | L116: =生涯計算02!DH116 -> 17.54495386 | M116: =生涯計算02!AC116 -> 0 | N116: =生涯計算02!BE116 -> 0 | O116: =生涯計算02!FN116 -> 7 | P116: =生涯計算02!EK116 -> 24 | Q116: =生涯計算03!AB116 -> 1 | R116: =生涯計算03!BD116 -> 0.0625 | S116: =生涯計算03!CG116 -> 4 | T116: =生涯計算03!DH116 -> 0.25 | U116: =生涯計算03!EJ116 -> 188 | V116: =生涯計算03!FN116 -> 36 | W116: =生涯計算04!BG116 -> 4 | X116: =生涯計算04!CK116 -> 0 | Y116: =生涯計算04!DM116 -> 0 | Z116: =IF(生涯計算05!BE116=0,"－",生涯計算05!BE116) -> 32.37204167 | AA116: =IF(生涯計算05!BS116=0,"－",生涯計算05!BS116) -> 26.64761111 | AB116: =IF(生涯計算05!CG116=0,"－",生涯計算05!CG116) -> 35.8067
A117: 114 | B117: =VLOOKUP(A117,登録名変遷!$A$3:$B$1005,2,FALSE) -> ますさん | C117: =生涯計算01!AB117 -> 6 | D117: =生涯計算01!BD117 -> 628 | E117: =生涯計算01!CC117 -> 0 | F117: =生涯計算04!AC117 -> 0 | G117: =生涯計算01!DE117 -> 0 | H117: =生涯計算01!EG117 -> 1 | I117: =生涯計算01!GI117 -> 2 | J117: =生涯計算01!HK117 -> 1 | K117: =生涯計算02!CE117 -> － | L117: =生涯計算02!DH117 -> － | M117: =生涯計算02!AC117 -> 0 | N117: =生涯計算02!BE117 -> 0 | O117: =生涯計算02!FN117 -> 2 | P117: =生涯計算02!EK117 -> 10 | Q117: =生涯計算03!AB117 -> 0 | R117: =生涯計算03!BD117 -> 0 | S117: =生涯計算03!CG117 -> 3 | T117: =生涯計算03!DH117 -> 0 | U117: =生涯計算03!EJ117 -> 169 | V117: =生涯計算03!FN117 -> 29 | W117: =生涯計算04!BG117 -> 1 | X117: =生涯計算04!CK117 -> 0 | Y117: =生涯計算04!DM117 -> 0 | Z117: =IF(生涯計算05!BE117=0,"－",生涯計算05!BE117) -> 27.97211111 | AA117: =IF(生涯計算05!BS117=0,"－",生涯計算05!BS117) -> － | AB117: =IF(生涯計算05!CG117=0,"－",生涯計算05!CG117) -> －
A118: 115 | B118: =VLOOKUP(A118,登録名変遷!$A$3:$B$1005,2,FALSE) -> 1cupさん | C118: =生涯計算01!AB118 -> 14 | D118: =生涯計算01!BD118 -> 1602 | E118: =生涯計算01!CC118 -> 114.4285714 | F118: =生涯計算04!AC118 -> 0 | G118: =生涯計算01!DE118 -> 0 | H118: =生涯計算01!EG118 -> 1 | I118: =生涯計算01!GI118 -> 6 | J118: =生涯計算01!HK118 -> 2 | K118: =生涯計算02!CE118 -> 16.64285714 | L118: =生涯計算02!DH118 -> 13.64155507 | M118: =生涯計算02!AC118 -> 82 | N118: =生涯計算02!BE118 -> 67.25225225 | O118: =生涯計算02!FN118 -> 6 | P118: =生涯計算02!EK118 -> 28 | Q118: =生涯計算03!AB118 -> 3 | R118: =生涯計算03!BD118 -> 0.2142857143 | S118: =生涯計算03!CG118 -> 3 | T118: =生涯計算03!DH118 -> 0.2142857143 | U118: =生涯計算03!EJ118 -> 180 | V118: =生涯計算03!FN118 -> 47 | W118: =生涯計算04!BG118 -> 4 | X118: =生涯計算04!CK118 -> 0 | Y118: =生涯計算04!DM118 -> 0 | Z118: =IF(生涯計算05!BE118=0,"－",生涯計算05!BE118) -> 28.71802381 | AA118: =IF(生涯計算05!BS118=0,"－",生涯計算05!BS118) -> 20.54166667 | AB118: =IF(生涯計算05!CG118=0,"－",生涯計算05!CG118) -> 33.26044444
A119: 116 | B119: =VLOOKUP(A119,登録名変遷!$A$3:$B$1005,2,FALSE) -> ＮＯＢＵさん | C119: =生涯計算01!AB119 -> 1 | D119: =生涯計算01!BD119 -> 101 | E119: =生涯計算01!CC119 -> 0 | F119: =生涯計算04!AC119 -> 0 | G119: =生涯計算01!DE119 -> 0 | H119: =生涯計算01!EG119 -> 0 | I119: =生涯計算01!GI119 -> 0 | J119: =生涯計算01!HK119 -> 0 | K119: =生涯計算02!CE119 -> － | L119: =生涯計算02!DH119 -> － | M119: =生涯計算02!AC119 -> 13 | N119: =生涯計算02!BE119 -> 10.54054054 | O119: =生涯計算02!FN119 -> 1 | P119: =生涯計算02!EK119 -> 1 | Q119: =生涯計算03!AB119 -> 0 | R119: =生涯計算03!BD119 -> 0 | S119: =生涯計算03!CG119 -> 0 | T119: =生涯計算03!DH119 -> 0 | U119: =生涯計算03!EJ119 -> 101 | V119: =生涯計算03!FN119 -> 101 | W119: =生涯計算04!BG119 -> 0 | X119: =生涯計算04!CK119 -> 0 | Y119: =生涯計算04!DM119 -> 0 | Z119: =IF(生涯計算05!BE119=0,"－",生涯計算05!BE119) -> 23.319 | AA119: =IF(生涯計算05!BS119=0,"－",生涯計算05!BS119) -> － | AB119: =IF(生涯計算05!CG119=0,"－",生涯計算05!CG119) -> －

Sheet 生涯個人成績
A1: =SUM(各期データ!C3:C25) -> 548 | C1: 基本データ | AD1: 盗塁関連 | AG1: 誤差指数 | AO1: 会期別 総合順位
A2: No. | B2: 登録名（※最終登録名を記載） ※青字はYSOスタッフ | C2: 参加(回) | D2: 参加(期) | E2: 登場率 | F2: 累計ポイント | G2: 平均ポイント | H2: 盗塁ポイント | I2: 勝数 | J2: 負数 | K2: 完全試 | L2: ヒット | M2: 三振 | N2: 打率 | O2: 喫三振率 | P2: 防御率 | Q2: 補正 防御率 | R2: 累計順位 | S2: 補正 累計順位 | T2: PB数 | U2: Ave. PB | V2: 順位当て | W2: Ave.順当 | X2: 入賞回数 | Y2: 入賞率 | Z2: 圏外回数 | AA2: 圏外率 | AB2: ハイ スコア | AC2: ロー スコア | AD2: 敢行数 | AE2: 成功数 | AF2: 成功率 | AG2: 総合 | AH2: 新作 | AI2: 旧作 | AJ2: 初登場 | AK2: 初勝利 | AL2: 初盗塁 | AM2: No. | AN2: 登録名（※最終登録名を記載） | AO2: 1期 | AP2: 2期 | AQ2: 3期 | AR2: 4期 | AS2: 5期 | AT2: 6期 | AU2: 7期 | AV2: 8期 | AW2: 9期 | AX2: 10期 | AY2: 11期 | AZ2: 12期 | BA2: 13期 | BB2: 14期 | BC2: 15期 | BD2: 16期 | BE2: 17期 | BF2: 18期 | BG2: 19期 | BH2: 20期 | BI2: 21期
A3: 0 | B3: =VLOOKUP(A3,登録名変遷!$A$3:$B$1005,2,FALSE) -> YSO-MC | C3: =生涯計算01!Z3 -> 287 | D3: =生涯計算01!AC3 -> 11 | E3: =C3/$A$1 -> 0.5237226277 | F3: =生涯計算01!BB3 -> 31223 | G3: =IF(C3>=26,生涯計算01!BF3,"－") -> 108.7909408 | H3: =生涯計算04!AA3 -> 820 | I3: =生涯計算01!DC3 -> 21 | J3: =生涯計算01!EE3 -> 9 | K3: =生涯計算01!FH3 -> 0 | L3: =生涯計算01!GG3 -> 69 | M3: =生涯計算01!HI3 -> 39 | N3: =IF(C3>=26,IF(ISERROR(L3/C3),0,L3/C3),"－") -> 0.2404181185 | O3: =IF(C3>=26,IF(ISERROR(M3/C3),0,M3/C3),"－") -> 0.1358885017 | P3: =IF(C3>=26,生涯計算02!CD3,"－") -> 11.45296167 | Q3: =IF(C3>=26,生涯計算02!DG3,"－") -> 14.14312313 | R3: =生涯計算02!Z3 -> 3287 | S3: =生涯計算02!BB3 -> 4059.076339 | T3: =生涯計算02!FL3 -> 107 | U3: =IF($C3>0,T3/$C3,"") -> 0.3728222997 | V3: =生涯計算02!EI3 -> 446 | W3: =IF($C3>0,V3/$C3,"") -> 1.554006969 | X3: =生涯計算03!Z3 -> 29 | Y3: =IF(C3>=26,生涯計算03!BC3,"－") -> 0.1584699454 | Z3: =生涯計算03!CE3 -> 10 | AA3: =IF(C3>=26,生涯計算03!DG3,"－") -> 0.05464480874 | AB3: =生涯計算03!EJ3 -> 278 | AC3: =生涯計算03!FN3 -> 20 | AD3: =生涯計算04!BE3 -> 67 | AE3: =生涯計算04!CI3 -> 14 | AF3: =IF(AND($C3>=26,$AD3>0),AE3/AD3,"－") -> 0.2089552239 | AG3: =生涯計算05!BA3 -> － | AH3: =生涯計算05!BO3 -> － | AI3: =生涯計算05!CC3 -> － | AJ3: 1期1回 | AK3: 1期2回 | AL3: 1期3回 | AM3: 0 | AN3: YSO-MC | AO3: =RANK(SUMIF(第1期個人成績!$A$3:$A$17,$A3,第1期個人成績!$D$3:$D$17),第1期個人成績!$D$3:$D$17,0) -> 2 | AP3: =RANK(SUMIF(第2期個人成績!$A$3:$A$17,$A3,第2期個人成績!$D$3:$D$17),第2期個人成績!$D$3:$D$17,0) -> 7 | AQ3: =RANK(SUMIF(第3期個人成績!$A$3:$A$19,$A3,第3期個人成績!$D$3:$D$19),第3期個人成績!$D$3:$D$19,0) -> 1 | AR3: =RANK(SUMIF(第4期個人成績!$A$3:$A$22,$A3,第4期個人成績!$D$3:$D$22),第4期個人成績!$D$3:$D$22,0) -> 4 | AS3: =RANK(SUMIF(第5期個人成績!$A$3:$A$33,$A3,第5期個人成績!$D$3:$D$33),第5期個人成績!$D$3:$D$33,0) -> 3 | AT3: =RANK(SUMIF(第6期個人成績!$A$3:$A$45,$A3,第6期個人成績!$E$3:$E$17),第6期個人成績!$E$3:$E$45,0) -> 12 | AU3: =RANK(SUMIF(第7期個人成績!$A$3:$A$57,$A3,第7期個人成績!$E$3:$E$57),第7期個人成績!$E$3:$E$57,0) -> 13 | AV3: =RANK(SUMIF(第8期個人成績!$A$3:$A$46,$A3,第8期個人成績!$E$3:$E$46),第8期個人成績!$E$3:$E$46,0) -> 14 | AW3: =RANK(SUMIF(第9期個人成績!$A$3:$A$48,$A3,第9期個人成績!$E$3:$E$48),第9期個人成績!$E$3:$E$48,0) -> 5 | AX3: =RANK(SUMIF(第10期個人成績!$A$3:$A$43,$A3,第10期個人成績!$E$3:$E$43),第10期個人成績!$E$3:$E$43,0) -> 3 | AY3: =RANK(SUMIF(第11期個人成績!$A$3:$A$37,$A3,第11期個人成績!$E$3:$E$37),第11期個人成績!$E$3:$E$37,0) -> 12 | AZ3: - | BA3: - | BB3: - | BC3: - | BD3: - | BE3: - | BF3: - | BG3: - | BH3: - | BI3: -
A4: 1 | B4: =VLOOKUP(A4,登録名変遷!$A$3:$B$1005,2,FALSE) -> ラルさん | C4: =生涯計算01!Z4 -> 522 | D4: =生涯計算01!AC4 -> 20 | E4: 0.9525547445 | F4: =生涯計算01!BB4 -> 56354 | G4: =IF(C4>=26,生涯計算01!BF4,"－") -> 107.9578544 | H4: =生涯計算04!AA4 -> 368 | I4: =生涯計算01!DC4 -> 11 | J4: =生涯計算01!EE4 -> 10 | K4: =生涯計算01!FH4 -> 0 | L4: =生涯計算01!GG4 -> 150 | M4: =生涯計算01!HI4 -> 85 | N4: =IF(C4>=26,IF(ISERROR(L4/C4),0,L4/C4),"－") -> 0.2873563218 | O4: =IF(C4>=26,IF(ISERROR(M4/C4),0,M4/C4),"－") -> 0.162835249 | P4: =IF(C4>=26,生涯計算02!CD4,"－") -> 14.01915709 | Q4: =IF(C4>=26,生涯計算02!DG4,"－") -> 14.49567244 | R4: =生涯計算02!Z4 -> 7318 | S4: =生涯計算02!BB4 -> 7566.741016 | T4: =生涯計算02!FL4 -> 189 | U4: 0.3620689655 | V4: =生涯計算02!EI4 -> 848 | W4: 1.624521073 | X4: =生涯計算03!Z4 -> 62 | Y4: =IF(C4>=26,生涯計算03!BC4,"－") -> 0.1483253589 | Z4: =生涯計算03!CE4 -> 27 | AA4: =IF(C4>=26,生涯計算03!DG4,"－") -> 0.06459330144 | AB4: =生涯計算03!EJ4 -> 214 | AC4: =生涯計算03!FN4 -> 20 | AD4: =生涯計算04!BE4 -> 60 | AE4: =生涯計算04!CI4 -> 6 | AF4: =IF(AND($C4>=26,$AD4>0),AE4/AD4,"－") -> 0.1 | AG4: =生涯計算05!BA4 -> 26.06603562 | AH4: =生涯計算05!BO4 -> 26.76111282 | AI4: =生涯計算05!CC4 -> 25.3814899 | AJ4: 1期1回 | AK4: 1期1回 | AL4: 2期5回 | AM4: 1 | AN4: ラル氏 | AO4: =RANK(SUMIF(第1期個人成績!$A$3:$A$17,$A4,第1期個人成績!$D$3:$D$17),第1期個人成績!$D$3:$D$17,0) -> 1 | AP4: =RANK(SUMIF(第2期個人成績!$A$3:$A$17,$A4,第2期個人成績!$D$3:$D$17),第2期個人成績!$D$3:$D$17,0) -> 2 | AQ4: =RANK(SUMIF(第3期個人成績!$A$3:$A$19,$A4,第3期個人成績!$D$3:$D$19),第3期個人成績!$D$3:$D$19,0) -> 8 | AR4: =RANK(SUMIF(第4期個人成績!$A$3:$A$22,$A4,第4期個人成績!$D$3:$D$22),第4期個人成績!$D$3:$D$22,0) -> 8 | AS4: =RANK(SUMIF(第5期個人成績!$A$3:$A$33,$A4,第5期個人成績!$D$3:$D$33),第5期個人成績!$D$3:$D$33,0) -> 5 | AT4: =RANK(SUMIF(第6期個人成績!$A$3:$A$45,$A4,第6期個人成績!$E$3:$E$17),第6期個人成績!$E$3:$E$45,0) -> 13 | AU4: =RANK(SUMIF(第7期個人成績!$A$3:$A$57,$A4,第7期個人成績!$E$3:$E$57),第7期個人成績!$E$3:$E$57,0) -> 19 | AV4: =RANK(SUMIF(第8期個人成績!$A$3:$A$46,$A4,第8期個人成績!$E$3:$E$46),第8期個人成績!$E$3:$E$46,0) -> 22 | AW4: =RANK(SUMIF(第9期個人成績!$A$3:$A$48,$A4,第9期個人成績!$E$3:$E$48),第9期個人成績!$E$3:$E$48,0) -> 12 | AX4: =RANK(SUMIF(第10期個人成績!$A$3:$A$43,$A4,第10期個人成績!$E$3:$E$43),第10期個人成績!$E$3:$E$43,0) -> 12 | AY4: =RANK(SUMIF(第11期個人成績!$A$3:$A$37,$A4,第11期個人成績!$E$3:$E$37),第11期個人成績!$E$3:$E$37,0) -> 8 | AZ4: =RANK(SUMIF(第12期個人成績!$A$3:$A$38,$A4,第12期個人成績!$E$3:$E$38),第12期個人成績!$E$3:$E$38,0) -> 18 | BA4: =IF(ISERROR(VLOOKUP(A4,第13期個人成績!$A$2:$G$40,7,FALSE)),"",VLOOKUP(A4,第13期個人成績!$A$2:$G$40,7,FALSE)) -> 12 | BB4: =IF(ISERROR(VLOOKUP($A4,第14期個人成績!$A$2:$G$97,7,FALSE)),"",VLOOKUP($A4,第14期個人成績!$A$2:$G$97,7,FALSE)) -> 19 | BC4: =IF(ISERROR(VLOOKUP($A4,第15期個人成績!$A$2:$G$92,7,FALSE)),"",VLOOKUP($A4,第15期個人成績!$A$2:$G$92,7,FALSE)) -> 7 | BD4: =IF(ISERROR(VLOOKUP($A4,第16期個人成績!$A$2:$G$92,7,FALSE)),"",VLOOKUP($A4,第16期個人成績!$A$2:$G$92,7,FALSE)) -> 8 | BE4: =IF(ISERROR(VLOOKUP($A4,第17期個人成績!$A$2:$G$92,7,FALSE)),"",VLOOKUP($A4,第17期個人成績!$A$2:$G$92,7,FALSE)) -> 12 | BF4: =IF(ISERROR(VLOOKUP($A4,第18期個人成績!$A$2:$G$93,7,FALSE)),"",VLOOKUP($A4,第18期個人成績!$A$2:$G$93,7,FALSE)) -> 13 | BG4: =IF(ISERROR(VLOOKUP($A4,第19期個人成績!$A$2:$G$93,7,FALSE)),"",VLOOKUP($A4,第19期個人成績!$A$2:$G$93,7,FALSE)) -> 29 | BH4: =IF(ISERROR(VLOOKUP($A4,第20期個人成績!$A$2:$G$93,7,FALSE)),"",VLOOKUP($A4,第20期個人成績!$A$2:$G$93,7,FALSE)) -> 12
A5: 2 | B5: =VLOOKUP(A5,登録名変遷!$A$3:$B$1005,2,FALSE) -> HAQ48 | C5: =生涯計算01!Z5 -> 435 | D5: =生涯計算01!AC5 -> 20 | E5: 0.7937956204 | F5: =生涯計算01!BB5 -> 47190 | G5: =IF(C5>=26,生涯計算01!BF5,"－") -> 108.4827586 | H5: =生涯計算04!AA5 -> 594 | I5: =生涯計算01!DC5 -> 11 | J5: =生涯計算01!EE5 -> 17 | K5: =生涯計算01!FH5 -> 0 | L5: =生涯計算01!GG5 -> 126 | M5: =生涯計算01!HI5 -> 60 | N5: 0.2896551724 | O5: 0.1379310345 | P5: =IF(C5>=26,生涯計算02!CD5,"－") -> 14.65747126 | Q5: =IF(C5>=26,生涯計算02!DG5,"－") -> 14.8119589 | R5: =生涯計算02!Z5 -> 6376 | S5: =生涯計算02!BB5 -> 6443.202121 | T5: =生涯計算02!FL5 -> 154 | U5: 0.3540229885 | V5: =生涯計算02!EI5 -> 718 | W5: 1.650574713 | X5: =生涯計算03!Z5 -> 50 | Y5: =IF(C5>=26,生涯計算03!BC5,"－") -> 0.1412429379 | Z5: =生涯計算03!CE5 -> 23 | AA5: =IF(C5>=26,生涯計算03!DG5,"－") -> 0.06497175141 | AB5: =生涯計算03!EJ5 -> 266 | AC5: =生涯計算03!FN5 -> 20 | AD5: =生涯計算04!BE5 -> 67 | AE5: =生涯計算04!CI5 -> 13 | AF5: 0.1940298507 | AG5: =生涯計算05!BA5 -> 26.02802821 | AH5: =生涯計算05!BO5 -> 27.30323077 | AI5: =生涯計算05!CC5 -> 24.57065385 | AJ5: 1期1回 | AK5: 1期17回 | AL5: 1期3回 | AM5: 2 | AN5: .hackshak// 氏 | AO5: =RANK(SUMIF(第1期個人成績!$A$3:$A$17,$A5,第1期個人成績!$D$3:$D$17),第1期個人成績!$D$3:$D$17,0) -> 3 | AP5: =RANK(SUMIF(第2期個人成績!$A$3:$A$17,$A5,第2期個人成績!$D$3:$D$17),第2期個人成績!$D$3:$D$17,0) -> 15 | AQ5: =RANK(SUMIF(第3期個人成績!$A$3:$A$19,$A5,第3期個人成績!$D$3:$D$19),第3期個人成績!$D$3:$D$19,0) -> 7 | AR5: =RANK(SUMIF(第4期個人成績!$A$3:$A$22,$A5,第4期個人成績!$D$3:$D$22),第4期個人成績!$D$3:$D$22,0) -> 7 | AS5: =RANK(SUMIF(第5期個人成績!$A$3:$A$33,$A5,第5期個人成績!$D$3:$D$33),第5期個人成績!$D$3:$D$33,0) -> 18 | AT5: =RANK(SUMIF(第6期個人成績!$A$3:$A$45,$A5,第6期個人成績!$E$3:$E$17),第6期個人成績!$E$3:$E$45,0) -> 5 | AU5: =RANK(SUMIF(第7期個人成績!$A$3:$A$57,$A5,第7期個人成績!$E$3:$E$57),第7期個人成績!$E$3:$E$57,0) -> 29 | AV5: =RANK(SUMIF(第8期個人成績!$A$3:$A$46,$A5,第8期個人成績!$E$3:$E$46),第8期個人成績!$E$3:$E$46,0) -> 27 | AW5: =RANK(SUMIF(第9期個人成績!$A$3:$A$48,$A5,第9期個人成績!$E$3:$E$48),第9期個人成績!$E$3:$E$48,0) -> 34 | AX5: =RANK(SUMIF(第10期個人成績!$A$3:$A$43,$A5,第10期個人成績!$E$3:$E$43),第10期個人成績!$E$3:$E$43,0) -> 32 | AY5: =RANK(SUMIF(第11期個人成績!$A$3:$A$37,$A5,第11期個人成績!$E$3:$E$37),第11期個人成績!$E$3:$E$37,0) -> 21 | AZ5: =RANK(SUMIF(第12期個人成績!$A$3:$A$38,$A5,第12期個人成績!$E$3:$E$38),第12期個人成績!$E$3:$E$38,0) -> 29 | BA5: =IF(ISERROR(VLOOKUP(A5,第13期個人成績!$A$2:$G$40,7,FALSE)),"",VLOOKUP(A5,第13期個人成績!$A$2:$G$40,7,FALSE)) -> 28 | BB5: =IF(ISERROR(VLOOKUP($A5,第14期個人成績!$A$2:$G$97,7,FALSE)),"",VLOOKUP($A5,第14期個人成績!$A$2:$G$97,7,FALSE)) -> 33 | BC5: =IF(ISERROR(VLOOKUP($A5,第15期個人成績!$A$2:$G$92,7,FALSE)),"",VLOOKUP($A5,第15期個人成績!$A$2:$G$92,7,FALSE)) -> 29 | BD5: =IF(ISERROR(VLOOKUP($A5,第16期個人成績!$A$2:$G$92,7,FALSE)),"",VLOOKUP($A5,第16期個人成績!$A$2:$G$92,7,FALSE)) -> 17 | BE5: =IF(ISERROR(VLOOKUP($A5,第17期個人成績!$A$2:$G$92,7,FALSE)),"",VLOOKUP($A5,第17期個人成績!$A$2:$G$92,7,FALSE)) -> 20 | BF5: =IF(ISERROR(VLOOKUP($A5,第18期個人成績!$A$2:$G$93,7,FALSE)),"",VLOOKUP($A5,第18期個人成績!$A$2:$G$93,7,FALSE)) -> 6 | BG5: =IF(ISERROR(VLOOKUP($A5,第19期個人成績!$A$2:$G$93,7,FALSE)),"",VLOOKUP($A5,第19期個人成績!$A$2:$G$93,7,FALSE)) -> 19 | BH5: =IF(ISERROR(VLOOKUP($A5,第20期個人成績!$A$2:$G$93,7,FALSE)),"",VLOOKUP($A5,第20期個人成績!$A$2:$G$93,7,FALSE)) -> 19
A6: 3 | B6: =VLOOKUP(A6,登録名変遷!$A$3:$B$1005,2,FALSE) -> ヤンダルさん | C6: =生涯計算01!Z6 -> 518 | D6: =生涯計算01!AC6 -> 20 | E6: 0.9452554745 | F6: =生涯計算01!BB6 -> 55994 | G6: =IF(C6>=26,生涯計算01!BF6,"－") -> 108.0965251 | H6: =生涯計算04!AA6 -> 1411 | I6: =生涯計算01!DC6 -> 30 | J6: =生涯計算01!EE6 -> 18 | K6: =生涯計算01!FH6 -> 1 | L6: =生涯計算01!GG6 -> 133 | M6: =生涯計算01!HI6 -> 85 | N6: 0.2567567568 | O6: 0.1640926641 | P6: =IF(C6>=26,生涯計算02!CD6,"－") -> 14.58494208 | Q6: =IF(C6>=26,生涯計算02!DG6,"－") -> 15.14037465 | R6: =生涯計算02!Z6 -> 7555 | S6: =生涯計算02!BB6 -> 7842.714069 | T6: =生涯計算02!FL6 -> 172 | U6: 0.332046332 | V6: =生涯計算02!EI6 -> 819 | W6: 1.581081081 | X6: =生涯計算03!Z6 -> 80 | Y6: =IF(C6>=26,生涯計算03!BC6,"－") -> 0.193236715 | Z6: =生涯計算03!CE6 -> 43 | AA6: =IF(C6>=26,生涯計算03!DG6,"－") -> 0.1038647343 | AB6: =生涯計算03!EJ6 -> 320 | AC6: =生涯計算03!FN6 -> 20 | AD6: =生涯計算04!BE6 -> 117 | AE6: =生涯計算04!CI6 -> 26 | AF6: 0.2222222222 | AG6: =生涯計算05!BA6 -> 30.03779898 | AH6: =生涯計算05!BO6 -> 30.36783673 | AI6: =生涯計算05!CC6 -> 29.70943655 | AJ6: 1期1回 | AK6: 1期4回 | AL6: 1期9回 | AM6: 3 | AN6: ヤンダル氏 | AO6: =RANK(SUMIF(第1期個人成績!$A$3:$A$17,$A6,第1期個人成績!$D$3:$D$17),第1期個人成績!$D$3:$D$17,0) -> 5 | AP6: =RANK(SUMIF(第2期個人成績!$A$3:$A$17,$A6,第2期個人成績!$D$3:$D$17),第2期個人成績!$D$3:$D$17,0) -> 3 | AQ6: =RANK(SUMIF(第3期個人成績!$A$3:$A$19,$A6,第3期個人成績!$D$3:$D$19),第3期個人成績!$D$3:$D$19,0) -> 3 | AR6: =RANK(SUMIF(第4期個人成績!$A$3:$A$22,$A6,第4期個人成績!$D$3:$D$22),第4期個人成績!$D$3:$D$22,0) -> 9 | AS6: =RANK(SUMIF(第5期個人成績!$A$3:$A$33,$A6,第5期個人成績!$D$3:$D$33),第5期個人成績!$D$3:$D$33,0) -> 10 | AT6: =RANK(SUMIF(第6期個人成績!$A$3:$A$45,$A6,第6期個人成績!$E$3:$E$17),第6期個人成績!$E$3:$E$45,0) -> 9 | AU6: =RANK(SUMIF(第7期個人成績!$A$3:$A$57,$A6,第7期個人成績!$E$3:$E$57),第7期個人成績!$E$3:$E$57,0) -> 10 | AV6: =RANK(SUMIF(第8期個人成績!$A$3:$A$46,$A6,第8期個人成績!$E$3:$E$46),第8期個人成績!$E$3:$E$46,0) -> 23 | AW6: =RANK(SUMIF(第9期個人成績!$A$3:$A$48,$A6,第9期個人成績!$E$3:$E$48),第9期個人成績!$E$3:$E$48,0) -> 26 | AX6: =RANK(SUMIF(第10期個人成績!$A$3:$A$43,$A6,第10期個人成績!$E$3:$E$43),第10期個人成績!$E$3:$E$43,0) -> 18 | AY6: =RANK(SUMIF(第11期個人成績!$A$3:$A$37,$A6,第11期個人成績!$E$3:$E$37),第11期個人成績!$E$3:$E$37,0) -> 19 | AZ6: =RANK(SUMIF(第12期個人成績!$A$3:$A$38,$A6,第12期個人成績!$E$3:$E$38),第12期個人成績!$E$3:$E$38,0) -> 8 | BA6: =IF(ISERROR(VLOOKUP(A6,第13期個人成績!$A$2:$G$40,7,FALSE)),"",VLOOKUP(A6,第13期個人成績!$A$2:$G$40,7,FALSE)) -> 7 | BB6: =IF(ISERROR(VLOOKUP($A6,第14期個人成績!$A$2:$G$97,7,FALSE)),"",VLOOKUP($A6,第14期個人成績!$A$2:$G$97,7,FALSE)) -> 13 | BC6: =IF(ISERROR(VLOOKUP($A6,第15期個人成績!$A$2:$G$92,7,FALSE)),"",VLOOKUP($A6,第15期個人成績!$A$2:$G$92,7,FALSE)) -> 3 | BD6: =IF(ISERROR(VLOOKUP($A6,第16期個人成績!$A$2:$G$92,7,FALSE)),"",VLOOKUP($A6,第16期個人成績!$A$2:$G$92,7,FALSE)) -> 19 | BE6: =IF(ISERROR(VLOOKUP($A6,第17期個人成績!$A$2:$G$92,7,FALSE)),"",VLOOKUP($A6,第17期個人成績!$A$2:$G$92,7,FALSE)) -> 17 | BF6: =IF(ISERROR(VLOOKUP($A6,第18期個人成績!$A$2:$G$93,7,FALSE)),"",VLOOKUP($A6,第18期個人成績!$A$2:$G$93,7,FALSE)) -> 16 | BG6: =IF(ISERROR(VLOOKUP($A6,第19期個人成績!$A$2:$G$93,7,FALSE)),"",VLOOKUP($A6,第19期個人成績!$A$2:$G$93,7,FALSE)) -> 10 | BH6: =IF(ISERROR(VLOOKUP($A6,第20期個人成績!$A$2:$G$93,7,FALSE)),"",VLOOKUP($A6,第20期個人成績!$A$2:$G$93,7,FALSE)) -> 24
A7: 4 | B7: =VLOOKUP(A7,登録名変遷!$A$3:$B$1005,2,FALSE) -> 陣内閣竜さん | C7: =生涯計算01!Z7 -> 1 | D7: =生涯計算01!AC7 -> 1 | E7: 0.001824817518 | F7: =生涯計算01!BB7 -> 65 | G7: =IF(C7>=26,生涯計算01!BF7,"－") -> － | H7: =生涯計算04!AA7 -> 0 | I7: =生涯計算01!DC7 -> 0 | J7: =生涯計算01!EE7 -> 0 | K7: =生涯計算01!FH7 -> 0 | L7: =生涯計算01!GG7 -> 0 | M7: =生涯計算01!HI7 -> 0 | N7: － | O7: － | P7: =IF(C7>=26,生涯計算02!CD7,"－") -> － | Q7: =IF(C7>=26,生涯計算02!DG7,"－") -> － | R7: =生涯計算02!Z7 -> 7 | S7: =生涯計算02!BB7 -> 23.33333333 | T7: =生涯計算02!FL7 -> 0 | U7: 0 | V7: =生涯計算02!EI7 -> 2 | W7: 2 | X7: =生涯計算03!Z7 -> 0 | Y7: =IF(C7>=26,生涯計算03!BC7,"－") -> － | Z7: =生涯計算03!CE7 -> 0 | AA7: =IF(C7>=26,生涯計算03!DG7,"－") -> － | AB7: =生涯計算03!EJ7 -> 65 | AC7: =生涯計算03!FN7 -> 65 | AD7: =生涯計算04!BE7 -> 1 | AE7: =生涯計算04!CI7 -> 0 | AF7: － | AG7: =生涯計算05!BA7 -> － | AH7: =生涯計算05!BO7 -> － | AI7: =生涯計算05!CC7 -> － | AJ7: 1期1回 | AK7: - | AL7: - | AM7: 4 | AN7: 陣内閣竜氏 | AO7: =RANK(SUMIF(第1期個人成績!$A$3:$A$17,$A7,第1期個人成績!$D$3:$D$17),第1期個人成績!$D$3:$D$17,0) -> 15 | BA7: =IF(ISERROR(VLOOKUP(A7,第13期個人成績!$A$2:$G$40,7,FALSE)),"",VLOOKUP(A7,第13期個人成績!$A$2:$G$40,7,FALSE)) ->  | BB7: =IF(ISERROR(VLOOKUP($A7,第14期個人成績!$A$2:$G$97,7,FALSE)),"",VLOOKUP($A7,第14期個人成績!$A$2:$G$97,7,FALSE)) ->  | BC7: =IF(ISERROR(VLOOKUP($A7,第15期個人成績!$A$2:$G$92,7,FALSE)),"",VLOOKUP($A7,第15期個人成績!$A$2:$G$92,7,FALSE)) ->  | BD7: =IF(ISERROR(VLOOKUP($A7,第16期個人成績!$A$2:$G$92,7,FALSE)),"",VLOOKUP($A7,第16期個人成績!$A$2:$G$92,7,FALSE)) ->  | BE7: =IF(ISERROR(VLOOKUP($A7,第17期個人成績!$A$2:$G$92,7,FALSE)),"",VLOOKUP($A7,第17期個人成績!$A$2:$G$92,7,FALSE)) ->  | BF7: =IF(ISERROR(VLOOKUP($A7,第18期個人成績!$A$2:$G$93,7,FALSE)),"",VLOOKUP($A7,第18期個人成績!$A$2:$G$93,7,FALSE)) ->  | BG7: =IF(ISERROR(VLOOKUP($A7,第19期個人成績!$A$2:$G$93,7,FALSE)),"",VLOOKUP($A7,第19期個人成績!$A$2:$G$93,7,FALSE)) ->  | BH7: =IF(ISERROR(VLOOKUP($A7,第20期個人成績!$A$2:$G$93,7,FALSE)),"",VLOOKUP($A7,第20期個人成績!$A$2:$G$93,7,FALSE)) -> 
A8: 5 | B8: =VLOOKUP(A8,登録名変遷!$A$3:$B$1005,2,FALSE) -> GEKOさん | C8: =生涯計算01!Z8 -> 504 | D8: =生涯計算01!AC8 -> 20 | E8: 0.9197080292 | F8: =生涯計算01!BB8 -> 52448 | G8: =IF(C8>=26,生涯計算01!BF8,"－") -> 104.0634921 | H8: =生涯計算04!AA8 -> 2055 | I8: =生涯計算01!DC8 -> 17 | J8: =生涯計算01!EE8 -> 34 | K8: =生涯計算01!FH8 -> 0 | L8: =生涯計算01!GG8 -> 112 | M8: =生涯計算01!HI8 -> 88 | N8: 0.2222222222 | O8: 0.1746031746 | P8: =IF(C8>=26,生涯計算02!CD8,"－") -> 16.45634921 | Q8: =IF(C8>=26,生涯計算02!DG8,"－") -> 16.69678466 | R8: =生涯計算02!Z8 -> 8294 | S8: =生涯計算02!BB8 -> 8415.17947 | T8: =生涯計算02!FL8 -> 149 | U8: 0.2956349206 | V8: =生涯計算02!EI8 -> 755 | W8: 1.498015873 | X8: =生涯計算03!Z8 -> 64 | Y8: =IF(C8>=26,生涯計算03!BC8,"－") -> 0.1531100478 | Z8: =生涯計算03!CE8 -> 69 | AA8: =IF(C8>=26,生涯計算03!DG8,"－") -> 0.1650717703 | AB8: =生涯計算03!EJ8 -> 255 | AC8: =生涯計算03!FN8 -> 20 | AD8: =生涯計算04!BE8 -> 190 | AE8: =生涯計算04!CI8 -> 32 | AF8: 0.1684210526 | AG8: =生涯計算05!BA8 -> 35.3097659 | AH8: =生涯計算05!BO8 -> 39.21932022 | AI8: =生涯計算05!CC8 -> 32.0730186 | AJ8: 1期1回 | AK8: 1期10回 | AL8: 2期20回 | AM8: 5 | AN8: GEKO氏 | AO8: =RANK(SUMIF(第1期個人成績!$A$3:$A$17,$A8,第1期個人成績!$D$3:$D$17),第1期個人成績!$D$3:$D$17,0) -> 11 | AP8: =RANK(SUMIF(第2期個人成績!$A$3:$A$17,$A8,第2期個人成績!$D$3:$D$17),第2期個人成績!$D$3:$D$17,0) -> 6 | AQ8: =RANK(SUMIF(第3期個人成績!$A$3:$A$19,$A8,第3期個人成績!$D$3:$D$19),第3期個人成績!$D$3:$D$19,0) -> 4 | AR8: =RANK(SUMIF(第4期個人成績!$A$3:$A$22,$A8,第4期個人成績!$D$3:$D$22),第4期個人成績!$D$3:$D$22,0) -> 15 | AS8: =RANK(SUMIF(第5期個人成績!$A$3:$A$33,$A8,第5期個人成績!$D$3:$D$33),第5期個人成績!$D$3:$D$33,0) -> 8 | AT8: =RANK(SUMIF(第6期個人成績!$A$3:$A$45,$A8,第6期個人成績!$E$3:$E$17),第6期個人成績!$E$3:$E$45,0) -> 4 | AU8: =RANK(SUMIF(第7期個人成績!$A$3:$A$57,$A8,第7期個人成績!$E$3:$E$57),第7期個人成績!$E$3:$E$57,0) -> 9 | AV8: =RANK(SUMIF(第8期個人成績!$A$3:$A$46,$A8,第8期個人成績!$E$3:$E$46),第8期個人成績!$E$3:$E$46,0) -> 31 | AW8: =RANK(SUMIF(第9期個人成績!$A$3:$A$48,$A8,第9期個人成績!$E$3:$E$48),第9期個人成績!$E$3:$E$48,0) -> 14 | AX8: =RANK(SUMIF(第10期個人成績!$A$3:$A$43,$A8,第10期個人成績!$E$3:$E$43),第10期個人成績!$E$3:$E$43,0) -> 17 | AY8: =RANK(SUMIF(第11期個人成績!$A$3:$A$37,$A8,第11期個人成績!$E$3:$E$37),第11期個人成績!$E$3:$E$37,0) -> 16 | AZ8: =RANK(SUMIF(第12期個人成績!$A$3:$A$38,$A8,第12期個人成績!$E$3:$E$38),第12期個人成績!$E$3:$E$38,0) -> 15 | BA8: =IF(ISERROR(VLOOKUP(A8,第13期個人成績!$A$2:$G$40,7,FALSE)),"",VLOOKUP(A8,第13期個人成績!$A$2:$G$40,7,FALSE)) -> 13 | BB8: =IF(ISERROR(VLOOKUP($A8,第14期個人成績!$A$2:$G$97,7,FALSE)),"",VLOOKUP($A8,第14期個人成績!$A$2:$G$97,7,FALSE)) -> 21 | BC8: =IF(ISERROR(VLOOKUP($A8,第15期個人成績!$A$2:$G$92,7,FALSE)),"",VLOOKUP($A8,第15期個人成績!$A$2:$G$92,7,FALSE)) -> 8 | BD8: =IF(ISERROR(VLOOKUP($A8,第16期個人成績!$A$2:$G$92,7,FALSE)),"",VLOOKUP($A8,第16期個人成績!$A$2:$G$92,7,FALSE)) -> 24 | BE8: =IF(ISERROR(VLOOKUP($A8,第17期個人成績!$A$2:$G$92,7,FALSE)),"",VLOOKUP($A8,第17期個人成績!$A$2:$G$92,7,FALSE)) -> 23 | BF8: =IF(ISERROR(VLOOKUP($A8,第18期個人成績!$A$2:$G$93,7,FALSE)),"",VLOOKUP($A8,第18期個人成績!$A$2:$G$93,7,FALSE)) -> 29 | BG8: =IF(ISERROR(VLOOKUP($A8,第19期個人成績!$A$2:$G$93,7,FALSE)),"",VLOOKUP($A8,第19期個人成績!$A$2:$G$93,7,FALSE)) -> 27 | BH8: =IF(ISERROR(VLOOKUP($A8,第20期個人成績!$A$2:$G$93,7,FALSE)),"",VLOOKUP($A8,第20期個人成績!$A$2:$G$93,7,FALSE)) -> 26
A9: 6 | B9: =VLOOKUP(A9,登録名変遷!$A$3:$B$1005,2,FALSE) -> なりぼーさん | C9: =生涯計算01!Z9 -> 55 | D9: =生涯計算01!AC9 -> 8 | E9: 0.1003649635 | F9: =生涯計算01!BB9 -> 5569 | G9: =IF(C9>=26,生涯計算01!BF9,"－") -> 101.2545455 | H9: =生涯計算04!AA9 -> 250 | I9: =生涯計算01!DC9 -> 3 | J9: =生涯計算01!EE9 -> 3 | K9: =生涯計算01!FH9 -> 0 | L9: =生涯計算01!GG9 -> 10 | M9: =生涯計算01!HI9 -> 7 | N9: 0.1818181818 | O9: 0.1272727273 | P9: =IF(C9>=26,生涯計算02!CD9,"－") -> 13.07272727 | Q9: =IF(C9>=26,生涯計算02!DG9,"－") -> 16.60491386 | R9: =生涯計算02!Z9 -> 719 | S9: =生涯計算02!BB9 -> 913.2702624 | T9: =生涯計算02!FL9 -> 16 | U9: 0.2909090909 | V9: =生涯計算02!EI9 -> 82 | W9: 1.490909091 | X9: =生涯計算03!Z9 -> 3 | Y9: =IF(C9>=26,生涯計算03!BC9,"－") -> 0.09375 | Z9: =生涯計算03!CE9 -> 2 | AA9: =IF(C9>=26,生涯計算03!DG9,"－") -> 0.0625 | AB9: =生涯計算03!EJ9 -> 176 | AC9: =生涯計算03!FN9 -> 20 | AD9: =生涯計算04!BE9 -> 24 | AE9: =生涯計算04!CI9 -> 5 | AF9: 0.2083333333 | AG9: =生涯計算05!BA9 -> － | AH9: =生涯計算05!BO9 -> － | AI9: =生涯計算05!CC9 -> － | AJ9: 1期1回 | AK9: 2期20回 | AL9: 2期20回 | AM9: 6 | AN9: なりぼー氏 | AO9: =RANK(SUMIF(第1期個人成績!$A$3:$A$17,$A9,第1期個人成績!$D$3:$D$17),第1期個人成績!$D$3:$D$17,0) -> 13 | AP9: =RANK(SUMIF(第2期個人成績!$A$3:$A$17,$A9,第2期個人成績!$D$3:$D$17),第2期個人成績!$D$3:$D$17,0) -> 13 | AQ9: =RANK(SUMIF(第3期個人成績!$A$3:$A$19,$A9,第3期個人成績!$D$3:$D$19),第3期個人成績!$D$3:$D$19,0) -> 15 | AR9: =RANK(SUMIF(第4期個人成績!$A$3:$A$22,$A9,第4期個人成績!$D$3:$D$22),第4期個人成績!$D$3:$D$22,0) -> 17 | AS9: =RANK(SUMIF(第5期個人成績!$A$3:$A$33,$A9,第5期個人成績!$D$3:$D$33),第5期個人成績!$D$3:$D$33,0) -> 29 | AT9: =RANK(SUMIF(第6期個人成績!$A$3:$A$45,$A9,第6期個人成績!$E$3:$E$17),第6期個人成績!$E$3:$E$45,0) -> 23 | AU9: =RANK(SUMIF(第7期個人成績!$A$3:$A$57,$A9,第7期個人成績!$E$3:$E$57),第7期個人成績!$E$3:$E$57,0) -> 44 | AV9: =RANK(SUMIF(第8期個人成績!$A$3:$A$46,$A9,第8期個人成績!$E$3:$E$46),第8期個人成績!$E$3:$E$46,0) -> 43 | BA9: =IF(ISERROR(VLOOKUP(A9,第13期個人成績!$A$2:$G$40,7,FALSE)),"",VLOOKUP(A9,第13期個人成績!$A$2:$G$40,7,FALSE)) ->  | BB9: =IF(ISERROR(VLOOKUP($A9,第14期個人成績!$A$2:$G$97,7,FALSE)),"",VLOOKUP($A9,第14期個人成績!$A$2:$G$97,7,FALSE)) ->  | BC9: =IF(ISERROR(VLOOKUP($A9,第15期個人成績!$A$2:$G$92,7,FALSE)),"",VLOOKUP($A9,第15期個人成績!$A$2:$G$92,7,FALSE)) ->  | BD9: =IF(ISERROR(VLOOKUP($A9,第16期個人成績!$A$2:$G$92,7,FALSE)),"",VLOOKUP($A9,第16期個人成績!$A$2:$G$92,7,FALSE)) ->  | BE9: =IF(ISERROR(VLOOKUP($A9,第17期個人成績!$A$2:$G$92,7,FALSE)),"",VLOOKUP($A9,第17期個人成績!$A$2:$G$92,7,FALSE)) ->  | BF9: =IF(ISERROR(VLOOKUP($A9,第18期個人成績!$A$2:$G$93,7,FALSE)),"",VLOOKUP($A9,第18期個人成績!$A$2:$G$93,7,FALSE)) ->  | BG9: =IF(ISERROR(VLOOKUP($A9,第19期個人成績!$A$2:$G$93,7,FALSE)),"",VLOOKUP($A9,第19期個人成績!$A$2:$G$93,7,FALSE)) ->  | BH9: =IF(ISERROR(VLOOKUP($A9,第20期個人成績!$A$2:$G$93,7,FALSE)),"",VLOOKUP($A9,第20期個人成績!$A$2:$G$93,7,FALSE)) -> 
A10: 7 | B10: =VLOOKUP(A10,登録名変遷!$A$3:$B$1005,2,FALSE) -> NOVさん | C10: =生涯計算01!Z10 -> 214 | D10: =生涯計算01!AC10 -> 9 | E10: 0.3905109489 | F10: =生涯計算01!BB10 -> 22357 | G10: =IF(C10>=26,生涯計算01!BF10,"－") -> 104.4719626 | H10: =生涯計算04!AA10 -> 531 | I10: =生涯計算01!DC10 -> 9 | J10: =生涯計算01!EE10 -> 12 | K10: =生涯計算01!FH10 -> 0 | L10: =生涯計算01!GG10 -> 53 | M10: =生涯計算01!HI10 -> 34 | N10: 0.2476635514 | O10: 0.1588785047 | P10: =IF(C10>=26,生涯計算02!CD10,"－") -> 10.20560748 | Q10: =IF(C10>=26,生涯計算02!DG10,"－") -> 14.67146318 | R10: =生涯計算02!Z10 -> 2184 | S10: =生涯計算02!BB10 -> 3139.69312 | T10: =生涯計算02!FL10 -> 64 | U10: 0.2990654206 | V10: =生涯計算02!EI10 -> 332 | W10: 1.551401869 | X10: =生涯計算03!Z10 -> 23 | Y10: =IF(C10>=26,生涯計算03!BC10,"－") -> 0.2090909091 | Z10: =生涯計算03!CE10 -> 10 | AA10: =IF(C10>=26,生涯計算03!DG10,"－") -> 0.09090909091 | AB10: =生涯計算03!EJ10 -> 206 | AC10: =生涯計算03!FN10 -> 20 | AD10: =生涯計算04!BE10 -> 50 | AE10: =生涯計算04!CI10 -> 10 | AF10: 0.2 | AG10: =生涯計算05!BA10 -> － | AH10: =生涯計算05!BO10 -> － | AI10: =生涯計算05!CC10 -> － | AJ10: 1期1回 | AK10: 1期20回 | AL10: 1期9回 | AM10: 7 | AN10: NOV氏 | AO10: =RANK(SUMIF(第1期個人成績!$A$3:$A$17,$A10,第1期個人成績!$D$3:$D$17),第1期個人成績!$D$3:$D$17,0) -> 6 | AP10: =RANK(SUMIF(第2期個人成績!$A$3:$A$17,$A10,第2期個人成績!$D$3:$D$17),第2期個人成績!$D$3:$D$17,0) -> 4 | AQ10: =RANK(SUMIF(第3期個人成績!$A$3:$A$19,$A10,第3期個人成績!$D$3:$D$19),第3期個人成績!$D$3:$D$19,0) -> 5 | AR10: =RANK(SUMIF(第4期個人成績!$A$3:$A$22,$A10,第4期個人成績!$D$3:$D$22),第4期個人成績!$D$3:$D$22,0) -> 2 | AS10: =RANK(SUMIF(第5期個人成績!$A$3:$A$33,$A10,第5期個人成績!$D$3:$D$33),第5期個人成績!$D$3:$D$33,0) -> 12 | AT10: =RANK(SUMIF(第6期個人成績!$A$3:$A$45,$A10,第6期個人成績!$E$3:$E$17),第6期個人成績!$E$3:$E$45,0) -> 7 | AU10: =RANK(SUMIF(第7期個人成績!$A$3:$A$57,$A10,第7期個人成績!$E$3:$E$57),第7期個人成績!$E$3:$E$57,0) -> 7 | AV10: =RANK(SUMIF(第8期個人成績!$A$3:$A$46,$A10,第8期個人成績!$E$3:$E$46),第8期個人成績!$E$3:$E$46,0) -> 16 | AW10: =RANK(SUMIF(第9期個人成績!$A$3:$A$48,$A10,第9期個人成績!$E$3:$E$48),第9期個人成績!$E$3:$E$48,0) -> 36 | BA10: =IF(ISERROR(VLOOKUP(A10,第13期個人成績!$A$2:$G$40,7,FALSE)),"",VLOOKUP(A10,第13期個人成績!$A$2:$G$40,7,FALSE)) ->  | BB10: =IF(ISERROR(VLOOKUP($A10,第14期個人成績!$A$2:$G$97,7,FALSE)),"",VLOOKUP($A10,第14期個人成績!$A$2:$G$97,7,FALSE)) ->  | BC10: =IF(ISERROR(VLOOKUP($A10,第15期個人成績!$A$2:$G$92,7,FALSE)),"",VLOOKUP($A10,第15期個人成績!$A$2:$G$92,7,FALSE)) ->  | BD10: =IF(ISERROR(VLOOKUP($A10,第16期個人成績!$A$2:$G$92,7,FALSE)),"",VLOOKUP($A10,第16期個人成績!$A$2:$G$92,7,FALSE)) ->  | BE10: =IF(ISERROR(VLOOKUP($A10,第17期個人成績!$A$2:$G$92,7,FALSE)),"",VLOOKUP($A10,第17期個人成績!$A$2:$G$92,7,FALSE)) ->  | BF10: =IF(ISERROR(VLOOKUP($A10,第18期個人成績!$A$2:$G$93,7,FALSE)),"",VLOOKUP($A10,第18期個人成績!$A$2:$G$93,7,FALSE)) ->  | BG10: =IF(ISERROR(VLOOKUP($A10,第19期個人成績!$A$2:$G$93,7,FALSE)),"",VLOOKUP($A10,第19期個人成績!$A$2:$G$93,7,FALSE)) ->  | BH10: =IF(ISERROR(VLOOKUP($A10,第20期個人成績!$A$2:$G$93,7,FALSE)),"",VLOOKUP($A10,第20期個人成績!$A$2:$G$93,7,FALSE)) -> 
A11: 8 | B11: =VLOOKUP(A11,登録名変遷!$A$3:$B$1005,2,FALSE) -> ろとーさん | C11: =生涯計算01!Z11 -> 518 | D11: =生涯計算01!AC11 -> 20 | E11: 0.9452554745 | F11: =生涯計算01!BB11 -> 53400 | G11: =IF(C11>=26,生涯計算01!BF11,"－") -> 103.0888031 | H11: =生涯計算04!AA11 -> 753 | I11: =生涯計算01!DC11 -> 22 | J11: =生涯計算01!EE11 -> 26 | K11: =生涯計算01!FH11 -> 0 | L11: =生涯計算01!GG11 -> 112 | M11: =生涯計算01!HI11 -> 90 | N11: 0.2162162162 | O11: 0.1737451737 | P11: =IF(C11>=26,生涯計算02!CD11,"－") -> 15.78957529 | Q11: =IF(C11>=26,生涯計算02!DG11,"－") -> 16.40480883 | R11: =生涯計算02!Z11 -> 8179 | S11: =生涯計算02!BB11 -> 8497.690974 | T11: =生涯計算02!FL11 -> 176 | U11: 0.3397683398 | V11: =生涯計算02!EI11 -> 798 | W11: 1.540540541 | X11: =生涯計算03!Z11 -> 62 | Y11: =IF(C11>=26,生涯計算03!BC11,"－") -> 0.1483253589 | Z11: =生涯計算03!CE11 -> 49 | AA11: =IF(C11>=26,生涯計算03!DG11,"－") -> 0.1172248804 | AB11: =生涯計算03!EJ11 -> 285 | AC11: =生涯計算03!FN11 -> 20 | AD11: =生涯計算04!BE11 -> 143 | AE11: =生涯計算04!CI11 -> 13 | AF11: 0.09090909091 | AG11: =生涯計算05!BA11 -> 31.80273902 | AH11: =生涯計算05!BO11 -> 33.24758738 | AI11: =生涯計算05!CC11 -> 30.15832597 | AJ11: 1期1回 | AK11: 1期18回 | AL11: 1期16回 | AM11: 8 | AN11: ロトー氏 | AO11: =RANK(SUMIF(第1期個人成績!$A$3:$A$17,$A11,第1期個人成績!$D$3:$D$17),第1期個人成績!$D$3:$D$17,0) -> 8 | AP11: =RANK(SUMIF(第2期個人成績!$A$3:$A$17,$A11,第2期個人成績!$D$3:$D$17),第2期個人成績!$D$3:$D$17,0) -> 9 | AQ11: =RANK(SUMIF(第3期個人成績!$A$3:$A$19,$A11,第3期個人成績!$D$3:$D$19),第3期個人成績!$D$3:$D$19,0) -> 13 | AR11: =RANK(SUMIF(第4期個人成績!$A$3:$A$22,$A11,第4期個人成績!$D$3:$D$22),第4期個人成績!$D$3:$D$22,0) -> 3 | AS11: =RANK(SUMIF(第5期個人成績!$A$3:$A$33,$A11,第5期個人成績!$D$3:$D$33),第5期個人成績!$D$3:$D$33,0) -> 4 | AT11: =RANK(SUMIF(第6期個人成績!$A$3:$A$45,$A11,第6期個人成績!$E$3:$E$17),第6期個人成績!$E$3:$E$45,0) -> 11 | AU11: =RANK(SUMIF(第7期個人成績!$A$3:$A$57,$A11,第7期個人成績!$E$3:$E$57),第7期個人成績!$E$3:$E$57,0) -> 18 | AV11: =RANK(SUMIF(第8期個人成績!$A$3:$A$46,$A11,第8期個人成績!$E$3:$E$46),第8期個人成績!$E$3:$E$46,0) -> 10 | AW11: =RANK(SUMIF(第9期個人成績!$A$3:$A$48,$A11,第9期個人成績!$E$3:$E$48),第9期個人成績!$E$3:$E$48,0) -> 28 | AX11: =RANK(SUMIF(第10期個人成績!$A$3:$A$43,$A11,第10期個人成績!$E$3:$E$43),第10期個人成績!$E$3:$E$43,0) -> 28 | AY11: =RANK(SUMIF(第11期個人成績!$A$3:$A$37,$A11,第11期個人成績!$E$3:$E$37),第11期個人成績!$E$3:$E$37,0) -> 10 | AZ11: =RANK(SUMIF(第12期個人成績!$A$3:$A$38,$A11,第12期個人成績!$E$3:$E$38),第12期個人成績!$E$3:$E$38,0) -> 20 | BA11: =IF(ISERROR(VLOOKUP(A11,第13期個人成績!$A$2:$G$40,7,FALSE)),"",VLOOKUP(A11,第13期個人成績!$A$2:$G$40,7,FALSE)) -> 20 | BB11: =IF(ISERROR(VLOOKUP($A11,第14期個人成績!$A$2:$G$97,7,FALSE)),"",VLOOKUP($A11,第14期個人成績!$A$2:$G$97,7,FALSE)) -> 17 | BC11: =IF(ISERROR(VLOOKUP($A11,第15期個人成績!$A$2:$G$92,7,FALSE)),"",VLOOKUP($A11,第15期個人成績!$A$2:$G$92,7,FALSE)) -> 19 | BD11: =IF(ISERROR(VLOOKUP($A11,第16期個人成績!$A$2:$G$92,7,FALSE)),"",VLOOKUP($A11,第16期個人成績!$A$2:$G$92,7,FALSE)) -> 16 | BE11: =IF(ISERROR(VLOOKUP($A11,第17期個人成績!$A$2:$G$92,7,FALSE)),"",VLOOKUP($A11,第17期個人成績!$A$2:$G$92,7,FALSE)) -> 28 | BF11: =IF(ISERROR(VLOOKUP($A11,第18期個人成績!$A$2:$G$93,7,FALSE)),"",VLOOKUP($A11,第18期個人成績!$A$2:$G$93,7,FALSE)) -> 21 | BG11: =IF(ISERROR(VLOOKUP($A11,第19期個人成績!$A$2:$G$93,7,FALSE)),"",VLOOKUP($A11,第19期個人成績!$A$2:$G$93,7,FALSE)) -> 18 | BH11: =IF(ISERROR(VLOOKUP($A11,第20期個人成績!$A$2:$G$93,7,FALSE)),"",VLOOKUP($A11,第20期個人成績!$A$2:$G$93,7,FALSE)) -> 25
A12: 9 | B12: =VLOOKUP(A12,登録名変遷!$A$3:$B$1005,2,FALSE) -> HDBさん | C12: =生涯計算01!Z12 -> 31 | D12: =生涯計算01!AC12 -> 2 | E12: 0.05656934307 | F12: =生涯計算01!BB12 -> 2826 | G12: =IF(C12>=26,生涯計算01!BF12,"－") -> 91.16129032 | H12: =生涯計算04!AA12 -> 90 | I12: =生涯計算01!DC12 -> 1 | J12: =生涯計算01!EE12 -> 5 | K12: =生涯計算01!FH12 -> 0 | L12: =生涯計算01!GG12 -> 7 | M12: =生涯計算01!HI12 -> 4 | N12: 0.2258064516 | O12: 0.1290322581 | P12: =IF(C12>=26,生涯計算02!CD12,"－") -> 6.741935484 | Q12: =IF(C12>=26,生涯計算02!DG12,"－") -> 17.49088009 | R12: =生涯計算02!Z12 -> 209 | S12: =生涯計算02!BB12 -> 542.2172827 | T12: =生涯計算02!FL12 -> 1 | U12: 0.03225806452 | V12: =生涯計算02!EI12 -> 46 | W12: 1.483870968 | X12: =生涯計算03!Z12 -> 0 | Y12: =IF(C12>=26,生涯計算03!BC12,"－") -> － | Z12: =生涯計算03!CE12 -> 0 | AA12: =IF(C12>=26,生涯計算03!DG12,"－") -> － | AB12: =生涯計算03!EJ12 -> 219 | AC12: =生涯計算03!FN12 -> 31 | AD12: =生涯計算04!BE12 -> 12 | AE12: =生涯計算04!CI12 -> 2 | AF12: 0.1666666667 | AG12: =生涯計算05!BA12 -> － | AH12: =生涯計算05!BO12 -> － | AI12: =生涯計算05!CC12 -> － | AJ12: 1期2回 | AK12: 2期5回 | AL12: 1期15回 | AM12: 9 | AN12: HDB氏 | AO12: =RANK(SUMIF(第1期個人成績!$A$3:$A$17,$A12,第1期個人成績!$D$3:$D$17),第1期個人成績!$D$3:$D$17,0) -> 12 | AP12: =RANK(SUMIF(第2期個人成績!$A$3:$A$17,$A12,第2期個人成績!$D$3:$D$17),第2期個人成績!$D$3:$D$17,0) -> 11 | BA12: =IF(ISERROR(VLOOKUP(A12,第13期個人成績!$A$2:$G$40,7,FALSE)),"",VLOOKUP(A12,第13期個人成績!$A$2:$G$40,7,FALSE)) ->  | BB12: =IF(ISERROR(VLOOKUP($A12,第14期個人成績!$A$2:$G$97,7,FALSE)),"",VLOOKUP($A12,第14期個人成績!$A$2:$G$97,7,FALSE)) ->  | BC12: =IF(ISERROR(VLOOKUP($A12,第15期個人成績!$A$2:$G$92,7,FALSE)),"",VLOOKUP($A12,第15期個人成績!$A$2:$G$92,7,FALSE)) ->  | BD12: =IF(ISERROR(VLOOKUP($A12,第16期個人成績!$A$2:$G$92,7,FALSE)),"",VLOOKUP($A12,第16期個人成績!$A$2:$G$92,7,FALSE)) ->  | BE12: =IF(ISERROR(VLOOKUP($A12,第17期個人成績!$A$2:$G$92,7,FALSE)),"",VLOOKUP($A12,第17期個人成績!$A$2:$G$92,7,FALSE)) ->  | BF12: =IF(ISERROR(VLOOKUP($A12,第18期個人成績!$A$2:$G$93,7,FALSE)),"",VLOOKUP($A12,第18期個人成績!$A$2:$G$93,7,FALSE)) ->  | BG12: =IF(ISERROR(VLOOKUP($A12,第19期個人成績!$A$2:$G$93,7,FALSE)),"",VLOOKUP($A12,第19期個人成績!$A$2:$G$93,7,FALSE)) ->  | BH12: =IF(ISERROR(VLOOKUP($A12,第20期個人成績!$A$2:$G$93,7,FALSE)),"",VLOOKUP($A12,第20期個人成績!$A$2:$G$93,7,FALSE)) -> 
